Workbook

Sheet Cover
B3: BU mobilný LRIC model
B6: Tento dokument je "Výstupom II" - matematický model pripravený spoločnosťou PricewaterhouseCoopers Slovensko, s.r.o. v rámci projektu „Vypracovanie vzostupného hospodársko-technického modulu LRIC-pure pre stanovenie ceny prepojovacích poplatkov za službu ukončenia volania v jednotlivých mobilných telefónnych sieťach“ (tzv. „LRIC – pure“ podľa odporúčania EK o regulačnom zaobchádzaní s prepojovacími poplatkami v pevných a mobilných telefónnych sieťach v EÚ zo 7. mája 2009). Výstup 2 slúži ako matematický model pre výpočet cien na základe dlhodobých prírastkových nákladov (vrátene modelu LRIC) pre službu ukončenia volaní vo verejných mobilných sieťach. Ide o funkčný model, ktorý bude v súlade so zmluvou z 20.2.2012 v nasledujúcich fázach projektu prechádzať naplnením vstupmi operátorov pôsobiacich na trhu mobilných komunikácií v Slovenskej republike. Vzhľadom na uvedený postup v nasledujúcich fázach projektu môže dôjsť k jeho modifikácii smerujúcej k naplneniu modelu optimálnymi vstupmi a prípadného nasledujúceho zapracovania významných pripomienok zo strany TÚSR alebo operátorov.

Sheet A. Výber
A1: A. Voľba parametrov | H1: Selections
B5: Výberové kritériá | H5: Criteria (repeated) | I5: List | J5: Selection
H6: Odpisová metoda | I6: Jednoduchá anuita | J6: 4
I7: Naklonená anuita
C8: Metóda anualizácie investičných výdavkov | I8: Modifikovaná jednoduchá anuita
I9: Modifikovaná naklonená anuita
C10: Rok | H10: Rok | I10: Rok 0 | J10: 3
I11: Rok 1
C12: Model operátora | I12: Rok 2
I13: Rok 3
C14: Migrácia 2G / 3G | H14: Model operátora | I14: Model teoretického operátora | J14: 1
C15: Konverzné faktory | I15: Model operátora 1
I16: Model operátora 2
I17: Model operátora 3
C18: Distribúcia prevádzky GSM / UMTS / LTE | D18: Hlas % | E18: Dáta % | H18: Migrace 2G / 3G | I18: Zahrnúť | J18: 1
C19: Prevádzka v GSM rádiovej sieti | D19: ='2. Dopyt'!E46 -> 0 | E19: ='2. Dopyt'!E81 -> 0 | I19: Nezahrnúť
C20: Prevádzka v UMTS rádiovej sieti | D20: ='2. Dopyt'!E47 -> 0 | E20: ='2. Dopyt'!E82 -> 0 | H20: Konverzné faktory | I20: návrh operátorov | J20: 1
C21: Prevádzka v LTE rádiovej sieti | D21: ='2. Dopyt'!E48 -> 0 | E21: ='2. Dopyt'!E83 -> 0 | I21: návrh dodávateľa
C24: Calibration for Dual GSM (Y/N) | D24: Y

Sheet B. Výsledky & citlivosť
A1: B. Výsledky v zvolenom roku
B3: 1. Výpočet hodnoty Pure LRIC
B5: Název služby | C5: -3.936032884e-06 | R5: 29722898.9 | S5: =R5-'11. Anualizácia nákladov'!E275 -> 
B6: Příchozí - hovory od jiných mobilních operátorů | C6: -3.635593882e-06 | R6: 29722898.9 | S6: =R6-'11. Anualizácia nákladov'!E275 -> 
B7: Příchozí - hovory z pevné sítě | C7: -3.424116137e-06 | R7: 29722898.9 | S7: =R7-'11. Anualizácia nákladov'!E275 -> 
B8: Příchozí - hovory ze zahraničí | C8: -3.380177653e-06 | R8: 29722898.9 | S8: =R8-'11. Anualizácia nákladov'!E275 -> 
B9: Příchozí - příchozí roaming | S9: =R9-'11. Anualizácia nákladov'!E278 -> 
B10: Vstup | C10: Hodnota
B11: Náklady všetkých služieb | C11: 150292292.5
B12: Náklady služieb bez inkrementu | C12: 142536601.2
B13: Objem terminácie | C13: =SUM('2. Dopyt'!E38:E41) -> 0
B14: PureLRIC cena terminácie v EUR bez variabilných nákladov licenčných / administratívnych poplatkov | C14: =(C11-C12)/C13 -> 
B15: PureLRIC cena terminácie v EUR vrátane variabilných nákladov licenčných / administratívnych poplatkov | C15: =C14+((0.0008*'0. Hlavné vstupy'!AG156)/'B. Výsledky & citlivosť'!C13) ->  | D15: ='11. Anualizácia nákladov'!F282 -> 0
B16: LRAIC cena terminácie | C16: =C31 -> 
B17: 2. Výpočet hodnoty vrátane služby MTR
C19: Základný prepočet | H19: Modelovanie scenára
B20: Hlavné služby | C20: Jednotka siete | D20: Jednotkový maloobchodný náklad | E20: Outpayments | F20: Jednotkový náklad celkom | H20: Jednotka siete | I20: Jednotkový maloobchodný náklad | J20: Outpayments | K20: Jednotkový náklad celkom | M20: Rozdiel
B21: Jednotka | C21: EUR | D21: EUR | E21: EUR | F21: EUR | H21: EUR | I21: EUR | J21: EUR | K21: EUR | M21: %
B22: ='12. Náklady služieb'!B44 -> Odchádzajúce - hovory v sieti (on-net) | C22: ='12. Náklady služieb'!C110 ->  | D22: ='12. Náklady služieb'!D110 ->  | F22: =SUM(C22:E22) ->  | K22: =SUM(H22:J22) -> 0 | M22: =F22/K22-1 -> 
B23: ='12. Náklady služieb'!B45 -> Odchádzajúce - hovory do sietí iných mobilných operátorov | C23: ='12. Náklady služieb'!C111 ->  | D23: ='12. Náklady služieb'!D111 ->  | E23: =C31 ->  | J23: =H31 -> 0 | K23: 0 | M23: =F23/K23-1 -> 
B24: ='12. Náklady služieb'!B46 -> Odchádzajúce - hovory do pevnej siete | C24: ='12. Náklady služieb'!C112 ->  | D24: ='12. Náklady služieb'!D112 ->  | E24: =C32 ->  | J24: =H32 -> 0 | K24: 0
B25: ='12. Náklady služieb'!B47 -> Odchádzajúce - hovory do zahraničia | C25: ='12. Náklady služieb'!C113 ->  | D25: ='12. Náklady služieb'!D113 ->  | E25: ='12. Náklady služieb'!E113 -> 0 | J25: ='12. Náklady služieb'!J113 -> 0 | K25: 0
B26: ='12. Náklady služieb'!B48 -> Odchádzajúce - hovory na tiesňové čísla | C26: ='12. Náklady služieb'!C114 ->  | D26: ='12. Náklady služieb'!D114 ->  | K26: 0
B27: ='12. Náklady služieb'!B49 -> Odchádzajúce - hovory do hlasovej schránky | C27: ='12. Náklady služieb'!C115 ->  | D27: ='12. Náklady služieb'!D115 ->  | K27: 0
B28: ='12. Náklady služieb'!B50 -> Odchádzajúce - hovory na bezplatné čísla | C28: ='12. Náklady služieb'!C116 ->  | D28: ='12. Náklady služieb'!D116 ->  | K28: 0
B29: ='12. Náklady služieb'!B51 -> Odchádzajúce - hovory na čísla Premium | C29: ='12. Náklady služieb'!C117 ->  | D29: ='12. Náklady služieb'!D117 ->  | K29: 0
B30: ='12. Náklady služieb'!B52 -> Odchádzajúce - prichádzajúci roaming | C30: ='12. Náklady služieb'!C118 ->  | D30: ='12. Náklady služieb'!D118 ->  | K30: 0
B31: ='12. Náklady služieb'!B53 -> Prichádzajúce - hovory od iných mobilných operátorov | C31: ='12. Náklady služieb'!C119 ->  | D31: ='12. Náklady služieb'!D119 ->  | K31: 0
B32: ='12. Náklady služieb'!B54 -> Prichádzajúce - hovory z pevnej siete | C32: ='12. Náklady služieb'!C120 ->  | D32: ='12. Náklady služieb'!D120 ->  | K32: 0
B33: ='12. Náklady služieb'!B55 -> Prichádzajúce - hovory zo zahraničia | C33: ='12. Náklady služieb'!C121 ->  | D33: ='12. Náklady služieb'!D121 ->  | K33: 0
B34: ='12. Náklady služieb'!B56 -> Prichádzajúce - prichádzajúci roaming | C34: ='12. Náklady služieb'!C122 ->  | D34: ='12. Náklady služieb'!D122 ->  | K34: 0
B35: ='12. Náklady služieb'!B57 -> Odchádzajúce - SMS v rámci siete | C35: ='12. Náklady služieb'!C123 ->  | D35: ='12. Náklady služieb'!D123 ->  | K35: 0
B36: ='12. Náklady služieb'!B58 -> Odchádzajúce - SMS do sietí iných mobilných operátorov | C36: ='12. Náklady služieb'!C124 ->  | D36: ='12. Náklady služieb'!D124 ->  | E36: =C38 ->  | J36: =H38 -> 0 | K36: 0
B37: ='12. Náklady služieb'!B59 -> Odchádzajúce - SMS do zahraničia | C37: ='12. Náklady služieb'!C125 ->  | D37: ='12. Náklady služieb'!D125 ->  | E37: ='12. Náklady služieb'!E125 -> 0 | J37: ='12. Náklady služieb'!J125 -> 0 | K37: 0
B38: ='12. Náklady služieb'!B60 -> Prichádzajúce - SMS z iných sietí mobilných operátorov | C38: ='12. Náklady služieb'!C126 ->  | D38: ='12. Náklady služieb'!D126 ->  | K38: 0
B39: ='12. Náklady služieb'!B61 -> Prichádzajúce - SMS zo zahraničia | C39: ='12. Náklady služieb'!C127 ->  | D39: ='12. Náklady služieb'!D127 ->  | K39: 0
B40: ='12. Náklady služieb'!B62 -> Odchádzajúce - MMS v rámci siete | C40: ='12. Náklady služieb'!C128 ->  | D40: ='12. Náklady služieb'!D128 ->  | K40: 0
B41: ='12. Náklady služieb'!B63 -> Odchádzajúce - MMS do sietí iných mobilných operátorov | C41: ='12. Náklady služieb'!C129 ->  | D41: ='12. Náklady služieb'!D129 ->  | K41: 0
B42: ='12. Náklady služieb'!B64 -> Odchádzajúce - MMS do zahraničia | C42: ='12. Náklady služieb'!C130 ->  | D42: ='12. Náklady služieb'!D130 ->  | K42: 0
B43: ='12. Náklady služieb'!B65 -> Prichádzajúce - MMS z iných sietí mobilných operátorov | C43: ='12. Náklady služieb'!C131 ->  | D43: ='12. Náklady služieb'!D131 ->  | K43: 0
B44: ='12. Náklady služieb'!B66 -> Prichádzajúce - MMS zo zahraničia | C44: ='12. Náklady služieb'!C132 ->  | D44: ='12. Náklady služieb'!D132 ->  | K44: 0
B45: ='12. Náklady služieb'!B67 -> Mobilné dáta | C45: ='12. Náklady služieb'!C133 ->  | D45: ='12. Náklady služieb'!D133 ->  | K45: 0

Sheet C. Grafy
A1: C. Grafy

Sheet E. Schéma
A1: E. Návrh modelu

Sheet 12. Náklady služieb
A1: 12. Náklady na služby
A3: Popis
A4: Výpočet nákladov na služby
A6: 12.1 Jednotkový náklad na základe sieťových prvkov
G7: Routing factors
B8: Služba | C8: Jednotka | D8: Objem v aktuálnom roku | E8: Konverzný faktor | F8: Ekvivalent hlasových minút | G8: ='3. Smerovacie faktory'!C8 -> Access Sites | H8: ='3. Smerovacie faktory'!D8 -> BTS | I8: ='3. Smerovacie faktory'!E8 -> BSC | J8: ='3. Smerovacie faktory'!F8 -> Node B | K8: ='3. Smerovacie faktory'!G8 -> RNC | L8: ='3. Smerovacie faktory'!H8 -> eNode B | M8: ='3. Smerovacie faktory'!I8 -> HLR | N8: ='3. Smerovacie faktory'!J8 -> MSS | O8: ='3. Smerovacie faktory'!K8 -> MGW | P8: ='3. Smerovacie faktory'!L8 -> BTS - BSC | Q8: ='3. Smerovacie faktory'!M8 -> Node B - RNC | R8: ='3. Smerovacie faktory'!N8 -> eNode B - GGSN-MGW | S8: ='3. Smerovacie faktory'!O8 -> BSC - MGW | T8: ='3. Smerovacie faktory'!P8 -> RNC - MGW | U8: ='3. Smerovacie faktory'!Q8 -> MGW - MGW | V8: ='3. Smerovacie faktory'!R8 -> Mobile voicemail platform | W8: ='3. Smerovacie faktory'!S8 -> SMSC Platform | X8: ='3. Smerovacie faktory'!T8 -> MMSC Platform | Y8: ='3. Smerovacie faktory'!U8 -> Intelligent Network | Z8: ='3. Smerovacie faktory'!V8 -> SGSN Platform | AA8: ='3. Smerovacie faktory'!W8 -> GGSN Platform | AB8: ='3. Smerovacie faktory'!X8 -> Interconnection
B9: ='3. Smerovacie faktory'!B9 -> Odchádzajúce - hovory v sieti (on-net) | C9: # minút | D9: =VLOOKUP(B9,'2. Dopyt'!$B$29:$G$41,4,0) -> 0 | E9: 1 | F9: =D9*E9 -> 0 | G9: ='3. Smerovacie faktory'!C9 -> 2 | H9: ='3. Smerovacie faktory'!D9 -> 2 | I9: ='3. Smerovacie faktory'!E9 -> 2 | J9: ='3. Smerovacie faktory'!F9 -> 2 | K9: ='3. Smerovacie faktory'!G9 -> 2 | L9: ='3. Smerovacie faktory'!H9 -> 2 | M9: ='3. Smerovacie faktory'!I9 -> 1 | N9: ='3. Smerovacie faktory'!J9 -> 1.5 | O9: ='3. Smerovacie faktory'!K9 -> 2 | P9: ='3. Smerovacie faktory'!L9 -> 2 | Q9: ='3. Smerovacie faktory'!M9 -> 2 | R9: ='3. Smerovacie faktory'!N9 -> x | S9: ='3. Smerovacie faktory'!O9 -> 2 | T9: ='3. Smerovacie faktory'!P9 -> 2 | U9: ='3. Smerovacie faktory'!Q9 -> 1 | V9: ='3. Smerovacie faktory'!R9 -> 0 | W9: ='3. Smerovacie faktory'!S9 -> 0 | X9: ='3. Smerovacie faktory'!T9 -> 0 | Y9: ='3. Smerovacie faktory'!U9 -> 1 | Z9: ='3. Smerovacie faktory'!V9 -> 0 | AA9: ='3. Smerovacie faktory'!W9 -> 0 | AB9: ='3. Smerovacie faktory'!X9 -> 0
B10: ='3. Smerovacie faktory'!B10 -> Odchádzajúce - hovory do sietí iných mobilných operátorov | C10: # minút | D10: =VLOOKUP(B10,'2. Dopyt'!$B$29:$G$41,4,0) -> 0 | E10: 1 | F10: 0 | G10: ='3. Smerovacie faktory'!C10 -> 1 | H10: ='3. Smerovacie faktory'!D10 -> 1 | I10: ='3. Smerovacie faktory'!E10 -> 1 | J10: ='3. Smerovacie faktory'!F10 -> 1 | K10: ='3. Smerovacie faktory'!G10 -> 1 | L10: ='3. Smerovacie faktory'!H10 -> 1 | M10: ='3. Smerovacie faktory'!I10 -> 1 | N10: ='3. Smerovacie faktory'!J10 -> 1 | O10: ='3. Smerovacie faktory'!K10 -> 1.5 | P10: ='3. Smerovacie faktory'!L10 -> 1 | Q10: ='3. Smerovacie faktory'!M10 -> 1 | R10: ='3. Smerovacie faktory'!N10 -> x | S10: ='3. Smerovacie faktory'!O10 -> 1 | T10: ='3. Smerovacie faktory'!P10 -> 1 | U10: ='3. Smerovacie faktory'!Q10 -> 1 | V10: ='3. Smerovacie faktory'!R10 -> 0 | W10: ='3. Smerovacie faktory'!S10 -> 0 | X10: ='3. Smerovacie faktory'!T10 -> 0 | Y10: ='3. Smerovacie faktory'!U10 -> 1 | Z10: ='3. Smerovacie faktory'!V10 -> 0 | AA10: ='3. Smerovacie faktory'!W10 -> 0 | AB10: ='3. Smerovacie faktory'!X10 -> 1
B11: ='3. Smerovacie faktory'!B11 -> Odchádzajúce - hovory do pevnej siete | C11: # minút | D11: =VLOOKUP(B11,'2. Dopyt'!$B$29:$G$41,4,0) -> 0 | E11: 1 | F11: 0 | G11: ='3. Smerovacie faktory'!C11 -> 1 | H11: ='3. Smerovacie faktory'!D11 -> 1 | I11: ='3. Smerovacie faktory'!E11 -> 1 | J11: ='3. Smerovacie faktory'!F11 -> 1 | K11: ='3. Smerovacie faktory'!G11 -> 1 | L11: ='3. Smerovacie faktory'!H11 -> 1 | M11: ='3. Smerovacie faktory'!I11 -> 1 | N11: ='3. Smerovacie faktory'!J11 -> 1 | O11: ='3. Smerovacie faktory'!K11 -> 1.5 | P11: ='3. Smerovacie faktory'!L11 -> 1 | Q11: ='3. Smerovacie faktory'!M11 -> 1 | R11: ='3. Smerovacie faktory'!N11 -> x | S11: ='3. Smerovacie faktory'!O11 -> 1 | T11: ='3. Smerovacie faktory'!P11 -> 1 | U11: ='3. Smerovacie faktory'!Q11 -> 1 | V11: ='3. Smerovacie faktory'!R11 -> 0 | W11: ='3. Smerovacie faktory'!S11 -> 0 | X11: ='3. Smerovacie faktory'!T11 -> 0 | Y11: ='3. Smerovacie faktory'!U11 -> 1 | Z11: ='3. Smerovacie faktory'!V11 -> 0 | AA11: ='3. Smerovacie faktory'!W11 -> 0 | AB11: ='3. Smerovacie faktory'!X11 -> 1
B12: ='3. Smerovacie faktory'!B12 -> Odchádzajúce - hovory do zahraničia | C12: # minút | D12: =VLOOKUP(B12,'2. Dopyt'!$B$29:$G$41,4,0) -> 0 | E12: 1 | F12: 0 | G12: ='3. Smerovacie faktory'!C12 -> 1 | H12: ='3. Smerovacie faktory'!D12 -> 1 | I12: ='3. Smerovacie faktory'!E12 -> 1 | J12: ='3. Smerovacie faktory'!F12 -> 1 | K12: ='3. Smerovacie faktory'!G12 -> 1 | L12: ='3. Smerovacie faktory'!H12 -> 1 | M12: ='3. Smerovacie faktory'!I12 -> 1 | N12: ='3. Smerovacie faktory'!J12 -> 1 | O12: ='3. Smerovacie faktory'!K12 -> 1.5 | P12: ='3. Smerovacie faktory'!L12 -> 1 | Q12: ='3. Smerovacie faktory'!M12 -> 1 | R12: ='3. Smerovacie faktory'!N12 -> x | S12: ='3. Smerovacie faktory'!O12 -> 1 | T12: ='3. Smerovacie faktory'!P12 -> 1 | U12: ='3. Smerovacie faktory'!Q12 -> 1 | V12: ='3. Smerovacie faktory'!R12 -> 0 | W12: ='3. Smerovacie faktory'!S12 -> 0 | X12: ='3. Smerovacie faktory'!T12 -> 0 | Y12: ='3. Smerovacie faktory'!U12 -> 1 | Z12: ='3. Smerovacie faktory'!V12 -> 0 | AA12: ='3. Smerovacie faktory'!W12 -> 0 | AB12: ='3. Smerovacie faktory'!X12 -> 1
B13: ='3. Smerovacie faktory'!B13 -> Odchádzajúce - hovory na tiesňové čísla | C13: # minút | D13: =VLOOKUP(B13,'2. Dopyt'!$B$29:$G$41,4,0) -> 0 | E13: 1 | F13: 0 | G13: ='3. Smerovacie faktory'!C13 -> 1 | H13: ='3. Smerovacie faktory'!D13 -> 1 | I13: ='3. Smerovacie faktory'!E13 -> 1 | J13: ='3. Smerovacie faktory'!F13 -> 1 | K13: ='3. Smerovacie faktory'!G13 -> 1 | L13: ='3. Smerovacie faktory'!H13 -> 1 | M13: ='3. Smerovacie faktory'!I13 -> 1 | N13: ='3. Smerovacie faktory'!J13 -> 1 | O13: ='3. Smerovacie faktory'!K13 -> 1.5 | P13: ='3. Smerovacie faktory'!L13 -> 1 | Q13: ='3. Smerovacie faktory'!M13 -> 1 | R13: ='3. Smerovacie faktory'!N13 -> x | S13: ='3. Smerovacie faktory'!O13 -> 1 | T13: ='3. Smerovacie faktory'!P13 -> 1 | U13: ='3. Smerovacie faktory'!Q13 -> 1 | V13: ='3. Smerovacie faktory'!R13 -> 0 | W13: ='3. Smerovacie faktory'!S13 -> 0 | X13: ='3. Smerovacie faktory'!T13 -> 0 | Y13: ='3. Smerovacie faktory'!U13 -> 1 | Z13: ='3. Smerovacie faktory'!V13 -> 0 | AA13: ='3. Smerovacie faktory'!W13 -> 0 | AB13: ='3. Smerovacie faktory'!X13 -> 1
B14: ='3. Smerovacie faktory'!B14 -> Odchádzajúce - hovory do hlasovej schránky | C14: # minút | D14: =VLOOKUP(B14,'2. Dopyt'!$B$29:$G$41,4,0) -> 0 | E14: 1 | F14: 0 | G14: ='3. Smerovacie faktory'!C14 -> 1 | H14: ='3. Smerovacie faktory'!D14 -> 1 | I14: ='3. Smerovacie faktory'!E14 -> 1 | J14: ='3. Smerovacie faktory'!F14 -> 1 | K14: ='3. Smerovacie faktory'!G14 -> 1 | L14: ='3. Smerovacie faktory'!H14 -> 1 | M14: ='3. Smerovacie faktory'!I14 -> 1 | N14: ='3. Smerovacie faktory'!J14 -> 1 | O14: ='3. Smerovacie faktory'!K14 -> 1.5 | P14: ='3. Smerovacie faktory'!L14 -> 1 | Q14: ='3. Smerovacie faktory'!M14 -> 1 | R14: ='3. Smerovacie faktory'!N14 -> x | S14: ='3. Smerovacie faktory'!O14 -> 1 | T14: ='3. Smerovacie faktory'!P14 -> 1 | U14: ='3. Smerovacie faktory'!Q14 -> 1 | V14: ='3. Smerovacie faktory'!R14 -> 1 | W14: ='3. Smerovacie faktory'!S14 -> 0 | X14: ='3. Smerovacie faktory'!T14 -> 0 | Y14: ='3. Smerovacie faktory'!U14 -> 1 | Z14: ='3. Smerovacie faktory'!V14 -> 0 | AA14: ='3. Smerovacie faktory'!W14 -> 0 | AB14: ='3. Smerovacie faktory'!X14 -> 0
B15: ='3. Smerovacie faktory'!B15 -> Odchádzajúce - hovory na bezplatné čísla | C15: # minút | D15: =VLOOKUP(B15,'2. Dopyt'!$B$29:$G$41,4,0) -> 0 | E15: 1 | F15: 0 | G15: ='3. Smerovacie faktory'!C15 -> 1 | H15: ='3. Smerovacie faktory'!D15 -> 1 | I15: ='3. Smerovacie faktory'!E15 -> 1 | J15: ='3. Smerovacie faktory'!F15 -> 1 | K15: ='3. Smerovacie faktory'!G15 -> 1 | L15: ='3. Smerovacie faktory'!H15 -> 1 | M15: ='3. Smerovacie faktory'!I15 -> 1 | N15: ='3. Smerovacie faktory'!J15 -> 1.25 | O15: ='3. Smerovacie faktory'!K15 -> 1.5 | P15: ='3. Smerovacie faktory'!L15 -> 1 | Q15: ='3. Smerovacie faktory'!M15 -> 1 | R15: ='3. Smerovacie faktory'!N15 -> x | S15: ='3. Smerovacie faktory'!O15 -> 1 | T15: ='3. Smerovacie faktory'!P15 -> 1 | U15: ='3. Smerovacie faktory'!Q15 -> 1 | V15: ='3. Smerovacie faktory'!R15 -> 0 | W15: ='3. Smerovacie faktory'!S15 -> 0 | X15: ='3. Smerovacie faktory'!T15 -> 0 | Y15: ='3. Smerovacie faktory'!U15 -> 1 | Z15: ='3. Smerovacie faktory'!V15 -> 0 | AA15: ='3. Smerovacie faktory'!W15 -> 0 | AB15: ='3. Smerovacie faktory'!X15 -> 1
B16: ='3. Smerovacie faktory'!B16 -> Odchádzajúce - hovory na čísla Premium | C16: # minút | D16: =VLOOKUP(B16,'2. Dopyt'!$B$29:$G$41,4,0) -> 0 | E16: 1 | F16: 0 | G16: ='3. Smerovacie faktory'!C16 -> 1 | H16: ='3. Smerovacie faktory'!D16 -> 1 | I16: ='3. Smerovacie faktory'!E16 -> 1 | J16: ='3. Smerovacie faktory'!F16 -> 1 | K16: ='3. Smerovacie faktory'!G16 -> 1 | L16: ='3. Smerovacie faktory'!H16 -> 1 | M16: ='3. Smerovacie faktory'!I16 -> 1 | N16: ='3. Smerovacie faktory'!J16 -> 1.25 | O16: ='3. Smerovacie faktory'!K16 -> 1.5 | P16: ='3. Smerovacie faktory'!L16 -> 1 | Q16: ='3. Smerovacie faktory'!M16 -> 1 | R16: ='3. Smerovacie faktory'!N16 -> x | S16: ='3. Smerovacie faktory'!O16 -> 1 | T16: ='3. Smerovacie faktory'!P16 -> 1 | U16: ='3. Smerovacie faktory'!Q16 -> 1 | V16: ='3. Smerovacie faktory'!R16 -> 0 | W16: ='3. Smerovacie faktory'!S16 -> 0 | X16: ='3. Smerovacie faktory'!T16 -> 0 | Y16: ='3. Smerovacie faktory'!U16 -> 1 | Z16: ='3. Smerovacie faktory'!V16 -> 0 | AA16: ='3. Smerovacie faktory'!W16 -> 0 | AB16: ='3. Smerovacie faktory'!X16 -> 1
B17: ='3. Smerovacie faktory'!B17 -> Odchádzajúce - prichádzajúci roaming | C17: # minút | D17: =VLOOKUP(B17,'2. Dopyt'!$B$29:$G$41,4,0) -> 0 | E17: 1 | F17: 0 | G17: ='3. Smerovacie faktory'!C17 -> 1 | H17: ='3. Smerovacie faktory'!D17 -> 1 | I17: ='3. Smerovacie faktory'!E17 -> 1 | J17: ='3. Smerovacie faktory'!F17 -> 1 | K17: ='3. Smerovacie faktory'!G17 -> 1 | L17: ='3. Smerovacie faktory'!H17 -> 1 | M17: ='3. Smerovacie faktory'!I17 -> 1 | N17: ='3. Smerovacie faktory'!J17 -> 1 | O17: ='3. Smerovacie faktory'!K17 -> 1.5 | P17: ='3. Smerovacie faktory'!L17 -> 1 | Q17: ='3. Smerovacie faktory'!M17 -> 1 | R17: ='3. Smerovacie faktory'!N17 -> x | S17: ='3. Smerovacie faktory'!O17 -> 1 | T17: ='3. Smerovacie faktory'!P17 -> 1 | U17: ='3. Smerovacie faktory'!Q17 -> 1 | V17: ='3. Smerovacie faktory'!R17 -> 0 | W17: ='3. Smerovacie faktory'!S17 -> 0 | X17: ='3. Smerovacie faktory'!T17 -> 0 | Y17: ='3. Smerovacie faktory'!U17 -> 1 | Z17: ='3. Smerovacie faktory'!V17 -> 0 | AA17: ='3. Smerovacie faktory'!W17 -> 0 | AB17: ='3. Smerovacie faktory'!X17 -> 1
B18: ='3. Smerovacie faktory'!B18 -> Prichádzajúce - hovory od iných mobilných operátorov | C18: # minút | D18: =VLOOKUP(B18,'2. Dopyt'!$B$29:$G$41,4,0) -> 0 | E18: 1 | F18: 0 | G18: ='3. Smerovacie faktory'!C18 -> 1 | H18: ='3. Smerovacie faktory'!D18 -> 1 | I18: ='3. Smerovacie faktory'!E18 -> 1 | J18: ='3. Smerovacie faktory'!F18 -> 1 | K18: ='3. Smerovacie faktory'!G18 -> 1 | L18: ='3. Smerovacie faktory'!H18 -> 1 | M18: ='3. Smerovacie faktory'!I18 -> 1 | N18: ='3. Smerovacie faktory'!J18 -> 1.5 | O18: ='3. Smerovacie faktory'!K18 -> 1.5 | P18: ='3. Smerovacie faktory'!L18 -> 1 | Q18: ='3. Smerovacie faktory'!M18 -> 1 | R18: ='3. Smerovacie faktory'!N18 -> x | S18: ='3. Smerovacie faktory'!O18 -> 1 | T18: ='3. Smerovacie faktory'!P18 -> 1 | U18: ='3. Smerovacie faktory'!Q18 -> 1 | V18: ='3. Smerovacie faktory'!R18 -> 0 | W18: ='3. Smerovacie faktory'!S18 -> 0 | X18: ='3. Smerovacie faktory'!T18 -> 0 | Y18: ='3. Smerovacie faktory'!U18 -> 1 | Z18: ='3. Smerovacie faktory'!V18 -> 0 | AA18: ='3. Smerovacie faktory'!W18 -> 0 | AB18: ='3. Smerovacie faktory'!X18 -> 1
B19: ='3. Smerovacie faktory'!B19 -> Prichádzajúce - hovory z pevnej siete | C19: # minút | D19: =VLOOKUP(B19,'2. Dopyt'!$B$29:$G$41,4,0) -> 0 | E19: 1 | F19: 0 | G19: ='3. Smerovacie faktory'!C19 -> 1 | H19: ='3. Smerovacie faktory'!D19 -> 1 | I19: ='3. Smerovacie faktory'!E19 -> 1 | J19: ='3. Smerovacie faktory'!F19 -> 1 | K19: ='3. Smerovacie faktory'!G19 -> 1 | L19: ='3. Smerovacie faktory'!H19 -> 1 | M19: ='3. Smerovacie faktory'!I19 -> 1 | N19: ='3. Smerovacie faktory'!J19 -> 1.5 | O19: ='3. Smerovacie faktory'!K19 -> 1.5 | P19: ='3. Smerovacie faktory'!L19 -> 1 | Q19: ='3. Smerovacie faktory'!M19 -> 1 | R19: ='3. Smerovacie faktory'!N19 -> x | S19: ='3. Smerovacie faktory'!O19 -> 1 | T19: ='3. Smerovacie faktory'!P19 -> 1 | U19: ='3. Smerovacie faktory'!Q19 -> 1 | V19: ='3. Smerovacie faktory'!R19 -> 0 | W19: ='3. Smerovacie faktory'!S19 -> 0 | X19: ='3. Smerovacie faktory'!T19 -> 0 | Y19: ='3. Smerovacie faktory'!U19 -> 1 | Z19: ='3. Smerovacie faktory'!V19 -> 0 | AA19: ='3. Smerovacie faktory'!W19 -> 0 | AB19: ='3. Smerovacie faktory'!X19 -> 1
B20: ='3. Smerovacie faktory'!B20 -> Prichádzajúce - hovory zo zahraničia | C20: # minút | D20: =VLOOKUP(B20,'2. Dopyt'!$B$29:$G$41,4,0) -> 0 | E20: 1 | F20: 0 | G20: ='3. Smerovacie faktory'!C20 -> 1 | H20: ='3. Smerovacie faktory'!D20 -> 1 | I20: ='3. Smerovacie faktory'!E20 -> 1 | J20: ='3. Smerovacie faktory'!F20 -> 1 | K20: ='3. Smerovacie faktory'!G20 -> 1 | L20: ='3. Smerovacie faktory'!H20 -> 1 | M20: ='3. Smerovacie faktory'!I20 -> 1 | N20: ='3. Smerovacie faktory'!J20 -> 1.5 | O20: ='3. Smerovacie faktory'!K20 -> 1.5 | P20: ='3. Smerovacie faktory'!L20 -> 1 | Q20: ='3. Smerovacie faktory'!M20 -> 1 | R20: ='3. Smerovacie faktory'!N20 -> x | S20: ='3. Smerovacie faktory'!O20 -> 1 | T20: ='3. Smerovacie faktory'!P20 -> 1 | U20: ='3. Smerovacie faktory'!Q20 -> 1 | V20: ='3. Smerovacie faktory'!R20 -> 0 | W20: ='3. Smerovacie faktory'!S20 -> 0 | X20: ='3. Smerovacie faktory'!T20 -> 0 | Y20: ='3. Smerovacie faktory'!U20 -> 1 | Z20: ='3. Smerovacie faktory'!V20 -> 0 | AA20: ='3. Smerovacie faktory'!W20 -> 0 | AB20: ='3. Smerovacie faktory'!X20 -> 1
B21: ='3. Smerovacie faktory'!B21 -> Prichádzajúce - prichádzajúci roaming | C21: # minút | D21: =VLOOKUP(B21,'2. Dopyt'!$B$29:$G$41,4,0) -> 0 | E21: 1 | F21: 0 | G21: ='3. Smerovacie faktory'!C21 -> 1 | H21: ='3. Smerovacie faktory'!D21 -> 1 | I21: ='3. Smerovacie faktory'!E21 -> 1 | J21: ='3. Smerovacie faktory'!F21 -> 1 | K21: ='3. Smerovacie faktory'!G21 -> 1 | L21: ='3. Smerovacie faktory'!H21 -> 1 | M21: ='3. Smerovacie faktory'!I21 -> 1 | N21: ='3. Smerovacie faktory'!J21 -> 1.5 | O21: ='3. Smerovacie faktory'!K21 -> 1.5 | P21: ='3. Smerovacie faktory'!L21 -> 1 | Q21: ='3. Smerovacie faktory'!M21 -> 1 | R21: ='3. Smerovacie faktory'!N21 -> x | S21: ='3. Smerovacie faktory'!O21 -> 1 | T21: ='3. Smerovacie faktory'!P21 -> 1 | U21: ='3. Smerovacie faktory'!Q21 -> 1 | V21: ='3. Smerovacie faktory'!R21 -> 0 | W21: ='3. Smerovacie faktory'!S21 -> 0 | X21: ='3. Smerovacie faktory'!T21 -> 0 | Y21: ='3. Smerovacie faktory'!U21 -> 1 | Z21: ='3. Smerovacie faktory'!V21 -> 0 | AA21: ='3. Smerovacie faktory'!W21 -> 0 | AB21: ='3. Smerovacie faktory'!X21 -> 1
B22: ='3. Smerovacie faktory'!B22 -> Odchádzajúce - SMS v rámci siete | C22: # SMS | D22: =VLOOKUP(B22,'2. Dopyt'!$B$53:$G$57,4,0) -> 0 | E22: =I_SMS_Conversion -> 0.0260756193 | F22: 0 | G22: ='3. Smerovacie faktory'!C22 -> 2 | H22: ='3. Smerovacie faktory'!D22 -> 2 | I22: ='3. Smerovacie faktory'!E22 -> 2 | J22: ='3. Smerovacie faktory'!F22 -> 2 | K22: ='3. Smerovacie faktory'!G22 -> 2 | L22: ='3. Smerovacie faktory'!H22 -> 2 | M22: ='3. Smerovacie faktory'!I22 -> 1 | N22: ='3. Smerovacie faktory'!J22 -> 0 | O22: ='3. Smerovacie faktory'!K22 -> 2 | P22: ='3. Smerovacie faktory'!L22 -> 2 | Q22: ='3. Smerovacie faktory'!M22 -> 2 | R22: ='3. Smerovacie faktory'!N22 -> x | S22: ='3. Smerovacie faktory'!O22 -> 2 | T22: ='3. Smerovacie faktory'!P22 -> 2 | U22: ='3. Smerovacie faktory'!Q22 -> 2 | V22: ='3. Smerovacie faktory'!R22 -> 0 | W22: ='3. Smerovacie faktory'!S22 -> 1 | X22: ='3. Smerovacie faktory'!T22 -> 0 | Y22: ='3. Smerovacie faktory'!U22 -> 1 | Z22: ='3. Smerovacie faktory'!V22 -> 0 | AA22: ='3. Smerovacie faktory'!W22 -> 0 | AB22: ='3. Smerovacie faktory'!X22 -> 0
B23: ='3. Smerovacie faktory'!B23 -> Odchádzajúce - SMS do sietí iných mobilných operátorov | C23: # SMS | D23: =VLOOKUP(B23,'2. Dopyt'!$B$53:$G$57,4,0) -> 0 | E23: =I_SMS_Conversion -> 0.0260756193 | F23: 0 | G23: ='3. Smerovacie faktory'!C23 -> 1 | H23: ='3. Smerovacie faktory'!D23 -> 1 | I23: ='3. Smerovacie faktory'!E23 -> 1 | J23: ='3. Smerovacie faktory'!F23 -> 1 | K23: ='3. Smerovacie faktory'!G23 -> 1 | L23: ='3. Smerovacie faktory'!H23 -> 1 | M23: ='3. Smerovacie faktory'!I23 -> 1 | N23: ='3. Smerovacie faktory'!J23 -> 0 | O23: ='3. Smerovacie faktory'!K23 -> 1 | P23: ='3. Smerovacie faktory'!L23 -> 1 | Q23: ='3. Smerovacie faktory'!M23 -> 1 | R23: ='3. Smerovacie faktory'!N23 -> x | S23: ='3. Smerovacie faktory'!O23 -> 1 | T23: ='3. Smerovacie faktory'!P23 -> 1 | U23: ='3. Smerovacie faktory'!Q23 -> 1 | V23: ='3. Smerovacie faktory'!R23 -> 0 | W23: ='3. Smerovacie faktory'!S23 -> 1 | X23: ='3. Smerovacie faktory'!T23 -> 0 | Y23: ='3. Smerovacie faktory'!U23 -> 1 | Z23: ='3. Smerovacie faktory'!V23 -> 0 | AA23: ='3. Smerovacie faktory'!W23 -> 0 | AB23: ='3. Smerovacie faktory'!X23 -> 1
B24: ='3. Smerovacie faktory'!B24 -> Odchádzajúce - SMS do zahraničia | C24: # SMS | D24: =VLOOKUP(B24,'2. Dopyt'!$B$53:$G$57,4,0) -> 0 | E24: =I_SMS_Conversion -> 0.0260756193 | F24: 0 | G24: ='3. Smerovacie faktory'!C24 -> 1 | H24: ='3. Smerovacie faktory'!D24 -> 1 | I24: ='3. Smerovacie faktory'!E24 -> 1 | J24: ='3. Smerovacie faktory'!F24 -> 1 | K24: ='3. Smerovacie faktory'!G24 -> 1 | L24: ='3. Smerovacie faktory'!H24 -> 1 | M24: ='3. Smerovacie faktory'!I24 -> 1 | N24: ='3. Smerovacie faktory'!J24 -> 0 | O24: ='3. Smerovacie faktory'!K24 -> 1 | P24: ='3. Smerovacie faktory'!L24 -> 1 | Q24: ='3. Smerovacie faktory'!M24 -> 1 | R24: ='3. Smerovacie faktory'!N24 -> x | S24: ='3. Smerovacie faktory'!O24 -> 1 | T24: ='3. Smerovacie faktory'!P24 -> 1 | U24: ='3. Smerovacie faktory'!Q24 -> 1 | V24: ='3. Smerovacie faktory'!R24 -> 0 | W24: ='3. Smerovacie faktory'!S24 -> 1 | X24: ='3. Smerovacie faktory'!T24 -> 0 | Y24: ='3. Smerovacie faktory'!U24 -> 1 | Z24: ='3. Smerovacie faktory'!V24 -> 0 | AA24: ='3. Smerovacie faktory'!W24 -> 0 | AB24: ='3. Smerovacie faktory'!X24 -> 1
B25: ='3. Smerovacie faktory'!B25 -> Prichádzajúce - SMS z iných sietí mobilných operátorov | C25: # SMS | D25: =VLOOKUP(B25,'2. Dopyt'!$B$53:$G$57,4,0) -> 0 | E25: =I_SMS_Conversion -> 0.0260756193 | F25: 0 | G25: ='3. Smerovacie faktory'!C25 -> 1 | H25: ='3. Smerovacie faktory'!D25 -> 1 | I25: ='3. Smerovacie faktory'!E25 -> 1 | J25: ='3. Smerovacie faktory'!F25 -> 1 | K25: ='3. Smerovacie faktory'!G25 -> 1 | L25: ='3. Smerovacie faktory'!H25 -> 1 | M25: ='3. Smerovacie faktory'!I25 -> 1 | N25: ='3. Smerovacie faktory'!J25 -> 0 | O25: ='3. Smerovacie faktory'!K25 -> 1 | P25: ='3. Smerovacie faktory'!L25 -> 1 | Q25: ='3. Smerovacie faktory'!M25 -> 1 | R25: ='3. Smerovacie faktory'!N25 -> x | S25: ='3. Smerovacie faktory'!O25 -> 1 | T25: ='3. Smerovacie faktory'!P25 -> 1 | U25: ='3. Smerovacie faktory'!Q25 -> 1 | V25: ='3. Smerovacie faktory'!R25 -> 0 | W25: ='3. Smerovacie faktory'!S25 -> 1 | X25: ='3. Smerovacie faktory'!T25 -> 0 | Y25: ='3. Smerovacie faktory'!U25 -> 0 | Z25: ='3. Smerovacie faktory'!V25 -> 0 | AA25: ='3. Smerovacie faktory'!W25 -> 0 | AB25: ='3. Smerovacie faktory'!X25 -> 1
B26: ='3. Smerovacie faktory'!B26 -> Prichádzajúce - SMS zo zahraničia | C26: # SMS | D26: =VLOOKUP(B26,'2. Dopyt'!$B$53:$G$57,4,0) -> 0 | E26: =I_SMS_Conversion -> 0.0260756193 | F26: 0 | G26: ='3. Smerovacie faktory'!C26 -> 1 | H26: ='3. Smerovacie faktory'!D26 -> 1 | I26: ='3. Smerovacie faktory'!E26 -> 1 | J26: ='3. Smerovacie faktory'!F26 -> 1 | K26: ='3. Smerovacie faktory'!G26 -> 1 | L26: ='3. Smerovacie faktory'!H26 -> 1 | M26: ='3. Smerovacie faktory'!I26 -> 1 | N26: ='3. Smerovacie faktory'!J26 -> 0 | O26: ='3. Smerovacie faktory'!K26 -> 1 | P26: ='3. Smerovacie faktory'!L26 -> 1 | Q26: ='3. Smerovacie faktory'!M26 -> 1 | R26: ='3. Smerovacie faktory'!N26 -> x | S26: ='3. Smerovacie faktory'!O26 -> 1 | T26: ='3. Smerovacie faktory'!P26 -> 1 | U26: ='3. Smerovacie faktory'!Q26 -> 1 | V26: ='3. Smerovacie faktory'!R26 -> 0 | W26: ='3. Smerovacie faktory'!S26 -> 1 | X26: ='3. Smerovacie faktory'!T26 -> 0 | Y26: ='3. Smerovacie faktory'!U26 -> 0 | Z26: ='3. Smerovacie faktory'!V26 -> 0 | AA26: ='3. Smerovacie faktory'!W26 -> 0 | AB26: ='3. Smerovacie faktory'!X26 -> 1
B27: ='3. Smerovacie faktory'!B27 -> Odchádzajúce - MMS v rámci siete | C27: # MMS | D27: =VLOOKUP(B27,'2. Dopyt'!$B$61:$G$65,4,0) -> 0 | E27: ='A. Výber'!$E$19*'6. NE Dopyt'!G41+(1-'A. Výber'!$E$19)*'6. NE Dopyt'!H41 -> 2.26 | F27: 0 | G27: ='3. Smerovacie faktory'!C27 -> 2 | H27: ='3. Smerovacie faktory'!D27 -> 2 | I27: ='3. Smerovacie faktory'!E27 -> 2 | J27: ='3. Smerovacie faktory'!F27 -> 2 | K27: ='3. Smerovacie faktory'!G27 -> 2 | L27: ='3. Smerovacie faktory'!H27 -> 2 | M27: ='3. Smerovacie faktory'!I27 -> 1 | N27: ='3. Smerovacie faktory'!J27 -> 1 | O27: ='3. Smerovacie faktory'!K27 -> 2 | P27: ='3. Smerovacie faktory'!L27 -> 2 | Q27: ='3. Smerovacie faktory'!M27 -> 2 | R27: ='3. Smerovacie faktory'!N27 -> x | S27: ='3. Smerovacie faktory'!O27 -> 2 | T27: ='3. Smerovacie faktory'!P27 -> 2 | U27: ='3. Smerovacie faktory'!Q27 -> 0 | V27: ='3. Smerovacie faktory'!R27 -> 0 | W27: ='3. Smerovacie faktory'!S27 -> 0 | X27: ='3. Smerovacie faktory'!T27 -> 1 | Y27: ='3. Smerovacie faktory'!U27 -> 1 | Z27: ='3. Smerovacie faktory'!V27 -> 0 | AA27: ='3. Smerovacie faktory'!W27 -> 0 | AB27: ='3. Smerovacie faktory'!X27 -> 0
B28: ='3. Smerovacie faktory'!B28 -> Odchádzajúce - MMS do sietí iných mobilných operátorov | C28: # MMS | D28: =VLOOKUP(B28,'2. Dopyt'!$B$61:$G$65,4,0) -> 0 | E28: ='A. Výber'!$E$19*'6. NE Dopyt'!G42+(1-'A. Výber'!$E$19)*'6. NE Dopyt'!H42 -> 2.26 | F28: 0 | G28: ='3. Smerovacie faktory'!C28 -> 1 | H28: ='3. Smerovacie faktory'!D28 -> 1 | I28: ='3. Smerovacie faktory'!E28 -> 1 | J28: ='3. Smerovacie faktory'!F28 -> 1 | K28: ='3. Smerovacie faktory'!G28 -> 1 | L28: ='3. Smerovacie faktory'!H28 -> 1 | M28: ='3. Smerovacie faktory'!I28 -> 1 | N28: ='3. Smerovacie faktory'!J28 -> 0 | O28: ='3. Smerovacie faktory'!K28 -> 0 | P28: ='3. Smerovacie faktory'!L28 -> 1 | Q28: ='3. Smerovacie faktory'!M28 -> 1 | R28: ='3. Smerovacie faktory'!N28 -> x | S28: ='3. Smerovacie faktory'!O28 -> 1 | T28: ='3. Smerovacie faktory'!P28 -> 1 | U28: ='3. Smerovacie faktory'!Q28 -> 0 | V28: ='3. Smerovacie faktory'!R28 -> 0 | W28: ='3. Smerovacie faktory'!S28 -> 0 | X28: ='3. Smerovacie faktory'!T28 -> 1 | Y28: ='3. Smerovacie faktory'!U28 -> 1 | Z28: ='3. Smerovacie faktory'!V28 -> 0 | AA28: ='3. Smerovacie faktory'!W28 -> 0 | AB28: ='3. Smerovacie faktory'!X28 -> 1
B29: ='3. Smerovacie faktory'!B29 -> Odchádzajúce - MMS do zahraničia | C29: # MMS | D29: =VLOOKUP(B29,'2. Dopyt'!$B$61:$G$65,4,0) -> 0 | E29: ='A. Výber'!$E$19*'6. NE Dopyt'!G43+(1-'A. Výber'!$E$19)*'6. NE Dopyt'!H43 -> 2.26 | F29: 0 | G29: ='3. Smerovacie faktory'!C29 -> 1 | H29: ='3. Smerovacie faktory'!D29 -> 1 | I29: ='3. Smerovacie faktory'!E29 -> 1 | J29: ='3. Smerovacie faktory'!F29 -> 1 | K29: ='3. Smerovacie faktory'!G29 -> 1 | L29: ='3. Smerovacie faktory'!H29 -> 1 | M29: ='3. Smerovacie faktory'!I29 -> 1 | N29: ='3. Smerovacie faktory'!J29 -> 0 | O29: ='3. Smerovacie faktory'!K29 -> 0 | P29: ='3. Smerovacie faktory'!L29 -> 1 | Q29: ='3. Smerovacie faktory'!M29 -> 1 | R29: ='3. Smerovacie faktory'!N29 -> x | S29: ='3. Smerovacie faktory'!O29 -> 1 | T29: ='3. Smerovacie faktory'!P29 -> 1 | U29: ='3. Smerovacie faktory'!Q29 -> 0 | V29: ='3. Smerovacie faktory'!R29 -> 0 | W29: ='3. Smerovacie faktory'!S29 -> 0 | X29: ='3. Smerovacie faktory'!T29 -> 1 | Y29: ='3. Smerovacie faktory'!U29 -> 1 | Z29: ='3. Smerovacie faktory'!V29 -> 0 | AA29: ='3. Smerovacie faktory'!W29 -> 0 | AB29: ='3. Smerovacie faktory'!X29 -> 1
B30: ='3. Smerovacie faktory'!B30 -> Prichádzajúce - MMS z iných sietí mobilných operátorov | C30: # MMS | D30: =VLOOKUP(B30,'2. Dopyt'!$B$61:$G$65,4,0) -> 0 | E30: ='A. Výber'!$E$19*'6. NE Dopyt'!G44+(1-'A. Výber'!$E$19)*'6. NE Dopyt'!H44 -> 2.26 | F30: 0 | G30: ='3. Smerovacie faktory'!C30 -> 1 | H30: ='3. Smerovacie faktory'!D30 -> 1 | I30: ='3. Smerovacie faktory'!E30 -> 1 | J30: ='3. Smerovacie faktory'!F30 -> 1 | K30: ='3. Smerovacie faktory'!G30 -> 1 | L30: ='3. Smerovacie faktory'!H30 -> 1 | M30: ='3. Smerovacie faktory'!I30 -> 1 | N30: ='3. Smerovacie faktory'!J30 -> 1 | O30: ='3. Smerovacie faktory'!K30 -> 1 | P30: ='3. Smerovacie faktory'!L30 -> 1 | Q30: ='3. Smerovacie faktory'!M30 -> 1 | R30: ='3. Smerovacie faktory'!N30 -> x | S30: ='3. Smerovacie faktory'!O30 -> 1 | T30: ='3. Smerovacie faktory'!P30 -> 1 | U30: ='3. Smerovacie faktory'!Q30 -> 0 | V30: ='3. Smerovacie faktory'!R30 -> 0 | W30: ='3. Smerovacie faktory'!S30 -> 0 | X30: ='3. Smerovacie faktory'!T30 -> 1 | Y30: ='3. Smerovacie faktory'!U30 -> 0 | Z30: ='3. Smerovacie faktory'!V30 -> 0 | AA30: ='3. Smerovacie faktory'!W30 -> 0 | AB30: ='3. Smerovacie faktory'!X30 -> 1
B31: ='3. Smerovacie faktory'!B31 -> Prichádzajúce - MMS zo zahraničia | C31: # MMS | D31: =VLOOKUP(B31,'2. Dopyt'!$B$61:$G$65,4,0) -> 0 | E31: ='A. Výber'!$E$19*'6. NE Dopyt'!G45+(1-'A. Výber'!$E$19)*'6. NE Dopyt'!H45 -> 2.26 | F31: 0 | G31: ='3. Smerovacie faktory'!C31 -> 1 | H31: ='3. Smerovacie faktory'!D31 -> 1 | I31: ='3. Smerovacie faktory'!E31 -> 1 | J31: ='3. Smerovacie faktory'!F31 -> 1 | K31: ='3. Smerovacie faktory'!G31 -> 1 | L31: ='3. Smerovacie faktory'!H31 -> 1 | M31: ='3. Smerovacie faktory'!I31 -> 1 | N31: ='3. Smerovacie faktory'!J31 -> 1 | O31: ='3. Smerovacie faktory'!K31 -> 1 | P31: ='3. Smerovacie faktory'!L31 -> 1 | Q31: ='3. Smerovacie faktory'!M31 -> 1 | R31: ='3. Smerovacie faktory'!N31 -> x | S31: ='3. Smerovacie faktory'!O31 -> 1 | T31: ='3. Smerovacie faktory'!P31 -> 1 | U31: ='3. Smerovacie faktory'!Q31 -> 0 | V31: ='3. Smerovacie faktory'!R31 -> 0 | W31: ='3. Smerovacie faktory'!S31 -> 0 | X31: ='3. Smerovacie faktory'!T31 -> 1 | Y31: ='3. Smerovacie faktory'!U31 -> 0 | Z31: ='3. Smerovacie faktory'!V31 -> 0 | AA31: ='3. Smerovacie faktory'!W31 -> 0 | AB31: ='3. Smerovacie faktory'!X31 -> 1
B32: ='3. Smerovacie faktory'!B32 -> Mobilné dáta | C32: Mb | D32: =VLOOKUP(B32,'2. Dopyt'!$B$77:$G$77,4,0) -> 0 | E32: =I_Data_Conversion*'A. Výber'!E19+I_Data_Conversion3G*(1-'A. Výber'!E19) -> 2.26 | F32: 0 | G32: ='3. Smerovacie faktory'!C32 -> 1 | H32: ='3. Smerovacie faktory'!D32 -> 1 | I32: ='3. Smerovacie faktory'!E32 -> 1 | J32: ='3. Smerovacie faktory'!F32 -> 1 | K32: ='3. Smerovacie faktory'!G32 -> 1 | L32: ='3. Smerovacie faktory'!H32 -> 1 | M32: ='3. Smerovacie faktory'!I32 -> 1 | N32: ='3. Smerovacie faktory'!J32 -> 0 | O32: ='3. Smerovacie faktory'!K32 -> 0 | P32: ='3. Smerovacie faktory'!L32 -> 1 | Q32: ='3. Smerovacie faktory'!M32 -> 1 | R32: ='3. Smerovacie faktory'!N32 -> x | S32: ='3. Smerovacie faktory'!O32 -> 1 | T32: ='3. Smerovacie faktory'!P32 -> 1 | U32: ='3. Smerovacie faktory'!Q32 -> 0 | V32: ='3. Smerovacie faktory'!R32 -> 0 | W32: ='3. Smerovacie faktory'!S32 -> 0 | X32: ='3. Smerovacie faktory'!T32 -> 0 | Y32: ='3. Smerovacie faktory'!U32 -> 1 | Z32: ='3. Smerovacie faktory'!V32 -> 1 | AA32: ='3. Smerovacie faktory'!W32 -> 1 | AB32: ='3. Smerovacie faktory'!X32 -> 0
F33: =SUM(F9:F32) -> 0
F35: Objem na zákalde smerovacích faktorov | G35: =SUMPRODUCT(G9:G32,$F$9:$F$32) -> 0 | H35: =SUMPRODUCT(H9:H32,$F$9:$F$32) -> 0 | I35: 0 | J35: 0 | K35: 0 | L35: 0 | M35: 0 | N35: 0 | O35: 0 | P35: 0 | Q35: 0 | R35: 0 | S35: 0 | T35: 0 | U35: 0 | V35: 0 | W35: 0 | X35: 0 | Y35: 0 | Z35: 0 | AA35: 0 | AB35: 0
F36: Celkové náklady | G36: =VLOOKUP(G8,C_TotalCosts,4,0) -> 
F37: NE jednotkové náklady | G37: =G36/G35 ->  | H37: =H36/H35 ->  | R37: =IF(ISERROR(R36/R35),0,(R36/R35)) -> 0 | V37: =IF(ISERROR(V36/V35),0,(V36/V35)) -> 0
A40: 12.2 Jednotkový náklad na základe služieb | G40: Rozloženie nákladov na základe sieťových prvkov
G41: RAN | H41: RAN | I41: RAN | J41: RAN | K41: RAN | L41: RAN | M41: Switching | N41: Switching | O41: Switching | P41: Transmission | Q41: Transmission | R41: Transmission | S41: Transmission | T41: Transmission | U41: Transmission | V41: Switching | W41: Switching | X41: Switching | Y41: Switching | Z41: Switching | AA41: Switching | AB41: Switching
B42: Služba | C42: Sieťový náklad na službu | D42: Sieťový jednotkový náklad | G42: =G8 -> Access Sites | H42: BTS | I42: BSC | J42: Node B | K42: RNC | L42: eNode B | M42: HLR | N42: MSS | O42: MGW | P42: BTS - BSC | Q42: Node B - RNC | R42: eNode B - GGSN-MGW | S42: BSC - MGW | T42: RNC - MGW | U42: MGW - MGW | V42: Mobile voicemail platform | W42: SMSC Platform | X42: MMSC Platform | Y42: Intelligent Network | Z42: SGSN Platform | AA42: GGSN Platform | AB42: Interconnection
C43: EUR | D43: EUR | F43: Jednotka | G43: EUR | H43: EUR | I43: EUR | J43: EUR | K43: EUR | L43: EUR | M43: EUR | N43: EUR | O43: EUR | P43: EUR | Q43: EUR | R43: EUR | S43: EUR | T43: EUR | U43: EUR | V43: EUR | W43: EUR | X43: EUR | Y43: EUR | Z43: EUR | AA43: EUR | AB43: EUR
B44: =B9 -> Odchádzajúce - hovory v sieti (on-net) | C44: =SUMPRODUCT(G9:AB9,$G$37:$AB$37)*F9 ->  | D44: =C44/D9 ->  | F44: za minutu | G44: =G9*G$37*$F9/$D9 ->  | AA44: =AA9*AA$37*$F9/$D9 ->  | AB44: =AB9*AB$37*$F9/$D9 -> 
B45: =B10 -> Odchádzajúce - hovory do sietí iných mobilných operátorov | C45: =SUMPRODUCT(G10:AB10,$G$37:$AB$37)*F10 ->  | E45: =D45/ExchangeRate*100 ->  | F45: za minutu | G45: =G10*G$37*$F10/$D10 ->  | S45: =S10*S$37*$F10/$D10 -> 
B46: Odchádzajúce - hovory do pevnej siete | F46: za minutu
B47: Odchádzajúce - hovory do zahraničia | F47: za minutu | R47: =R12*R$37*$F12/$D12 -> 
B48: Odchádzajúce - hovory na tiesňové čísla | F48: za minutu
B49: Odchádzajúce - hovory do hlasovej schránky | F49: za minutu
B50: Odchádzajúce - hovory na bezplatné čísla | F50: za minutu
B51: Odchádzajúce - hovory na čísla Premium | F51: za minutu
B52: Odchádzajúce - prichádzajúci roaming | F52: za minutu
B53: Prichádzajúce - hovory od iných mobilných operátorov | F53: za minutu
B54: Prichádzajúce - hovory z pevnej siete | F54: za minutu
B55: Prichádzajúce - hovory zo zahraničia | F55: za minutu
B56: Prichádzajúce - prichádzajúci roaming | F56: za minutu
B57: Odchádzajúce - SMS v rámci siete | F57: za SMS
B58: Odchádzajúce - SMS do sietí iných mobilných operátorov | F58: za SMS
B59: Odchádzajúce - SMS do zahraničia | F59: za SMS
B60: Prichádzajúce - SMS z iných sietí mobilných operátorov | F60: za SMS
B61: Prichádzajúce - SMS zo zahraničia | F61: za SMS
B62: Odchádzajúce - MMS v rámci siete | F62: za MMS
B63: Odchádzajúce - MMS do sietí iných mobilných operátorov | F63: za MMS
B64: Odchádzajúce - MMS do zahraničia | F64: za MMS
B65: Prichádzajúce - MMS z iných sietí mobilných operátorov | D65: =C65/D30 ->  | F65: za MMS | S65: =S30*S$37*$F30/$D30 ->  | T65: =T30*T$37*$F30/$D30 -> 
B66: Prichádzajúce - MMS zo zahraničia | D66: =C66/D31 ->  | F66: za MMS
B67: Mobilné dáta | D67: =C67/D32 ->  | F67: za Mb
C68: =SUM(C44:C67)-'11. Anualizácia nákladov'!E278 -> 
A105: 12.3 Celkové jednotkové náklady podľa služby
B108: Služba | C108: Jednotka sítě | D108: Jednotkový maloobchodní náklad | E108: Outpayments | F108: Jednotkový náklad celkom | G108: Jednotka
C109: EUR | D109: EUR | E109: EUR | F109: EUR
B110: =B9 -> Odchádzajúce - hovory v sieti (on-net) | C110: =D44 ->  | D110: =C110*'0. Hlavné vstupy'!AH229 ->  | F110: =SUM(C110:E110) ->  | G110: za minutu | H110: =C110*'0. Hlavné vstupy'!AH229 -> 
B111: =B10 -> Odchádzajúce - hovory do sietí iných mobilných operátorov | C111: =D45 ->  | D111: =C111*'0. Hlavné vstupy'!AH230 ->  | E111: =C119 ->  | G111: za minutu | H111: =C111*'0. Hlavné vstupy'!AH230 -> 
B112: Odchádzajúce - hovory do pevnej siete | D112: =C112*'0. Hlavné vstupy'!AH231 ->  | E112: =C120 ->  | G112: za minutu | H112: =C112*'0. Hlavné vstupy'!AH231 -> 
B113: Odchádzajúce - hovory do zahraničia | D113: =C113*'0. Hlavné vstupy'!AH232 ->  | E113: 0 | G113: za minutu | H113: =C113*'0. Hlavné vstupy'!AH232 -> 
B114: Odchádzajúce - hovory na tiesňové čísla | D114: =C114*'0. Hlavné vstupy'!AH233 ->  | E114: 0 | G114: za minutu | H114: =C114*'0. Hlavné vstupy'!AH233 -> 
B115: Odchádzajúce - hovory do hlasovej schránky | D115: =C115*'0. Hlavné vstupy'!AH234 ->  | E115: 0 | G115: za minutu | H115: =C115*'0. Hlavné vstupy'!AH234 -> 
B116: Odchádzajúce - hovory na bezplatné čísla | D116: =C116*'0. Hlavné vstupy'!AH235 ->  | E116: 0 | G116: za minutu | H116: =C116*'0. Hlavné vstupy'!AH235 -> 
B117: Odchádzajúce - hovory na čísla Premium | D117: =C117*'0. Hlavné vstupy'!AH236 ->  | E117: 0 | G117: za minutu | H117: =C117*'0. Hlavné vstupy'!AH236 -> 
B118: Odchádzajúce - prichádzajúci roaming | D118: =C118*'0. Hlavné vstupy'!AH237 ->  | E118: 0 | G118: za minutu | H118: =C118*'0. Hlavné vstupy'!AH237 -> 
B119: Prichádzajúce - hovory od iných mobilných operátorov | D119: =C119*'0. Hlavné vstupy'!AH238 ->  | G119: za minutu | H119: =C119*'0. Hlavné vstupy'!AH238 -> 
B120: Prichádzajúce - hovory z pevnej siete | D120: =C120*'0. Hlavné vstupy'!AH239 ->  | G120: za minutu | H120: =C120*'0. Hlavné vstupy'!AH239 -> 
B121: Prichádzajúce - hovory zo zahraničia | D121: =C121*'0. Hlavné vstupy'!AH240 ->  | G121: za minutu | H121: =C121*'0. Hlavné vstupy'!AH240 -> 
B122: Prichádzajúce - prichádzajúci roaming | D122: =C122*'0. Hlavné vstupy'!AH241 ->  | G122: za minutu | H122: =C122*'0. Hlavné vstupy'!AH241 -> 
B123: Odchádzajúce - SMS v rámci siete | D123: =C123*'0. Hlavné vstupy'!AH242 ->  | G123: za SMS | H123: =C123*'0. Hlavné vstupy'!AH242 -> 
B124: Odchádzajúce - SMS do sietí iných mobilných operátorov | D124: =C124*'0. Hlavné vstupy'!AH243 ->  | E124: =C126 ->  | G124: za SMS | H124: =C124*'0. Hlavné vstupy'!AH243 -> 
B125: Odchádzajúce - SMS do zahraničia | D125: =C125*'0. Hlavné vstupy'!AH244 ->  | E125: 0 | G125: za SMS | H125: =C125*'0. Hlavné vstupy'!AH244 -> 
B126: Prichádzajúce - SMS z iných sietí mobilných operátorov | D126: =C126*'0. Hlavné vstupy'!AH245 ->  | G126: za SMS | H126: =C126*'0. Hlavné vstupy'!AH245 -> 
B127: Prichádzajúce - SMS zo zahraničia | D127: =C127*'0. Hlavné vstupy'!AH246 ->  | G127: za SMS | H127: =C127*'0. Hlavné vstupy'!AH246 -> 
B128: Odchádzajúce - MMS v rámci siete | D128: =C128*'0. Hlavné vstupy'!AH247 ->  | G128: za MMS | H128: =C128*'0. Hlavné vstupy'!AH247 -> 
B129: Odchádzajúce - MMS do sietí iných mobilných operátorov | D129: =C129*'0. Hlavné vstupy'!AH248 ->  | G129: za MMS | H129: =C129*'0. Hlavné vstupy'!AH248 -> 
B130: Odchádzajúce - MMS do zahraničia | D130: =C130*'0. Hlavné vstupy'!AH249 ->  | G130: za MMS | H130: =C130*'0. Hlavné vstupy'!AH249 -> 
B131: Prichádzajúce - MMS z iných sietí mobilných operátorov | D131: =C131*'0. Hlavné vstupy'!AH250 ->  | G131: za MMS | H131: =C131*'0. Hlavné vstupy'!AH250 -> 
B132: Prichádzajúce - MMS zo zahraničia | D132: =C132*'0. Hlavné vstupy'!AH251 ->  | G132: za MMS | H132: =C132*'0. Hlavné vstupy'!AH251 -> 
B133: Mobilné dáta | D133: =C133*'0. Hlavné vstupy'!AH252 ->  | G133: za Mb | H133: =C133*'0. Hlavné vstupy'!AH252 -> 

Sheet 11. Anualizácia nákladov
A1: 11. Anualizácia sieťových nákladov
A3: Popis
A4: Kalkulácia nákladov
A6: Vstupy z predchádzajúcich kalkulácií
A8: 11.1 Výber
B10: Výber | C10: Zvolený scenár
B11: Odpisová metóda | C11: =IF(D_DepMethod=1,'A. Výber'!$I$6,IF(D_DepMethod=2,'A. Výber'!$I$7,'A. Výber'!$I$9)) -> Modifikovaná naklonená anuita
B12: Model operátora | C12: =IF('A. Výber'!J14=1,'A. Výber'!I14,IF('A. Výber'!J14=2,'A. Výber'!I15,IF('A. Výber'!J14=3,'A. Výber'!I16,'A. Výber'!I17))) -> Model teoretického operátora
A14: 11.2 WACC
B16: WACC | C16: Hodnota
B17: WACC | C17: 0.0916
B38: Licenčné poplatky | D38: EUR
D39: 0
D40: 0
A42: Výpočet
A44: 11.3 Mark-up pre veľkoobchodné služby
B47: Mark-up pre veľkoobchodné služby | C47: Jednotka | D47: Hodnota
B48: Mark-up Opex prenosové média | C48: % | D48: =IF([0]!D_Act_Dim=1,'0. Hlavné vstupy'!AG220,IF(D_Act_Dim=2,'0. Hlavné vstupy'!AH220,(IF(D_Act_Dim=3,'0. Hlavné vstupy'!AI220,'0. Hlavné vstupy'!AJ220))))+D52 ->  | E48: C_MarkUp_OPEX
B49: Mark-up Opex sieťové prvky Backbone | D49: =IF([0]!D_Act_Dim=1,'0. Hlavné vstupy'!AG221,IF(D_Act_Dim=2,'0. Hlavné vstupy'!AH221,(IF(D_Act_Dim=3,'0. Hlavné vstupy'!AI221,'0. Hlavné vstupy'!AJ221))))+D52 -> 
B50: Mark-up Opex sieťové prvky RAN | D50: =IF([0]!D_Act_Dim=1,'0. Hlavné vstupy'!AG222,IF(D_Act_Dim=2,'0. Hlavné vstupy'!AH222,(IF(D_Act_Dim=3,'0. Hlavné vstupy'!AI222,'0. Hlavné vstupy'!AJ222))))+D52 -> 
B51: Mark-up nepriame aktíva | C51: % | D51: =IF([0]!D_Act_Dim=1,'0. Hlavné vstupy'!AG223,IF(D_Act_Dim=2,'0. Hlavné vstupy'!AH223,(IF(D_Act_Dim=3,'0. Hlavné vstupy'!AI223,'0. Hlavné vstupy'!AJ223)))) ->  | E51: C_MarkUp_Indirect CAPEX
B52: Mark-up wholesale Billing | D52: =IF([0]!D_Act_Dim=1,'0. Hlavné vstupy'!AG224,IF(D_Act_Dim=2,'0. Hlavné vstupy'!AH224,(IF(D_Act_Dim=3,'0. Hlavné vstupy'!AI224,'0. Hlavné vstupy'!AJ224)))) -> 
B53: Mark-up pracovný kapitál | C53: % | D53: =IF([0]!D_Act_Dim=1,'0. Hlavné vstupy'!AG225,IF(D_Act_Dim=2,'0. Hlavné vstupy'!AH225,(IF(D_Act_Dim=3,'0. Hlavné vstupy'!AI225,'0. Hlavné vstupy'!AJ225)))) ->  | E53: C_MarkUp_WC
A56: 11.4 Anualizácia nákladov na rádiovú sieť a nákladov na spojovanie
B58: Náklady na rádiovú a spojovaciu sieť | C58: Jednotka množstva | D58: Dimenzovaný počet | E58: Skutočný počet | F58: Zvolené množstvo | G58: Priemerná jednotková cena | H58: Priama hodnota aktíva | I58: Nepriamy CAPEX | J58: Hodnota aktíva | K58: Životnosť aktíva | L58: Inflácia ceny aktíva (ročná zmena ceny aktíva) | M58: Priemerný čas potrebný na vytvorenie aktíva (Roky) | N58: Anualizácia nákladov - modifikovaná jednoduchá anuita | O58: Anualizácia nákladov - modifikovaná naklonená anuita | P58: Zvolené Capex náklady | Q58: Pracovný kapitál | R58: Sieťový OPEX | S58: Celkom | U58: Naklonená anuita | V58: Jednoduchá anuita
G59: EUR | H59: =SUM(H60:H81) ->  | I59: =SUM(I60:I81) ->  | J59: =SUM(J60:J81) ->  | M59: Počet rokov | N59: =SUM(N60:N81) ->  | O59: =SUM(O60:O81) -> 
B60: ='5. Jednotkové investície & Opex'!B11 -> Radio Access Sites - strecha | C60: # | D60: ='7a. Radiová sieť 2G'!G196+'7b. Radiová sieť 3G'!G170 ->  | E60: ='0. Hlavné vstupy'!AG259 -> 0 | F60: =IF($C$12="Model teoretického operátora",D60,E60) ->  | G60: =VLOOKUP($B60,'5. Jednotkové investície & Opex'!$B$11:$H$37,4,0) ->  | H60: =F60*G60 ->  | I60: =C_Markup_IndirectCAPEX*H60 ->  | J60: =H60+I60 ->  | K60: =VLOOKUP($B60,'5. Jednotkové investície & Opex'!$B$11:$H$32,5,0) ->  | L60: =VLOOKUP($B60,'5. Jednotkové investície & Opex'!$B$11:$H$32,6,0) ->  | M60: =VLOOKUP($B60,'5. Jednotkové investície & Opex'!$B$11:$H$32,7,0)/12 ->  | N60: =IF(F60=0,0,J60*((1+$C$17)/(1+L60))^M60*$C$17/(1-(1+$C$17)^(-K60))) ->  | O60: =(IF(F60=0,0,J60*((1+$C$17)/(1+L60))^M60*($C$17-L60)/(1-((1+L60)/(1+$C$17))^K60))) ->  | P60: =IF('A. Výber'!$J$6=1,V60,(IF('A. Výber'!$J$6=2,'11. Anualizácia nákladov'!U60,(IF('A. Výber'!$J$6=3,'11. Anualizácia nákladov'!N60,'11. Anualizácia nákladov'!O60))))) ->  | Q60: =H60*C_MarkUp_WC*$C$17 ->  | R60: =H60*$D$50 ->  | S60: =SUM(P60:R60) ->  | U60: =IF(F60=0,0,J60*($C$17-L60)/(1-((1+L60)/(1+$C$17))^K60)) ->  | V60: =IF(F60=0,0,J60*(($C$17)/(1-(1+$C$17)^(-K60)))) -> 
B61: ='5. Jednotkové investície & Opex'!B12 -> Radio Access Sites - samostatný pylón | C61: # | D61: ='7a. Radiová sieť 2G'!G197+'7b. Radiová sieť 3G'!G171 ->  | E61: ='0. Hlavné vstupy'!AG260 -> 0 | F61: =IF($C$12="Model teoretického operátora",D61,E61) ->  | G61: =VLOOKUP($B61,'5. Jednotkové investície & Opex'!$B$11:$H$37,4,0) ->  | H61: =F61*G61 ->  | J61: =H61+I61 ->  | K61: =VLOOKUP($B61,'5. Jednotkové investície & Opex'!$B$11:$H$32,5,0) ->  | L61: =VLOOKUP($B61,'5. Jednotkové investície & Opex'!$B$11:$H$32,6,0) ->  | M61: =VLOOKUP($B61,'5. Jednotkové investície & Opex'!$B$11:$H$32,7,0)/12 ->  | N61: =IF(F61=0,0,J61*((1+$C$17)/(1+L61))^M61*$C$17/(1-(1+$C$17)^(-K61))) ->  | O61: =IF(F61=0,0,J61*((1+$C$17)/(1+L61))^M61*($C$17-L61)/(1-((1+L61)/(1+$C$17))^K61)) ->  | P61: =IF('A. Výber'!$J$6=1,V61,(IF('A. Výber'!$J$6=2,'11. Anualizácia nákladov'!U61,(IF('A. Výber'!$J$6=3,'11. Anualizácia nákladov'!N61,'11. Anualizácia nákladov'!O61))))) ->  | S61: =IF(ISERROR(SUM(P61:R61)),0,(SUM(P61:R61))) -> 0 | U61: =IF(J61=0,0,J61*($C$17-L61)/(1-((1+L61)/(1+$C$17))^K61)) ->  | V61: =IF(F61=0,0,J61*(($C$17)/(1-(1+$C$17)^(-K61)))) -> 
B62: ='5. Jednotkové investície & Opex'!B13 -> BTS Cabinet | C62: # | D62: ='7a. Radiová sieť 2G'!G139 ->  | E62: ='0. Hlavné vstupy'!AG261 -> 0 | F62: =IF($C$12="Model teoretického operátora",D62,E62) ->  | G62: =VLOOKUP($B62,'5. Jednotkové investície & Opex'!$B$11:$H$37,4,0) ->  | K62: =VLOOKUP($B62,'5. Jednotkové investície & Opex'!$B$11:$H$32,5,0) ->  | L62: =VLOOKUP($B62,'5. Jednotkové investície & Opex'!$B$11:$H$32,6,0) ->  | M62: =VLOOKUP($B62,'5. Jednotkové investície & Opex'!$B$11:$H$32,7,0)/12 ->  | P62: =IF('A. Výber'!$J$6=1,V62,(IF('A. Výber'!$J$6=2,'11. Anualizácia nákladov'!U62,(IF('A. Výber'!$J$6=3,'11. Anualizácia nákladov'!N62,'11. Anualizácia nákladov'!O62))))) ->  | S62: =SUM(P62:R62) -> 
B63: ='5. Jednotkové investície & Opex'!B14 -> TRX 2G | C63: # | D63: ='7a. Radiová sieť 2G'!G156 ->  | E63: ='0. Hlavné vstupy'!AG262 -> 0 | G63: =VLOOKUP($B63,'5. Jednotkové investície & Opex'!$B$11:$H$37,4,0) ->  | K63: =VLOOKUP($B63,'5. Jednotkové investície & Opex'!$B$11:$H$32,5,0) ->  | L63: =VLOOKUP($B63,'5. Jednotkové investície & Opex'!$B$11:$H$32,6,0) ->  | M63: =VLOOKUP($B63,'5. Jednotkové investície & Opex'!$B$11:$H$32,7,0)/12 ->  | P63: =IF('A. Výber'!$J$6=1,V63,(IF('A. Výber'!$J$6=2,'11. Anualizácia nákladov'!U63,(IF('A. Výber'!$J$6=3,'11. Anualizácia nákladov'!N63,'11. Anualizácia nákladov'!O63))))) -> 
B64: ='5. Jednotkové investície & Opex'!B15 -> BSC | C64: # | D64: ='7a. Radiová sieť 2G'!O213 ->  | E64: ='0. Hlavné vstupy'!AG263 -> 0 | G64: =VLOOKUP($B64,'5. Jednotkové investície & Opex'!$B$11:$H$37,4,0) ->  | K64: =VLOOKUP($B64,'5. Jednotkové investície & Opex'!$B$11:$H$32,5,0) ->  | L64: =VLOOKUP($B64,'5. Jednotkové investície & Opex'!$B$11:$H$32,6,0) ->  | M64: =VLOOKUP($B64,'5. Jednotkové investície & Opex'!$B$11:$H$32,7,0)/12 ->  | P64: =IF('A. Výber'!$J$6=1,V64,(IF('A. Výber'!$J$6=2,'11. Anualizácia nákladov'!U64,(IF('A. Výber'!$J$6=3,'11. Anualizácia nákladov'!N64,'11. Anualizácia nákladov'!O64))))) -> 
B65: ='5. Jednotkové investície & Opex'!B16 -> NodeB Cabinet | C65: # | D65: ='7b. Radiová sieť 3G'!G120 ->  | E65: ='0. Hlavné vstupy'!AG264 -> 0 | G65: =VLOOKUP($B65,'5. Jednotkové investície & Opex'!$B$11:$H$37,4,0) ->  | K65: =VLOOKUP($B65,'5. Jednotkové investície & Opex'!$B$11:$H$32,5,0) ->  | L65: =VLOOKUP($B65,'5. Jednotkové investície & Opex'!$B$11:$H$32,6,0) ->  | M65: =VLOOKUP($B65,'5. Jednotkové investície & Opex'!$B$11:$H$32,7,0)/12 ->  | P65: =IF('A. Výber'!$J$6=1,V65,(IF('A. Výber'!$J$6=2,'11. Anualizácia nákladov'!U65,(IF('A. Výber'!$J$6=3,'11. Anualizácia nákladov'!N65,'11. Anualizácia nákladov'!O65))))) -> 
B66: ='5. Jednotkové investície & Opex'!B17 -> NodeB Carrier | C66: # | D66: ='7b. Radiová sieť 3G'!G155 ->  | E66: ='0. Hlavné vstupy'!AG265 -> 0 | G66: =VLOOKUP($B66,'5. Jednotkové investície & Opex'!$B$11:$H$37,4,0) ->  | K66: =VLOOKUP($B66,'5. Jednotkové investície & Opex'!$B$11:$H$32,5,0) ->  | L66: =VLOOKUP($B66,'5. Jednotkové investície & Opex'!$B$11:$H$32,6,0) ->  | M66: =VLOOKUP($B66,'5. Jednotkové investície & Opex'!$B$11:$H$32,7,0)/12 ->  | N66: =IF(F66=0,0,J66*((1+$C$17)/(1+L66))^M66*$C$17/(1-(1+$C$17)^(-K66))) ->  | P66: =IF('A. Výber'!$J$6=1,V66,(IF('A. Výber'!$J$6=2,'11. Anualizácia nákladov'!U66,(IF('A. Výber'!$J$6=3,'11. Anualizácia nákladov'!N66,'11. Anualizácia nákladov'!O66))))) -> 
B67: ='5. Jednotkové investície & Opex'!B18 -> NodeB Channel Kit | C67: # | D67: ='7b. Radiová sieť 3G'!G142 ->  | E67: ='0. Hlavné vstupy'!AG266 -> 0 | G67: =VLOOKUP($B67,'5. Jednotkové investície & Opex'!$B$11:$H$37,4,0) ->  | K67: =VLOOKUP($B67,'5. Jednotkové investície & Opex'!$B$11:$H$32,5,0) ->  | L67: =VLOOKUP($B67,'5. Jednotkové investície & Opex'!$B$11:$H$32,6,0) ->  | M67: =VLOOKUP($B67,'5. Jednotkové investície & Opex'!$B$11:$H$32,7,0)/12 ->  | P67: =IF('A. Výber'!$J$6=1,V67,(IF('A. Výber'!$J$6=2,'11. Anualizácia nákladov'!U67,(IF('A. Výber'!$J$6=3,'11. Anualizácia nákladov'!N67,'11. Anualizácia nákladov'!O67))))) -> 
B68: ='5. Jednotkové investície & Opex'!B19 -> NodeB HSPA Upgrade | C68: # | D68: ='7b. Radiová sieť 3G'!G159 ->  | E68: ='0. Hlavné vstupy'!AG267 -> 0 | G68: =VLOOKUP($B68,'5. Jednotkové investície & Opex'!$B$11:$H$37,4,0) ->  | K68: =VLOOKUP($B68,'5. Jednotkové investície & Opex'!$B$11:$H$32,5,0) ->  | L68: =VLOOKUP($B68,'5. Jednotkové investície & Opex'!$B$11:$H$32,6,0) ->  | M68: =VLOOKUP($B68,'5. Jednotkové investície & Opex'!$B$11:$H$32,7,0)/12 ->  | P68: =IF('A. Výber'!$J$6=1,V68,(IF('A. Výber'!$J$6=2,'11. Anualizácia nákladov'!U68,(IF('A. Výber'!$J$6=3,'11. Anualizácia nákladov'!N68,'11. Anualizácia nákladov'!O68))))) -> 
B69: ='5. Jednotkové investície & Opex'!B20 -> eNode B | C69: # | E69: ='0. Hlavné vstupy'!AG268 -> 0 | F69: 0 | G69: =(VLOOKUP($B69,'5. Jednotkové investície & Opex'!$B$11:$H$37,4,0)) ->  | K69: =VLOOKUP($B69,'5. Jednotkové investície & Opex'!$B$11:$H$32,5,0) ->  | L69: =VLOOKUP($B69,'5. Jednotkové investície & Opex'!$B$11:$H$32,6,0) ->  | M69: =VLOOKUP($B69,'5. Jednotkové investície & Opex'!$B$11:$H$32,7,0)/12 ->  | N69: 0 | O69: 0 | P69: =IF('A. Výber'!$J$6=1,V69,(IF('A. Výber'!$J$6=2,'11. Anualizácia nákladov'!U69,(IF('A. Výber'!$J$6=3,'11. Anualizácia nákladov'!N69,'11. Anualizácia nákladov'!O69))))) -> 0 | S69: =IF(ISERROR(SUM(P69:R699)),0,(SUM(P69:R69))) -> 0 | U69: =IF(ISERROR(IF(J69=0,0,J69*($C$17-L69)/(1-((1+L69)/(1+$C$17))^K69))),0,(IF(J69=0,0,J69*($C$17-L69)/(1-((1+L69)/(1+$C$17))^K69)))) -> 0 | V69: 0
B70: ='5. Jednotkové investície & Opex'!B21 -> RNC | C70: # | D70: ='7b. Radiová sieť 3G'!N199 ->  | E70: ='0. Hlavné vstupy'!AG269 -> 0 | G70: =VLOOKUP($B70,'5. Jednotkové investície & Opex'!$B$11:$H$37,4,0) ->  | K70: =VLOOKUP($B70,'5. Jednotkové investície & Opex'!$B$11:$H$32,5,0) ->  | L70: =VLOOKUP($B70,'5. Jednotkové investície & Opex'!$B$11:$H$32,6,0) ->  | M70: =VLOOKUP($B70,'5. Jednotkové investície & Opex'!$B$11:$H$32,7,0)/12 ->  | P70: =IF('A. Výber'!$J$6=1,V70,(IF('A. Výber'!$J$6=2,'11. Anualizácia nákladov'!U70,(IF('A. Výber'!$J$6=3,'11. Anualizácia nákladov'!N70,'11. Anualizácia nákladov'!O70))))) -> 
B71: ='5. Jednotkové investície & Opex'!B22 -> HLR | C71: # | D71: ='9. Ostatné NE'!D121 ->  | E71: ='0. Hlavné vstupy'!AG270 -> 0 | G71: =VLOOKUP($B71,'5. Jednotkové investície & Opex'!$B$11:$H$37,4,0) ->  | K71: =VLOOKUP($B71,'5. Jednotkové investície & Opex'!$B$11:$H$32,5,0) ->  | L71: =VLOOKUP($B71,'5. Jednotkové investície & Opex'!$B$11:$H$32,6,0) ->  | M71: =VLOOKUP($B71,'5. Jednotkové investície & Opex'!$B$11:$H$32,7,0)/12 ->  | P71: =IF('A. Výber'!$J$6=1,V71,(IF('A. Výber'!$J$6=2,'11. Anualizácia nákladov'!U71,(IF('A. Výber'!$J$6=3,'11. Anualizácia nákladov'!N71,'11. Anualizácia nákladov'!O71))))) ->  | R71: =H71*$D$49 -> 
B72: ='5. Jednotkové investície & Opex'!B23 -> MSS | C72: # | D72: ='9. Ostatné NE'!D104 ->  | E72: ='0. Hlavné vstupy'!AG271 -> 0 | G72: =VLOOKUP($B72,'5. Jednotkové investície & Opex'!$B$11:$H$37,4,0) ->  | K72: =VLOOKUP($B72,'5. Jednotkové investície & Opex'!$B$11:$H$32,5,0) ->  | L72: =VLOOKUP($B72,'5. Jednotkové investície & Opex'!$B$11:$H$32,6,0) ->  | M72: =VLOOKUP($B72,'5. Jednotkové investície & Opex'!$B$11:$H$32,7,0)/12 ->  | N72: =IF(F72=0,0,J72*((1+$C$17)/(1+L72))^M72*$C$17/(1-(1+$C$17)^(-K72))) ->  | P72: =IF('A. Výber'!$J$6=1,V72,(IF('A. Výber'!$J$6=2,'11. Anualizácia nákladov'!U72,(IF('A. Výber'!$J$6=3,'11. Anualizácia nákladov'!N72,'11. Anualizácia nákladov'!O72))))) -> 
B73: ='5. Jednotkové investície & Opex'!B24 -> MGW | C73: # | D73: ='9. Ostatné NE'!D112 ->  | E73: ='0. Hlavné vstupy'!AG272 -> 0 | G73: =VLOOKUP($B73,'5. Jednotkové investície & Opex'!$B$11:$H$37,4,0) ->  | H73: =F73*G73 ->  | J73: =H73+I73 ->  | K73: =VLOOKUP($B73,'5. Jednotkové investície & Opex'!$B$11:$H$32,5,0) ->  | L73: =VLOOKUP($B73,'5. Jednotkové investície & Opex'!$B$11:$H$32,6,0) ->  | M73: =VLOOKUP($B73,'5. Jednotkové investície & Opex'!$B$11:$H$32,7,0)/12 ->  | P73: =IF('A. Výber'!$J$6=1,V73,(IF('A. Výber'!$J$6=2,'11. Anualizácia nákladov'!U73,(IF('A. Výber'!$J$6=3,'11. Anualizácia nákladov'!N73,'11. Anualizácia nákladov'!O73))))) ->  | S73: =SUM(P73:R73) -> 
B74: ='5. Jednotkové investície & Opex'!B25 -> Mobile voicemail platform | C74: # | D74: ='9. Ostatné NE'!D122 ->  | E74: ='0. Hlavné vstupy'!AG273 -> 0 | G74: =VLOOKUP($B74,'5. Jednotkové investície & Opex'!$B$11:$H$37,4,0) ->  | K74: =VLOOKUP($B74,'5. Jednotkové investície & Opex'!$B$11:$H$32,5,0) ->  | L74: =VLOOKUP($B74,'5. Jednotkové investície & Opex'!$B$11:$H$32,6,0) ->  | M74: =VLOOKUP($B74,'5. Jednotkové investície & Opex'!$B$11:$H$32,7,0)/12 ->  | P74: =IF('A. Výber'!$J$6=1,V74,(IF('A. Výber'!$J$6=2,'11. Anualizácia nákladov'!U74,(IF('A. Výber'!$J$6=3,'11. Anualizácia nákladov'!N74,'11. Anualizácia nákladov'!O74))))) -> 
B75: ='5. Jednotkové investície & Opex'!B26 -> SMS Centrum | C75: # | D75: ='9. Ostatné NE'!D123 ->  | E75: ='0. Hlavné vstupy'!AG274 -> 0 | G75: =VLOOKUP($B75,'5. Jednotkové investície & Opex'!$B$11:$H$37,4,0) ->  | K75: =VLOOKUP($B75,'5. Jednotkové investície & Opex'!$B$11:$H$32,5,0) ->  | L75: =VLOOKUP($B75,'5. Jednotkové investície & Opex'!$B$11:$H$32,6,0) ->  | M75: =VLOOKUP($B75,'5. Jednotkové investície & Opex'!$B$11:$H$32,7,0)/12 ->  | P75: =IF('A. Výber'!$J$6=1,V75,(IF('A. Výber'!$J$6=2,'11. Anualizácia nákladov'!U75,(IF('A. Výber'!$J$6=3,'11. Anualizácia nákladov'!N75,'11. Anualizácia nákladov'!O75))))) -> 
B76: ='5. Jednotkové investície & Opex'!B27 -> MMS Centrum | C76: # | D76: ='9. Ostatné NE'!D124 ->  | E76: ='0. Hlavné vstupy'!AG275 -> 0 | G76: =VLOOKUP($B76,'5. Jednotkové investície & Opex'!$B$11:$H$37,4,0) ->  | K76: =VLOOKUP($B76,'5. Jednotkové investície & Opex'!$B$11:$H$32,5,0) ->  | L76: =VLOOKUP($B76,'5. Jednotkové investície & Opex'!$B$11:$H$32,6,0) ->  | M76: =VLOOKUP($B76,'5. Jednotkové investície & Opex'!$B$11:$H$32,7,0)/12 ->  | P76: =IF('A. Výber'!$J$6=1,V76,(IF('A. Výber'!$J$6=2,'11. Anualizácia nákladov'!U76,(IF('A. Výber'!$J$6=3,'11. Anualizácia nákladov'!N76,'11. Anualizácia nákladov'!O76))))) -> 
B77: ='5. Jednotkové investície & Opex'!B28 -> Intelligent Network | C77: # | D77: ='9. Ostatné NE'!D125 ->  | E77: ='0. Hlavné vstupy'!AG276 -> 0 | G77: =VLOOKUP($B77,'5. Jednotkové investície & Opex'!$B$11:$H$37,4,0) ->  | K77: =VLOOKUP($B77,'5. Jednotkové investície & Opex'!$B$11:$H$32,5,0) ->  | L77: =VLOOKUP($B77,'5. Jednotkové investície & Opex'!$B$11:$H$32,6,0) ->  | M77: =VLOOKUP($B77,'5. Jednotkové investície & Opex'!$B$11:$H$32,7,0)/12 ->  | P77: =IF('A. Výber'!$J$6=1,V77,(IF('A. Výber'!$J$6=2,'11. Anualizácia nákladov'!U77,(IF('A. Výber'!$J$6=3,'11. Anualizácia nákladov'!N77,'11. Anualizácia nákladov'!O77))))) -> 
B78: ='5. Jednotkové investície & Opex'!B29 -> SGSN Platform | C78: # | D78: ='9. Ostatné NE'!D126 ->  | E78: ='0. Hlavné vstupy'!AG277 -> 0 | G78: =VLOOKUP($B78,'5. Jednotkové investície & Opex'!$B$11:$H$37,4,0) ->  | K78: =VLOOKUP($B78,'5. Jednotkové investície & Opex'!$B$11:$H$32,5,0) ->  | L78: =VLOOKUP($B78,'5. Jednotkové investície & Opex'!$B$11:$H$32,6,0) ->  | M78: =VLOOKUP($B78,'5. Jednotkové investície & Opex'!$B$11:$H$32,7,0)/12 ->  | N78: =IF(F78=0,0,J78*((1+$C$17)/(1+L78))^M78*$C$17/(1-(1+$C$17)^(-K78))) ->  | P78: =IF('A. Výber'!$J$6=1,V78,(IF('A. Výber'!$J$6=2,'11. Anualizácia nákladov'!U78,(IF('A. Výber'!$J$6=3,'11. Anualizácia nákladov'!N78,'11. Anualizácia nákladov'!O78))))) -> 
B79: ='5. Jednotkové investície & Opex'!B30 -> GGSN Platform | C79: # | D79: ='9. Ostatné NE'!D127 ->  | E79: ='0. Hlavné vstupy'!AG278 -> 0 | G79: =VLOOKUP($B79,'5. Jednotkové investície & Opex'!$B$11:$H$37,4,0) ->  | K79: =VLOOKUP($B79,'5. Jednotkové investície & Opex'!$B$11:$H$32,5,0) ->  | L79: =VLOOKUP($B79,'5. Jednotkové investície & Opex'!$B$11:$H$32,6,0) ->  | M79: =VLOOKUP($B79,'5. Jednotkové investície & Opex'!$B$11:$H$32,7,0)/12 ->  | P79: =IF('A. Výber'!$J$6=1,V79,(IF('A. Výber'!$J$6=2,'11. Anualizácia nákladov'!U79,(IF('A. Výber'!$J$6=3,'11. Anualizácia nákladov'!N79,'11. Anualizácia nákladov'!O79))))) -> 
B80: ='5. Jednotkové investície & Opex'!B37 -> Interconnection | C80: # | D80: ='9. Ostatné NE'!D128 -> 0 | E80: ='0. Hlavné vstupy'!AG279 -> 0 | F80: 0 | G80: =VLOOKUP($B80,'5. Jednotkové investície & Opex'!$B$11:$H$37,4,0) ->  | K80: =VLOOKUP($B80,'5. Jednotkové investície & Opex'!$B$11:$H$32,5,0) ->  | L80: =VLOOKUP($B80,'5. Jednotkové investície & Opex'!$B$11:$H$32,6,0) ->  | M80: =VLOOKUP($B80,'5. Jednotkové investície & Opex'!$B$11:$H$32,7,0)/12 ->  | N80: 0 | O80: 0 | P80: =IF('A. Výber'!$J$6=1,V80,(IF('A. Výber'!$J$6=2,'11. Anualizácia nákladov'!U80,(IF('A. Výber'!$J$6=3,'11. Anualizácia nákladov'!N80,'11. Anualizácia nákladov'!O80))))) -> 0 | S80: =IF(ISERROR(SUM(P80:R80)),0,(SUM(P80:R80))) -> 0 | V80: 0
A83: 11.5 Anualizácia nákladov na prenos
B85: BTS/NodeB - BSC/RNC | C85: Jednotka množstva | D85: Dimenzovaný počet | E85: Skutočný počet | F85: Zvolené množstvo | G85: Priemerná jednotková cena | H85: Priama hodnota aktíva | I85: Nepriamy CAPEX | J85: Hodnota aktíva | K85: Životnosť aktíva | L85: Inflácia ceny aktíva (ročná zmena ceny aktíva) | M85: Priemerný čas potrebný na vytvorenie aktíva (Roky) | N85: Anualizácia nákladov - jednoduchá anuita | O85: Anualizácia nákladov - naklonená anuita | P85: Zvolené Capex náklady | Q85: Pracovný kapitál | R85: Sieťový OPEX | S85: Celkom | U85: Naklonená anuita | V85: Jednoduchá anuita
G86: EUR | H86: =SUM(H87:H104) ->  | I86: =SUM(I87:I104) ->  | J86: =SUM(J87:J104) ->  | N86: =SUM(N87:N104) ->  | U86: =SUM(U87:U100) -> 
B87: ='5. Jednotkové investície & Opex'!B43 -> Optické vlákno | C87: km vlastných | D87: ='8. Prístupová sieť'!D400 ->  | E87: ='0. Hlavné vstupy'!AG286 -> 0 | F87: =IF($C$12="Model teoretického operátora",D87,E87) ->  | G87: =('5. Jednotkové investície & Opex'!C45+'5. Jednotkové investície & Opex'!C44)/2 ->  | H87: =F87*G87 ->  | I87: =C_Markup_IndirectCAPEX*H87 ->  | J87: =H87+I87 ->  | K87: =('5. Jednotkové investície & Opex'!F44+'5. Jednotkové investície & Opex'!F45)/2 ->  | L87: =('5. Jednotkové investície & Opex'!G44+'5. Jednotkové investície & Opex'!G45)/2 ->  | M87: =('5. Jednotkové investície & Opex'!H44+'5. Jednotkové investície & Opex'!H45)/2 ->  | N87: =IF(F87=0,0,J87*((1+$C$17)/(1+L87))^M87*$C$17/(1-(1+$C$17)^(-K87))) ->  | O87: =IF(F87=0,0,J87*((1+$C$17)/(1+L87))^M87*($C$17-L87)/(1-((1+L87)/(1+$C$17))^K87)) ->  | P87: =IF('A. Výber'!$J$6=1,V87,(IF('A. Výber'!$J$6=2,'11. Anualizácia nákladov'!U87,(IF('A. Výber'!$J$6=3,'11. Anualizácia nákladov'!N87,'11. Anualizácia nákladov'!O87))))) ->  | Q87: =H87*C_MarkUp_WC*$C$17 ->  | R87: =H87*C_MarkUp_OPEX ->  | S87: =SUM(P87:R87) ->  | U87: =IF(J87=0,0,J87*($C$17-L87)/(1-((1+L87)/(1+$C$17))^K87)) ->  | V87: =IF(F87=0,0,J87*($C$17/(1-(1+$C$17)^(-K87)))) -> 
B88: ='5. Jednotkové investície & Opex'!B49 -> SDH zariadenie | D88: ='8. Prístupová sieť'!D402 -> 0 | E88: ='0. Hlavné vstupy'!AG287 -> 0 | F88: 0 | H88: =F88*G88 -> 0 | J88: =H88+I88 ->  | N88: =IF(F88=0,0,J88*((1+$C$17)/(1+L88))^M88*$C$17/(1-(1+$C$17)^(-K88))) -> 0 | O88: =IF(F88=0,0,J88*((1+$C$17)/(1+L88))^M88*($C$17-L88)/(1-((1+L88)/(1+$C$17))^K88)) -> 0 | P88: =IF('A. Výber'!$J$6=1,V88,(IF('A. Výber'!$J$6=2,'11. Anualizácia nákladov'!U88,(IF('A. Výber'!$J$6=3,'11. Anualizácia nákladov'!N88,'11. Anualizácia nákladov'!O88))))) -> 0 | S88: =SUM(P88:R88) ->  | U88: =IF(J88=0,0,J88*($C$17-L88)/(1-((1+L88)/(1+$C$17))^K88)) ->  | V88: =IF(F88=0,0,J88*($C$17/(1-(1+$C$17)^(-K88)))) -> 0
D89: ='8. Prístupová sieť'!D403 -> 0 | E89: ='0. Hlavné vstupy'!AG288 -> 0 | F89: 0 | G89: ='5. Jednotkové investície & Opex'!E50 -> 0 | H89: 0 | K89: ='5. Jednotkové investície & Opex'!F50 -> 0 | L89: ='5. Jednotkové investície & Opex'!G50 -> 0 | M89: ='5. Jednotkové investície & Opex'!H50/12 -> 0 | N89: 0 | O89: 0 | P89: =IF('A. Výber'!$J$6=1,V89,(IF('A. Výber'!$J$6=2,'11. Anualizácia nákladov'!U89,(IF('A. Výber'!$J$6=3,'11. Anualizácia nákladov'!N89,'11. Anualizácia nákladov'!O89))))) -> 0 | S89: =IF(ISERROR(SUM(P89:R89)),0,(SUM(P89:R89))) -> 0 | U89: =IF(ISERROR(IF(J89=0,0,J89*($C$17-L89)/(1-((1+L89)/(1+$C$17))^K89))),0,(IF(J89=0,0,J89*($C$17-L89)/(1-((1+L89)/(1+$C$17))^K89)))) -> 0 | V89: 0
B90: ='5. Jednotkové investície & Opex'!B51 -> Add Drop Multiplexer - STM1 | C90: # ADM | D90: ='8. Prístupová sieť'!D404 -> 0 | E90: ='0. Hlavné vstupy'!AG289 -> 0 | F90: 0 | G90: ='5. Jednotkové investície & Opex'!E51 ->  | K90: ='5. Jednotkové investície & Opex'!F51 ->  | L90: ='5. Jednotkové investície & Opex'!G51 ->  | M90: ='5. Jednotkové investície & Opex'!H51/12 ->  | N90: 0 | O90: 0 | P90: =IF('A. Výber'!$J$6=1,V90,(IF('A. Výber'!$J$6=2,'11. Anualizácia nákladov'!U90,(IF('A. Výber'!$J$6=3,'11. Anualizácia nákladov'!N90,'11. Anualizácia nákladov'!O90))))) -> 0 | V90: 0
B91: ='5. Jednotkové investície & Opex'!B52 -> Add Drop Multiplexer - STM4 | C91: # ADM | D91: ='8. Prístupová sieť'!D405 -> 0 | E91: ='0. Hlavné vstupy'!AG290 -> 0 | F91: 0 | G91: ='5. Jednotkové investície & Opex'!E52 ->  | K91: ='5. Jednotkové investície & Opex'!F52 ->  | L91: ='5. Jednotkové investície & Opex'!G52 ->  | M91: ='5. Jednotkové investície & Opex'!H52/12 ->  | N91: 0 | O91: 0 | P91: =IF('A. Výber'!$J$6=1,V91,(IF('A. Výber'!$J$6=2,'11. Anualizácia nákladov'!U91,(IF('A. Výber'!$J$6=3,'11. Anualizácia nákladov'!N91,'11. Anualizácia nákladov'!O91))))) -> 0 | V91: 0
B92: ='5. Jednotkové investície & Opex'!B53 -> Add Drop Multiplexer - STM16 | C92: # ADM | D92: ='8. Prístupová sieť'!D406 -> 0 | E92: ='0. Hlavné vstupy'!AG291 -> 0 | F92: 0 | G92: ='5. Jednotkové investície & Opex'!E53 ->  | K92: ='5. Jednotkové investície & Opex'!F53 ->  | L92: ='5. Jednotkové investície & Opex'!G53 ->  | M92: ='5. Jednotkové investície & Opex'!H53/12 ->  | N92: 0 | O92: 0 | P92: =IF('A. Výber'!$J$6=1,V92,(IF('A. Výber'!$J$6=2,'11. Anualizácia nákladov'!U92,(IF('A. Výber'!$J$6=3,'11. Anualizácia nákladov'!N92,'11. Anualizácia nákladov'!O92))))) -> 0 | V92: 0
B93: ='5. Jednotkové investície & Opex'!B54 -> Add Drop Multiplexer - STM64 | C93: # ADM | D93: ='8. Prístupová sieť'!D407 -> 0 | E93: ='0. Hlavné vstupy'!AG292 -> 0 | F93: 0 | G93: ='5. Jednotkové investície & Opex'!E54 ->  | K93: ='5. Jednotkové investície & Opex'!F54 ->  | L93: ='5. Jednotkové investície & Opex'!G54 ->  | M93: ='5. Jednotkové investície & Opex'!H54/12 ->  | N93: 0 | O93: 0 | P93: =IF('A. Výber'!$J$6=1,V93,(IF('A. Výber'!$J$6=2,'11. Anualizácia nákladov'!U93,(IF('A. Výber'!$J$6=3,'11. Anualizácia nákladov'!N93,'11. Anualizácia nákladov'!O93))))) -> 0 | V93: 0
B94: ='5. Jednotkové investície & Opex'!B56 -> Mikrovlnné zariadenie | D94: ='8. Prístupová sieť'!D408 -> 0 | E94: ='0. Hlavné vstupy'!AG293 -> 0 | F94: 0 | H94: 0 | N94: 0 | O94: 0 | P94: =IF('A. Výber'!$J$6=1,V94,(IF('A. Výber'!$J$6=2,'11. Anualizácia nákladov'!U94,(IF('A. Výber'!$J$6=3,'11. Anualizácia nákladov'!N94,'11. Anualizácia nákladov'!O94))))) -> 0 | V94: 0
B95: ='5. Jednotkové investície & Opex'!B57 -> Link 2 Mbit/s | C95: # rádio setů | D95: ='8. Prístupová sieť'!D409 -> 0 | E95: ='0. Hlavné vstupy'!AG294 -> 0 | F95: 0 | G95: ='5. Jednotkové investície & Opex'!E57 ->  | K95: ='5. Jednotkové investície & Opex'!F57 ->  | L95: ='5. Jednotkové investície & Opex'!G57 ->  | M95: ='5. Jednotkové investície & Opex'!H57/12 ->  | N95: 0 | O95: 0 | P95: =IF('A. Výber'!$J$6=1,V95,(IF('A. Výber'!$J$6=2,'11. Anualizácia nákladov'!U95,(IF('A. Výber'!$J$6=3,'11. Anualizácia nákladov'!N95,'11. Anualizácia nákladov'!O95))))) -> 0 | S95: =SUM(P95:R95)+(F95*$D$39) ->  | V95: 0
B96: ='5. Jednotkové investície & Opex'!B58 -> Link 8 Mbit/s | C96: # rádio setů | D96: ='8. Prístupová sieť'!D410 -> 0 | E96: ='0. Hlavné vstupy'!AG315 -> 0 | F96: 0 | G96: ='5. Jednotkové investície & Opex'!E58 ->  | K96: ='5. Jednotkové investície & Opex'!F58 ->  | L96: ='5. Jednotkové investície & Opex'!G58 ->  | M96: ='5. Jednotkové investície & Opex'!H58/12 ->  | N96: 0 | O96: 0 | P96: =IF('A. Výber'!$J$6=1,V96,(IF('A. Výber'!$J$6=2,'11. Anualizácia nákladov'!U96,(IF('A. Výber'!$J$6=3,'11. Anualizácia nákladov'!N96,'11. Anualizácia nákladov'!O96))))) -> 0 | S96: =SUM(P96:R96)+(F96*$D$39) ->  | V96: 0
B97: ='5. Jednotkové investície & Opex'!B59 -> Link 32 Mbit/s | C97: # rádio setů | D97: ='8. Prístupová sieť'!D411 -> 0 | E97: ='0. Hlavné vstupy'!AG317 -> 0 | F97: 0 | G97: ='5. Jednotkové investície & Opex'!E59 ->  | K97: ='5. Jednotkové investície & Opex'!F59 ->  | L97: ='5. Jednotkové investície & Opex'!G59 ->  | M97: ='5. Jednotkové investície & Opex'!H59/12 ->  | N97: 0 | O97: 0 | P97: =IF('A. Výber'!$J$6=1,V97,(IF('A. Výber'!$J$6=2,'11. Anualizácia nákladov'!U97,(IF('A. Výber'!$J$6=3,'11. Anualizácia nákladov'!N97,'11. Anualizácia nákladov'!O97))))) -> 0 | S97: =SUM(P97:R97)+(F97*$D$39) ->  | V97: 0
B98: ='5. Jednotkové investície & Opex'!B60 -> Link 128 Mbit/s | C98: # rádio setů | D98: ='8. Prístupová sieť'!D412 -> 0 | E98: ='0. Hlavné vstupy'!AG297 -> 0 | F98: 0 | G98: ='5. Jednotkové investície & Opex'!$E$60 ->  | K98: ='5. Jednotkové investície & Opex'!F60 ->  | L98: ='5. Jednotkové investície & Opex'!G60 ->  | M98: ='5. Jednotkové investície & Opex'!H60/12 ->  | N98: 0 | O98: 0 | P98: =IF('A. Výber'!$J$6=1,V98,(IF('A. Výber'!$J$6=2,'11. Anualizácia nákladov'!U98,(IF('A. Výber'!$J$6=3,'11. Anualizácia nákladov'!N98,'11. Anualizácia nákladov'!O98))))) -> 0 | S98: =SUM(P98:R98)+(F98*$D$39) ->  | V98: 0
B99: ='5. Jednotkové investície & Opex'!B61 -> Link STM-1 | C99: # rádio setů | D99: ='8. Prístupová sieť'!D413 -> 0 | E99: ='0. Hlavné vstupy'!AG298 -> 0 | F99: 0 | G99: ='5. Jednotkové investície & Opex'!E61 ->  | H99: =F99*G99 ->  | J99: =H99+I99 ->  | K99: ='5. Jednotkové investície & Opex'!F61 ->  | L99: ='5. Jednotkové investície & Opex'!G61 ->  | M99: ='5. Jednotkové investície & Opex'!H61/12 ->  | N99: 0 | O99: 0 | P99: =IF('A. Výber'!$J$6=1,V99,(IF('A. Výber'!$J$6=2,'11. Anualizácia nákladov'!U99,(IF('A. Výber'!$J$6=3,'11. Anualizácia nákladov'!N99,'11. Anualizácia nákladov'!O99))))) -> 0 | S99: =SUM(P99:R99) ->  | V99: 0
B100: ='5. Jednotkové investície & Opex'!B62 -> Satelitné zariadenie | D100: ='8. Prístupová sieť'!D414 -> 0 | E100: ='0. Hlavné vstupy'!AG299 -> 0 | F100: 0 | N100: 0 | O100: 0 | P100: =IF('A. Výber'!$J$6=1,V100,(IF('A. Výber'!$J$6=2,'11. Anualizácia nákladov'!U100,(IF('A. Výber'!$J$6=3,'11. Anualizácia nákladov'!N100,'11. Anualizácia nákladov'!O100))))) -> 0 | U100: 0 | V100: 0
B101: ='5. Jednotkové investície & Opex'!B63 -> Link 2 Mbit/s | C101: # linků | D101: ='8. Prístupová sieť'!D415 -> 0 | E101: ='0. Hlavné vstupy'!AG300 -> 0 | F101: 0 | G101: ='5. Jednotkové investície & Opex'!E63 ->  | H101: =F101*G101 ->  | J101: =H101+I101 ->  | K101: ='5. Jednotkové investície & Opex'!F63 ->  | L101: ='5. Jednotkové investície & Opex'!G63 ->  | M101: ='5. Jednotkové investície & Opex'!H63/12 ->  | N101: 0 | O101: 0 | P101: =IF('A. Výber'!$J$6=1,V101,(IF('A. Výber'!$J$6=2,'11. Anualizácia nákladov'!U101,(IF('A. Výber'!$J$6=3,'11. Anualizácia nákladov'!N101,'11. Anualizácia nákladov'!O101))))) -> 0 | S101: =IF(ISERROR(SUM(P101:R101)),0,(SUM(P101:R101))) -> 0 | U101: =IF(ISERROR((IF(J101=0,0,J101*($C$17-L101)/(1-((1+L101)/(1+$C$17))^K101)))),0,((IF(J101=0,0,J101*($C$17-L101)/(1-((1+L101)/(1+$C$17))^K101))))) -> 0 | V101: 0
B102: ='5. Jednotkové investície & Opex'!B64 -> Link 8 Mbit/s | C102: # linků | D102: ='8. Prístupová sieť'!D416 -> 0 | E102: ='0. Hlavné vstupy'!AG301 -> 0 | F102: 0 | G102: ='5. Jednotkové investície & Opex'!E64 ->  | H102: =F102*G102 ->  | J102: =H102+I102 ->  | K102: ='5. Jednotkové investície & Opex'!F64 ->  | L102: ='5. Jednotkové investície & Opex'!G64 ->  | M102: ='5. Jednotkové investície & Opex'!H64/12 ->  | N102: 0 | O102: 0 | P102: =IF('A. Výber'!$J$6=1,V102,(IF('A. Výber'!$J$6=2,'11. Anualizácia nákladov'!U102,(IF('A. Výber'!$J$6=3,'11. Anualizácia nákladov'!N102,'11. Anualizácia nákladov'!O102))))) -> 0 | S102: =IF(ISERROR(SUM(P101:R101)),0,(SUM(P101:R101))) -> 0 | U102: =IF(ISERROR(IF(J102=0,0,J102*($C$17-L102)/(1-((1+L102)/(1+$C$17))^K102))),0,(IF(J102=0,0,J102*($C$17-L102)/(1-((1+L102)/(1+$C$17))^K102)))) -> 0 | V102: 0
B103: ='5. Jednotkové investície & Opex'!B65 -> Link 32 Mbit/s | C103: # linků | D103: ='8. Prístupová sieť'!D417 -> 0 | E103: ='0. Hlavné vstupy'!AG302 -> 0 | F103: 0 | G103: ='5. Jednotkové investície & Opex'!E65 ->  | H103: =F103*G103 ->  | J103: =H103+I103 ->  | K103: ='5. Jednotkové investície & Opex'!F65 ->  | L103: ='5. Jednotkové investície & Opex'!G65 ->  | M103: ='5. Jednotkové investície & Opex'!H65/12 ->  | N103: 0 | O103: 0 | P103: =IF('A. Výber'!$J$6=1,V103,(IF('A. Výber'!$J$6=2,'11. Anualizácia nákladov'!U103,(IF('A. Výber'!$J$6=3,'11. Anualizácia nákladov'!N103,'11. Anualizácia nákladov'!O103))))) -> 0 | S103: =IF(ISERROR(SUM(P103:R103)),0,(SUM(P103:R103))) -> 0 | U103: =IF(ISERROR(IF(J103=0,0,J103*($C$17-L103)/(1-((1+L103)/(1+$C$17))^K103))),0,(ISERROR(IF(J103=0,0,J103*($C$17-L103)/(1-((1+L103)/(1+$C$17))^K103))))) -> 0 | V103: 0
B104: ='5. Jednotkové investície & Opex'!B66 -> Link 128 Mbit/s | C104: # linků | D104: ='8. Prístupová sieť'!D418 -> 0 | E104: ='0. Hlavné vstupy'!AG303 -> 0 | F104: 0 | G104: ='5. Jednotkové investície & Opex'!E66 ->  | H104: =F104*G104 ->  | J104: =H104+I104 ->  | K104: ='5. Jednotkové investície & Opex'!F66 ->  | L104: ='5. Jednotkové investície & Opex'!G66 ->  | M104: ='5. Jednotkové investície & Opex'!H66/12 ->  | N104: 0 | O104: 0 | P104: =IF('A. Výber'!$J$6=1,V104,(IF('A. Výber'!$J$6=2,'11. Anualizácia nákladov'!U104,(IF('A. Výber'!$J$6=3,'11. Anualizácia nákladov'!N104,'11. Anualizácia nákladov'!O104))))) -> 0 | S104: =IF(ISERROR(SUM(P104:R104)),0,(SUM(P104:R104))) -> 0 | U104: =IF(ISERROR(IF(J104=0,0,J104*($C$17-L104)/(1-((1+L104)/(1+$C$17))^K104))),0,(IF(J104=0,0,J104*($C$17-L104)/(1-((1+L104)/(1+$C$17))^K104)))) -> 0 | V104: 0
B106: BSC/RNC - MGW | C106: Jednotka množstva | D106: Dimenzovaný počet | E106: Skutočný počet | F106: Zvolené množstvo | G106: Priemerná jednotková cena | H106: Priama hodnota aktíva | I106: Nepriamy CAPEX | J106: Hodnota aktíva | K106: Životnosť aktíva | L106: Inflácia ceny aktíva (ročná zmena ceny aktíva) | M106: Priemerný čas potrebný na vytvorenie aktíva (Roky) | N106: Anualizácia nákladov - jednoduchá anuita | O106: Anualizácia nákladov - naklonená anuita | P106: Zvolené Capex náklady | Q106: Pracovný kapitál | R106: Sieťový OPEX | S106: Celkom | U106: Naklonená anuita | V106: Jednoduchá anuita
G107: EUR | H107: =SUM(H108:H125) ->  | I107: =SUM(I108:I125) ->  | J107: =SUM(J108:J125) ->  | N107: =SUM(N108:N125) -> 
B108: =B87 -> Optické vlákno | C108: km vlastných | D108: ='8. Prístupová sieť'!$E$400 ->  | E108: ='0. Hlavné vstupy'!AG307 -> 0 | F108: =IF($C$12="Model teoretického operátora",D108,E108) ->  | G108: =G87 ->  | H108: =F108*G108 ->  | I108: =C_Markup_IndirectCAPEX*H108 ->  | J108: =H108+I108 ->  | K108: =K87 ->  | L108: =L87 ->  | M108: =M87 ->  | N108: =IF(F108=0,0,J108*((1+$C$17)/(1+L108))^M108*$C$17/(1-(1+$C$17)^(-K108))) ->  | O108: =IF(F108=0,0,J108*((1+$C$17)/(1+L108))^M108*($C$17-L108)/(1-((1+L108)/(1+$C$17))^K108)) ->  | P108: =IF('A. Výber'!$J$6=1,V108,(IF('A. Výber'!$J$6=2,'11. Anualizácia nákladov'!U108,(IF('A. Výber'!$J$6=3,'11. Anualizácia nákladov'!N108,'11. Anualizácia nákladov'!O108))))) ->  | Q108: =H108*C_MarkUp_WC*$C$17 ->  | R108: =H108*C_MarkUp_OPEX ->  | S108: =SUM(P108:R108) ->  | U108: =IF(F108=0,0,J108*($C$17-L108)/(1-((1+L108)/(1+$C$17))^K108)) ->  | V108: =IF(F108=0,0,J108*($C$17/(1-(1+$C$17)^(-K108)))) -> 
B109: =B88 -> SDH zariadenie | D109: ='8. Prístupová sieť'!E402 -> 0 | E109: ='0. Hlavné vstupy'!AG308 -> 0 | F109: 0 | G109: =G88 -> 0 | H109: =F109*G109 -> 0 | J109: =H109+I109 ->  | K109: =K88 -> 0 | L109: 0 | M109: 0 | N109: =IF(F109=0,0,J109*((1+I_WACC)/(1+L109))^M109*I_WACC/(1-(1+I_WACC)^(-K109))) -> 0 | O109: =IF(F109=0,0,J109*((1+$C$17)/(1+L109))^M109*($C$17-L109)/(1-((1+L109)/(1+$C$17))^K109)) -> 0 | P109: =IF('A. Výber'!$J$6=1,V109,(IF('A. Výber'!$J$6=2,'11. Anualizácia nákladov'!U109,(IF('A. Výber'!$J$6=3,'11. Anualizácia nákladov'!N109,'11. Anualizácia nákladov'!O109))))) -> 0 | S109: =SUM(P109:R109) ->  | U109: =IF(F109=0,0,J109*($C$17-L109)/(1-((1+L109)/(1+$C$17))^K109)) -> 0 | V109: =IF(F109=0,0,J109*($C$17/(1-(1+$C$17)^(-K109)))) -> 0
B110: 0 | C110: # DXC | D110: ='8. Prístupová sieť'!E403 -> 0 | E110: ='0. Hlavné vstupy'!AG309 -> 0 | F110: 0 | G110: 0 | H110: 0 | K110: 0 | L110: 0 | M110: 0 | N110: 0 | O110: 0 | P110: =IF('A. Výber'!$J$6=1,V110,(IF('A. Výber'!$J$6=2,'11. Anualizácia nákladov'!U110,(IF('A. Výber'!$J$6=3,'11. Anualizácia nákladov'!N110,'11. Anualizácia nákladov'!O110))))) -> 0 | S110: =IF(ISERROR(SUM(P110:R110)),0,(SUM(P110:R110))) -> 0 | U110: 0 | V110: 0
B111: Add Drop Multiplexer - STM1 | C111: # ADM | D111: ='8. Prístupová sieť'!E404 -> 0 | E111: ='0. Hlavné vstupy'!AG310 -> 0 | F111: 0 | N111: 0 | O111: 0 | P111: =IF('A. Výber'!$J$6=1,V111,(IF('A. Výber'!$J$6=2,'11. Anualizácia nákladov'!U111,(IF('A. Výber'!$J$6=3,'11. Anualizácia nákladov'!N111,'11. Anualizácia nákladov'!O111))))) -> 0 | U111: 0 | V111: 0
B112: Add Drop Multiplexer - STM4 | C112: # ADM | D112: ='8. Prístupová sieť'!E405 -> 0 | E112: ='0. Hlavné vstupy'!AG311 -> 0 | F112: 0 | N112: 0 | O112: 0 | P112: =IF('A. Výber'!$J$6=1,V112,(IF('A. Výber'!$J$6=2,'11. Anualizácia nákladov'!U112,(IF('A. Výber'!$J$6=3,'11. Anualizácia nákladov'!N112,'11. Anualizácia nákladov'!O112))))) -> 0 | U112: 0 | V112: 0
B113: Add Drop Multiplexer - STM16 | C113: # ADM | D113: ='8. Prístupová sieť'!E406 -> 0 | E113: ='0. Hlavné vstupy'!AG312 -> 0 | F113: 0 | N113: 0 | O113: 0 | P113: =IF('A. Výber'!$J$6=1,V113,(IF('A. Výber'!$J$6=2,'11. Anualizácia nákladov'!U113,(IF('A. Výber'!$J$6=3,'11. Anualizácia nákladov'!N113,'11. Anualizácia nákladov'!O113))))) -> 0 | U113: 0 | V113: 0
B114: Add Drop Multiplexer - STM64 | C114: # ADM | D114: ='8. Prístupová sieť'!E407 -> 0 | E114: ='0. Hlavné vstupy'!AG313 -> 0 | F114: 0 | N114: 0 | O114: 0 | P114: =IF('A. Výber'!$J$6=1,V114,(IF('A. Výber'!$J$6=2,'11. Anualizácia nákladov'!U114,(IF('A. Výber'!$J$6=3,'11. Anualizácia nákladov'!N114,'11. Anualizácia nákladov'!O114))))) -> 0 | U114: 0 | V114: 0
B115: Mikrovlnné zariadenie | D115: ='8. Prístupová sieť'!E408 -> 0 | E115: ='0. Hlavné vstupy'!AG314 -> 0 | F115: 0 | G115: 0 | H115: 0 | K115: 0 | L115: 0 | M115: 0 | N115: 0 | O115: 0 | P115: =IF('A. Výber'!$J$6=1,V115,(IF('A. Výber'!$J$6=2,'11. Anualizácia nákladov'!U115,(IF('A. Výber'!$J$6=3,'11. Anualizácia nákladov'!N115,'11. Anualizácia nákladov'!O115))))) -> 0 | U115: 0 | V115: 0
B116: Link 2 Mbit/s | C116: # rádio setov | D116: ='8. Prístupová sieť'!E409 -> 0 | E116: ='0. Hlavné vstupy'!AG315 -> 0 | F116: 0 | G116: =G95 ->  | N116: 0 | O116: 0 | P116: =IF('A. Výber'!$J$6=1,V116,(IF('A. Výber'!$J$6=2,'11. Anualizácia nákladov'!U116,(IF('A. Výber'!$J$6=3,'11. Anualizácia nákladov'!N116,'11. Anualizácia nákladov'!O116))))) -> 0 | U116: 0 | V116: 0
B117: Link 8 Mbit/s | C117: # rádio setov | D117: ='8. Prístupová sieť'!E410 -> 0 | E117: ='0. Hlavné vstupy'!AG316 -> 0 | F117: 0 | N117: 0 | O117: 0 | P117: =IF('A. Výber'!$J$6=1,V117,(IF('A. Výber'!$J$6=2,'11. Anualizácia nákladov'!U117,(IF('A. Výber'!$J$6=3,'11. Anualizácia nákladov'!N117,'11. Anualizácia nákladov'!O117))))) -> 0 | U117: 0 | V117: 0
B118: Link 32 Mbit/s | C118: # rádio setov | D118: ='8. Prístupová sieť'!E411 -> 0 | E118: ='0. Hlavné vstupy'!AG317 -> 0 | F118: 0 | N118: 0 | O118: 0 | P118: =IF('A. Výber'!$J$6=1,V118,(IF('A. Výber'!$J$6=2,'11. Anualizácia nákladov'!U118,(IF('A. Výber'!$J$6=3,'11. Anualizácia nákladov'!N118,'11. Anualizácia nákladov'!O118))))) -> 0 | U118: 0 | V118: 0
B119: Link 128 Mbit/s | C119: # rádio setov | D119: ='8. Prístupová sieť'!E412 -> 0 | E119: ='0. Hlavné vstupy'!AG318 -> 0 | F119: 0 | N119: 0 | O119: 0 | P119: =IF('A. Výber'!$J$6=1,V119,(IF('A. Výber'!$J$6=2,'11. Anualizácia nákladov'!U119,(IF('A. Výber'!$J$6=3,'11. Anualizácia nákladov'!N119,'11. Anualizácia nákladov'!O119))))) -> 0 | U119: 0 | V119: 0
B120: Link STM-1 | C120: # rádio setov | D120: ='8. Prístupová sieť'!E413 -> 0 | E120: ='0. Hlavné vstupy'!AG319 -> 0 | F120: 0 | H120: =F120*G120 ->  | J120: =H120+I120 ->  | N120: 0 | O120: 0 | P120: =IF('A. Výber'!$J$6=1,V120,(IF('A. Výber'!$J$6=2,'11. Anualizácia nákladov'!U120,(IF('A. Výber'!$J$6=3,'11. Anualizácia nákladov'!N120,'11. Anualizácia nákladov'!O120))))) -> 0 | S120: =SUM(P120:R120) ->  | U120: 0 | V120: 0
B121: Satelitné zariadenie | D121: ='8. Prístupová sieť'!E414 -> 0 | E121: ='0. Hlavné vstupy'!AG320 -> 0 | F121: 0 | G121: 0 | K121: =K100 -> 0 | L121: 0 | M121: 0 | N121: 0 | O121: 0 | P121: =IF('A. Výber'!$J$6=1,V121,(IF('A. Výber'!$J$6=2,'11. Anualizácia nákladov'!U121,(IF('A. Výber'!$J$6=3,'11. Anualizácia nákladov'!N121,'11. Anualizácia nákladov'!O121))))) -> 0 | U121: 0 | V121: 0
B122: Link 2 Mbit/s | C122: # linkov | D122: ='8. Prístupová sieť'!E415 -> 0 | E122: ='0. Hlavné vstupy'!AG321 -> 0 | F122: 0 | H122: =F122*G122 ->  | J122: =H122+I122 ->  | N122: 0 | O122: 0 | P122: =IF('A. Výber'!$J$6=1,V122,(IF('A. Výber'!$J$6=2,'11. Anualizácia nákladov'!U122,(IF('A. Výber'!$J$6=3,'11. Anualizácia nákladov'!N122,'11. Anualizácia nákladov'!O122))))) -> 0 | S122: =IF(ISERROR(SUM(P122:R122)),0,(SUM(P122:R122))) -> 0 | U122: 0 | V122: 0
B123: Link 8 Mbit/s | C123: # linkov | D123: ='8. Prístupová sieť'!E416 -> 0 | E123: ='0. Hlavné vstupy'!AG322 -> 0 | F123: 0 | H123: =F123*G123 ->  | J123: =H123+I123 ->  | N123: 0 | O123: 0 | P123: =IF('A. Výber'!$J$6=1,V123,(IF('A. Výber'!$J$6=2,'11. Anualizácia nákladov'!U123,(IF('A. Výber'!$J$6=3,'11. Anualizácia nákladov'!N123,'11. Anualizácia nákladov'!O123))))) -> 0 | S123: =IF(ISERROR(SUM(P123:R123)),0,(SUM(P123:R123))) -> 0 | U123: 0 | V123: 0
B124: Link 32 Mbit/s | C124: # linkov | D124: ='8. Prístupová sieť'!E417 -> 0 | E124: ='0. Hlavné vstupy'!AG323 -> 0 | F124: 0 | H124: =F124*G124 ->  | J124: =H124+I124 ->  | K124: =K103 ->  | N124: 0 | O124: 0 | P124: =IF('A. Výber'!$J$6=1,V124,(IF('A. Výber'!$J$6=2,'11. Anualizácia nákladov'!U124,(IF('A. Výber'!$J$6=3,'11. Anualizácia nákladov'!N124,'11. Anualizácia nákladov'!O124))))) -> 0 | S124: =IF(ISERROR(SUM(P124:R124)),0,(SUM(P124:R124))) -> 0 | U124: 0 | V124: 0
B125: Link 128 Mbit/s | C125: # linkov | D125: ='8. Prístupová sieť'!E418 -> 0 | E125: ='0. Hlavné vstupy'!AG324 -> 0 | F125: 0 | H125: =F125*G125 ->  | J125: =H125+I125 ->  | N125: 0 | O125: 0 | P125: =IF('A. Výber'!$J$6=1,V125,(IF('A. Výber'!$J$6=2,'11. Anualizácia nákladov'!U125,(IF('A. Výber'!$J$6=3,'11. Anualizácia nákladov'!N125,'11. Anualizácia nákladov'!O125))))) -> 0 | S125: =IF(ISERROR(SUM(P125:R125)),0,(SUM(P125:R125))) -> 0 | U125: 0 | V125: 0
B127: Spoje chrbticovej siete | C127: Jednotka množstva | D127: Dimenzovaný počet | E127: Skutočný počet | F127: Zvolené množstvo | G127: Priemerná jednotková cena | H127: Priama hodnota aktíva | I127: Nepriamy CAPEX | J127: Hodnota aktíva | K127: Životnosť aktíva | L127: Inflácia ceny aktíva (ročná zmena ceny aktíva) | M127: Priemerný čas potrebný na vytvorenie aktíva (Roky) | N127: Anualizácia nákladov - jednoduchá anuita | O127: Anualizácia nákladov - naklonená anuita | P127: Zvolené Capex náklady | Q127: Pracovný kapitál | R127: Sieťový OPEX | S127: Celkom | U127: Naklonená anuita | V127: Jednoduchá anuita
G128: EUR | H128: =SUM(H129:H140) ->  | I128: =SUM(I129:I140) ->  | J128: =SUM(J129:J140) ->  | N128: =SUM(N129:N140) -> 0 | O128: 0 | P128: 0 | U128: 0 | V128: 0
B129: =B108 -> Optické vlákno | C129: km vlastních | D129: ='10. Chrbticová sieť'!N170 -> 0 | E129: ='0. Hlavné vstupy'!AG328 -> 0 | F129: =IF($C$12="Model teoretického operátora",D129,E129) -> 0 | G129: =G108 ->  | H129: =F129*G129 ->  | I129: =C_Markup_IndirectCAPEX*H129 ->  | J129: =H129+I129 ->  | K129: =K108 ->  | N129: =IF(F129=0,0,J129*((1+$C$17)/(1+L129))^M129*$C$17/(1-(1+$C$17)^(-K129))) -> 0 | O129: =IF(F129=0,0,J129*((1+$C$17)/(1+L129))^M129*($C$17-L129)/(1-((1+L129)/(1+$C$17))^K129)) -> 0 | P129: =IF('A. Výber'!$J$6=1,V129,(IF('A. Výber'!$J$6=2,'11. Anualizácia nákladov'!U129,(IF('A. Výber'!$J$6=3,'11. Anualizácia nákladov'!N129,'11. Anualizácia nákladov'!O129))))) -> 0 | Q129: =H129*C_MarkUp_WC*$C$17 ->  | R129: =H129*C_MarkUp_OPEX ->  | S129: =SUM(P129:R129) ->  | U129: =IF(F129=0,0,J129*($C$17-L129)/(1-((1+L129)/(1+$C$17))^K129)) -> 0 | V129: =IF(F129=0,0,J129*(($C$17/(1-(1+$C$17)^(-K129))))) -> 0
B130: =B109 -> SDH zariadenie | D130: ='8. Prístupová sieť'!E432 -> 0 | E130: ='0. Hlavné vstupy'!AG330 -> 0 | F130: 0 | G130: 0 | H130: =F130*G130 -> 0 | J130: =H130+I130 ->  | K130: 0 | L130: 0 | M130: 0 | N130: =IF(F130=0,0,J130*((1+$C$17)/(1+L130))^M130*$C$17/(1-(1+$C$17)^(-K130))) -> 0 | O130: =IF(F130=0,0,J130*((1+$C$17)/(1+L130))^M130*($C$17-L130)/(1-((1+L130)/(1+$C$17))^K130)) -> 0 | P130: =IF('A. Výber'!$J$6=1,V130,(IF('A. Výber'!$J$6=2,'11. Anualizácia nákladov'!U130,(IF('A. Výber'!$J$6=3,'11. Anualizácia nákladov'!N130,'11. Anualizácia nákladov'!O130))))) -> 0 | S130: =SUM(P130:R130) ->  | U130: =IF(F130=0,0,J130*($C$17-L130)/(1-((1+L130)/(1+$C$17))^K130)) -> 0 | V130: =IF(F130=0,0,J130*(($C$17/(1-(1+$C$17)^(-K130))))) -> 0
B131: 0 | C131: # DXC | E131: ='0. Hlavné vstupy'!AG330 -> 0 | F131: 0 | G131: 0 | H131: 0 | K131: 0 | L131: 0 | M131: 0 | N131: 0 | O131: 0 | P131: =IF('A. Výber'!$J$6=1,V131,(IF('A. Výber'!$J$6=2,'11. Anualizácia nákladov'!U131,(IF('A. Výber'!$J$6=3,'11. Anualizácia nákladov'!N131,'11. Anualizácia nákladov'!O131))))) -> 0 | S131: =IF(ISERROR(SUM(P131:R131)),0,(SUM(P131:R131))) -> 0 | U131: 0 | V131: 0
B132: Add Drop Multiplexer - STM1 | C132: # ADM | D132: =VLOOKUP(B132,'10. Chrbticová sieť'!$B$163:$D$166,3,0) -> 0 | E132: ='0. Hlavné vstupy'!AG331 -> 0 | F132: 0 | N132: 0 | O132: 0 | P132: =IF('A. Výber'!$J$6=1,V132,(IF('A. Výber'!$J$6=2,'11. Anualizácia nákladov'!U132,(IF('A. Výber'!$J$6=3,'11. Anualizácia nákladov'!N132,'11. Anualizácia nákladov'!O132))))) -> 0 | U132: 0 | V132: 0
B133: Add Drop Multiplexer - STM4 | C133: # ADM | D133: =VLOOKUP(B133,'10. Chrbticová sieť'!$B$163:$D$166,3,0) -> 0 | E133: ='0. Hlavné vstupy'!AG332 -> 0 | F133: 0 | N133: 0 | O133: 0 | P133: =IF('A. Výber'!$J$6=1,V133,(IF('A. Výber'!$J$6=2,'11. Anualizácia nákladov'!U133,(IF('A. Výber'!$J$6=3,'11. Anualizácia nákladov'!N133,'11. Anualizácia nákladov'!O133))))) -> 0 | U133: 0 | V133: 0
B134: Add Drop Multiplexer - STM16 | C134: # ADM | D134: =VLOOKUP(B134,'10. Chrbticová sieť'!$B$163:$D$166,3,0) -> 0 | E134: ='0. Hlavné vstupy'!AG333 -> 0 | F134: 0 | N134: 0 | O134: 0 | P134: =IF('A. Výber'!$J$6=1,V134,(IF('A. Výber'!$J$6=2,'11. Anualizácia nákladov'!U134,(IF('A. Výber'!$J$6=3,'11. Anualizácia nákladov'!N134,'11. Anualizácia nákladov'!O134))))) -> 0 | U134: 0 | V134: 0
B135: Add Drop Multiplexer - STM64 | C135: # ADM | D135: =VLOOKUP(B135,'10. Chrbticová sieť'!$B$163:$D$166,3,0) -> 0 | E135: ='0. Hlavné vstupy'!AG334 -> 0 | F135: 0 | N135: 0 | O135: 0 | P135: =IF('A. Výber'!$J$6=1,V135,(IF('A. Výber'!$J$6=2,'11. Anualizácia nákladov'!U135,(IF('A. Výber'!$J$6=3,'11. Anualizácia nákladov'!N135,'11. Anualizácia nákladov'!O135))))) -> 0 | U135: 0 | V135: 0
B136: Mikrovlnné zariadenie | D136: ='8. Prístupová sieť'!E443 -> 0 | E136: ='0. Hlavné vstupy'!AG336 -> 0 | F136: 0 | G136: =G121 -> 0 | H136: 0 | K136: =K121 -> 0 | L136: 0 | M136: 0 | N136: 0 | O136: 0 | P136: =IF('A. Výber'!$J$6=1,V136,(IF('A. Výber'!$J$6=2,'11. Anualizácia nákladov'!U136,(IF('A. Výber'!$J$6=3,'11. Anualizácia nákladov'!N136,'11. Anualizácia nákladov'!O136))))) -> 0 | U136: 0 | V136: 0
B137: =B122 -> Link 2 Mbit/s | C137: # linků | E137: ='0. Hlavné vstupy'!AG337 -> 0 | F137: 0 | G137: =G122 ->  | N137: 0 | O137: 0 | P137: =IF('A. Výber'!$J$6=1,V137,(IF('A. Výber'!$J$6=2,'11. Anualizácia nákladov'!U137,(IF('A. Výber'!$J$6=3,'11. Anualizácia nákladov'!N137,'11. Anualizácia nákladov'!O137))))) -> 0 | S137: =IF(ISERROR(SUM(P137:R137)),0,ISERROR(SUM(P137:R137))) -> 0 | U137: 0 | V137: 0
B138: =B123 -> Link 8 Mbit/s | C138: # linků | E138: ='0. Hlavné vstupy'!AG338 -> 0 | F138: 0 | G138: =G123 ->  | N138: 0 | O138: 0 | P138: =IF('A. Výber'!$J$6=1,V138,(IF('A. Výber'!$J$6=2,'11. Anualizácia nákladov'!U138,(IF('A. Výber'!$J$6=3,'11. Anualizácia nákladov'!N138,'11. Anualizácia nákladov'!O138))))) -> 0 | S138: =IF(ISERROR(SUM(P138:R138)),0,(SUM(P138:R138))) -> 0 | U138: 0 | V138: 0
B139: =B124 -> Link 32 Mbit/s | C139: # linků | E139: ='0. Hlavné vstupy'!AG339 -> 0 | F139: 0 | G139: =G124 ->  | N139: 0 | O139: 0 | P139: =IF('A. Výber'!$J$6=1,V139,(IF('A. Výber'!$J$6=2,'11. Anualizácia nákladov'!U139,(IF('A. Výber'!$J$6=3,'11. Anualizácia nákladov'!N139,'11. Anualizácia nákladov'!O139))))) -> 0 | S139: =IF(ISERROR(SUM(P139:R139)),0,(SUM(P139:R139))) -> 0 | U139: 0 | V139: 0
B140: =B125 -> Link 128 Mbit/s | C140: # linků | E140: ='0. Hlavné vstupy'!AG340 -> 0 | F140: 0 | G140: =G125 ->  | N140: 0 | O140: 0 | P140: =IF('A. Výber'!$J$6=1,V140,(IF('A. Výber'!$J$6=2,'11. Anualizácia nákladov'!U140,(IF('A. Výber'!$J$6=3,'11. Anualizácia nákladov'!N140,'11. Anualizácia nákladov'!O140))))) -> 0 | S140: =IF(ISERROR(SUM(P140:R140)),0,(SUM(P140:R140))) -> 0 | U140: 0 | V140: 0
B142: NGN prenosové zariadenie | C142: Jednotka množstva | D142: Dimenzovaný počet | E142: Skutočný počet | F142: Zvolené množstvo | G142: Priemerná jednotková cena | H142: Priama hodnota aktíva | I142: Nepriamy CAPEX | J142: Hodnota aktíva | K142: Životnosť aktíva | L142: Inflácia ceny aktíva (ročná zmena ceny aktíva) | M142: Priemerný čas potrebný na vytvorenie aktíva (Roky) | N142: Anualizácia nákladov - jednoduchá anuita | O142: Anualizácia nákladov - naklonená anuita | P142: Zvolené Capex náklady | Q142: Pracovný kapitál | R142: Sieťový OPEX | S142: Celkom | U142: Naklonená anuita | V142: Jednoduchá anuita
G143: EUR | H143: =SUM(H144:H145) ->  | I143: =SUM(I144:I145) ->  | J143: =SUM(J144:J145) ->  | N143: =SUM(N144:N145) ->  | U143: =SUM(U144:U160) ->  | V143: =SUM(V144:V160) -> 
B144: ='5. Jednotkové investície & Opex'!B47 -> IP Switch | C144: # | D144: ='10. Chrbticová sieť'!N112 ->  | E144: ='0. Hlavné vstupy'!AG343 -> 0 | F144: =IF($C$12="Model teoretického operátora",D144,E144) ->  | G144: ='5. Jednotkové investície & Opex'!E47 ->  | H144: =F144*G144 ->  | I144: =C_Markup_IndirectCAPEX*H144 ->  | J144: =H144+I144 ->  | K144: ='5. Jednotkové investície & Opex'!F47 ->  | L144: ='5. Jednotkové investície & Opex'!G47 ->  | M144: ='5. Jednotkové investície & Opex'!H47 ->  | N144: =IF(F144=0,0,J144*((1+$C$17)/(1+L144))^M144*$C$17/(1-(1+$C$17)^(-K144))) ->  | O144: =IF(F144=0,0,J144*((1+$C$17)/(1+L144))^M144*($C$17-L144)/(1-((1+L144)/(1+$C$17))^K144)) ->  | P144: =IF('A. Výber'!$J$6=1,V144,(IF('A. Výber'!$J$6=2,'11. Anualizácia nákladov'!U144,(IF('A. Výber'!$J$6=3,'11. Anualizácia nákladov'!N144,'11. Anualizácia nákladov'!O144))))) ->  | Q144: =H144*C_MarkUp_WC*$C$17 ->  | R144: =H144*D49 ->  | S144: =SUM(P144:R144) ->  | U144: =IF(F144=0,0,J144*($C$17-L144)/(1-((1+L144)/(1+$C$17))^K144)) ->  | V144: =IF(F144=0,0,J144*($C$17/(1-(1+$C$17)^(-K144)))) -> 
B145: ='5. Jednotkové investície & Opex'!B48 -> IP Router | C145: # | D145: ='10. Chrbticová sieť'!N135 ->  | E145: ='0. Hlavné vstupy'!AG344 -> 0 | F145: =IF($C$12="Model teoretického operátora",D145,E145) ->  | G145: ='5. Jednotkové investície & Opex'!E48 ->  | H145: =F145*G145 ->  | I145: =C_Markup_IndirectCAPEX*H145 ->  | J145: =H145+I145 ->  | K145: ='5. Jednotkové investície & Opex'!F48 ->  | L145: ='5. Jednotkové investície & Opex'!G48 ->  | M145: ='5. Jednotkové investície & Opex'!H48 ->  | N145: =IF(F145=0,0,J145*((1+$C$17)/(1+L145))^M145*$C$17/(1-(1+$C$17)^(-K145))) ->  | O145: =IF(F145=0,0,J145*((1+$C$17)/(1+L145))^M145*($C$17-L145)/(1-((1+L145)/(1+$C$17))^K145)) ->  | P145: =IF('A. Výber'!$J$6=1,V145,(IF('A. Výber'!$J$6=2,'11. Anualizácia nákladov'!U145,(IF('A. Výber'!$J$6=3,'11. Anualizácia nákladov'!N145,'11. Anualizácia nákladov'!O145))))) ->  | Q145: =H145*C_MarkUp_WC*$C$17 ->  | R145: =H145*D49 ->  | S145: =SUM(P145:R145) ->  | U145: =IF(F145=0,0,J145*($C$17-L145)/(1-((1+L145)/(1+$C$17))^K145)) ->  | V145: =IF(F145=0,0,J145*($C$17/(1-(1+$C$17)^(-K145)))) -> 
B148: Alokácia zdieľaného prístupu | C148: Mbps | D148: Alokácia Core/Access | E148: Erlang | F148: Alokácia BTS-BSC / BSC-MGW | G148: Prevádzka 2G/3G
B149: Core dopyt | C149: =SUM('10. Chrbticová sieť'!N144:N145) -> 0 | D149: =C149/SUM(C149:C150) -> 
B150: Prístupový dopyt | C150: 0 | D150: =C150 -> 0
B151: BTS/NodeB - BSC/RNC | E151: 0 | F151: =IF(ISERROR(E151/SUM($E$151:$E$152)),0,(E151/SUM($E$151:$E$152))) -> 0
B152: BSC/RNC - MGW | E152: 0 | F152: =IF(ISERROR(E152/SUM($E$151:$E$152)),0,(E152/SUM($E$151:$E$152))) -> 0
B153: 2G | G153: ='A. Výber'!D19 -> 0
B154: 3G | G154: ='A. Výber'!D20 -> 0
B155: LTE | G155: ='A. Výber'!D21 -> 0
B157: Sumarizácia nákladov na vlastnené prenosové zariadenie | C157: Total
C158: =SUM(C159:C163) -> 
B159: BTS - BSC | C159: =(S86+S128*D150*F151)*G153 -> 
B160: NodeB - RNC | C160: =(S86+S128*D150*F151)*G154 -> 
B161: BSC - MGW | C161: =(S107+S128*D150*F152)*G153 -> 
B162: RNC - MGW | C162: =(S107+S128*D150*F152)*G154 -> 
B163: MGW - MGW | C163: =S128*D149+S143 -> 
B164: eNode B - MGW | C164: =(S90+S128*D150*0)*G155 -> 
A166: 11.6 Náklady na prenos využitím prenajatých zariadení
B168: Prenajímacie náklady na prenos | C168: Jednotka množstva | D168: Dimenzovaný počet (vzdialenosť v km) | E168: Skutočný počet (vzdialenosť v km) | F168: Zvolené množstvo | G168: Ročná cena prenájmu | H168: Celkom
G169: =G170+G180+G190 -> 0 | H169: =H170+H180+H190 -> 
B170: =B85 -> BTS/NodeB - BSC/RNC | E170: ='0. Hlavné vstupy'!AG368 -> 0 | F170: =IF($C$12="Bottom-up",D170,E170) -> 0 | G170: =SUM(G171:G179) -> 0 | H170: =SUM(H171:H179) -> 
B171: Kábel | C171: km | D171: ='8. Prístupová sieť'!D401 ->  | E171: ='0. Hlavné vstupy'!AG369 -> 0 | F171: =IF($C$12="Model teoretického operátora",D171,E171) ->  | G171: ='5. Jednotkové investície & Opex'!$G$78 -> 0 | H171: =F171*G171 -> 
B172: ='8. Prístupová sieť'!B430 -> Link 2 Mbit/s | C172: # linkov | D172: ='8. Prístupová sieť'!D421 -> 0 | E172: ='0. Hlavné vstupy'!AG370 -> 0 | F172: 0 | G172: ='5. Jednotkové investície & Opex'!$G$79 -> 0 | H172: =F172*G172 -> 0
B173: ='8. Prístupová sieť'!B431 -> Link 8 Mbit/s | C173: # linkov | D173: ='8. Prístupová sieť'!D422 -> 0 | E173: ='0. Hlavné vstupy'!AG371 -> 0 | F173: 0 | G173: ='5. Jednotkové investície & Opex'!$G$80 -> 0 | H173: 0
B174: ='8. Prístupová sieť'!B432 -> Link 32 Mbit/s | C174: # linkov | D174: ='8. Prístupová sieť'!D423 -> 0 | E174: ='0. Hlavné vstupy'!AG372 -> 0 | F174: 0 | G174: ='5. Jednotkové investície & Opex'!$G$81 -> 0 | H174: 0
B175: ='8. Prístupová sieť'!B433 -> Link 128 Mbit/s | C175: # linkov | D175: ='8. Prístupová sieť'!D424 -> 0 | E175: ='0. Hlavné vstupy'!AG373 -> 0 | F175: 0 | G175: ='5. Jednotkové investície & Opex'!$G$82 -> 0 | H175: 0
B176: ='8. Prístupová sieť'!B434 -> Link STM-1 | C176: # linkov | D176: ='8. Prístupová sieť'!D425 -> 0 | E176: ='0. Hlavné vstupy'!AG374 -> 0 | F176: 0 | G176: ='5. Jednotkové investície & Opex'!$G$79 -> 0 | H176: 0
B177: ='8. Prístupová sieť'!B435 -> Link STM-4 | C177: # linkov | D177: ='8. Prístupová sieť'!D426 -> 0 | E177: ='0. Hlavné vstupy'!AG375 -> 0 | F177: 0 | G177: ='5. Jednotkové investície & Opex'!$G$80 -> 0 | H177: 0
B178: ='8. Prístupová sieť'!B436 -> Link STM-16 | C178: # linkov | D178: ='8. Prístupová sieť'!D427 -> 0 | E178: ='0. Hlavné vstupy'!AG376 -> 0 | F178: 0 | G178: ='5. Jednotkové investície & Opex'!$G$81 -> 0 | H178: 0
B179: ='8. Prístupová sieť'!B437 -> Link STM-64 | C179: # linkov | D179: ='8. Prístupová sieť'!D428 -> 0 | E179: ='0. Hlavné vstupy'!AG377 -> 0 | F179: 0 | G179: ='5. Jednotkové investície & Opex'!$G$82 -> 0 | H179: 0
B180: =B106 -> BSC/RNC - MGW | E180: ='0. Hlavné vstupy'!AG378 -> 0 | F180: 0 | H180: =SUM(H181:H189) -> 
B181: Kábel | C181: km | D181: ='8. Prístupová sieť'!E401 ->  | E181: ='0. Hlavné vstupy'!AG379 -> 0 | G181: ='5. Jednotkové investície & Opex'!$G$78 -> 0 | H181: =F181*G181 -> 
B182: =B172 -> Link 2 Mbit/s | C182: # linkov | D182: ='8. Prístupová sieť'!E421 -> 0 | E182: ='0. Hlavné vstupy'!AG380 -> 0 | F182: 0 | G182: ='5. Jednotkové investície & Opex'!$G$79 -> 0 | H182: 0
B183: =B173 -> Link 8 Mbit/s | C183: # linkov | D183: ='8. Prístupová sieť'!E422 -> 0 | E183: ='0. Hlavné vstupy'!AG381 -> 0 | F183: 0 | G183: ='5. Jednotkové investície & Opex'!$G$80 -> 0 | H183: 0
B184: Link 32 Mbit/s | C184: # linkov | D184: ='8. Prístupová sieť'!E423 -> 0 | E184: ='0. Hlavné vstupy'!AG382 -> 0 | F184: 0 | G184: ='5. Jednotkové investície & Opex'!$G$81 -> 0 | H184: 0
B185: Link 128 Mbit/s | C185: # linkov | D185: ='8. Prístupová sieť'!E424 -> 0 | E185: ='0. Hlavné vstupy'!AG383 -> 0 | F185: 0 | G185: ='5. Jednotkové investície & Opex'!$G$82 -> 0 | H185: 0
B186: =B176 -> Link STM-1 | C186: # linkov | D186: ='8. Prístupová sieť'!E425 -> 0 | E186: ='0. Hlavné vstupy'!AG384 -> 0 | F186: 0 | G186: ='5. Jednotkové investície & Opex'!$G$79 -> 0 | H186: 0
B187: Link STM-4 | C187: # linkov | D187: ='8. Prístupová sieť'!E426 -> 0 | E187: ='0. Hlavné vstupy'!AG385 -> 0 | F187: 0 | G187: ='5. Jednotkové investície & Opex'!$G$80 -> 0 | H187: 0
B188: Link STM-16 | C188: # linkov | D188: ='8. Prístupová sieť'!E427 -> 0 | E188: ='0. Hlavné vstupy'!AG386 -> 0 | F188: 0 | G188: ='5. Jednotkové investície & Opex'!$G$81 -> 0 | H188: 0
B189: Link STM-64 | C189: # linkov | D189: ='8. Prístupová sieť'!E428 -> 0 | E189: ='0. Hlavné vstupy'!AG387 -> 0 | F189: 0 | G189: ='5. Jednotkové investície & Opex'!$G$82 -> 0 | H189: 0
B190: =B127 -> Spoje chrbticovej siete | E190: ='0. Hlavné vstupy'!AG388 -> 0 | F190: 0 | G190: =SUM(G191:G199) -> 0 | H190: =SUM(H191:H199) -> 0
B191: Kábel | C191: km | D191: ='10. Chrbticová sieť'!N171 -> 0 | E191: ='0. Hlavné vstupy'!AG389 -> 0 | F191: 0 | G191: ='5. Jednotkové investície & Opex'!$G$78 -> 0 | H191: =F191*G191 -> 0
B192: =B172 -> Link 2 Mbit/s | C192: # linkov | E192: ='0. Hlavné vstupy'!AG390 -> 0 | F192: 0 | G192: ='5. Jednotkové investície & Opex'!$G$79 -> 0 | H192: 0
B193: =B173 -> Link 8 Mbit/s | C193: # linkov | E193: ='0. Hlavné vstupy'!AG391 -> 0 | F193: 0 | G193: ='5. Jednotkové investície & Opex'!$G$80 -> 0 | H193: 0
B194: Link 32 Mbit/s | C194: # linkov | E194: ='0. Hlavné vstupy'!AG392 -> 0 | F194: 0 | G194: ='5. Jednotkové investície & Opex'!$G$81 -> 0 | H194: 0
B195: Link 128 Mbit/s | C195: # linkov | E195: ='0. Hlavné vstupy'!AG393 -> 0 | F195: 0 | G195: ='5. Jednotkové investície & Opex'!$G$82 -> 0 | H195: 0
B196: Link STM-1 | C196: # linkov | D196: ='10. Chrbticová sieť'!N176 -> 10 | E196: ='0. Hlavné vstupy'!AG394 -> 0 | F196: 10 | G196: ='5. Jednotkové investície & Opex'!$G$79 -> 0 | H196: 0
B197: Link STM-4 | C197: # linkov | E197: ='0. Hlavné vstupy'!AG395 -> 0 | F197: 0 | G197: ='5. Jednotkové investície & Opex'!$G$80 -> 0 | H197: 0
B198: Link STM-16 | C198: # linkov | E198: ='0. Hlavné vstupy'!AG396 -> 0 | F198: 0 | G198: ='5. Jednotkové investície & Opex'!$G$81 -> 0 | H198: 0
B199: Link STM-64 | C199: # linkov | E199: ='0. Hlavné vstupy'!AG397 -> 0 | F199: 0 | G199: ='5. Jednotkové investície & Opex'!$G$82 -> 0 | H199: 0
B202: Sumarizácia prenosových nákladov | C202: Vlastnené | D202: Prenajaté | E202: Celkom
C203: =SUM(C204:C208) ->  | D203: =SUM(D204:D208) -> 0 | E203: =SUM(E204:E208) -> 
B204: BTS - BSC | C204: =C159 ->  | D204: =$G$170*G153 -> 0 | E204: =SUM(C204:D204) -> 
B205: NodeB - RNC | C205: =C160 ->  | D205: =$G$170*G154 -> 0 | E205: =SUM(C205:D205) -> 
B206: BSC - MGW | C206: =C161 ->  | D206: =$G$180*G153 -> 0 | E206: =SUM(C206:D206) -> 
B207: RNC - MGW | C207: =C162 ->  | D207: =$G$180*G154 -> 0 | E207: =SUM(C207:D207) -> 
B208: MGW - MGW | C208: =C163 ->  | D208: =G190 -> 0 | E208: =SUM(C208:D208) -> 
A210: 11.7 Náklady na prenajaté lokácie
B212: Meno aktíva | C212: Jednotka množstva | D212: Dimenzovaný počet | E212: Skutočný počet | F212: Zvolené množstvo | G212: Cena prenájmu | H212: Celkové náklady prenájmu
G213: EUR | H213: =H214 -> 
B214: ='1. Prevodník'!$C$49 -> Access Sites | C214: # prenajatých lokácií | D214: ='7a. Radiová sieť 2G'!G197 ->  | E214: ='0. Hlavné vstupy'!AG412 -> 0 | F214: =IF($C$12="Model teoretického operátora",D214,E214) ->  | G214: ='5. Jednotkové investície & Opex'!F75 ->  | H214: =F214*G214 -> 
B215: ='1. Prevodník'!$C$49 -> Access Sites | C215: # leased land plots | D215: ='7a. Radiová sieť 2G'!G200 ->  | E215: 400 | F215: =IF($C$12="Bottom-up",D215,E215) -> 400 | G215: ='5. Jednotkové investície & Opex'!#REF! ->  | H215: =F215*G215 -> 
A218: 11.8 Alokácia nákladov
B220: Zariadenie | C220: Total Costs | D220: ='3. Smerovacie faktory'!C8 -> Access Sites | E220: ='3. Smerovacie faktory'!D8 -> BTS | F220: ='3. Smerovacie faktory'!E8 -> BSC | G220: ='3. Smerovacie faktory'!F8 -> Node B | H220: ='3. Smerovacie faktory'!G8 -> RNC | I220: ='3. Smerovacie faktory'!H8 -> eNode B | J220: ='3. Smerovacie faktory'!I8 -> HLR | K220: ='3. Smerovacie faktory'!J8 -> MSS | L220: ='3. Smerovacie faktory'!K8 -> MGW | M220: ='3. Smerovacie faktory'!L8 -> BTS - BSC | N220: ='3. Smerovacie faktory'!M8 -> Node B - RNC | O220: ='3. Smerovacie faktory'!N8 -> eNode B - GGSN-MGW | P220: ='3. Smerovacie faktory'!O8 -> BSC - MGW | Q220: ='3. Smerovacie faktory'!P8 -> RNC - MGW | R220: ='3. Smerovacie faktory'!Q8 -> MGW - MGW | S220: ='3. Smerovacie faktory'!R8 -> Mobile voicemail platform | T220: ='3. Smerovacie faktory'!S8 -> SMSC Platform | U220: ='3. Smerovacie faktory'!T8 -> MMSC Platform | V220: ='3. Smerovacie faktory'!U8 -> Intelligent Network | W220: ='3. Smerovacie faktory'!V8 -> SGSN Platform | X220: ='3. Smerovacie faktory'!W8 -> GGSN Platform | Y220: ='3. Smerovacie faktory'!X8 -> Interconnection | Z220: C_CostAllocation
C221: =SUM(C222:C248) ->  | D221: =SUM(D222:D248) ->  | I221: 0 | O221: 0 | R221: =SUM(R222:R248) ->  | Y221: 0
B222: =B60 -> Radio Access Sites - strecha | C222: =S60+H214 ->  | D222: =C222 -> 
B223: Radio Access Sites - samostatný pylón | C223: =S61 -> 0 | E223: =C223 -> 0
B224: BTS Cabinet | E224: =C224 -> 
B225: TRX 2G | E225: =C225 -> 
B226: BSC | F226: =C226 -> 
B227: NodeB Cabinet | G227: =C227 -> 
B228: NodeB Carrier | G228: =C228 -> 
B229: NodeB Channel Kit | G229: =C229 -> 
B230: =B68 -> NodeB HSPA Upgrade | G230: =C230 -> 
B231: eNode B | C231: 0 | I231: =C231 -> 0
B232: RNC | H232: =C232 -> 
B233: HLR | J233: =C233 -> 
B234: MSS | K234: =C234 -> 
B235: MGW | L235: =C235 -> 
B236: =B74 -> Mobile voicemail platform | C236: =S74 ->  | S236: =C236 -> 
B237: SMS Centrum | T237: =C237 -> 
B238: MMS Centrum | U238: =C238 -> 
B239: Intelligent Network | V239: =C239 -> 
B240: SGSN Platform | W240: =C240 -> 
B241: GGSN Platform | X241: =C241 -> 
B242: Interconnection | C242: 0 | Y242: =C242 -> 0
B243: 0 | C243: 0
B244: =B204 -> BTS - BSC | C244: =E204 ->  | M244: =C244 -> 
B245: =B205 -> NodeB - RNC | C245: =E205 ->  | N245: =C245 -> 
B246: =B206 -> BSC - MGW | C246: =E206 ->  | P246: =C246 -> 
B247: =B207 -> RNC - MGW | C247: =E207 ->  | Q247: =C247 -> 
B248: =B208 -> MGW - MGW | C248: =E208 ->  | R248: =C248 -> 
B250: Kontrolný riadok | C250: =H213+E203+S59-C221 -> 
A253: 11.9 Sumarizácia
B255: Sieťový prvok | C255: Celkové náklady bez alokácie licence | D255: Alokácia licenčných nákladov | E255: Celkové náklady vrátane licenčných nákladov
... 30 more rows

Sheet 10. Chrbticová sieť
A1: 10. Dimenzovanie chrbticovej prenosovej siete
A3: Popis
A4: Výpočet dimenzovania chrbticovej prístupovej siete
A6: Vstupy z predchádzajúcich kalkulácií
A8: 10.1 Chrbticová prenosová sieť - základné dáta
B10: Vstupné údaje | C10: Jednotky | D10: Hodnota
B11: IP chrbticové zariadenie - využitie portu | C11: % | D11: =I_CapPlan_Trans_Core -> 
B12: Access switch - minimum na core node | C12: # | D12: ='4. Parametre dimenzovania siete'!C198 -> 2
B13: Access switch - maximum # celkový počet kariet na switch | C13: # | D13: =MAX('4. Parametre dimenzovania siete'!D183:D184) -> 0
B14: Access switch - minimum # zariadení - karty na switch | C14: # | D14: 1
B15: Edge Router - minimum na core node | C15: # | D15: ='4. Parametre dimenzovania siete'!C199 -> 4
B16: Edge Router - maximum # kariet na router | C16: # | D16: =MAX('4. Parametre dimenzovania siete'!D186:D186) -> 0
B17: Minimálny počet core spojov medzi lokáciami | C17: # | D17: ='4. Parametre dimenzovania siete'!C200 -> 2
B18: IP Bandwidth per 1 voice erlang / channel | C18: Mbps | D18: 0.095 | E18: Industry benchmark: in the range 30-120 kbps
B20: IP Switch typ karty | C20: Kapacita (mbps) | D20: Porty na sieťovú kartu | E20: Hraničná kapacita (mbps)
B21: ='4. Parametre dimenzovania siete'!B189 -> 1 Gbps card | C21: ='4. Parametre dimenzovania siete'!C189 -> 1000 | D21: ='4. Parametre dimenzovania siete'!D189 -> 2 | E21: ='4. Parametre dimenzovania siete'!E189 -> 10000
B22: ='4. Parametre dimenzovania siete'!B190 -> 100 Mbps card | C22: ='4. Parametre dimenzovania siete'!C190 -> 100 | D22: ='4. Parametre dimenzovania siete'!D190 -> 12 | E22: ='4. Parametre dimenzovania siete'!E190 -> 400
B23: ='4. Parametre dimenzovania siete'!B191 -> 100 Mbps card | C23: ='4. Parametre dimenzovania siete'!C191 -> 100 | D23: ='4. Parametre dimenzovania siete'!D191 -> 4 | E23: ='4. Parametre dimenzovania siete'!E191 -> 400
B25: IP Router typ portu | C25: Kapacita (mbps) | D25: Porty na sieťovú kartu | E25: Hraničná kapacita (mbps)
B26: ='4. Parametre dimenzovania siete'!B194 -> 1 Gbps card | C26: ='4. Parametre dimenzovania siete'!C194 -> 1000 | D26: ='4. Parametre dimenzovania siete'!D194 -> 2 | E26: ='4. Parametre dimenzovania siete'!E194 -> 10000
B27: ='4. Parametre dimenzovania siete'!B195 -> 100 Mbps card | C27: ='4. Parametre dimenzovania siete'!C195 -> 100 | D27: ='4. Parametre dimenzovania siete'!D195 -> 4 | E27: ='4. Parametre dimenzovania siete'!E195 -> 400
A29: 10.2 Kapacitné vstupné údaje
B31: Kapacita | C31: Jednotky | D31: Kapacita
B32: Mbps na E1 | C32: Mbps | D32: 2.048
B33: E1s na STM-1 | C33: E1 | D33: 63
B35: ADMs | C35: E1 Kapacita | D35: Mbps kapacita
B36: ='4. Parametre dimenzovania siete'!$B$285 -> Link STM-64 | C36: =VLOOKUP($B36,I_Link_Capacity,4,0) -> 4032 | D36: =VLOOKUP($B36,I_Link_Capacity,3,0) -> 9953.28
B37: ='4. Parametre dimenzovania siete'!$B$284 -> Link STM-16 | C37: =VLOOKUP($B37,I_Link_Capacity,4,0) -> 1008 | D37: =VLOOKUP($B37,I_Link_Capacity,3,0) -> 2488.32
B38: ='4. Parametre dimenzovania siete'!$B$283 -> Link STM-4 | C38: =VLOOKUP($B38,I_Link_Capacity,4,0) -> 252 | D38: =VLOOKUP($B38,I_Link_Capacity,3,0) -> 622.08
B39: ='4. Parametre dimenzovania siete'!$B$282 -> Link STM-1 | C39: =VLOOKUP($B39,I_Link_Capacity,4,0) -> 63 | D39: =VLOOKUP($B39,I_Link_Capacity,3,0) -> 155.52
B40: Žiadny | C40: 0 | D40: 0
B42: Výber portu - Ethernet
B43: Typ portu | C43: Kapacita (mbps) | D43: Zvolený limit(mbps)
B44: Remote - connected to IP router | C44: 60 | D44: 60
B45: Remote - connected directly to SGSN | C45: 26 | D45: 26
A47: 10.3 Chrbticový prenosový dopyt podľa druhu
B49: Vstup prevádzky na BSC | C49: Jednotky | D49: Bratislava 1 | E49: Bratislava 2 | F49: Košice 1 | G49: Košice 2 | H49: Trnava | I49: Nitra | J49: Trenčín | K49: Žilina | L49: Banská Bystrica | M49: Prešov | N49: Celkom
B50: Počet BSC/RNC | C50: # | D50: ='7a. Radiová sieť 2G'!D213+'7b. Radiová sieť 3G'!D199 ->  | E50: ='7a. Radiová sieť 2G'!E213+'7b. Radiová sieť 3G'!E199 ->  | F50: ='7a. Radiová sieť 2G'!F213+'7b. Radiová sieť 3G'!F199 ->  | G50: ='7a. Radiová sieť 2G'!G213+'7b. Radiová sieť 3G'!G199 ->  | H50: ='7a. Radiová sieť 2G'!H213+'7b. Radiová sieť 3G'!H199 ->  | I50: ='7a. Radiová sieť 2G'!I213+'7b. Radiová sieť 3G'!I199 ->  | J50: ='7a. Radiová sieť 2G'!J213+'7b. Radiová sieť 3G'!J199 ->  | K50: ='7a. Radiová sieť 2G'!K213+'7b. Radiová sieť 3G'!K199 ->  | L50: ='7a. Radiová sieť 2G'!L213+'7b. Radiová sieť 3G'!L199 ->  | M50: ='7a. Radiová sieť 2G'!M213+'7b. Radiová sieť 3G'!N199 ->  | N50: =SUM(D50:M50) -> 
B51: Pomer prevádzky | C51: % | D51: ='4. Parametre dimenzovania siete'!C72 ->  | E51: ='4. Parametre dimenzovania siete'!D72 ->  | F51: ='4. Parametre dimenzovania siete'!E72 ->  | G51: ='4. Parametre dimenzovania siete'!F72 ->  | H51: ='4. Parametre dimenzovania siete'!G72 ->  | I51: ='4. Parametre dimenzovania siete'!H72 ->  | J51: ='4. Parametre dimenzovania siete'!I72 ->  | K51: ='4. Parametre dimenzovania siete'!J72 ->  | L51: ='4. Parametre dimenzovania siete'!K72 ->  | M51: ='4. Parametre dimenzovania siete'!L72 ->  | N51: =SUM(D51:M51) -> 
B53: Chrbticový prenosový dopyt | C53: % | D53: ='6. NE Dopyt'!P128 -> 
B55: Dopyt podľa druhu | C55: Jednotky | D55: Bratislava 1 | E55: Bratislava 2 | F55: Košice 1 | G55: Košice 2 | H55: Trnava | I55: Nitra | J55: Trenčín | K55: Žilina | L55: Banská Bystrica | M55: Prešov | N55: Celkom
B56: Celkem BHE na Core backhaul | C56: Erlang | D56: =$D$53*D51 ->  | N56: =SUM(D56:M56) -> 
B57: Celkem BHE na Core backhaul, úprava využiteľnosti | C57: Erlang | D57: =D56/$D$11 ->  | N57: =SUM(D57:M57) -> 
B58: Mbps dopyt po Core backhaul | C58: Mbps | D58: =D57*$D$18 ->  | N58: =SUM(D58:M58) -> 
B59: Pomer spojov do Network Centra využitím káblu | C59: % | D59: ='4. Parametre dimenzovania siete'!C270 -> 0 | E59: ='4. Parametre dimenzovania siete'!D270 -> 0 | F59: ='4. Parametre dimenzovania siete'!E270 -> 0 | G59: ='4. Parametre dimenzovania siete'!F270 -> 0 | H59: ='4. Parametre dimenzovania siete'!G270 -> 0 | I59: ='4. Parametre dimenzovania siete'!H270 -> 0 | J59: ='4. Parametre dimenzovania siete'!I270 -> 0 | K59: ='4. Parametre dimenzovania siete'!J270 -> 0 | L59: ='4. Parametre dimenzovania siete'!K270 -> 0 | M59: ='4. Parametre dimenzovania siete'!L270 -> 0 | N59: =SUMPRODUCT(D59:M59,$D$58:$M$58)/SUM($D$58:$M$58) -> 
B60: Pomer spojov do Network Centra využitím prenajatých spojov | C60: % | D60: ='4. Parametre dimenzovania siete'!C271 -> 0 | E60: ='4. Parametre dimenzovania siete'!D271 -> 0 | F60: ='4. Parametre dimenzovania siete'!E271 -> 0 | G60: ='4. Parametre dimenzovania siete'!F271 -> 0 | H60: ='4. Parametre dimenzovania siete'!G271 -> 0 | I60: ='4. Parametre dimenzovania siete'!H271 -> 0 | J60: ='4. Parametre dimenzovania siete'!I271 -> 0 | K60: ='4. Parametre dimenzovania siete'!J271 -> 0 | L60: ='4. Parametre dimenzovania siete'!K271 -> 0 | M60: ='4. Parametre dimenzovania siete'!L271 -> 0 | N60: =SUMPRODUCT(D60:M60,$D$58:$M$58)/SUM($D$58:$M$58) -> 
B61: Káblová vzdialenosť do Network Centre | C61: km | D61: ='4. Parametre dimenzovania siete'!C249 -> 0 | E61: ='4. Parametre dimenzovania siete'!D249 -> 0 | F61: ='4. Parametre dimenzovania siete'!E249 -> 0 | G61: ='4. Parametre dimenzovania siete'!F249 -> 0 | H61: ='4. Parametre dimenzovania siete'!G249 -> 0 | I61: ='4. Parametre dimenzovania siete'!H249 -> 0 | J61: ='4. Parametre dimenzovania siete'!I249 -> 0 | K61: ='4. Parametre dimenzovania siete'!J249 -> 0 | L61: ='4. Parametre dimenzovania siete'!K249 -> 0 | M61: ='4. Parametre dimenzovania siete'!L249 -> 0 | N61: =SUM(D61:M61) -> 0
B63: Prenajaté okruhy (kábel) % z celkového použitého káblu | C63: % | D63: ='4. Parametre dimenzovania siete'!F207 -> 0
A65: 10.4 Požiadavky na port na Core Node
B67: Zariadenie vyžadujúce port spojenia - na základe aktuálnej topológie | C67: Jednotky | D67: Bratislava 1 | E67: Bratislava 2 | F67: Košice 1 | G67: Košice 2 | H67: Trnava | I67: Nitra | J67: Trenčín | K67: Žilina | L67: Banská Bystrica | M67: Prešov | N67: Celkom
B68: Počet Core Node na pripojenie na Network Center | C68: # | D68: =SUM('4. Parametre dimenzovania siete'!C68:C70) -> 0 | E68: =SUM('4. Parametre dimenzovania siete'!D68:D70) -> 0 | F68: =SUM('4. Parametre dimenzovania siete'!E68:E70) -> 0 | G68: =SUM('4. Parametre dimenzovania siete'!F68:F70) -> 0 | H68: =SUM('4. Parametre dimenzovania siete'!G68:G70) -> 0 | I68: =SUM('4. Parametre dimenzovania siete'!H68:H70) -> 0 | J68: =SUM('4. Parametre dimenzovania siete'!I68:I70) -> 0 | K68: =SUM('4. Parametre dimenzovania siete'!J68:J70) -> 0 | L68: =SUM('4. Parametre dimenzovania siete'!K68:K70) -> 0 | M68: =SUM('4. Parametre dimenzovania siete'!L68:L70) -> 0 | N68: =SUM(D68:M68) -> 0
B69: Network Center | C69: # | D69: ='4. Parametre dimenzovania siete'!C160 -> 0 | E69: ='4. Parametre dimenzovania siete'!D160 -> 0 | F69: ='4. Parametre dimenzovania siete'!E160 -> 0 | G69: ='4. Parametre dimenzovania siete'!F160 -> 0 | H69: ='4. Parametre dimenzovania siete'!G160 -> 0 | I69: ='4. Parametre dimenzovania siete'!H160 -> 0 | J69: ='4. Parametre dimenzovania siete'!I160 -> 0 | K69: ='4. Parametre dimenzovania siete'!J160 -> 0 | L69: ='4. Parametre dimenzovania siete'!K160 -> 0 | M69: ='4. Parametre dimenzovania siete'!L160 -> 0 | N69: =SUM(D69:M69) -> 0
B70: PoI (prepojenie) | C70: # | D70: ='4. Parametre dimenzovania siete'!C169 -> 0 | E70: ='4. Parametre dimenzovania siete'!D169 -> 0 | F70: ='4. Parametre dimenzovania siete'!E169 -> 0 | G70: ='4. Parametre dimenzovania siete'!F169 -> 0 | H70: ='4. Parametre dimenzovania siete'!G169 -> 0 | I70: ='4. Parametre dimenzovania siete'!H169 -> 0 | J70: ='4. Parametre dimenzovania siete'!I169 -> 0 | K70: ='4. Parametre dimenzovania siete'!J169 -> 0 | L70: ='4. Parametre dimenzovania siete'!K169 -> 0 | M70: ='4. Parametre dimenzovania siete'!L169 -> 0 | N70: =SUM(D70:M70) -> 0
B71: Maintenance / monitoring ports | C71: # | D71: ='4. Parametre dimenzovania siete'!C170 -> 0 | E71: ='4. Parametre dimenzovania siete'!D170 -> 0 | F71: ='4. Parametre dimenzovania siete'!E170 -> 0 | G71: ='4. Parametre dimenzovania siete'!F170 -> 0 | H71: ='4. Parametre dimenzovania siete'!G170 -> 0 | I71: ='4. Parametre dimenzovania siete'!H170 -> 0 | J71: ='4. Parametre dimenzovania siete'!I170 -> 0 | K71: ='4. Parametre dimenzovania siete'!J170 -> 0 | L71: ='4. Parametre dimenzovania siete'!K170 -> 0 | M71: ='4. Parametre dimenzovania siete'!L170 -> 0 | N71: =SUM(D71:M71) -> 0
B73: Zariadenie vyžadujúce port spojenia - na základe dimenzovanej topológie | C73: Jednotky | D73: Bratislava 1 | E73: Bratislava 2 | F73: Košice 1 | G73: Košice 2 | H73: Trnava | I73: Nitra | J73: Trenčín | K73: Žilina | L73: Banská Bystrica | M73: Prešov | N73: Celkom
B74: ='9. Ostatné NE'!B121 -> Home Location Register (HLR) | C74: # | D74: ='9. Ostatné NE'!E121 ->  | E74: ='9. Ostatné NE'!F121 ->  | F74: ='9. Ostatné NE'!G121 ->  | G74: ='9. Ostatné NE'!H121 ->  | H74: ='9. Ostatné NE'!I121 ->  | I74: ='9. Ostatné NE'!J121 ->  | J74: ='9. Ostatné NE'!K121 ->  | K74: ='9. Ostatné NE'!L121 ->  | L74: ='9. Ostatné NE'!M121 ->  | M74: ='9. Ostatné NE'!N121 ->  | N74: =SUM(D74:M74) -> 
B75: ='9. Ostatné NE'!B122 -> Voicemail platform | C75: # | D75: ='9. Ostatné NE'!E122 ->  | E75: ='9. Ostatné NE'!F122 ->  | F75: ='9. Ostatné NE'!G122 ->  | G75: ='9. Ostatné NE'!H122 ->  | H75: ='9. Ostatné NE'!I122 ->  | I75: ='9. Ostatné NE'!J122 ->  | J75: ='9. Ostatné NE'!K122 ->  | K75: ='9. Ostatné NE'!L122 ->  | L75: ='9. Ostatné NE'!M122 ->  | M75: ='9. Ostatné NE'!N122 ->  | N75: =SUM(D75:M75) -> 
B76: ='9. Ostatné NE'!B123 -> SMSC platform | C76: # | D76: ='9. Ostatné NE'!E123 ->  | E76: ='9. Ostatné NE'!F123 ->  | F76: ='9. Ostatné NE'!G123 ->  | G76: ='9. Ostatné NE'!H123 ->  | H76: ='9. Ostatné NE'!I123 ->  | I76: ='9. Ostatné NE'!J123 ->  | J76: ='9. Ostatné NE'!K123 ->  | K76: ='9. Ostatné NE'!L123 ->  | L76: ='9. Ostatné NE'!M123 ->  | M76: ='9. Ostatné NE'!N123 -> 
B77: ='9. Ostatné NE'!B124 -> MMSC platform | C77: # | D77: ='9. Ostatné NE'!E124 ->  | E77: ='9. Ostatné NE'!F124 ->  | F77: ='9. Ostatné NE'!G124 ->  | G77: ='9. Ostatné NE'!H124 ->  | H77: ='9. Ostatné NE'!I124 ->  | I77: ='9. Ostatné NE'!J124 ->  | J77: ='9. Ostatné NE'!K124 ->  | K77: ='9. Ostatné NE'!L124 ->  | L77: ='9. Ostatné NE'!M124 ->  | M77: ='9. Ostatné NE'!N124 -> 
B78: ='9. Ostatné NE'!B125 -> Mobile IN | C78: # | D78: ='9. Ostatné NE'!E125 ->  | E78: ='9. Ostatné NE'!F125 ->  | F78: ='9. Ostatné NE'!G125 ->  | G78: ='9. Ostatné NE'!H125 ->  | H78: ='9. Ostatné NE'!I125 ->  | I78: ='9. Ostatné NE'!J125 ->  | J78: ='9. Ostatné NE'!K125 ->  | K78: ='9. Ostatné NE'!L125 ->  | L78: ='9. Ostatné NE'!M125 ->  | M78: ='9. Ostatné NE'!N125 -> 
B79: ='9. Ostatné NE'!B126 -> SGSN Platform | C79: # | D79: ='9. Ostatné NE'!E126 ->  | E79: ='9. Ostatné NE'!F126 ->  | F79: ='9. Ostatné NE'!G126 ->  | G79: ='9. Ostatné NE'!H126 ->  | H79: ='9. Ostatné NE'!I126 ->  | I79: ='9. Ostatné NE'!J126 ->  | J79: ='9. Ostatné NE'!K126 ->  | K79: ='9. Ostatné NE'!L126 ->  | L79: ='9. Ostatné NE'!M126 ->  | M79: ='9. Ostatné NE'!N126 -> 
B80: ='9. Ostatné NE'!B127 -> GGSN Platform | C80: # | D80: ='9. Ostatné NE'!E127 ->  | E80: ='9. Ostatné NE'!F127 ->  | F80: ='9. Ostatné NE'!G127 ->  | G80: ='9. Ostatné NE'!H127 ->  | H80: ='9. Ostatné NE'!I127 ->  | I80: ='9. Ostatné NE'!J127 ->  | J80: ='9. Ostatné NE'!K127 ->  | K80: ='9. Ostatné NE'!L127 ->  | L80: ='9. Ostatné NE'!M127 ->  | M80: ='9. Ostatné NE'!N127 -> 
B81: Celkové požiadavky na port | C81: # | D81: =SUM(D68:D80) ->  | N81: =SUM(D81:M81) -> 
B83: Switch na lokácii | C83: # | D83: ='9. Ostatné NE'!E104 ->  | E83: ='9. Ostatné NE'!F104 ->  | F83: ='9. Ostatné NE'!G104 ->  | G83: ='9. Ostatné NE'!H104 ->  | H83: ='9. Ostatné NE'!I104 ->  | I83: ='9. Ostatné NE'!J104 ->  | J83: ='9. Ostatné NE'!K104 ->  | K83: ='9. Ostatné NE'!L104 ->  | L83: ='9. Ostatné NE'!M104 ->  | M83: ='9. Ostatné NE'!N104 ->  | N83: =SUM(D83:M83) -> 
A90: Výpočet
A92: 10.5 Access Switches dimenzovanie (prepája RAN/MGW na Router v IP Backbone)
B94: Počet portov pripájajúcich chrbticové zariadenia | C94: Jednotky | D94: Bratislava 1 | E94: Bratislava 2 | F94: Košice 1 | G94: Košice 2 | H94: Trnava | I94: Nitra | J94: Trenčín | K94: Žilina | L94: Banská Bystrica | M94: Prešov | N94: Celkom
B95: Kapacita MGW zariadenia na porty | C95: Gbps | D95: =INDEX($B$21:$B$23,MATCH(D58,$E$21:$E$23,-1)) ->  | K95: =INDEX($B$21:$B$23,MATCH(K58,$E$21:$E$23,-1)) ->  | L95: =INDEX($B$21:$B$23,MATCH(L58,$E$21:$E$23,-1)) ->  | M95: =INDEX($B$21:$B$23,MATCH(M58,$E$21:$E$23,-1)) ->  | N95: =SUM(D95:M95) -> 
B96: Access switch porty požadované (kapacita prevádzky z MGW) | C96: # portov | D96: =IF(D95=0,0,ROUNDUP(D58/VLOOKUP(D95,$B$20:$E$23,2,0),0)) ->  | K96: =IF(K95=0,0,ROUNDUP(K58/VLOOKUP(K95,$B$20:$E$23,2,0),0)) ->  | L96: =IF(L95=0,0,ROUNDUP(L58/VLOOKUP(L95,$B$20:$E$23,2,0),0)) ->  | M96: =IF(M95=0,0,ROUNDUP(M58/VLOOKUP(M95,$B$20:$E$23,2,0),0)) ->  | N96: =SUM(D96:M96) -> 
B97: Kapacita z ostatných chrbticových platforiem na porty | C97: Gbps | D97: =$B$22 -> 100 Mbps card | E97: 100 Mbps card | F97: 100 Mbps card | G97: 100 Mbps card | H97: 100 Mbps card | I97: 100 Mbps card | J97: 100 Mbps card | K97: 100 Mbps card | L97: 100 Mbps card | M97: 100 Mbps card | N97: =SUM(D97:M97) -> 0 | O97: PwC Assumption: lower capacity cards used for core platforms
B98: Dodatočné porty | C98: # portov | D98: =D81+D$83 ->  | K98: =K81+K$83 ->  | L98: =L81+L$83 ->  | M98: =M81+M$83 ->  | N98: =SUM(D98:M98) -> 
B99: Access switch porty požadované (na všetky zariadenia siete) | C99: # portov | D99: =D96+D98 ->  | K99: =K96+K98 ->  | L99: =L96+L98 ->  | M99: =M96+M98 ->  | N99: =SUM(D99:M99) -> 
B101: Počet portov na ostatné Core Nodes | C101: Jednotky | D101: Bratislava 1 | E101: Bratislava 2 | F101: Košice 1 | G101: Košice 2 | H101: Trnava | I101: Nitra | J101: Trenčín | K101: Žilina | L101: Banská Bystrica | M101: Prešov | N101: Celkom
B102: Kapacita network facing portov | C102: Gbps | D102: =INDEX($B$21:$B$23,MATCH(D58,$E$21:$E$23,-1)) ->  | N102: =SUM(D102:M102) -> 
B103: Počet network facing portov | C103: # portov | D103: =IF(D102=0,0,ROUNDUP(D58/VLOOKUP(D102,$B$20:$E$23,2,0),0)) ->  | N103: =SUM(D103:M103) -> 
B105: Počet požadovaných kariet | C105: Jednotky | D105: Bratislava 1 | E105: Bratislava 2 | F105: Košice 1 | G105: Košice 2 | H105: Trnava | I105: Nitra | J105: Trenčín | K105: Žilina | L105: Banská Bystrica | M105: Prešov | N105: Celkom
B106: Access switch karty na switch prepájacie zariadenie | C106: # kariet | D106: =IF(D99=0,0,MAX(ROUNDUP(D99/VLOOKUP(D95,$B$20:$E$23,3,0),0),$D$14)) ->  | J106: =IF(J99=0,0,MAX(ROUNDUP(J99/VLOOKUP(J95,$B$20:$E$23,3,0),0),$D$14)) ->  | K106: =IF(K99=0,0,MAX(ROUNDUP(K99/VLOOKUP(K95,$B$20:$E$23,3,0),0),$D$14)) ->  | L106: =IF(L99=0,0,MAX(ROUNDUP(L99/VLOOKUP(L95,$B$20:$E$23,3,0),0),$D$14)) ->  | M106: =IF(M99=0,0,MAX(ROUNDUP(M99/VLOOKUP(M95,$B$20:$E$23,3,0),0),$D$14)) ->  | N106: =SUM(D106:M106) -> 
B107: Network facing Access switch karty na switch | C107: # kariet | D107: =IF(D103=0,0,ROUNDUP(D103/VLOOKUP(D102,$B$20:$E$23,3,0),0)) ->  | K107: =IF(K103=0,0,ROUNDUP(K103/VLOOKUP(K102,$B$20:$E$23,3,0),0)) ->  | L107: =IF(L103=0,0,ROUNDUP(L103/VLOOKUP(L102,$B$20:$E$23,3,0),0)) ->  | M107: =IF(M103=0,0,ROUNDUP(M103/VLOOKUP(M102,$B$20:$E$23,3,0),0)) ->  | N107: =SUM(D107:M107) -> 
B108: Počet požadovaných kariet na switch | C108: # kariet | D108: =SUM(D106:D107) ->  | K108: =SUM(K106:K107) ->  | L108: =SUM(L106:L107) ->  | M108: =SUM(M106:M107) ->  | N108: =SUM(D108:M108) -> 
B110: Počet požadovaných Access Switchov | C110: Jednotky | D110: Bratislava 1 | E110: Bratislava 2 | F110: Košice 1 | G110: Košice 2 | H110: Trnava | I110: Nitra | J110: Trenčín | K110: Žilina | L110: Banská Bystrica | M110: Prešov | N110: Celkom
B111: Access switch racks - na základe kapacity | C111: # switchov | D111: =IF(D108=0,0,ROUNDUP((D108)/$D$13,0)) ->  | N111: =SUM(D111:M111) -> 
B112: Access switch racks - na základe funkcie | C112: # switchov | D112: =IF(D108=0,0,MAX(D111,$D$12)) ->  | N112: =SUM(D112:M112) -> 
A114: 10.6 Edge Routers dimenzovanie (súčasť IP Backbone)
B116: Počet portov spájajúcich Access Switche | C116: Jednotky | D116: Bratislava 1 | E116: Bratislava 2 | F116: Košice 1 | G116: Košice 2 | H116: Trnava | I116: Nitra | J116: Trenčín | K116: Žilina | L116: Banská Bystrica | M116: Prešov | N116: Celkom
B117: Kapacita portov (spájajúcich switch) | C117: Gbps | D117: =D102 ->  | K117: =K102 ->  | N117: =SUM(D117:M117) -> 
B118: Počet portov (spájajúcich switch) na router | C118: # | N118: =SUM(D118:M118) -> 
B120: Počet portov do iných Core Node | C120: Jednotky | D120: Bratislava 1 | E120: Bratislava 2 | F120: Košice 1 | G120: Košice 2 | H120: Trnava | I120: Nitra | J120: Trenčín | K120: Žilina | L120: Banská Bystrica | M120: Prešov | N120: Celkom
B121: Počet sieťových spojov na router | C121: # | D121: =IF(D69=1,COUNTA($D$67:$M$67)-1,SUM($D$69:$M$69)) -> 0 | E121: =IF(E69=1,COUNTA($D$67:$M$67)-1,SUM($D$69:$M$69)) -> 0 | F121: =IF(F69=1,COUNTA($D$67:$M$67)-1,SUM($D$69:$M$69)) -> 0 | G121: 0 | H121: 0 | I121: 0 | J121: 0 | K121: 0 | L121: 0 | M121: 0 | N121: =SUM(D121:M121) -> 0
B122: Kapacita na Core Node | C122: Mbps | D122: =IF(D69=1,D58+SUMPRODUCT(1-$D$69:$M$69,$D$58:$M$58),D58+SUMPRODUCT($D$58:$M$58,$D$69:$M$69)*D51/SUMPRODUCT(1-$D$69:$M$69,$D$51:$M$51)) ->  | E122: =IF(E69=1,E58+SUMPRODUCT(1-$D$69:$M$69,$D$58:$M$58),E58+SUMPRODUCT($D$58:$M$58,$D$69:$M$69)*E51/SUMPRODUCT(1-$D$69:$M$69,$D$51:$M$51)) ->  | O122: For Network Centre: traffic of own location + sum of all other locations. For the other Core Nodes: traffic of own location + share of network center traffic
B123: Kapacita na spojene | C123: Mbps | D123: =D122/D121 ->  | E123: =E122/E121 ->  | K123: =K122/K121 ->  | L123: =L122/L121 ->  | M123: =M122/M121 -> 
B124: Kapacita portu (spájajúci sieť) | C124: Gbps | D124: =INDEX($B$26:$B$27,MATCH(MAX($D$123:$M$123),$E$26:$E$27,-1)) ->  | E124: =INDEX($B$26:$B$27,MATCH(MAX($D$123:$M$123),$E$26:$E$27,-1)) ->  | O124: PwC assumption: The capacity needs to be same size - max size chosen
B125: Počet portov (spájajúcich network center) na router | D125: =IF(D69=1,$N$69-1,D121*ROUNDUP(D123/VLOOKUP(D124,$B$25:$E$27,2,0),0)) ->  | K125: =IF(K69=1,$N$69-1,K121*ROUNDUP(K123/VLOOKUP(K124,$B$25:$E$27,2,0),0)) ->  | L125: =IF(L69=1,$N$69-1,L121*ROUNDUP(L123/VLOOKUP(L124,$B$25:$E$27,2,0),0)) ->  | M125: =IF(M69=1,$N$69-1,M121*ROUNDUP(M123/VLOOKUP(M124,$B$25:$E$27,2,0),0)) -> 
B126: Počet portov (Network facing) na router | C126: # portov | D126: =IF(D69=1,SUM($D$125:$M$125),D125) ->  | E126: =IF(E69=1,SUM($D$125:$M$125),E125) -> 
B128: Požadovaný počet kariet | C128: Jednotky | D128: Bratislava 1 | E128: Bratislava 2 | F128: Košice 1 | G128: Košice 2 | H128: Trnava | I128: Nitra | J128: Trenčín | K128: Žilina | L128: Banská Bystrica | M128: Prešov | N128: Celkom
B129: Počet kariet (switch facing) na router | C129: # kariet | D129: =IF(D118=0,0,ROUNDUP(D118/VLOOKUP(D117,$B$25:$E$27,3,0),0)) ->  | K129: =IF(K118=0,0,ROUNDUP(K118/VLOOKUP(K117,$B$25:$E$27,3,0),0)) ->  | L129: =IF(L118=0,0,ROUNDUP(L118/VLOOKUP(L117,$B$25:$E$27,3,0),0)) ->  | M129: =IF(M118=0,0,ROUNDUP(M118/VLOOKUP(M117,$B$25:$E$27,3,0),0)) ->  | N129: =SUM(D129:M129) -> 
B130: Počet kariet (Network facing) na router | C130: # kariet | D130: =IF(D126=0,0,ROUNDUP(D126/VLOOKUP(D124,$B$25:$E$27,3,0),0)) ->  | K130: =IF(K126=0,0,ROUNDUP(K126/VLOOKUP(K124,$B$25:$E$27,3,0),0)) ->  | L130: =IF(L126=0,0,ROUNDUP(L126/VLOOKUP(L124,$B$25:$E$27,3,0),0)) ->  | M130: =IF(M126=0,0,ROUNDUP(M126/VLOOKUP(M124,$B$25:$E$27,3,0),0)) ->  | N130: =SUM(D130:M130) -> 
B131: Počet požadovaných kariet na switch | C131: # kariet | D131: =SUM(D129:D130) ->  | K131: =SUM(K129:K130) ->  | L131: =SUM(L129:L130) ->  | M131: =SUM(M129:M130) ->  | N131: =SUM(D131:M131) -> 
B133: Počet požadovaných Edge Router | C133: Jednotky | D133: Bratislava 1 | E133: Bratislava 2 | F133: Košice 1 | G133: Košice 2 | H133: Trnava | I133: Nitra | J133: Trenčín | K133: Žilina | L133: Banská Bystrica | M133: Prešov | N133: Celkom
B134: Edge Router racks - na základe kapacity | C134: # router | D134: =IF(D131=0,0,ROUNDUP((D129+D130)/$D$16,0)) ->  | K134: =IF(K131=0,0,ROUNDUP((K129+K130)/$D$16,0)) ->  | L134: =IF(L131=0,0,ROUNDUP((L129+L130)/$D$16,0)) ->  | M134: =IF(M131=0,0,ROUNDUP((M129+M130)/$D$16,0)) ->  | N134: =SUM(D134:M134) -> 
B135: Edge Router racks - na základe funkcie | C135: # router | D135: =IF(D131=0,0,MAX(D134,$D$15)) ->  | K135: =IF(K131=0,0,MAX(K134,$D$15)) ->  | L135: =IF(L131=0,0,MAX(L134,$D$15)) ->  | M135: =IF(M131=0,0,MAX(M134,$D$15)) ->  | N135: =SUM(D135:M135) -> 
A137: 10.7 Prenosový dopyt na spojoch do network center
B139: Dopyt chrbticová prenosová sieť | C139: Jednotky | D139: Bratislava 1 | E139: Bratislava 2 | F139: Košice 1 | G139: Košice 2 | H139: Trnava | I139: Nitra | J139: Trenčín | K139: Žilina | L139: Banská Bystrica | M139: Prešov | N139: Celkom
B140: Počet Core Nodes na spojenie s Network Center | C140: # | D140: =IF(D68=0,0,$N$69-D69) -> 0 | E140: 0 | F140: 0 | G140: 0 | H140: 0 | I140: 0 | J140: 0 | K140: =IF(K68=0,0,$N$69-K69) -> 0 | L140: =IF(L68=0,0,$N$69-L69) -> 0 | M140: =IF(M68=0,0,$N$69-M69) -> 0 | N140: =SUM(D140:M140) -> 0
B141: Prevádzkový dopyt do Network Center | C141: Mbps | D141: =IF(D69=1,0,IF(D140=0,0,D58+SUMPRODUCT($D$58:$M$58,$D$69:$M$69)*D51/SUMPRODUCT(1-$D$69:$M$69,$D$51:$M$51)/D140)) -> 0 | E141: =IF(E69=1,0,IF(E140=0,0,E58+SUMPRODUCT($D$58:$M$58,$D$69:$M$69)*E51/SUMPRODUCT(1-$D$69:$M$69,$D$51:$M$51)/E140)) -> 0 | F141: 0 | G141: 0 | H141: 0 | I141: 0 | J141: 0 | K141: 0 | L141: 0 | M141: 0 | N141: =SUM(D141:M141) -> 0
B143: Dopyt po chrbticových spojoch do Network Center podľa druhu | C143: Jednotky | D143: Bratislava 1 | E143: Bratislava 2 | F143: Košice 1 | G143: Košice 2 | H143: Trnava | I143: Nitra | J143: Trenčín | K143: Žilina | L143: Banská Bystrica | M143: Prešov | N143: Celkom
B144: Kábel | C144: Mbps | D144: =D$141*D59 -> 0 | E144: 0 | F144: 0 | G144: 0 | H144: 0 | I144: 0 | J144: 0 | K144: =K$141*K59 -> 0 | L144: 0 | M144: 0 | N144: =SUM(D144:M144) -> 0
B145: Prenajatý spoj | C145: Mbps | D145: 0 | E145: 0 | F145: 0 | G145: 0 | H145: 0 | I145: 0 | J145: 0 | K145: 0 | L145: 0 | M145: 0 | N145: =SUM(D145:M145) -> 0
B148: Počet chrbticových prenosových spojov | C148: Jednotky | D148: Bratislava 1 | E148: Bratislava 2 | F148: Košice 1 | G148: Košice 2 | H148: Trnava | I148: Nitra | J148: Trenčín | K148: Žilina | L148: Banská Bystrica | M148: Prešov | N148: Celkom
B149: Počet káblových spojov do Network Center | C149: # | D149: =D$140*$D$17*D59 -> 0 | E149: 0 | F149: 0 | G149: 0 | H149: 0 | I149: 0 | J149: 0 | K149: =K$140*$D$17*K59 -> 0 | L149: 0 | M149: 0 | N149: =SUM(D149:M149) -> 0
B150: Počet prenajatých spojov | C150: # | D150: 0 | E150: 0 | F150: 0 | G150: 0 | H150: 0 | I150: 0 | J150: 0 | K150: 0 | L150: 0 | M150: 0 | N150: =SUM(D150:M150) -> 0
B152: Celkový dopyt po spoji do Network Center podľa druhu | C152: Jednotky | D152: Bratislava 1 | E152: Bratislava 2 | F152: Košice 1 | G152: Košice 2 | H152: Trnava | I152: Nitra | J152: Trenčín | K152: Žilina | L152: Banská Bystrica | M152: Prešov | N152: Celkom
B153: Kábel | C153: Mbps | D153: =IF(D149=0,0,(D144/D149)) -> 0 | E153: =IF(E149=0,0,(E144/E149)) -> 0 | F153: =IF(F149=0,0,(F144/F149)) -> 0 | G153: =IF(G149=0,0,(G144/G149)) -> 0 | H153: =IF(H149=0,0,(H144/H149)) -> 0 | I153: =IF(I149=0,0,(I144)/I149) -> 0 | J153: =IF(J149=0,0,(J144)/J149) -> 0 | K153: =IF(K149=0,0,(K144)/K149) -> 0 | L153: =IF(L149=0,0,(L144)/L149) -> 0 | M153: =IF(M149=0,0,(M144)/M149) -> 0 | N153: =SUM(D153:M153) -> 0
B154: Prenajatý spoj | C154: Mbps | D154: =IF(D150=0,0,(D145)/D150) -> 0 | E154: =IF(E150=0,0,(E145)/E150) -> 0 | F154: 0 | G154: 0 | H154: 0 | I154: 0 | J154: 0 | K154: 0 | L154: 0 | M154: 0 | N154: =SUM(D154:M154) -> 0
A157: 10.8 Chrbticový prenos - kábel
B159: Počet požadovaných ADM | C159: Jednotky | D159: Bratislava 1 | E159: Bratislava 2 | F159: Košice 1 | G159: Košice 2 | H159: Trnava | I159: Nitra | J159: Trenčín | K159: Žilina | L159: Banská Bystrica | M159: Prešov | N159: Total
B160: ADM typ | C160: # | D160: =INDEX($B$36:$B$40,MATCH(IF(D69=1,MAX($D$153:$M$153),D153),$D$36:$D$40,-1)) -> Žiadny | E160: =INDEX($B$36:$B$40,MATCH(IF(E69=1,MAX($D$153:$M$153),E153),$D$36:$D$40,-1)) -> Žiadny | F160: Žiadny | G160: Žiadny | H160: Žiadny | I160: Žiadny | J160: Žiadny | K160: Žiadny | L160: Žiadny | M160: Žiadny | N160: =SUM(D160:M160) -> 0
B161: Počet ADMs | C161: # | D161: =IF(D160="Žiadny",0,2) -> 0 | E161: =IF(E160="Žiadny",0,2) -> 0 | F161: 0 | G161: 0 | H161: 0 | I161: 0 | J161: 0 | K161: 0 | L161: 0 | M161: 0 | N161: =SUM(D161:M161) -> 0
B163: Add Drop Multiplexer - STM1 | C163: Link STM-1 | D163: =SUMIF($D$160:$M$160,C163,$D$161:$M$161) -> 0
B164: Add Drop Multiplexer - STM4 | C164: Link STM-4 | D164: =SUMIF($D$160:$M$160,C164,$D$161:$M$161) -> 0
B165: Add Drop Multiplexer - STM16 | C165: Link STM-16 | D165: =SUMIF($D$160:$M$160,C165,$D$161:$M$161) -> 0
B166: Add Drop Multiplexer - STM64 | C166: Link STM-64 | D166: =SUMIF($D$160:$M$160,C166,$D$161:$M$161) -> 0
B168: Distance fibre required | C168: Jednotky | D168: Bratislava 1 | E168: Bratislava 2 | F168: Košice 1 | G168: Košice 2 | H168: Trnava | I168: Nitra | J168: Trenčín | K168: Žilina | L168: Banská Bystrica | M168: Prešov | N168: Total
B169: Káblová vzdialenosť | C169: km | D169: =IF(D160="Žiadny",0,D61) -> 0 | E169: =IF(E160="Žiadny",0,E61) -> 0 | F169: 0 | G169: 0 | H169: 0 | I169: 0 | J169: 0 | K169: 0 | L169: 0 | M169: 0 | N169: =SUM(D169:M169)/2 -> 0
B170: Vlastnený kábel | C170: km | N170: =N169-N171 -> 0
B171: Prenajatý kábel | C171: km | N171: =N169*D63 -> 0
A173: 10.9 Chrbticový prenos - prenajaté okruhy
B175: Požadované prenajaté spoje | C175: Jednotky | D175: Bratislava 1 | E175: Bratislava 2 | F175: Košice 1 | G175: Košice 2 | H175: Trnava | I175: Nitra | J175: Trenčín | K175: Žilina | L175: Banská Bystrica | M175: Prešov | N175: Total
B176: ADM typ | D176: =INDEX($B$36:$B$40,MATCH((1-D69)*D154,$D$36:$D$40,-1)) -> Žiadny | E176: Žiadny | F176: Žiadny | G176: Žiadny | H176: Žiadny | I176: Žiadny | J176: Žiadny | K176: Žiadny | L176: Žiadny | M176: Žiadny | N176: =COUNTIF(D176:M176,"<>žádný") -> 10
B177: Káblová vzdialenosť | C177: km | D177: =IF(D176="Žádný",0,D61) -> 0 | E177: 0 | F177: 0 | G177: 0 | H177: 0 | I177: 0 | J177: 0 | K177: 0 | L177: 0 | M177: 0 | N177: =SUM(D177:M177) -> 0

Sheet 9. Ostatné NE
A1: 9. Dimenzovanie hlavných sieťových prvkov chrbticovej časti siete
A3: Popis
A4: Dimenzovanie prepojovacej časti siete
A6: Vstupy z predchádzajúcich kalkulácií
A8: 9.1 Údaje pre dimenzovanie
B10: Zariadenie | C10: Plánovacie obdobie | D10: Plánovaná kapacita max loading faktor
C11: # mesiacov | D11: %
B12: Switching | C12: ='4. Parametre dimenzovania siete'!I130 -> 0 | D12: =I_CapPlan_Switch -> 
B13: MGW | C13: ='4. Parametre dimenzovania siete'!G137 -> 0 | D13: =$D$12 -> 
B14: ='4. Parametre dimenzovania siete'!B143 -> Home Location Register (HLR) | C14: ='4. Parametre dimenzovania siete'!G143 -> 0
B15: ='4. Parametre dimenzovania siete'!B145 -> Voicemail platform | C15: ='4. Parametre dimenzovania siete'!G145 -> 0
B16: ='4. Parametre dimenzovania siete'!B146 -> SMSC platform | C16: ='4. Parametre dimenzovania siete'!G146 -> 0
B17: ='4. Parametre dimenzovania siete'!B147 -> MMSC platform | C17: ='4. Parametre dimenzovania siete'!G147 -> 0
B18: ='4. Parametre dimenzovania siete'!B148 -> Mobile IN | C18: ='4. Parametre dimenzovania siete'!G148 -> 0
B19: ='4. Parametre dimenzovania siete'!B149 -> SGSN Platform | C19: ='4. Parametre dimenzovania siete'!G149 -> 0
B20: ='4. Parametre dimenzovania siete'!B150 -> GGSN Platform | C20: ='4. Parametre dimenzovania siete'!G150 -> 0
A22: 9.2 Kapacitné údaje prepojovania
B24: Parameter | C24: Jednotka | D24: Hodnota
B25: Max Concurrent calls (SCC) | C25: # SCC | D25: ='4. Parametre dimenzovania siete'!D130 -> 
B26: Max BH pokusy o nadviazanie hovoru | C26: # pokusov o nadviazanie hovoru | D26: ='4. Parametre dimenzovania siete'!F130 -> 
B27: Max BHE | C27: # Erlang | D27: ='4. Parametre dimenzovania siete'!E130 -> 
B28: Minimálny počet lokalít | C28: # prepojovacích lokalít | D28: 2
A30: 9.3 Údaje dopytu po prepojovaní
B32: Parameter | C32: Jednotka | D32: Hodnota | E32: Medziročný rast | F32: Hodnota v plánovanom období | G32: Hodnota - úprava loading faktor
B33: BH Concurrent calls (súbežné, súčasné hovory) | C33: # SCC | D33: ='4. Parametre dimenzovania siete'!G130 -> 0 | E33: ='2. Dopyt'!$F$43 ->  | F33: =D33*(1+E33*$C$12/12) ->  | G33: =F33/$D$12 -> 
B34: BH pokusy o nadviazanie hovoru | C34: # pokusov o nadviazanie hovoru | D34: =SUM('6. NE Dopyt'!M23:O23)*'6. NE Dopyt'!D120 ->  | E34: ='2. Dopyt'!$F$43 ->  | F34: =D34*(1+E34*$C$12/12) ->  | G34: =F34/$D$12 -> 
B35: BHE | C35: # Erlang | D35: ='6. NE Dopyt'!I128 ->  | E35: ='2. Dopyt'!$F$43 ->  | F35: =D35*(1+E35*$C$12/12) ->  | G35: =F35/$D$12 -> 
A37: 9.4 Mapa zariadenia Core Lokácií
C39: Bratislava 1 | D39: Bratislava 2 | E39: Košice 1 | F39: Košice 2 | G39: Trnava | H39: Nitra | I39: Trenčín | J39: Žilina | K39: Banská Bystrica | L39: Prešov | M39: Celkom
B40: ='4. Parametre dimenzovania siete'!B160 -> Network Center | C40: ='4. Parametre dimenzovania siete'!C160 -> 0 | D40: ='4. Parametre dimenzovania siete'!D160 -> 0 | E40: ='4. Parametre dimenzovania siete'!E160 -> 0 | F40: ='4. Parametre dimenzovania siete'!F160 -> 0 | G40: ='4. Parametre dimenzovania siete'!G160 -> 0 | H40: ='4. Parametre dimenzovania siete'!H160 -> 0 | I40: ='4. Parametre dimenzovania siete'!I160 -> 0 | J40: ='4. Parametre dimenzovania siete'!J160 -> 0 | K40: ='4. Parametre dimenzovania siete'!K160 -> 0 | L40: ='4. Parametre dimenzovania siete'!L160 -> 0 | M40: =SUM(C40:L40) -> 0
B41: ='4. Parametre dimenzovania siete'!B161 -> Switch locations | C41: ='4. Parametre dimenzovania siete'!C161 -> 0 | D41: ='4. Parametre dimenzovania siete'!D161 -> 0 | E41: ='4. Parametre dimenzovania siete'!E161 -> 0 | F41: ='4. Parametre dimenzovania siete'!F161 -> 0 | G41: ='4. Parametre dimenzovania siete'!G161 -> 0 | H41: ='4. Parametre dimenzovania siete'!H161 -> 0 | I41: ='4. Parametre dimenzovania siete'!I161 -> 0 | J41: ='4. Parametre dimenzovania siete'!J161 -> 0 | K41: ='4. Parametre dimenzovania siete'!K161 -> 0 | L41: ='4. Parametre dimenzovania siete'!L161 -> 0 | M41: =SUM(C41:L41) -> 0
B42: ='4. Parametre dimenzovania siete'!B162 -> Home Location Register (HLR) | C42: ='4. Parametre dimenzovania siete'!C162 -> 0 | D42: ='4. Parametre dimenzovania siete'!D162 -> 0 | E42: ='4. Parametre dimenzovania siete'!E162 -> 0 | F42: ='4. Parametre dimenzovania siete'!F162 -> 0 | G42: ='4. Parametre dimenzovania siete'!G162 -> 0 | H42: ='4. Parametre dimenzovania siete'!H162 -> 0 | I42: ='4. Parametre dimenzovania siete'!I162 -> 0 | J42: ='4. Parametre dimenzovania siete'!J162 -> 0 | K42: ='4. Parametre dimenzovania siete'!K162 -> 0 | L42: ='4. Parametre dimenzovania siete'!L162 -> 0 | M42: 0
B43: ='4. Parametre dimenzovania siete'!B166 -> Mobile IN | C43: ='4. Parametre dimenzovania siete'!C163 -> 0 | D43: ='4. Parametre dimenzovania siete'!D163 -> 0 | E43: ='4. Parametre dimenzovania siete'!E163 -> 0 | F43: ='4. Parametre dimenzovania siete'!F163 -> 0 | G43: ='4. Parametre dimenzovania siete'!G163 -> 0 | H43: ='4. Parametre dimenzovania siete'!H163 -> 0 | I43: ='4. Parametre dimenzovania siete'!I163 -> 0 | J43: ='4. Parametre dimenzovania siete'!J163 -> 0 | K43: ='4. Parametre dimenzovania siete'!K163 -> 0 | L43: ='4. Parametre dimenzovania siete'!L163 -> 0 | M43: 0
B44: ='4. Parametre dimenzovania siete'!B163 -> Voicemail platform | C44: ='4. Parametre dimenzovania siete'!C164 -> 0 | D44: ='4. Parametre dimenzovania siete'!D164 -> 0 | E44: ='4. Parametre dimenzovania siete'!E164 -> 0 | F44: ='4. Parametre dimenzovania siete'!F164 -> 0 | G44: ='4. Parametre dimenzovania siete'!G164 -> 0 | H44: ='4. Parametre dimenzovania siete'!H164 -> 0 | I44: ='4. Parametre dimenzovania siete'!I164 -> 0 | J44: ='4. Parametre dimenzovania siete'!J164 -> 0 | K44: ='4. Parametre dimenzovania siete'!K164 -> 0 | L44: ='4. Parametre dimenzovania siete'!L164 -> 0 | M44: 0
B45: ='4. Parametre dimenzovania siete'!B164 -> SMSC platform | C45: ='4. Parametre dimenzovania siete'!C165 -> 0 | D45: ='4. Parametre dimenzovania siete'!D165 -> 0 | E45: ='4. Parametre dimenzovania siete'!E165 -> 0 | F45: ='4. Parametre dimenzovania siete'!F165 -> 0 | G45: ='4. Parametre dimenzovania siete'!G165 -> 0 | H45: ='4. Parametre dimenzovania siete'!H165 -> 0 | I45: ='4. Parametre dimenzovania siete'!I165 -> 0 | J45: ='4. Parametre dimenzovania siete'!J165 -> 0 | K45: ='4. Parametre dimenzovania siete'!K165 -> 0 | L45: ='4. Parametre dimenzovania siete'!L165 -> 0 | M45: 0
B46: ='4. Parametre dimenzovania siete'!B165 -> MMSC platform | C46: ='4. Parametre dimenzovania siete'!C166 -> 0 | D46: ='4. Parametre dimenzovania siete'!D166 -> 0 | E46: ='4. Parametre dimenzovania siete'!E166 -> 0 | F46: ='4. Parametre dimenzovania siete'!F166 -> 0 | G46: ='4. Parametre dimenzovania siete'!G166 -> 0 | H46: ='4. Parametre dimenzovania siete'!H166 -> 0 | I46: ='4. Parametre dimenzovania siete'!I166 -> 0 | J46: ='4. Parametre dimenzovania siete'!J166 -> 0 | K46: ='4. Parametre dimenzovania siete'!K166 -> 0 | L46: ='4. Parametre dimenzovania siete'!L166 -> 0 | M46: 0
B47: ='4. Parametre dimenzovania siete'!B167 -> SGSN Platform | C47: ='4. Parametre dimenzovania siete'!C167 -> 0 | D47: ='4. Parametre dimenzovania siete'!D167 -> 0 | E47: ='4. Parametre dimenzovania siete'!E167 -> 0 | F47: ='4. Parametre dimenzovania siete'!F167 -> 0 | G47: ='4. Parametre dimenzovania siete'!G167 -> 0 | H47: ='4. Parametre dimenzovania siete'!H167 -> 0 | I47: ='4. Parametre dimenzovania siete'!I167 -> 0 | J47: ='4. Parametre dimenzovania siete'!J167 -> 0 | K47: ='4. Parametre dimenzovania siete'!K167 -> 0 | L47: ='4. Parametre dimenzovania siete'!L167 -> 0 | M47: 0
B48: ='4. Parametre dimenzovania siete'!B168 -> GGSN Platform | C48: ='4. Parametre dimenzovania siete'!C168 -> 0 | D48: ='4. Parametre dimenzovania siete'!D168 -> 0 | E48: ='4. Parametre dimenzovania siete'!E168 -> 0 | F48: ='4. Parametre dimenzovania siete'!F168 -> 0 | G48: ='4. Parametre dimenzovania siete'!G168 -> 0 | H48: ='4. Parametre dimenzovania siete'!H168 -> 0 | I48: ='4. Parametre dimenzovania siete'!I168 -> 0 | J48: ='4. Parametre dimenzovania siete'!J168 -> 0 | K48: ='4. Parametre dimenzovania siete'!K168 -> 0 | L48: ='4. Parametre dimenzovania siete'!L168 -> 0 | M48: 0
B49: ='4. Parametre dimenzovania siete'!B169 -> Point Of Interconnect | C49: ='4. Parametre dimenzovania siete'!C169 -> 0 | D49: ='4. Parametre dimenzovania siete'!D169 -> 0 | E49: ='4. Parametre dimenzovania siete'!E169 -> 0 | F49: ='4. Parametre dimenzovania siete'!F169 -> 0 | G49: ='4. Parametre dimenzovania siete'!G169 -> 0 | H49: ='4. Parametre dimenzovania siete'!H169 -> 0 | I49: ='4. Parametre dimenzovania siete'!I169 -> 0 | J49: ='4. Parametre dimenzovania siete'!J169 -> 0 | K49: ='4. Parametre dimenzovania siete'!K169 -> 0 | L49: ='4. Parametre dimenzovania siete'!L169 -> 0 | M49: 0
A51: 9.5 Kapacitné údaje Media Gateway
B53: Parameter | C53: Jednotka | D53: Hodnota
B54: Max Concurrent calls (SCC) - (súbežné, súčasné hovory) | C54: # SCC | D54: ='4. Parametre dimenzovania siete'!C137 -> 
B55: Max. # of BH call attempts | C55: # pokusov o nadviazanie hovoru | D55: ='0. Hlavné vstupy'!AG141 -> 
B56: Max BHE | C56: # Erlang | D56: ='4. Parametre dimenzovania siete'!D137 -> 
A58: 9.6 Údaje dopytu pre Media Gateway
B60: Parameter | C60: Jednotka | D60: Hodnota | E60: Medziročný rast | F60: Hodnota v plánovanom období | G60: Hodnota - úprava loading faktor
B61: Celkom Concurrent hovory | C61: # SCC | D61: ='4. Parametre dimenzovania siete'!E137 -> 0 | E61: ='2. Dopyt'!$F$43 ->  | F61: =D61*(1+E61*$C$13/12) ->  | G61: =F61/$D$12 -> 
B62: Celkom Call attempts | C62: # pokusov o nadviazanie hovoru | D62: =SUM('6. NE Dopyt'!M23:O23)*'6. NE Dopyt'!D120 ->  | E62: ='2. Dopyt'!$F$43 ->  | F62: =D62*(1+E62*$C$13/12) ->  | G62: =F62/$D$12 -> 
B63: Celkom BHE | C63: # Erlang | D63: ='6. NE Dopyt'!$J$128 ->  | E63: ='2. Dopyt'!$F$43 ->  | F63: =D63*(1+E63*$C$13/12) ->  | G63: =F63/$D$12 -> 
B65: Prevádzka na Core Node Uzli | C65: Jednotka | D65: Bratislava 1 | E65: Bratislava 2 | F65: Košice 1 | G65: Košice 2 | H65: Trnava | I65: Nitra | J65: Trenčín | K65: Žilina | L65: Banská Bystrica | M65: Prešov | N65: Celkom
B66: Distribúcia prevádzky | C66: % | D66: ='4. Parametre dimenzovania siete'!C72 ->  | E66: ='4. Parametre dimenzovania siete'!D72 ->  | F66: ='4. Parametre dimenzovania siete'!E72 ->  | G66: ='4. Parametre dimenzovania siete'!F72 ->  | H66: ='4. Parametre dimenzovania siete'!G72 ->  | I66: ='4. Parametre dimenzovania siete'!H72 ->  | J66: ='4. Parametre dimenzovania siete'!I72 ->  | K66: ='4. Parametre dimenzovania siete'!J72 ->  | L66: ='4. Parametre dimenzovania siete'!K72 ->  | M66: ='4. Parametre dimenzovania siete'!L72 ->  | N66: =SUM(D66:M66) -> 
B67: Concurrent hovory na Core Node Uzli | C67: # SCC | D67: =$G$61*D66 ->  | K67: =$G$61*K66 ->  | L67: =$G$61*L66 ->  | M67: =$G$61*M66 ->  | N67: =SUM(D67:M67) -> 
B68: Call attempts | C68: # pokusov o nadviazanie hovoru | D68: =$G$62*D66 ->  | E68: =$G$62*E66 ->  | F68: =$G$62*F66 ->  | G68: =$G$62*G66 -> 
B69: BHE na Core Node uzlovú lokáciu | C69: # Erlang | D69: =$G$63*D66 ->  | K69: =$G$63*K66 ->  | L69: =$G$63*L66 ->  | M69: =$G$63*M66 ->  | N69: =SUM(D69:M69) -> 
A71: 9.7 Ostatné kapacitné údaje
B73: Zariadenie | C73: Jednotka | D73: Hodnota | E73: Minimálny počet platforiem (#)
B74: ='4. Parametre dimenzovania siete'!B143 -> Home Location Register (HLR) | C74: ='4. Parametre dimenzovania siete'!E144 -> Max # kapacita serveru | D74: ='4. Parametre dimenzovania siete'!F144 -> 0 | E74: ='4. Parametre dimenzovania siete'!D143 -> 0
B75: ='4. Parametre dimenzovania siete'!B145 -> Voicemail platform | C75: ='4. Parametre dimenzovania siete'!E145 -> Max # zákazníkov voicemail | D75: ='4. Parametre dimenzovania siete'!F145 -> 0 | E75: ='4. Parametre dimenzovania siete'!D145 -> 0
B76: ='4. Parametre dimenzovania siete'!B146 -> SMSC platform | C76: ='4. Parametre dimenzovania siete'!E146 -> Max # SMS v BH | D76: ='4. Parametre dimenzovania siete'!F146 -> 0 | E76: ='4. Parametre dimenzovania siete'!D146 -> 0
B77: ='4. Parametre dimenzovania siete'!B147 -> MMSC platform | C77: ='4. Parametre dimenzovania siete'!E147 -> Max # správ za sekundu | D77: ='4. Parametre dimenzovania siete'!F147 -> 0 | E77: ='4. Parametre dimenzovania siete'!D147 -> 0
B78: ='4. Parametre dimenzovania siete'!B148 -> Mobile IN | C78: ='4. Parametre dimenzovania siete'!E148 -> Max # užívateľov | D78: ='4. Parametre dimenzovania siete'!F148 -> 0 | E78: ='4. Parametre dimenzovania siete'!D148 -> 0
B79: ='4. Parametre dimenzovania siete'!B149 -> SGSN Platform | C79: ='4. Parametre dimenzovania siete'!E149 -> Max # zákazníkov s dátovými službami | D79: ='4. Parametre dimenzovania siete'!F149 -> 0 | E79: ='4. Parametre dimenzovania siete'!D149 -> 0
B80: ='4. Parametre dimenzovania siete'!B150 -> GGSN Platform | C80: ='4. Parametre dimenzovania siete'!E150 -> Max # zákazníkov s dátovými službami | D80: ='4. Parametre dimenzovania siete'!F150 -> 0 | E80: ='4. Parametre dimenzovania siete'!D150 -> 0
B81: Interconnection
A83: 9.8 Ostatné údaje dopytu
B85: Zariadenie | C85: Jednotka | D85: Hodnota | E85: Medziročný rast | F85: Hodnota v plánovanom období | G85: Hodnota - úprava loading faktor
B86: =B74 -> Home Location Register (HLR) | C86: Počet užívateľov | D86: ='2. Dopyt'!E13 -> 0 | E86: ='2. Dopyt'!$F$21 ->  | F86: =D86*(1+E86*C14/12) ->  | G86: =F86/D14 -> 
B87: =B75 -> Voicemail platform | C87: Užívatelia hlasových schránok | D87: ='2. Dopyt'!E14 -> 0 | E87: ='2. Dopyt'!F22 -> 
B88: SMSC platform | C88: BH SMS | D88: =SUM('2. Dopyt'!$E$58:$E$58)*I_Busy_Hour ->  | E88: ='2. Dopyt'!F59 -> 
B89: MMSC platform | C89: Správy za sekundu | D89: ='6. NE Dopyt'!$D$145 ->  | E89: ='2. Dopyt'!F67 -> 
B90: Mobile IN | C90: Užívatelia | D90: ='2. Dopyt'!E10 -> 0 | E90: ='2. Dopyt'!F18 -> 
B91: SGSN Platform | C91: Užívatelia mobilných dátových služieb | D91: ='2. Dopyt'!$E$15 -> 0 | E91: ='2. Dopyt'!$F$23 -> 
B92: GGSN Platform | C92: Užívatelia mobilných dátových služieb | D92: ='2. Dopyt'!$E$15 -> 0 | E92: ='2. Dopyt'!$F$23 -> 
B93: Interconnection
A96: Výpočet
A98: 9.9 Dimenzovanie Switch
B100: Switch | C100: Jednotka | D100: Celkom | E100: Bratislava 1 | F100: Bratislava 2 | G100: Košice 1 | H100: Košice 2 | I100: Trnava | J100: Nitra | K100: Trenčín | L100: Žilina | M100: Banská Bystrica | N100: Prešov
B101: Minimálny požadovaný # switch - na základe SCC | C101: # switching lokácií | D101: =ROUNDUP(G33/D25,0) -> 
B102: Minimálny požadovaný # switch na základe pokusu o nadviazanie hovoru | C102: # switching lokácií | D102: =ROUNDUP(G34/D26,0) -> 
B103: Minimálny požadovaný # switch na základe BHE | C103: # switching lokácií | D103: =ROUNDUP(G35/D27,0) -> 
B104: Minimálny požadovaný # switch - celkom | C104: # switching lokácií | D104: =MAX(D101:D103,D28) ->  | E104: =ROUNDUP($D$104*C41/$M41,0) ->  | L104: =ROUNDUP($D$104*J41/$M41,0) ->  | M104: =ROUNDUP($D$104*K41/$M41,0) ->  | N104: =ROUNDUP($D$104*L41/$M41,0) -> 
A106: 9.10 Dimenzovanie Media Gateway
B108: Provoz | C108: Jednotka | D108: Hodnota | E108: Bratislava 1 | F108: Bratislava 2 | G108: Košice 1 | H108: Košice 2 | I108: Trnava | J108: Nitra | K108: Trenčín | L108: Žilina | M108: Banská Bystrica | N108: Prešov
B109: Minimálny počet MGWs - na základe concurrent hovorov (SCC) | C109: # MGW | D109: =SUM(E109:N109) ->  | E109: =ROUNDUP(D67/$D$54,0) ->  | L109: =ROUNDUP(K67/$D$54,0) -> 
B110: Minimálny počet MGWs - na základe call attempts | D110: =SUM(E110:N110) ->  | E110: =ROUNDUP(D68/$D$55,0) ->  | F110: =ROUNDUP(E68/$D$55,0) -> 
B111: Minimálny počet MGWs - na základe BHE | C111: # MGW | D111: =SUM(E111:N111) ->  | E111: =ROUNDUP(D69/$D$56,0) ->  | F111: =ROUNDUP(E69/$D$56,0) ->  | G111: =ROUNDUP(F69/$D$56,0) ->  | H111: =ROUNDUP(G69/$D$56,0) ->  | I111: =ROUNDUP(H69/$D$54,0) -> 
B112: Minimum MGWs - celkom | C112: # MGW | D112: =MAX(D109:D111) ->  | L112: =MAX(L109:L111) ->  | M112: =MAX(M109:M111) ->  | N112: =MAX(N109:N111) -> 
A114: 9.11 Dimenzovanie ostatných core platform sieťových prvkov
B116: Zariadenie | C116: Jednotka | D116: Celkom požadovaných
B117: HLR požadovaná kapacita | C117: # užívateľov | D117: =ROUNDUP(G86,-6) -> 
E119: Umiestnenie sieťových prvkov podľa lokácií na základe skutočnej topológie
B120: Zariadenie | C120: Jednotka | D120: Celkom požadovaných | E120: Bratislava 1 | F120: Bratislava 2 | G120: Košice 1 | H120: Košice 2 | I120: Trnava | J120: Nitra | K120: Trenčín | L120: Žilina | M120: Banská Bystrica | N120: Prešov
B121: =B86 -> Home Location Register (HLR) | C121: # | D121: =MAX(E74,ROUNDUP(D117/D74,0)) ->  | E121: =ROUNDUP($D121*C42/$M42,0) -> 
B122: =B87 -> Voicemail platform | C122: # | D122: =MAX(E75,ROUNDUP(G87/D75,0)) -> 
B123: SMSC platform | C123: #
B124: MMSC platform | C124: #
B125: Mobile IN | C125: #
B126: SGSN Platform | C126: #
B127: GGSN Platform | C127: #
B128: Interconnection | C128: # | D128: =SUM(E128:N128) -> 0 | E128: ='4. Parametre dimenzovania siete'!C169 -> 0 | F128: ='4. Parametre dimenzovania siete'!D169 -> 0 | G128: ='4. Parametre dimenzovania siete'!E169 -> 0 | H128: ='4. Parametre dimenzovania siete'!F169 -> 0 | I128: ='4. Parametre dimenzovania siete'!G169 -> 0 | J128: ='4. Parametre dimenzovania siete'!H169 -> 0 | K128: ='4. Parametre dimenzovania siete'!I169 -> 0 | L128: ='4. Parametre dimenzovania siete'!J169 -> 0 | M128: ='4. Parametre dimenzovania siete'!K169 -> 0 | N128: ='4. Parametre dimenzovania siete'!L169 -> 0

Sheet 8. Prístupová sieť
A1: 8. Dimenzovanie prístupovej časti prenosovej siete | N1: OUTPUT
A3: Popis
A4: Výpočet
A6: Vstupy z predchádzajúcich kalkulácií
A8: 8.1 Štatistiky RAN prístupovej siete
B10: Médium prenosového prístupu | C10: Jednotka | D10: Aglomerácia | E10: Mestá | F10: Vidiek
B11: Mikrovlny | C11: % | D11: ='4. Parametre dimenzovania siete'!C255 -> 0 | E11: ='4. Parametre dimenzovania siete'!D255 -> 0 | F11: ='4. Parametre dimenzovania siete'!E255 -> 0
B12: Kábel | C12: % | D12: ='4. Parametre dimenzovania siete'!C256 -> 0 | E12: ='4. Parametre dimenzovania siete'!D256 -> 0 | F12: ='4. Parametre dimenzovania siete'!E256 -> 0
B13: Prenajatá kapacita | C13: % | D13: ='4. Parametre dimenzovania siete'!C257 -> 0 | E13: ='4. Parametre dimenzovania siete'!D257 -> 0 | F13: ='4. Parametre dimenzovania siete'!E257 -> 0
B14: Umiestnenie BTS, NodeB spoločne s BSC, RNC | C14: % | D14: ='4. Parametre dimenzovania siete'!C258 -> 0 | E14: ='4. Parametre dimenzovania siete'!D258 -> 0 | F14: ='4. Parametre dimenzovania siete'!E258 -> 0
B16: Priemer skokov a vzdialenosti | C16: Jednotka | D16: Aglomerácia | E16: Mestá | F16: Vidiek
B17: Priemerný mikro skok na BTS/NodeB spoj | C17: # | D17: ='4. Parametre dimenzovania siete'!C214 ->  | E17: ='4. Parametre dimenzovania siete'!D214 ->  | F17: ='4. Parametre dimenzovania siete'!E214 -> 
B18: Priemerná káblová vzdialenosť BTS/NodeB - BSC/RNC spoje | C18: km | D18: ='4. Parametre dimenzovania siete'!C220 ->  | E18: ='4. Parametre dimenzovania siete'!D220 ->  | F18: ='4. Parametre dimenzovania siete'!E220 -> 
B20: Zdieľaný mikrovlnný prístup k prenosu | C20: Jednotka | D20: Aglomerácia | E20: Mestá | F20: Vidiek
B21: Zdieľané s BSC/RNC - MGW iba | C21: % | D21: ='4. Parametre dimenzovania siete'!C213 ->  | E21: ='4. Parametre dimenzovania siete'!D213 ->  | F21: ='4. Parametre dimenzovania siete'!E213 -> 
B23: Zdieľaný káblový prístup k prenosu | C23: Jednotka | D23: Aglomerácia | E23: Mestá | F23: Vidiek
B24: Zdieľané s BSC/RNC - MGW iba | C24: % | D24: ='4. Parametre dimenzovania siete'!C219 -> 0 | E24: ='4. Parametre dimenzovania siete'!D219 -> 0 | F24: ='4. Parametre dimenzovania siete'!E219 -> 0
A26: 8.2 BTS/NodeB dimenzovanie množstva lokácií
B28: Počet BTS lokácií podľa typu | C28: # BTS / Lokácia | D28: Aglomerácia | E28: Mestá | F28: Vidiek | G28: Územie celkom
B29: BTS GSM 900 | C29: 1 | D29: =MAX('7a. Radiová sieť 2G'!D187-D30,0) ->  | E29: =MAX('7a. Radiová sieť 2G'!E187-E30,0) ->  | F29: =MAX('7a. Radiová sieť 2G'!F187-F30,0) ->  | G29: ='7a. Radiová sieť 2G'!G187-G30 -> 
B30: BTS GSM 900 + NodeB | C30: 2 | D30: ='7b. Radiová sieť 3G'!D166 ->  | E30: ='7b. Radiová sieť 3G'!E166 ->  | F30: ='7b. Radiová sieť 3G'!F166 ->  | G30: ='7b. Radiová sieť 3G'!G166 -> 
B31: BTS GSM 900 + GSM 1800 | C31: 2 | D31: ='7a. Radiová sieť 2G'!D188-D30 ->  | E31: ='7a. Radiová sieť 2G'!E188-E30 ->  | F31: ='7a. Radiová sieť 2G'!F188-F30 ->  | G31: ='7a. Radiová sieť 2G'!G188 -> 
B32: BTS GSM Dual 900/1800 | C32: 1 | D32: ='7a. Radiová sieť 2G'!D189 ->  | E32: ='7a. Radiová sieť 2G'!E189 ->  | F32: ='7a. Radiová sieť 2G'!F189 ->  | G32: ='7a. Radiová sieť 2G'!G189 -> 
B33: BTS GSM Dual 900/1800 | C33: 2 | D33: ='7a. Radiová sieť 2G'!D190 -> 0 | E33: ='7a. Radiová sieť 2G'!E190 -> 0 | F33: ='7a. Radiová sieť 2G'!F190 -> 0 | G33: ='7a. Radiová sieť 2G'!G190 -> 0
B34: BTS GSM Dual 900/1800 | C34: 3 | D34: ='7a. Radiová sieť 2G'!D191 -> 0 | E34: ='7a. Radiová sieť 2G'!E191 -> 0 | F34: ='7a. Radiová sieť 2G'!F191 -> 0 | G34: ='7a. Radiová sieť 2G'!G191 -> 0
B35: NodeB | C35: 1 | D35: ='7b. Radiová sieť 3G'!D170 ->  | E35: ='7b. Radiová sieť 3G'!E170 ->  | F35: ='7b. Radiová sieť 3G'!F170 ->  | G35: ='7b. Radiová sieť 3G'!G170 -> 
B36: eNode B
B38: Priemerný počet sektorov / BTS podľa frekvencie | C38: Jednotka | D38: Aglomerácia | E38: Mestá | F38: Vidiek
B39: BTS GSM 900 | C39: # sektorov/BTS | D39: =SUMPRODUCT('7a. Radiová sieť 2G'!D$29:D$31,'7a. Radiová sieť 2G'!D$50:D$52) -> 0 | E39: =SUMPRODUCT('7a. Radiová sieť 2G'!E$29:E$31,'7a. Radiová sieť 2G'!E$50:E$52) -> 0 | F39: =SUMPRODUCT('7a. Radiová sieť 2G'!F$29:F$31,'7a. Radiová sieť 2G'!F$50:F$52) -> 0
B40: BTS GSM 1800 | C40: # sektorov/BTS | D40: =SUMPRODUCT('7a. Radiová sieť 2G'!D$29:D$31,'7a. Radiová sieť 2G'!D$55:D$57) -> 0 | E40: =SUMPRODUCT('7a. Radiová sieť 2G'!E$29:E$31,'7a. Radiová sieť 2G'!E$55:E$57) -> 0 | F40: =SUMPRODUCT('7a. Radiová sieť 2G'!F$29:F$31,'7a. Radiová sieť 2G'!F$55:F$57) -> 0
B41: BTS GSM Dual | C41: # sektorov/BTS | D41: =SUMPRODUCT('7a. Radiová sieť 2G'!D$29:D$31,'7a. Radiová sieť 2G'!D$60:D$62) -> 0 | E41: =SUMPRODUCT('7a. Radiová sieť 2G'!E$29:E$31,'7a. Radiová sieť 2G'!E$60:E$62) -> 0 | F41: =SUMPRODUCT('7a. Radiová sieť 2G'!F$29:F$31,'7a. Radiová sieť 2G'!F$60:F$62) -> 0
B42: NodeB | C42: # sektorov/NodeB | D42: =SUMPRODUCT('7b. Radiová sieť 3G'!D$42:D$44,'7b. Radiová sieť 3G'!D$62:D$64) -> 0 | E42: =SUMPRODUCT('7b. Radiová sieť 3G'!E$42:E$44,'7b. Radiová sieť 3G'!E$62:E$64) -> 0 | F42: =SUMPRODUCT('7b. Radiová sieť 3G'!F$42:F$44,'7b. Radiová sieť 3G'!F$62:F$64) -> 0
B43: eNode B
B45: Priemerná prevádzka na sektor podľa frekvencie | C45: Jednotka | D45: Aglomerácia | E45: Mestá | F45: Vidiek
B46: Dimenzovanie prevádzky na sektor GSM 900 | C46: Erlang | D46: ='7a. Radiová sieť 2G'!D148 ->  | E46: ='7a. Radiová sieť 2G'!E148 ->  | F46: ='7a. Radiová sieť 2G'!F148 ->  | G46: ='7a. Radiová sieť 2G'!G148 -> 
B47: Dimenzovanie prevádzky na sektor GSM 1800 | C47: Erlang | D47: ='7a. Radiová sieť 2G'!D149 ->  | E47: ='7a. Radiová sieť 2G'!E149 ->  | F47: ='7a. Radiová sieť 2G'!F149 ->  | G47: ='7a. Radiová sieť 2G'!G149 -> 
B48: Dimenzovanie prevádzky na sektor GSM Dual | C48: Erlang | D48: =D46+D47 ->  | E48: =E46+E47 -> 
B49: Dimenzovanie prevádzky na sektor NodeB | C49: Erlang | D49: ='7b. Radiová sieť 3G'!D125 ->  | E49: ='7b. Radiová sieť 3G'!E125 ->  | F49: ='7b. Radiová sieť 3G'!F125 ->  | G49: ='7b. Radiová sieť 3G'!G125 -> 0
B50: Dimenzování provozu na sektor eNodeB
A52: 8.3 Mapovanie prevádzky ku Core Nodes
B54: Region | C54: Bratislava 1 | D54: Bratislava 2 | E54: Košice 1 | F54: Košice 2 | G54: Trnava | H54: Nitra | I54: Trenčín | J54: Žilina | K54: Banská Bystrica | L54: Prešov
B55: Geotyp Aglomerácie | C55: ='4. Parametre dimenzovania siete'!C68 -> 0 | D55: ='4. Parametre dimenzovania siete'!D68 -> 0 | E55: ='4. Parametre dimenzovania siete'!E68 -> 0 | F55: ='4. Parametre dimenzovania siete'!F68 -> 0 | G55: ='4. Parametre dimenzovania siete'!G68 -> 0 | H55: ='4. Parametre dimenzovania siete'!H68 -> 0 | I55: ='4. Parametre dimenzovania siete'!I68 -> 0 | J55: ='4. Parametre dimenzovania siete'!J68 -> 0 | K55: ='4. Parametre dimenzovania siete'!K68 -> 0 | L55: ='4. Parametre dimenzovania siete'!L68 -> 0
B56: Geotyp Mestá | C56: ='4. Parametre dimenzovania siete'!C69 -> 0 | D56: ='4. Parametre dimenzovania siete'!D69 -> 0 | E56: ='4. Parametre dimenzovania siete'!E69 -> 0 | F56: ='4. Parametre dimenzovania siete'!F69 -> 0 | G56: ='4. Parametre dimenzovania siete'!G69 -> 0 | H56: ='4. Parametre dimenzovania siete'!H69 -> 0 | I56: ='4. Parametre dimenzovania siete'!I69 -> 0 | J56: ='4. Parametre dimenzovania siete'!J69 -> 0 | K56: ='4. Parametre dimenzovania siete'!K69 -> 0 | L56: ='4. Parametre dimenzovania siete'!L69 -> 0
B57: Geotyp Vidiek | C57: ='4. Parametre dimenzovania siete'!C70 -> 0 | D57: ='4. Parametre dimenzovania siete'!D70 -> 0 | E57: ='4. Parametre dimenzovania siete'!E70 -> 0 | F57: ='4. Parametre dimenzovania siete'!F70 -> 0 | G57: ='4. Parametre dimenzovania siete'!G70 -> 0 | H57: ='4. Parametre dimenzovania siete'!H70 -> 0 | I57: ='4. Parametre dimenzovania siete'!I70 -> 0 | J57: ='4. Parametre dimenzovania siete'!J70 -> 0 | K57: ='4. Parametre dimenzovania siete'!K70 -> 0 | L57: ='4. Parametre dimenzovania siete'!L70 -> 0
A59: 8.4 BSC/RNC štatistiky prenosu
B61: Rozdelenie BSC/RNC - MGW prenosového média | C61: Jednotka | D61: Bratislava 1 | E61: Bratislava 2 | F61: Košice 1 | G61: Košice 2 | H61: Trnava | I61: Nitra | J61: Trenčín | K61: Žilina | L61: Banská Bystrica | M61: Prešov
B62: Mikrovlny | C62: % | D62: ='4. Parametre dimenzovania siete'!C262 -> 0 | E62: ='4. Parametre dimenzovania siete'!D262 -> 0 | F62: ='4. Parametre dimenzovania siete'!E262 -> 0 | G62: ='4. Parametre dimenzovania siete'!F262 -> 0 | H62: ='4. Parametre dimenzovania siete'!G262 -> 0 | I62: ='4. Parametre dimenzovania siete'!H262 -> 0 | J62: ='4. Parametre dimenzovania siete'!I262 -> 0 | K62: ='4. Parametre dimenzovania siete'!J262 -> 0 | L62: ='4. Parametre dimenzovania siete'!K262 -> 0 | M62: ='4. Parametre dimenzovania siete'!L262 -> 0
B63: Kábel (vrátane dark fibre) | C63: % | D63: ='4. Parametre dimenzovania siete'!C263 -> 0 | E63: ='4. Parametre dimenzovania siete'!D263 -> 0 | F63: ='4. Parametre dimenzovania siete'!E263 -> 0 | G63: ='4. Parametre dimenzovania siete'!F263 -> 0 | H63: ='4. Parametre dimenzovania siete'!G263 -> 0 | I63: ='4. Parametre dimenzovania siete'!H263 -> 0 | J63: ='4. Parametre dimenzovania siete'!I263 -> 0 | K63: ='4. Parametre dimenzovania siete'!J263 -> 0 | L63: ='4. Parametre dimenzovania siete'!K263 -> 0 | M63: ='4. Parametre dimenzovania siete'!L263 -> 0
B64: Prenajatá kapacita | C64: % | D64: ='4. Parametre dimenzovania siete'!C264 -> 0 | E64: ='4. Parametre dimenzovania siete'!D264 -> 0 | F64: ='4. Parametre dimenzovania siete'!E264 -> 0 | G64: ='4. Parametre dimenzovania siete'!F264 -> 0 | H64: ='4. Parametre dimenzovania siete'!G264 -> 0 | I64: ='4. Parametre dimenzovania siete'!H264 -> 0 | J64: ='4. Parametre dimenzovania siete'!I264 -> 0 | K64: ='4. Parametre dimenzovania siete'!J264 -> 0 | L64: ='4. Parametre dimenzovania siete'!K264 -> 0 | M64: ='4. Parametre dimenzovania siete'!L264 -> 0
B65: Kolokácia | C65: % | D65: ='4. Parametre dimenzovania siete'!C265 -> 0 | E65: ='4. Parametre dimenzovania siete'!D265 -> 0 | F65: ='4. Parametre dimenzovania siete'!E265 -> 0 | G65: ='4. Parametre dimenzovania siete'!F265 -> 0 | H65: ='4. Parametre dimenzovania siete'!G265 -> 0 | I65: ='4. Parametre dimenzovania siete'!H265 -> 0 | J65: ='4. Parametre dimenzovania siete'!I265 -> 0 | K65: ='4. Parametre dimenzovania siete'!J265 -> 0 | L65: ='4. Parametre dimenzovania siete'!K265 -> 0 | M65: ='4. Parametre dimenzovania siete'!L265 -> 0
B67: Priemerné mikro skoky na BSC/RNC - MGW spoj | C67: # | D67: =VLOOKUP(D$61,'4. Parametre dimenzovania siete'!$C$225:$H$234,2,0) -> 0 | E67: =VLOOKUP(E$61,'4. Parametre dimenzovania siete'!$C$225:$H$234,2,0) -> 0 | F67: =VLOOKUP(F$61,'4. Parametre dimenzovania siete'!$C$225:$H$234,2,0) -> 0 | G67: =VLOOKUP(G$61,'4. Parametre dimenzovania siete'!$C$225:$H$234,2,0) -> 0 | H67: =VLOOKUP(H$61,'4. Parametre dimenzovania siete'!$C$225:$H$234,2,0) -> 0 | I67: =VLOOKUP(I$61,'4. Parametre dimenzovania siete'!$C$225:$H$234,2,0) -> 0 | J67: =VLOOKUP(J$61,'4. Parametre dimenzovania siete'!$C$225:$H$234,2,0) -> 0 | K67: =VLOOKUP(K$61,'4. Parametre dimenzovania siete'!$C$225:$H$234,2,0) -> 0 | L67: =VLOOKUP(L$61,'4. Parametre dimenzovania siete'!$C$225:$H$234,2,0) -> 0 | M67: =VLOOKUP(M$61,'4. Parametre dimenzovania siete'!$C$225:$H$234,2,0) -> 0
B69: Priemerná vzdialenosť BSC/RNC - MGW spoju | C69: km | D69: =VLOOKUP(D$61,'4. Parametre dimenzovania siete'!$C$225:$I$234,3,0) -> 0 | E69: =VLOOKUP(E$61,'4. Parametre dimenzovania siete'!$C$225:$I$234,3,0) -> 0 | F69: =VLOOKUP(F$61,'4. Parametre dimenzovania siete'!$C$225:$I$234,3,0) -> 0 | G69: =VLOOKUP(G$61,'4. Parametre dimenzovania siete'!$C$225:$I$234,3,0) -> 0 | H69: =VLOOKUP(H$61,'4. Parametre dimenzovania siete'!$C$225:$I$234,3,0) -> 0 | I69: =VLOOKUP(I$61,'4. Parametre dimenzovania siete'!$C$225:$I$234,3,0) -> 0 | J69: =VLOOKUP(J$61,'4. Parametre dimenzovania siete'!$C$225:$I$234,3,0) -> 0 | K69: =VLOOKUP(K$61,'4. Parametre dimenzovania siete'!$C$225:$I$234,3,0) -> 0 | L69: =VLOOKUP(L$61,'4. Parametre dimenzovania siete'!$C$225:$I$234,3,0) -> 0 | M69: =VLOOKUP(M$61,'4. Parametre dimenzovania siete'!$C$225:$I$234,3,0) -> 0
A71: 8.5 BSC/RNC dimenzovanie množstva
B73: Hlavný vstup | C73: Jednotka | D73: Hlavný vstup
B74: Celkom BSC/RNC - MGW prevádzka | C74: BHE | D74: ='6. NE Dopyt'!$N$128+'6. NE Dopyt'!$O$128 -> 
B75: Plánované využitie spoja (link) | C75: % | D75: =I_CapPlan_Trans_Access -> 
B77: Prevádzka cez Core Node uzly | C77: Jednotka | D77: Bratislava 1 | E77: Bratislava 2 | F77: Košice 1 | G77: Košice 2 | H77: Trnava | I77: Nitra | J77: Trenčín | K77: Žilina | L77: Banská Bystrica | M77: Prešov | N77: Územie celkom
B78: Distribúcia prevádzky | C78: % | D78: ='4. Parametre dimenzovania siete'!C72 ->  | E78: ='4. Parametre dimenzovania siete'!D72 ->  | F78: ='4. Parametre dimenzovania siete'!E72 ->  | G78: ='4. Parametre dimenzovania siete'!F72 ->  | H78: ='4. Parametre dimenzovania siete'!G72 ->  | I78: ='4. Parametre dimenzovania siete'!H72 ->  | J78: ='4. Parametre dimenzovania siete'!I72 ->  | K78: ='4. Parametre dimenzovania siete'!J72 ->  | L78: ='4. Parametre dimenzovania siete'!K72 ->  | M78: ='4. Parametre dimenzovania siete'!L72 ->  | N78: =SUM(D78:M78) -> 
B79: BSC/RNC prevádzka cez základné lokácie (core) | C79: BHE | D79: =D78*$D$74 ->  | N79: =SUM(D79:M79) -> 
B80: BSC/RNC prevádzka cez core lokácie (post utilisation) | C80: BHE | D80: =D79/$D$75 ->  | N80: =SUM(D80:M80) -> 
B81: BSC/RNC cez core lokácie | C81: # | D81: ='7a. Radiová sieť 2G'!D213+'7b. Radiová sieť 3G'!D199 ->  | E81: ='7a. Radiová sieť 2G'!E213+'7b. Radiová sieť 3G'!E199 ->  | F81: ='7a. Radiová sieť 2G'!F213+'7b. Radiová sieť 3G'!F199 ->  | G81: ='7a. Radiová sieť 2G'!G213+'7b. Radiová sieť 3G'!G199 ->  | H81: ='7a. Radiová sieť 2G'!H213+'7b. Radiová sieť 3G'!H199 ->  | I81: ='7a. Radiová sieť 2G'!I213+'7b. Radiová sieť 3G'!I199 ->  | J81: ='7a. Radiová sieť 2G'!J213+'7b. Radiová sieť 3G'!J199 ->  | K81: ='7a. Radiová sieť 2G'!K213+'7b. Radiová sieť 3G'!K199 ->  | L81: ='7a. Radiová sieť 2G'!L213+'7b. Radiová sieť 3G'!L199 ->  | M81: ='7a. Radiová sieť 2G'!M213+'7b. Radiová sieť 3G'!M199 ->  | N81: =SUM(D81:M81) -> 
B82: Prevádzka cez BSC/RNC Core Node uzly | C82: BHE | D82: =IF(D81=0,0,D80/D81) -> 
A84: 8.6 Charakteristiky spojov (stále dáta) | C84: 2 | D84: 3 | E84: 4 | F84: 5 | G84: 6 | H84: 7 | I84: 8
B86: Údaje pre kapacitu spoja | C86: Meno | D86: Dátová kapacita (Mbit/s) | E86: Počet E1 | F86: Okruhy celkom | G86: Hlasové okruhy | H86: Signalizácia | I86: Erlang
B87: Link STM-64 | C87: =VLOOKUP($B87,I_Link_Capacity,C$84,0) -> STM-64 | D87: 9953.28 | E87: 4032 | F87: 0 | G87: 120960 | H87: 0 | I87: 123379.5
B88: Link STM-16 | C88: STM-16 | D88: 2488.32 | E88: 1008 | F88: 0 | G88: 30240 | H88: 0 | I88: 30810.313
B89: Link STM-4 | C89: STM-4 | D89: 622.08 | E89: 252 | F89: 0 | G89: 7560 | H89: 0 | I89: 7672.773
B90: Link STM-1 | C90: STM-1 | D90: 155.52 | E90: 63 | F90: 0 | G90: 1890 | H90: 0 | I90: 1895.7251
B92: Stále údaje pre kapacitu spojov | C92: Meno | D92: Dátová kapacita (Mbit/s) | E92: Počet E1 | F92: Okruhy celkom | G92: Hlasové okruhy | H92: Signalizácia | I92: Erlang
B93: ='4. Parametre dimenzovania siete'!B281 -> Link 128 Mbit/s | C93: =VLOOKUP($B93,I_Link_Capacity,C$84,0) -> E4 | D93: 139.264 | E93: 64 | F93: 2048 | G93: 1920 | H93: 128 | I93: 1926.1928
B94: ='4. Parametre dimenzovania siete'!B280 -> Link 32 Mbit/s | C94: E3 | D94: 34.368 | E94: 16 | F94: 512 | G94: 480 | H94: 32 | I94: 466.316
B95: ='4. Parametre dimenzovania siete'!B279 -> Link 8 Mbit/s | C95: E2 | D95: 8.448 | E95: 4 | F95: 128 | G95: 120 | H95: 8 | I95: 107.4
B96: ='4. Parametre dimenzovania siete'!B278 -> Link 2 Mbit/s | C96: E1 | D96: 2.048 | E96: 1 | F96: 32 | G96: 30 | H96: 2 | I96: 21.932
A99: Výpočet
A101: 8.7 BTS Backhaul dimenzovanie
A103: 8.7.1 Prevádzka na lokácii (HPH Erlang)
B105: Prevádzka na lokácii | C105: # BTS / Lokácia | D105: Aglomerácia | E105: Mestá | F105: Vidiek
B106: =$B$29 -> BTS GSM 900 | C106: =$C$29 -> 1 | D106: =D39*D46 ->  | E106: =$C106*E39*E46 ->  | F106: =$C106*F39*F46 -> 
B107: =$B$30 -> BTS GSM 900 + NodeB | C107: =$C$30 -> 2 | D107: =D106+D112 ->  | E107: =$C107*E40*E47 ->  | F107: =$C107*F40*F47 -> 
B108: =$B$31 -> BTS GSM 900 + GSM 1800 | C108: =$C$31 -> 2 | D108: =D39*D46+D40*D47 ->  | E108: =E39*E46+E40*E47 -> 
B109: =$B$32 -> BTS GSM Dual 900/1800 | C109: =$C$32 -> 1 | D109: =D41*D48 ->  | E109: =E41*E48 -> 
B110: =$B$33 -> BTS GSM Dual 900/1800 | C110: =$C$33 -> 2 | D110: =D109*2 ->  | E110: =E109*2 -> 
B111: =$B$34 -> BTS GSM Dual 900/1800 | C111: =$C$34 -> 3 | D111: =D109*3 ->  | E111: =E109*3 -> 
B112: =$B$35 -> NodeB | C112: =$C$35 -> 1 | D112: =D42*D49 ->  | E112: =E42*E49 -> 
A114: 8.7.2 Kapacita BTS/NodeB - BSC/RNC spojov na lokácii
B116: Typ lokácie | C116: # BTS / Lokácia | D116: Aglomerácia | E116: Mestá | F116: Vidiek
B117: =$B$29 -> BTS GSM 900 | C117: =$C$29 -> 1 | D117: =INDEX($B$87:$B$96,MATCH(D106,$I$87:$I$96,-1)) ->  | E117: =INDEX($B$87:$B$96,MATCH(E106,$I$87:$I$96,-1)) -> 
B118: =$B$30 -> BTS GSM 900 + NodeB | C118: =$C$30 -> 2 | D118: =INDEX($B$87:$B$96,MATCH(D107,$I$87:$I$96,-1)) -> 
B119: =$B$31 -> BTS GSM 900 + GSM 1800 | C119: =$C$31 -> 2
B120: =$B$32 -> BTS GSM Dual 900/1800 | C120: =$C$32 -> 1
B121: =$B$33 -> BTS GSM Dual 900/1800 | C121: =$C$33 -> 2
B122: =$B$34 -> BTS GSM Dual 900/1800 | C122: =$C$34 -> 3
B123: NodeB | C123: 1
B125: Typ lokácie | C125: # BTS / Lokácia | D125: Aglomerácia | E125: Mestá | F125: Vidiek
B126: =$B$29 -> BTS GSM 900 | C126: =$C$29 -> 1 | D126: =ROUNDUP(D106/VLOOKUP(D117,I_Link_Capacity_E1,8,0),0) -> 
B127: =$B$30 -> BTS GSM 900 + NodeB | C127: =$C$30 -> 2 | D127: =ROUNDUP(D107/VLOOKUP(D118,I_Link_Capacity_E1,8,0),0) -> 
B128: =$B$31 -> BTS GSM 900 + GSM 1800 | C128: =$C$31 -> 2 | D128: =ROUNDUP(D108/VLOOKUP(D119,I_Link_Capacity_E1,8,0),0) -> 
B129: =$B$32 -> BTS GSM Dual 900/1800 | C129: =$C$32 -> 1 | D129: =ROUNDUP(D109/VLOOKUP(D120,I_Link_Capacity_E1,8,0),0) -> 
B130: =$B$33 -> BTS GSM Dual 900/1800 | C130: =$C$33 -> 2 | D130: =ROUNDUP(D110/VLOOKUP(D121,I_Link_Capacity_E1,8,0),0) -> 
B131: =$B$34 -> BTS GSM Dual 900/1800 | C131: =$C$34 -> 3 | D131: =ROUNDUP(D111/VLOOKUP(D122,I_Link_Capacity_E1,8,0),0) -> 
B132: NodeB | C132: 1 | D132: =ROUNDUP(D112/VLOOKUP(D123,I_Link_Capacity_E1,8,0),0) -> 
A134: 8.7.3 Celkový počet BTS/NodeB - BSC/RNC mikrovlnných spojov
B136: Typ lokácie | C136: Typ lokácie | D136: Aglomerácia | E136: Mestá | F136: Vidiek
B137: =$B$29 -> BTS GSM 900 | C137: =$C$29 -> 1 | D137: =D29*D$11 -> 
B138: =$B$30 -> BTS GSM 900 + NodeB | C138: =$C$30 -> 2 | D138: =D30*D$11 -> 
B139: =$B$31 -> BTS GSM 900 + GSM 1800 | C139: =$C$31 -> 2 | D139: =D31*D$11 -> 
B140: =$B$32 -> BTS GSM Dual 900/1800 | C140: =$C$32 -> 1 | D140: =D32*D$11 -> 
B141: =$B$33 -> BTS GSM Dual 900/1800 | C141: =$C$33 -> 2 | D141: =D33*D$11 -> 0 | E141: 0 | F141: 0
B142: =$B$34 -> BTS GSM Dual 900/1800 | C142: =$C$34 -> 3 | D142: =D34*D$11 -> 0 | E142: 0 | F142: 0
B143: NodeB | C143: 1 | D143: =D35*D$11 -> 
A145: 8.7.4 Celkový počet BTS/NodeB -BSC/RNC mikrovlnných skokov
B147: Typ lokácie | C147: # BTS / Lokácia | D147: Aglomerácia | E147: Mestá | F147: Vidiek
B148: =$B$29 -> BTS GSM 900 | C148: =$C$29 -> 1 | D148: =ROUND(D137*D$17*(1-0),0) ->  | E148: =ROUND(E137*E$17*(1-0),0) ->  | F148: =ROUND(F137*F$17*(1-0),0) -> 
B149: =$B$30 -> BTS GSM 900 + NodeB | C149: =$C$30 -> 2 | D149: =ROUND(D138*D$17,0) -> 
B150: =$B$31 -> BTS GSM 900 + GSM 1800 | C150: =$C$31 -> 2
B151: =$B$32 -> BTS GSM Dual 900/1800 | C151: =$C$32 -> 1
B152: =$B$33 -> BTS GSM Dual 900/1800 | C152: =$C$33 -> 2
B153: =$B$34 -> BTS GSM Dual 900/1800 | C153: =$C$34 -> 3
B154: NodeB | C154: 1
A156: 8.7.5 Celkový počet nainštalovaných BTS/NodeB - BSC/RNC rádiových setov
B158: Typ lokácie | C158: # BTS / Lokácia | D158: Aglomerácia | E158: Mestá | F158: Vidiek | H158: Total
B159: =$B$29 -> BTS GSM 900 | C159: =$C$29 -> 1 | D159: =D148*D126 ->  | H159: =SUM(D159:F159) -> 
B160: =$B$30 -> BTS GSM 900 + NodeB | C160: =$C$30 -> 2 | D160: =D149*D127 -> 
B161: =$B$31 -> BTS GSM 900 + GSM 1800 | C161: =$C$31 -> 2 | D161: =D150*D128 -> 
B162: =$B$32 -> BTS GSM Dual 900/1800 | C162: =$C$32 -> 1 | D162: =D151*D129 -> 
B163: =$B$33 -> BTS GSM Dual 900/1800 | C163: =$C$33 -> 2 | D163: =D152*D130 -> 
B164: =$B$34 -> BTS GSM Dual 900/1800 | C164: =$C$34 -> 3 | D164: =D153*D131 -> 
B165: NodeB | C165: 1 | D165: =D154*D132 -> 
B167: Celkem podľa typu
B168: =B93 -> Link 128 Mbit/s | C168: # rádio lokácií | D168: =SUMIF(D$117:D$123,$B168,D$159:D$165) -> 0 | E168: 0 | F168: 0 | H168: =SUM(D168:F168) -> 0
B169: =B94 -> Link 32 Mbit/s | C169: # rádio lokácií | D169: 0 | E169: 0 | F169: 0 | H169: =SUM(D169:F169) -> 0
B170: =B95 -> Link 8 Mbit/s | C170: # rádio lokácií | D170: 0 | E170: 0 | F170: 0 | H170: =SUM(D170:F170) -> 0
B171: =B96 -> Link 2 Mbit/s | C171: # rádio lokácií | D171: 0 | E171: 0 | F171: 0 | H171: =SUM(D171:F171) -> 0
A174: 8.7.6 Počet a vzdialenosť BTS/NodeB - BSC/RNC káblových spojov - celkom
B176: Typ lokácie | C176: # BTS / Lokácia | D176: Aglomerácia | E176: Mestá | F176: Vidiek
B177: =$B$29 -> BTS GSM 900 | C177: =$C$29 -> 1 | D177: =ROUND(D29*D$12,0) -> 
B178: =$B$30 -> BTS GSM 900 + NodeB | C178: =$C$30 -> 2 | D178: =ROUND(D30*D$12,0) -> 
B179: =$B$31 -> BTS GSM 900 + GSM 1800 | C179: =$C$31 -> 2 | D179: =ROUND(D31*D$12,0) -> 
B180: =$B$32 -> BTS GSM Dual 900/1800 | C180: =$C$32 -> 1 | D180: =ROUND(D32*D$12,0) -> 
B181: =$B$33 -> BTS GSM Dual 900/1800 | C181: =$C$33 -> 2 | D181: =ROUND(D33*D$12,0) -> 0 | E181: 0 | F181: 0
B182: =$B$34 -> BTS GSM Dual 900/1800 | C182: =$C$34 -> 3 | D182: =ROUND(D34*D$12,0) -> 0 | E182: 0 | F182: 0
B183: NodeB | C183: 1 | D183: =ROUND(D35*D$12,0) ->  | E183: =ROUND(E35*E$12,0) -> 
B184: Number of km of fibre deployed for BTS-BSC only | D184: =SUM(D177:D183)*D$18 ->  | E184: =SUM(E177:E183)*E$18 ->  | F184: =SUM(F177:F183)*F$18 -> 
A186: 8.7.7 Kapacita ADM potrebná pre BTS/NodeB lokácie
B188: Typ lokácie | C188: # BTS / Lokácia | D188: Aglomerácia | E188: Mestá | F188: Vidiek | H188: Total
B189: =$B$29 -> BTS GSM 900 | C189: =$C$29 -> 1 | D189: =INDEX($B$87:$B$90,MATCH(D106,$I$87:$I$90,-1)) ->  | H189: =SUM(D189:F189) -> 
B190: =$B$30 -> BTS GSM 900 + NodeB | C190: =$C$30 -> 2 | D190: =INDEX($B$87:$B$90,MATCH(D107,$I$87:$I$90,-1)) -> 
B191: =$B$31 -> BTS GSM 900 + GSM 1800 | C191: =$C$31 -> 2 | D191: =INDEX($B$87:$B$90,MATCH(D108,$I$87:$I$90,-1)) -> 
B192: =$B$32 -> BTS GSM Dual 900/1800 | C192: =$C$32 -> 1 | D192: =INDEX($B$87:$B$90,MATCH(D109,$I$87:$I$90,-1)) -> 
B193: =$B$33 -> BTS GSM Dual 900/1800 | C193: =$C$33 -> 2 | D193: =INDEX($B$87:$B$90,MATCH(D110,$I$87:$I$90,-1)) -> 
B194: =$B$34 -> BTS GSM Dual 900/1800 | C194: =$C$34 -> 3 | D194: =INDEX($B$87:$B$90,MATCH(D111,$I$87:$I$90,-1)) -> 
B195: NodeB | C195: 1 | D195: =INDEX($B$87:$B$90,MATCH(D112,$I$87:$I$90,-1)) -> 
A197: 8.7.8 Počet ADM priradených BTS/NodeB lokácií
B198: Predpoklad 1 ADM na lokácii, keďže každá BTS môže byť spojená mikrovlnným spojom do bodu prepojenia káblom
B199: Typ lokácie | C199: # BTS / Lokácia | D199: Aglomerácia | E199: Mestá | F199: Vidiek | H199: Total
B200: =$B$29 -> BTS GSM 900 | C200: =$C$29 -> 1 | D200: =D177 ->  | H200: =SUM(D200:F200) -> 
B201: =$B$30 -> BTS GSM 900 + NodeB | C201: =$C$30 -> 2 | D201: =D178 -> 
B202: =$B$31 -> BTS GSM 900 + GSM 1800 | C202: =$C$31 -> 2 | D202: =D179 -> 
B203: =$B$32 -> BTS GSM Dual 900/1800 | C203: =$C$32 -> 1 | D203: =D180 -> 
B204: =$B$33 -> BTS GSM Dual 900/1800 | C204: =$C$33 -> 2 | D204: =D181 -> 0 | E204: 0 | F204: 0 | H204: 0
B205: =$B$34 -> BTS GSM Dual 900/1800 | C205: =$C$34 -> 3 | D205: =D182 -> 0 | E205: 0 | F205: 0 | H205: 0
B206: NodeB | C206: 1 | D206: =D183 ->  | E206: =E183 -> 
B207: Celkom | C207: # ADM | D207: =SUM(D200:D206) ->  | E207: =SUM(E200:E206) ->  | H207: =SUM(H200:H206) -> 
B209: Celkom podľa typu
B210: =B87 -> Link STM-64 | C210: # ADM | D210: =SUMIF(D$189:D$195,$B210,D$200:D$206) -> 0 | E210: =SUMIF(E$189:E$195,$B210,E$200:E$206) -> 0 | F210: 0 | H210: =SUM(D210:F210) -> 0
B211: =B88 -> Link STM-16 | C211: # ADM | D211: =SUMIF(D$189:D$195,$B211,D$200:D$206) -> 0 | E211: 0 | F211: 0 | H211: =SUM(D211:F211) -> 0
B212: =B89 -> Link STM-4 | C212: # ADM | D212: =SUMIF(D$189:D$195,$B212,D$200:D$206) -> 0 | E212: 0 | F212: 0 | H212: =SUM(D212:F212) -> 0
B213: =B90 -> Link STM-1 | C213: # ADM | D213: =SUMIF(D$189:D$195,$B213,D$200:D$206) -> 0 | E213: 0 | F213: 0 | H213: =SUM(D213:F213) -> 0
A216: 8.7.9 Počet BTS-BSC prenajatých spojov
B218: Typ lokácie | C218: # BTS / Lokácia | D218: Aglomerácia | E218: Mestá | F218: Vidiek
B219: =$B$29 -> BTS GSM 900 | C219: =$C$29 -> 1 | D219: =ROUND(D29*D$13,0) -> 
B220: =$B$30 -> BTS GSM 900 + NodeB | C220: =$C$30 -> 2 | D220: =ROUND(D30*D$13,0) -> 
B221: =$B$31 -> BTS GSM 900 + GSM 1800 | C221: =$C$31 -> 2 | D221: =ROUND(D31*D$13,0) -> 
B222: =$B$32 -> BTS GSM Dual 900/1800 | C222: =$C$32 -> 1 | D222: =ROUND(D32*D$13,0) -> 
B223: =$B$33 -> BTS GSM Dual 900/1800 | C223: =$C$33 -> 2 | D223: =ROUND(D33*D$13,0) -> 0 | E223: 0 | F223: 0
B224: =$B$34 -> BTS GSM Dual 900/1800 | C224: =$C$34 -> 3 | D224: =ROUND(D34*D$13,0) -> 0 | E224: 0 | F224: 0
B225: NodeB | C225: 1 | D225: =ROUND(D35*D$13,0) -> 
B227: Spojov celkom na kapacitu
B228: =B93 -> Link 128 Mbit/s | C228: # spojov | D228: =SUMIF(D$117:D$123,$B228,D$219:D$225) -> 0 | E228: 0 | F228: 0 | H228: =SUM(D228:F228) -> 0
B229: =B94 -> Link 32 Mbit/s | C229: # spojov | D229: 0 | E229: 0 | F229: 0 | H229: =SUM(D229:F229) -> 0
B230: =B95 -> Link 8 Mbit/s | C230: # spojov | D230: 0 | E230: 0 | F230: 0 | H230: =SUM(D230:F230) -> 0
B231: =B96 -> Link 2 Mbit/s | C231: # spojov | D231: 0 | E231: 0 | F231: 0 | H231: =SUM(D231:F231) -> 0
A233: 8.7.10 Požadované Km prenajatých spojov (BTS/NodeB - BSC/RNC iba)
B235: Typ lokácie | C235: # BTS / Lokácia | D235: Aglomerácia | E235: Mestá | F235: Vidiek | H235: Total
B236: =$B$29 -> BTS GSM 900 | C236: =$C$29 -> 1 | D236: =D219*D126*D$18 ->  | H236: =SUM(D236:F236) -> 
B237: =$B$30 -> BTS GSM 900 + NodeB | C237: =$C$30 -> 2 | D237: =D220*D127*D$18 -> 
B238: =$B$31 -> BTS GSM 900 + GSM 1800 | C238: =$C$31 -> 2 | D238: =D221*D128*D$18 -> 
B239: =$B$32 -> BTS GSM Dual 900/1800 | C239: =$C$32 -> 1 | D239: =D222*D129*D$18 -> 
B240: =$B$33 -> BTS GSM Dual 900/1800 | C240: =$C$33 -> 2 | D240: =D223*D130*D$18 -> 
B241: =$B$34 -> BTS GSM Dual 900/1800 | C241: =$C$34 -> 3 | D241: =D224*D131*D$18 -> 
B242: NodeB | C242: 1 | D242: =D225*D132*D$18 -> 
B244: Vzdialenosť celkom | C244: km | D244: =SUM(D236:D242) ->  | E244: =SUM(E236:E242) -> 
B246: Celkom km na kapacitu
B247: =B93 -> Link 128 Mbit/s | C247: km | D247: =SUMIF(D$117:D$123,$B247,D$236:D$242) -> 0 | E247: 0 | F247: 0 | H247: =SUM(D247:F247) -> 0
B248: =B94 -> Link 32 Mbit/s | C248: km | D248: 0 | E248: 0 | F248: 0 | H248: =SUM(D248:F248) -> 0
B249: =B95 -> Link 8 Mbit/s | C249: km | D249: 0 | E249: 0 | F249: 0 | H249: =SUM(D249:F249) -> 0
B250: =B96 -> Link 2 Mbit/s | C250: km | D250: 0 | E250: 0 | F250: 0 | H250: =SUM(D250:F250) -> 0
A306: 8.8 BSC/RNC - MGW dimenzovanie
A308: 8.8.1 Počet BSC/RNC - MGW spojov podľa druhu
B310: Spoje celkom podľa druhu | C310: Jednotka | D310: Bratislava 1 | E310: Bratislava 2 | F310: Košice 1 | G310: Košice 2 | H310: Trnava | I310: Nitra | J310: Trenčín | K310: Žilina | L310: Banská Bystrica | M310: Prešov
... 99 more rows

Sheet 7c. Radiová síť LTE (hidden)
A1: 7b. Dimenzovanie rádiovej časti siete LTE
A3: Popis
A4: Kalkulácia dimenzovania LTE rádiovej siete
A6: Vstupy z predchádzajúcich kalkulácií
B9: Busy hour prevádzka | C9: Jednotka | D9: Hodnota
B10: BHE v súčasnom roku | C10: BHE | D10: ='6. NE Dopyt'!$G$128 -> 
B11: Kapacity planning max load factor - radio network | C11: % | D11: ='0. Hlavné vstupy'!$AI$75 -> 0
B12: BHE v plánovanom období | C12: BHE | D12: =D10*(1+'2. Dopyt'!$F$43*$D$15/12) -> 
B13: BHE úprava loading factor | C13: BHE | D13: =$D$12/$D$11 -> 
B14: BH prevádzka v Mbps | C14: Mbps
B15: Plánovacie obdobie | C15: # mesiacov | D15: ='4. Parametre dimenzovania siete'!$C$98 -> 0
B21: Region | C21: Celkové pokrytie - LTE (% celkovej rozlohy) | D21: Celkové pokrytie - LTE (km2)
B22: Aglomerácia | C22: ='0. Hlavné vstupy'!$AE$76 -> 0 | D22: =C22*'4. Parametre dimenzovania siete'!$D$40 -> 0
B23: Mestá | C23: ='0. Hlavné vstupy'!$AE$77 -> 0 | D23: =C23*'4. Parametre dimenzovania siete'!$D$41 -> 0
B24: Vidiek | C24: ='0. Hlavné vstupy'!$AE$78 -> 0 | D24: =C24*'4. Parametre dimenzovania siete'!$D$42 -> 0
B27: Region | C27: Node B maximálny polomer bunky | D27: Node B priemerný polomer bunky
B28: Aglomerácia | C28: ='4. Parametre dimenzovania siete'!I49 -> 35 | D28: ='4. Parametre dimenzovania siete'!$J$49 -> 0
B29: Mestá | C29: ='4. Parametre dimenzovania siete'!I50 -> 35 | D29: ='4. Parametre dimenzovania siete'!$J$49 -> 0
B30: Vidiek | C30: ='4. Parametre dimenzovania siete'!I51 -> 35 | D30: ='4. Parametre dimenzovania siete'!$J$49 -> 0
B31: Dopravné koridory | C31: ='4. Parametre dimenzovania siete'!#REF! ->  | D31: ='4. Parametre dimenzovania siete'!$J$49 -> 0
B32: Rekreačné oblasti | C32: ='4. Parametre dimenzovania siete'!#REF! ->  | D32: ='4. Parametre dimenzovania siete'!$J$49 -> 0
B38: link output to 11. Anualizace

Sheet 7b. Radiová sieť 3G
A1: 7b. Dimenzovanie rádiovej časti siete 3G
A3: Popis
A4: Kalkulácie dimenzovania 3G rádiovej siete
A6: Vstupy z predchádzajúcich kalkulácií
A8: 7.1 Údaje pre dimenzovanie
B10: Plánovacie parametre | C10: Jednotka | D10: Hodnota
B11: Kvalita služby (Radio path Grade of Service (GoS): Blocking Probability) | C11: % | D11: 0.01
B12: Plánovaná kapacita loading factor | C12: % | D12: =I_CapPlan_Radio3G -> 
B13: Pomer Node B HSPA enabled | C13: % | D13: ='4. Parametre dimenzovania siete'!E18 -> 0
B14: UMTS Radio Channel voice rate (bandwidth for 1 voice erlang / channel) | C14: mbps | D14: ='4. Parametre dimenzovania siete'!E19 -> 0
B16: Busy hour prevádzka | C16: Jednotka | D16: Hodnota
B17: BHE v súčasnom roku | C17: BHE | D17: ='6. NE Dopyt'!E128 -> 
B18: Plánovacie obdobie | C18: # mesiacov | D18: ='4. Parametre dimenzovania siete'!C98 -> 0
B19: BHE v plánovanom období | C19: BHE | D19: =D17*(1+'2. Dopyt'!F43*D18/12) -> 
B20: BHE úprava loading factor | C20: BHE | D20: =D19/D12 -> 
B21: BH prevádzka v Mbps | C21: Mbps | D21: =D20*D14 -> 
B23: Spektrum | C23: Jednotka | D23: UMTS
B24: Dostupné spektrum | C24: KHz | D24: ='0. Hlavné vstupy'!AI85 -> 
B25: Špeciálna kapacita carrier | C25: KHz | D25: ='4. Parametre dimenzovania siete'!F32 -> 5000
B27: Node-B kapacita | C27: Jednotka | D27: UMTS
B28: Max počet kanálov na carrier | C28: # kanálov | D28: ='4. Parametre dimenzovania siete'!E20 -> 0
B29: Kapacita na soft handover | C29: % | D29: ='4. Parametre dimenzovania siete'!E21 -> 0
B30: Max počet kanálov na carrier pre soft handover | C30: # kanálov | D30: =D28/(1+D29) -> 0
B31: Minimálny počet kanálov na Node-B | C31: # kanálov | D31: ='4. Parametre dimenzovania siete'!E23 -> 0
B32: Kanál na Channel Kit | C32: # kanálov | D32: ='4. Parametre dimenzovania siete'!E23 -> 0
B34: RNC kapacita | C34: Jednotka | D34: UMTS
B35: Max dátový objem na RNC | C35: mbps | D35: ='4. Parametre dimenzovania siete'!C124 -> 
B38: Faktory využitia | C38: Jednotka | D38: Aglomerácie | E38: Mestá | F38: Vidiek | G38: Územie celkom
B39: Channel Element faktor využitia | C39: % | D39: ='4. Parametre dimenzovania siete'!$E$25 -> 0 | E39: ='4. Parametre dimenzovania siete'!$E$25 -> 0 | F39: ='4. Parametre dimenzovania siete'!$E$25 -> 0 | G39: ='4. Parametre dimenzovania siete'!$E$25 -> 0
B41: Sektorizácia | C41: Jednotka | D41: Aglomerácie | E41: Mestá | F41: Vidiek | G41: Územie celkom
B42: 1 sektor | C42: # sektorov | D42: 1 | E42: 1 | F42: 1 | G42: 1
B43: 2 sektory | C43: # sektorov | D43: 2 | E43: 2 | F43: 2 | G43: 2
B44: 3+ sektory | C44: # sektorov | D44: 3 | E44: 3 | F44: 3 | G44: 3
B46: Využitie existujúcich lokácií | C46: Jednotka | D46: Aglomerácie | E46: Mestá | F46: Vidiek | G46: Územie celkom
B47: Počet 2G lokácií | C47: # lokácií | D47: ='7a. Radiová sieť 2G'!D195 ->  | E47: ='7a. Radiová sieť 2G'!E195 ->  | F47: ='7a. Radiová sieť 2G'!F195 ->  | G47: =SUM(D47:F47) -> 
B48: Pomer 2G lokácií dostupných pre 3G upgrade | C48: % | D48: 1 | E48: 1 | F48: 1 | G48: =SUMPRODUCT(D47:F47,D48:F48)/SUM(D47:F47) -> 
A50: 7.2 Rádiové dáta
B52: Údaje | C52: Jednotka | D52: Aglomerácie | E52: Mestá | F52: Vidiek | G52: Územie celkom
B53: Územie celkom | C53: Km2 | D53: =VLOOKUP(D$52,'4. Parametre dimenzovania siete'!$B$40:$D$43,3,0) -> 0 | E53: =VLOOKUP(E$52,'4. Parametre dimenzovania siete'!$B$40:$D$43,3,0) -> 0 | F53: =VLOOKUP(F$52,'4. Parametre dimenzovania siete'!$B$40:$D$43,3,0) -> 0 | G53: =VLOOKUP(G$52,'4. Parametre dimenzovania siete'!$B$40:$D$43,3,0) -> 40511.33506
B54: Pokrytie UMTS | C54: % | D54: =VLOOKUP(D$52,'4. Parametre dimenzovania siete'!$B$40:$G$43,6,0) ->  | E54: =VLOOKUP(E$52,'4. Parametre dimenzovania siete'!$B$40:$G$43,6,0) ->  | F54: =VLOOKUP(F$52,'4. Parametre dimenzovania siete'!$B$40:$G$43,6,0) -> 
B55: Územie pokryté UMTS | C55: Km2 | D55: =D53*D54 ->  | E55: =E53*E54 ->  | G55: 0
B57: UMTS priemerný polomer bunky | C57: Km | D57: =VLOOKUP(D$52,'4. Parametre dimenzovania siete'!$B$49:$H$51,7,0) ->  | E57: =VLOOKUP(E$52,'4. Parametre dimenzovania siete'!$B$49:$H$51,7,0) ->  | F57: =VLOOKUP(F$52,'4. Parametre dimenzovania siete'!$B$49:$H$51,7,0) -> 
B59: Distribúcia prevádzky | C59: % | D59: =VLOOKUP(D$52,'4. Parametre dimenzovania siete'!$B$57:$F$60,5,0) ->  | E59: =VLOOKUP(E$52,'4. Parametre dimenzovania siete'!$B$57:$F$60,5,0) ->  | F59: =VLOOKUP(F$52,'4. Parametre dimenzovania siete'!$B$57:$F$60,5,0) -> 
B61: UMTS sektorizácia
B62: 1 sektor | C62: % | D62: =VLOOKUP(D$52,'4. Parametre dimenzovania siete'!$B$111:$N$114,11,0) -> 0 | E62: =VLOOKUP(E$52,'4. Parametre dimenzovania siete'!$B$111:$N$114,11,0) -> 0 | F62: =VLOOKUP(F$52,'4. Parametre dimenzovania siete'!$B$111:$N$114,11,0) -> 0
B63: 2 sektory | C63: % | D63: =VLOOKUP(D$52,'4. Parametre dimenzovania siete'!$B$111:$N$114,12,0) -> 0 | E63: =VLOOKUP(E$52,'4. Parametre dimenzovania siete'!$B$111:$N$114,12,0) -> 0 | F63: =VLOOKUP(F$52,'4. Parametre dimenzovania siete'!$B$111:$N$114,12,0) -> 0
B64: 3+ sektory | C64: % | D64: =VLOOKUP(D$52,'4. Parametre dimenzovania siete'!$B$111:$N$114,13,0) -> 0 | E64: =VLOOKUP(E$52,'4. Parametre dimenzovania siete'!$B$111:$N$114,13,0) -> 0 | F64: =VLOOKUP(F$52,'4. Parametre dimenzovania siete'!$B$111:$N$114,13,0) -> 0
B66: Štatistiky lokácií
B67: Počet striech | C67: % | D67: ='4. Parametre dimenzovania siete'!C78 -> 
B68: Počet samostatných pylónov | C68: % | D68: ='4. Parametre dimenzovania siete'!C79 -> 
B71: Štatistiky zdrojov energie lokácií
B72: ='4. Parametre dimenzovania siete'!B154 -> Lokácie základňových staníc napojené na elektrickú sieť | C72: % | D72: ='4. Parametre dimenzovania siete'!C154 -> 
A74: Výpočet
A76: 7.3 Node B dimenzovanie pokrytia
B78: Koeficient pokrytia (výpočet územia tvaru hexagón) | C78: Hodnota
B79: 1 sektor | C79: 2.6
B80: 2 sektory | C80: 2.6
B81: 3+ sektory | C81: 2.6
B83: Pokrytie Node-B lokácií | C83: Jednotka | D83: Aglomerácie | E83: Mestá | F83: Vidiek
B84: 1 sektor | C84: Km2 | D84: =$C79*D$57^2 ->  | E84: =$C79*E$57^2 -> 
B85: 2 sektory | C85: Km2 | D85: =$C80*D$57^2 -> 
B86: 3+ sektory | C86: Km2 | D86: =$C81*D$57^2 ->  | E86: =$C81*E$57^2 -> 
B88: Počet Node-B potrebných na pokrytie | C88: Jednotka | D88: Aglomerácie | E88: Mestá | F88: Vidiek | G88: Územie celkom
B89: 1 sektor | C89: # NodeB | D89: =IF(D$55=0,0,ROUNDUP(D$55/D84,0)) ->  | E89: =IF(E$55=0,0,ROUNDUP(E$55/E84,0)) ->  | G89: =SUM(D89:F89) -> 
B90: 2 sektory | C90: # NodeB | G90: =SUM(D90:F90) -> 0
B91: 3+ sektory | C91: # NodeB | G91: =SUM(D91:F91) -> 0
B92: Celkom | C92: # NodeB | D92: =SUM(D89:D91) ->  | E92: =SUM(E89:E91) -> 
A94: 7.4 Kapacita z pokrytia
C96: Jednotka | D96: Aglomerácie | E96: Mestá | F96: Vidiek | G96: Územie celkom
B97: Počet pokrytých sektorov | C97: # sektorov | D97: =D89*D$42+D90*D$43+D91*D$44 ->  | E97: =E89*E$42+E90*E$43+E91*E$44 ->  | G97: =SUM(D97:F97) -> 
B98: Dostupné Carriers na sektor | C98: # carrier | D98: =$D$24/$D$25 -> 
B99: Kanály na carrier na sektor | C99: # channels/carrier/sektor | D99: =$D$30 -> 0 | E99: =$D$30 -> 0 | F99: 0
B100: Erlang dostupné na carrier na sektor | C100: # Erlangs/carrier/sektor | D100: =INDEX(ErlangTable_nCircuits,MATCH(D99,INDIRECT(HLOOKUP($D$11,'4. Parametre dimenzovania siete'!$D$291:$G$292,2,0)),1)) -> 0 | E100: =INDEX(ErlangTable_nCircuits,MATCH(E99,INDIRECT(HLOOKUP($D$11,'4. Parametre dimenzovania siete'!$D$291:$G$292,2,0)),1)) -> 0 | F100: =INDEX(ErlangTable_nCircuits,MATCH(F99,INDIRECT(HLOOKUP($D$11,'4. Parametre dimenzovania siete'!$D$291:$G$292,2,0)),1)) -> 0 | G100: =SUM(D100:F100) -> 0
B101: Efektívna kapacita poskytnutá pokrytím siete | C101: # Erlang | D101: =D97*D100*D98*D39*$D$12 ->  | E101: =E97*E100*E98*E39*$D$12 ->  | F101: =F97*F100*F98*F39*$D$12 ->  | G101: =SUM(D101:F101) -> 
A103: 7.5 Dodatočná Node-B dimenzovacia kapacita
B105: Kapacitné požiadavky | C105: Jednotka | D105: Aglomerácie | E105: Mestá | F105: Vidiek | G105: Územie celkom
B106: Prevádzka v regióne | C106: # Erlang | D106: =$D$20*D59 ->  | E106: =$D$20*E59 ->  | F106: =$D$20*F59 ->  | G106: =SUM(D106:F106) -> 
B107: Dodatočná požadovaná kapacita | C107: # Erlang | D107: =MAX(0,D106-D101) ->  | G107: =SUM(D107:F107) -> 
B108: Dodatočne požadované sektory | C108: # sektorov | D108: =ROUNDUP(D107/(D100*D98),0) ->  | G108: =SUM(D108:F108) -> 
B109: Priemerný počet sektorov z nových lokácií | C109: # sektorov/lokácia | D109: =D42*D62+D43*D63+D44*D64 -> 0 | E109: =E42*E62+E43*E63+E44*E64 -> 0 | F109: =F42*F62+F43*F63+F44*F64 -> 0 | G109: =G42*G62+G44*G64 -> 0
B111: Počet Node-B požadovaných na kapacitu | C111: Jednotka | D111: Aglomerácie | E111: Mestá | F111: Vidiek | G111: Územie celkom
B112: 1 sektor | C112: # Node-B | D112: =ROUND(D62*D$108/D$109,0) -> 
B113: 2 sektory | C113: # Node-B
B114: 3+ sektory | C114: # Node-B
B116: Celkový počet požadovaných Node-B | C116: Jednotka | D116: Aglomerácie | E116: Mestá | F116: Vidiek | G116: Územie celkom
B117: 1 sektor | C117: # Node-B | D117: =D112+D89 ->  | G117: =SUM(D117:F117) -> 
B118: 2 sektory | C118: # Node-B | G118: =SUM(D118:F118) -> 
B119: 3+ sektory | C119: # Node-B | D119: =D114+D91 ->  | G119: =SUM(D119:F119) -> 
G120: =SUM(G117:G119) ->  | H120: Output to be costed
A122: 7.6 Dimenzovanie Channel Kit
B124: Kapacitné požiadavky | C124: Jednotka | D124: Aglomerácie | E124: Mestá | F124: Vidiek | G124: Územie celkom
B125: BHE na sektor | C125: BHE / Sektor | D125: =IF(D97=0,0,D106/D97) -> 
B126: Channel Elements požadované na sektor (vrátane soft handover) | C126: Channel Elements/sektor | D126: =INDEX(ErlangTable_nCircuits,MATCH(D125,INDIRECT(HLOOKUP($D$11,'4. Parametre dimenzovania siete'!$D$291:$G$292,2,0),1))*(1+$D$29)) ->  | E126: =INDEX(ErlangTable_nCircuits,MATCH(E125,INDIRECT(HLOOKUP($D$11,'4. Parametre dimenzovania siete'!$D$291:$G$292,2,0),1))*(1+$D$29)) ->  | F126: =INDEX(ErlangTable_nCircuits,MATCH(F125,INDIRECT(HLOOKUP($D$11,'4. Parametre dimenzovania siete'!$D$291:$G$292,2,0),1))*(1+$D$29)) -> 
B128: Channel Elements požadované na Node B (vrátane soft handover) | C128: Jednotka | D128: Aglomerácie | E128: Mestá | F128: Vidiek | G128: Územie celkom
B129: 1 sektor | C129: Channel Elements/Node B | D129: =MAX(D$126*D42,$D$31) -> 
B130: 2 sektory | C130: Channel Elements/Node B
B131: 3+ sektory | C131: Channel Elements/Node B
B133: Channel Kit požadované na Node B | C133: Jednotka | D133: Aglomerácie | E133: Mestá | F133: Vidiek | G133: Územie celkom
B134: 1 sektor | C134: Channel Elements/Node B | D134: =D129/$D$32 ->  | G134: =SUM(D134:F134) -> 
B135: 2 sektory | C135: Channel Elements/Node B | G135: =SUM(D135:F135) -> 
B136: 3+ sektory | C136: Channel Elements/Node B | D136: =D131/$D$32 ->  | G136: =SUM(D136:F136) -> 
B138: Celkom požadované Channel Kit | C138: Jednotka | D138: Aglomerácie | E138: Mestá | F138: Vidiek | G138: Územie celkom
B139: 1 sektor | C139: Channel Elements/Node B | D139: =D134*D117 ->  | G139: =SUM(D139:F139) -> 
B140: 2 sektory | C140: Channel Elements/Node B | G140: =SUM(D140:F140) -> 
B141: 3+ sektory | C141: Channel Elements/Node B | D141: =D136*D119 ->  | G141: =SUM(D141:F141) -> 
G142: =SUM(G139:G141) ->  | H142: Output to be costed
A144: 7.7 Dimenzovanie Carrier
B146: Carriers na Node B | C146: Jednotka | D146: Aglomerácie | E146: Mestá | F146: Vidiek | G146: Územie celkom
B147: 1 sektor | C147: Carriers/Node B | D147: =ROUNDUP(D129/$D$28,0) -> 
B148: 2 sektory | C148: Carriers/Node B
B149: 3+ sektory | C149: Carriers/Node B | D149: =ROUNDUP(D131/$D$28,0) -> 
B151: Celkom požadované Carriers | C151: Jednotka | D151: Aglomerácie | E151: Mestá | F151: Vidiek | G151: Územie celkom
B152: 1 sektor | C152: # Carriers | D152: =D147*D117 ->  | G152: =SUM(D152:F152) -> 
B153: 2 sektory | C153: # Carriers | G153: =SUM(D153:F153) -> 
B154: 3+ sektory | C154: # Carriers | D154: =D149*D119 ->  | G154: =SUM(D154:F154) -> 
G155: =SUM(G152:G154) ->  | H155: Output to be costed
A156: 7.8 HSPA dimenzovanie
B158: Carriers na node B | C158: Jednotka | D158: Aglomerácie | E158: Mestá | F158: Vidiek | G158: Územie celkom
B159: Node B umožňujúci HSPA | C159: Carriers/Node B | D159: =ROUND(SUM(D117:D119)*$D$13,0) ->  | G159: =SUM(D159:F159) ->  | H159: Output to be costed
A161: 7.9 3G dimenzovanie lokácií
B162: Predpoklad 1 Node-B na lokáciu
B163: Počet lokácií | C163: Site type | D163: Aglomerácie | E163: Mestá | F163: Vidiek | G163: Územie celkom
B164: Node-B lokácií celkom | C164: # lokácií | D164: =SUM(D117:D119) ->  | G164: =SUM(D164:F164) -> 
B165: 2G lokácie dostupné pre Node-B deployment | C165: # lokácií | D165: =D47*D48 ->  | E165: =E47*E48 ->  | F165: =F47*F48 ->  | G165: =SUM(D165:F165) -> 
B166: Spojené 2G a 3G lokácie | C166: # lokácií | D166: =MIN(D164:D165) ->  | G166: =SUM(D166:F166) -> 
B167: Nové 3G lokácie (iba 3G) | C167: # lokácií | D167: =MAX(0,D164-D166) ->  | G167: =SUM(D167:F167) -> 
B169: 3G (iba) lokácie podľa typu | C169: Jednotka | D169: Aglomerácie | E169: Mestá | F169: Vidiek | G169: Územie celkom
B170: Počet striech | C170: # lokácií | D170: =D167-D171-D172 ->  | G170: =SUM(D170:F170) ->  | H170: Output to be costed
B171: Počet samostatných pylónov | C171: # lokácií | D171: =ROUND(D$167*$D$68,0) ->  | G171: =SUM(D171:F171) ->  | H171: Output to be costed
G172: =SUM(D172:F172) -> 
A174: 7.10 3G dimenzovanie zdrojov energie
B176: Celkový počet požadovaných lokácií (3G only) | C176: Jednotka | D176: Aglomerácie | E176: Mestá | F176: Vidiek | G176: Územie celkom
B177: =B72 -> Lokácie základňových staníc napojené na elektrickú sieť | C177: # lokácií | D177: =D$170*$D72 ->  | E177: =E$170*$D72 ->  | F177: =F$170*$D72 ->  | G177: =SUM(D177:F177) ->  | H177: Output to be costed
H178: Output to be costed
H179: Output to be costed
H180: Output to be costed
A183: 7.11 RNC dimenzovania
D185: Regionálna prepojenosť prevádzky na Core Nodes
B186: Región | C186: Jednotka | D186: Bratislava 1 | E186: Bratislava 2 | F186: Košice 1 | G186: Košice 2 | H186: Trnava | I186: Nitra | J186: Trenčín | K186: Žilina | L186: Banská Bystrica | M186: Prešov
B187: Aglomerácie | C187: --->>> | D187: ='4. Parametre dimenzovania siete'!C68 -> 0 | E187: ='4. Parametre dimenzovania siete'!D68 -> 0 | F187: ='4. Parametre dimenzovania siete'!E68 -> 0 | G187: ='4. Parametre dimenzovania siete'!F68 -> 0 | H187: ='4. Parametre dimenzovania siete'!G68 -> 0 | I187: ='4. Parametre dimenzovania siete'!H68 -> 0 | J187: ='4. Parametre dimenzovania siete'!I68 -> 0 | K187: ='4. Parametre dimenzovania siete'!J68 -> 0 | L187: ='4. Parametre dimenzovania siete'!K68 -> 0 | M187: ='4. Parametre dimenzovania siete'!L68 -> 0
B188: Mestá | C188: --->>> | D188: ='4. Parametre dimenzovania siete'!C69 -> 0 | E188: ='4. Parametre dimenzovania siete'!D69 -> 0 | F188: ='4. Parametre dimenzovania siete'!E69 -> 0 | G188: ='4. Parametre dimenzovania siete'!F69 -> 0 | H188: ='4. Parametre dimenzovania siete'!G69 -> 0 | I188: ='4. Parametre dimenzovania siete'!H69 -> 0 | J188: ='4. Parametre dimenzovania siete'!I69 -> 0 | K188: ='4. Parametre dimenzovania siete'!J69 -> 0 | L188: ='4. Parametre dimenzovania siete'!K69 -> 0 | M188: ='4. Parametre dimenzovania siete'!L69 -> 0
B189: Vidiek | C189: --->>> | D189: ='4. Parametre dimenzovania siete'!C70 -> 0 | E189: ='4. Parametre dimenzovania siete'!D70 -> 0 | F189: ='4. Parametre dimenzovania siete'!E70 -> 0 | G189: ='4. Parametre dimenzovania siete'!F70 -> 0 | H189: ='4. Parametre dimenzovania siete'!G70 -> 0 | I189: ='4. Parametre dimenzovania siete'!H70 -> 0 | J189: ='4. Parametre dimenzovania siete'!I70 -> 0 | K189: ='4. Parametre dimenzovania siete'!J70 -> 0 | L189: ='4. Parametre dimenzovania siete'!K70 -> 0 | M189: ='4. Parametre dimenzovania siete'!L70 -> 0
B193: RNC dimenzačné ukazovatele | C193: Jednotka | D193: Bratislava 1 | E193: Bratislava 2 | F193: Košice 1 | G193: Košice 2 | H193: Trnava | I193: Nitra | J193: Trenčín | K193: Žilina | L193: Banská Bystrica | M193: Prešov
B194: Počet Mbps na Core Node | C194: Mbps | D194: =$D$21*SUMPRODUCT(TRANSPOSE($D$59:$F$59),D$187:D$189) ->  | E194: =$D$21*SUMPRODUCT(TRANSPOSE($D$59:$F$59),E$187:E$189) ->  | F194: =$D$21*SUMPRODUCT(TRANSPOSE($D$59:$F$59),F$187:F$189) ->  | G194: =$D$21*SUMPRODUCT(TRANSPOSE($D$59:$F$59),G$187:G$189) ->  | H194: =$D$21*SUMPRODUCT(TRANSPOSE($D$59:$F$59),H$187:H$189) ->  | I194: =$D$21*SUMPRODUCT(TRANSPOSE($D$59:$F$59),I$187:I$189) ->  | J194: =$D$21*SUMPRODUCT(TRANSPOSE($D$59:$F$59),J$187:J$189) ->  | K194: =$D$21*SUMPRODUCT(TRANSPOSE($D$59:$F$59),K$187:K$189) ->  | L194: =$D$21*SUMPRODUCT(TRANSPOSE($D$59:$F$59),L$187:L$189) ->  | M194: =$D$21*SUMPRODUCT(TRANSPOSE($D$59:$F$59),M$187:M$189) ->  | N194: =SUM(D194:M194) ->  | R194: Check on real data
B195: Počet Node B na Core Node | C195: # Node B | D195: =SUMPRODUCT(TRANSPOSE($D$92:$F$92),D$187:D$189) ->  | E195: =SUMPRODUCT(TRANSPOSE($D$92:$F$92),E$187:E$189) ->  | F195: =SUMPRODUCT(TRANSPOSE($D$92:$F$92),F$187:F$189) ->  | G195: =SUMPRODUCT(TRANSPOSE($D$92:$F$92),G$187:G$189) ->  | H195: =SUMPRODUCT(TRANSPOSE($D$92:$F$92),H$187:H$189) ->  | I195: =SUMPRODUCT(TRANSPOSE($D$92:$F$92),I$187:I$189) ->  | J195: =SUMPRODUCT(TRANSPOSE($D$92:$F$92),J$187:J$189) ->  | K195: =SUMPRODUCT(TRANSPOSE($D$92:$F$92),K$187:K$189) ->  | L195: =SUMPRODUCT(TRANSPOSE($D$92:$F$92),L$187:L$189) ->  | M195: =SUMPRODUCT(TRANSPOSE($D$92:$F$92),M$187:M$189) ->  | N195: =SUM(D195:M195) -> 
B197: Celkový počet požadovaných RNC | C197: Jednotka | D197: Bratislava 1 | E197: Bratislava 2 | F197: Košice 1 | G197: Košice 2 | H197: Trnava | I197: Nitra | J197: Trenčín | K197: Žilina | L197: Banská Bystrica | M197: Prešov
B198: Počet RNC založených na kapacite | C198: # RNC | D198: =ROUNDUP(D194/$D$35*$D$12,0) ->  | N198: =SUM(D198:M198) -> 
B199: Počet RNC celkom | C199: # RNC | D199: =MAX(D198:D198) ->  | N199: =SUM(D199:M199) -> 
Q200: Output to be costed

Sheet 7a. Radiová sieť 2G
A1: 7a. Dimenzovanie rádiovej časti siete 2G
A3: Popis
A4: Kalkulácia dimenzovania 2G rádiovej siete
A6: Vstupy z predchádzajúcich kalkulácií
A8: 7.1 Údaje pre dimenzovanie
B10: Plánovacie parametre | C10: Jednotka | D10: Hodnota
B11: Radio path Grade of Service (GoS): Blocking Probability | C11: % | D11: 0.01
B12: Plánovaná kapacita loading factor | C12: % | D12: =IF('A. Výber'!J18=1,I_CapPlan_Radio-0.1,I_CapPlan_Radio) -> 
B14: Busy hour prevádzka | C14: Jednotka | D14: Hodnota
B15: BHE v zvolenom roku | C15: BHE | D15: =C_BTS_BHE -> 
B16: Plánovacie obdobie | C16: # mesiacov | D16: ='4. Parametre dimenzovania siete'!C98 -> 0
B17: BHE v plánovanom období | C17: BHE | D17: =D15*(1+'2. Dopyt'!F43*D16/12) -> 
B18: BHE úprava loading factor | C18: BHE | D18: =D17/D12 -> 
B20: Spektrum | C20: Jednotka | D20: Mobile 900 | E20: Mobile 1800 | F20: Pomer
B21: Dostupné spektrum | C21: KHz | D21: ='4. Parametre dimenzovania siete'!D30 ->  | E21: ='4. Parametre dimenzovania siete'!E30 ->  | F21: =E21/SUM(D21:E21) -> 
B22: Kapacita spektra na sektor / carrier | C22: TRX/sektor | D22: ='4. Parametre dimenzovania siete'!D33 ->  | E22: ='4. Parametre dimenzovania siete'!E33 -> 
B23: Fyzická kapacita sektoru / carrier | C23: TRX/sektor | D23: ='4. Parametre dimenzovania siete'!D34 ->  | E23: ='4. Parametre dimenzovania siete'!E34 -> 
B25: TRX faktory využitia | C25: Jednotka | D25: Aglomerácie | E25: Mestá | F25: Vidiek | G25: Celkom územie
B26: TRX využitie | C26: % | D26: ='4. Parametre dimenzovania siete'!C102 -> 0 | E26: ='4. Parametre dimenzovania siete'!C103 -> 0 | F26: ='4. Parametre dimenzovania siete'!C104 -> 0 | G26: =VLOOKUP(G25,'4. Parametre dimenzovania siete'!$B$101:$F$104,5,0) -> 
B28: Sektorizácia | C28: Jednotka | D28: Aglomerácie | E28: Mestá | F28: Vidiek | G28: Celkom územie
B29: 1 sektor | C29: # sektorov | D29: 1 | E29: 1 | F29: 1 | G29: 1
B30: 2 sektory | C30: # sektorov | D30: 2 | E30: 2 | F30: 2 | G30: 2
B31: 3+ sektory | C31: # sektorov | D31: 3 | E31: 3 | F31: 3 | G31: 3
A33: 7.2 Rádiové dáta
B35: Štatistiky | C35: Jednotka | D35: Aglomerácie | E35: Mestá | F35: Vidiek | G35: Celkom územie
B37: Pokrytie
B38: Územie celkom | C38: Km2 | D38: =VLOOKUP(D$35,'4. Parametre dimenzovania siete'!$B$40:$D$43,3,0) -> 0 | E38: =VLOOKUP(E$35,'4. Parametre dimenzovania siete'!$B$40:$D$43,3,0) -> 0 | F38: =VLOOKUP(F$35,'4. Parametre dimenzovania siete'!$B$40:$D$43,3,0) -> 0 | G38: =SUM(D38:F38) -> 0
B39: Pokrytie GSM900 (vrátane Dual) | C39: % | D39: =VLOOKUP(D$35,'4. Parametre dimenzovania siete'!$B$40:$E$43,4,0) ->  | E39: =VLOOKUP(E$35,'4. Parametre dimenzovania siete'!$B$40:$E$43,4,0) ->  | F39: =VLOOKUP(F$35,'4. Parametre dimenzovania siete'!$B$40:$E$43,4,0) ->  | G39: =(($D$38*D39)+($E$38*E39)+($F$38*F39))/$G$38 -> 
B40: Územie pokryté GSM 900 (vrátane Dual) | C40: Km2 | D40: =D38*D39 ->  | E40: =E38*E39 -> 
B41: Pokrytie GSM1800 (vrátane Dual) | C41: % | D41: =VLOOKUP(D$35,'4. Parametre dimenzovania siete'!$B$40:$G$43,5,0) ->  | E41: =VLOOKUP(E$35,'4. Parametre dimenzovania siete'!$B$40:$G$43,5,0) ->  | F41: =VLOOKUP(F$35,'4. Parametre dimenzovania siete'!$B$40:$G$43,5,0) ->  | G41: =(($D$38*D41)+($E$38*E41)+($F$38*F41))/$G$38 -> 
B42: Územie pokryté GSM 1800 (vrátane Dual) | C42: Km2 | D42: =D38*D41 -> 
B44: Štatistiky základňových staníc (Base stations)
B45: GSM 900 priemerný polomer bunky | C45: Km | D45: =VLOOKUP(D$35,'4. Parametre dimenzovania siete'!$B$49:$E$51,3,0) ->  | E45: =VLOOKUP(E$35,'4. Parametre dimenzovania siete'!$B$49:$E$51,3,0) ->  | F45: =VLOOKUP(F$35,'4. Parametre dimenzovania siete'!$B$49:$E$51,3,0) -> 
B46: GSM 1800 priemerný polomer bunky | C46: Km | D46: =VLOOKUP(D$35,'4. Parametre dimenzovania siete'!$B$49:$F$51,5,0) ->  | E46: =VLOOKUP(E$35,'4. Parametre dimenzovania siete'!$B$49:$F$51,5,0) ->  | F46: =VLOOKUP(F$35,'4. Parametre dimenzovania siete'!$B$49:$F$51,5,0) -> 
B47: Distribúcia prevádzky | C47: % | D47: =VLOOKUP(D$35,'4. Parametre dimenzovania siete'!$B$57:$E$60,4,0) ->  | E47: =VLOOKUP(E35,'4. Parametre dimenzovania siete'!$B$57:$E$60,4,0) ->  | F47: =VLOOKUP(F35,'4. Parametre dimenzovania siete'!$B$57:$E$60,4,0) ->  | G47: =VLOOKUP(G35,'4. Parametre dimenzovania siete'!$B$57:$E$60,4,0) -> 
B49: GSM 900 sektorizácia
B50: 1 sektor | C50: % | D50: =VLOOKUP(D$35,'4. Parametre dimenzovania siete'!$B$111:$O$114,2,0) -> 0 | E50: =VLOOKUP(E$35,'4. Parametre dimenzovania siete'!$B$111:$O$114,2,0) -> 0 | F50: =VLOOKUP(F$35,'4. Parametre dimenzovania siete'!$B$111:$O$114,2,0) -> 0 | G50: =VLOOKUP(G$35,'4. Parametre dimenzovania siete'!$B$111:$O$114,2,0) -> 0
B51: 2 sektory | C51: % | D51: =VLOOKUP(D$35,'4. Parametre dimenzovania siete'!$B$111:$O$114,3,0) -> 0 | E51: =VLOOKUP(E$35,'4. Parametre dimenzovania siete'!$B$111:$O$114,3,0) -> 0 | F51: =VLOOKUP(F$35,'4. Parametre dimenzovania siete'!$B$111:$O$114,3,0) -> 0 | G51: =VLOOKUP(G$35,'4. Parametre dimenzovania siete'!$B$111:$O$114,3,0) -> 0
B52: 3+ sektory | C52: % | D52: =VLOOKUP(D$35,'4. Parametre dimenzovania siete'!$B$111:$O$114,4,0) -> 0 | E52: =VLOOKUP(E$35,'4. Parametre dimenzovania siete'!$B$111:$O$114,4,0) -> 0 | F52: =VLOOKUP(F$35,'4. Parametre dimenzovania siete'!$B$111:$O$114,4,0) -> 0 | G52: =VLOOKUP(G$35,'4. Parametre dimenzovania siete'!$B$111:$O$114,4,0) -> 0
B54: GSM 1800 sektorizácia
B55: 1 sektor | C55: % | D55: =VLOOKUP(D$35,'4. Parametre dimenzovania siete'!$B$111:$O$114,5,0) -> 0 | E55: =VLOOKUP(E$35,'4. Parametre dimenzovania siete'!$B$111:$O$114,5,0) -> 0 | F55: =VLOOKUP(F$35,'4. Parametre dimenzovania siete'!$B$111:$O$114,5,0) -> 0 | G55: =VLOOKUP(G$35,'4. Parametre dimenzovania siete'!$B$111:$O$114,5,0) -> 0
B56: 2 sektory | C56: % | D56: =VLOOKUP(D$35,'4. Parametre dimenzovania siete'!$B$111:$O$114,6,0) -> 0 | E56: =VLOOKUP(E$35,'4. Parametre dimenzovania siete'!$B$111:$O$114,6,0) -> 0 | F56: =VLOOKUP(F$35,'4. Parametre dimenzovania siete'!$B$111:$O$114,6,0) -> 0 | G56: =VLOOKUP(G$35,'4. Parametre dimenzovania siete'!$B$111:$O$114,6,0) -> 0
B57: 3+ sektory | C57: % | D57: =VLOOKUP(D$35,'4. Parametre dimenzovania siete'!$B$111:$O$114,7,0) -> 0 | E57: =VLOOKUP(E$35,'4. Parametre dimenzovania siete'!$B$111:$O$114,7,0) -> 0 | F57: =VLOOKUP(F$35,'4. Parametre dimenzovania siete'!$B$111:$O$114,7,0) -> 0 | G57: =VLOOKUP(G$35,'4. Parametre dimenzovania siete'!$B$111:$O$114,7,0) -> 0
B59: GSM Dual sektorizácia
B60: 1 sektor | C60: % | D60: =VLOOKUP(D$35,'4. Parametre dimenzovania siete'!$B$111:$O$114,8,0) -> 0 | E60: =VLOOKUP(E$35,'4. Parametre dimenzovania siete'!$B$111:$O$114,8,0) -> 0 | F60: =VLOOKUP(F$35,'4. Parametre dimenzovania siete'!$B$111:$O$114,8,0) -> 0 | G60: =VLOOKUP(G$35,'4. Parametre dimenzovania siete'!$B$111:$O$114,8,0) -> 0
B61: 2 sektory | C61: % | D61: =VLOOKUP(D$35,'4. Parametre dimenzovania siete'!$B$111:$O$114,9,0) -> 0 | E61: =VLOOKUP(E$35,'4. Parametre dimenzovania siete'!$B$111:$O$114,9,0) -> 0 | F61: =VLOOKUP(F$35,'4. Parametre dimenzovania siete'!$B$111:$O$114,9,0) -> 0 | G61: =VLOOKUP(G$35,'4. Parametre dimenzovania siete'!$B$111:$O$114,9,0) -> 0
B62: 3+ sektory | C62: % | D62: =VLOOKUP(D$35,'4. Parametre dimenzovania siete'!$B$111:$O$114,10,0) -> 0 | E62: =VLOOKUP(E$35,'4. Parametre dimenzovania siete'!$B$111:$O$114,10,0) -> 0 | F62: =VLOOKUP(F$35,'4. Parametre dimenzovania siete'!$B$111:$O$114,10,0) -> 0 | G62: =VLOOKUP(G$35,'4. Parametre dimenzovania siete'!$B$111:$O$114,10,0) -> 0
B64: Skriňa 900, 1800, Dual split
B65: GSM 900 | C65: % | D65: =VLOOKUP(D$35,'4. Parametre dimenzovania siete'!$B$93:$S$96,15,0) ->  | E65: =VLOOKUP(E$35,'4. Parametre dimenzovania siete'!$B$93:$S$96,15,0) ->  | F65: =VLOOKUP(F$35,'4. Parametre dimenzovania siete'!$B$93:$S$96,15,0) ->  | G65: =VLOOKUP(G$35,'4. Parametre dimenzovania siete'!$B$93:$S$96,15,0) -> 
B66: GSM 1800 | C66: % | D66: =VLOOKUP(D$35,'4. Parametre dimenzovania siete'!$B$93:$S$96,16,0) ->  | E66: =VLOOKUP(E$35,'4. Parametre dimenzovania siete'!$B$93:$S$96,16,0) ->  | F66: =VLOOKUP(F$35,'4. Parametre dimenzovania siete'!$B$93:$S$96,16,0) ->  | G66: =VLOOKUP(G$35,'4. Parametre dimenzovania siete'!$B$93:$S$96,16,0) -> 
B67: GSM Dual 900/1800 | C67: % | D67: =VLOOKUP(D$35,'4. Parametre dimenzovania siete'!$B$93:$S$96,17,0) ->  | E67: =VLOOKUP(E$35,'4. Parametre dimenzovania siete'!$B$93:$S$96,17,0) ->  | F67: =VLOOKUP(F$35,'4. Parametre dimenzovania siete'!$B$93:$S$96,17,0) ->  | G67: =VLOOKUP(G$35,'4. Parametre dimenzovania siete'!$B$93:$S$96,17,0) -> 
B69: # lokácií podľa počtu základňových staníc
B70: Lokácia s 1 skriňou | C70: % | D70: =VLOOKUP(D$35,'4. Parametre dimenzovania siete'!$B$82:$F$85,2,0) -> 0 | E70: =VLOOKUP(E$35,'4. Parametre dimenzovania siete'!$B$82:$F$85,2,0) -> 0 | F70: =VLOOKUP(F$35,'4. Parametre dimenzovania siete'!$B$82:$F$85,2,0) -> 0 | G70: =VLOOKUP(G$35,'4. Parametre dimenzovania siete'!$B$82:$F$85,6,0) -> 
B71: Lokácia s 2 skriňami | C71: % | D71: =VLOOKUP(D$35,'4. Parametre dimenzovania siete'!$B$82:$F$85,3,0) -> 0 | E71: =VLOOKUP(E$35,'4. Parametre dimenzovania siete'!$B$82:$F$85,3,0) -> 0 | F71: =VLOOKUP(F$35,'4. Parametre dimenzovania siete'!$B$82:$F$85,3,0) -> 0 | G71: =VLOOKUP(G$35,'4. Parametre dimenzovania siete'!$B$82:$F$85,7,0) -> 
B72: Lokácia s 3 skriňami | C72: % | D72: =VLOOKUP(D$35,'4. Parametre dimenzovania siete'!$B$82:$F$85,4,0) -> 0 | E72: =VLOOKUP(E$35,'4. Parametre dimenzovania siete'!$B$82:$F$85,4,0) -> 0 | F72: =VLOOKUP(F$35,'4. Parametre dimenzovania siete'!$B$82:$F$85,4,0) -> 0 | G72: =VLOOKUP(G$35,'4. Parametre dimenzovania siete'!$B$82:$F$85,8,0) -> 
B74: Štatistiky lokácií
B75: Počet striech | C75: % | D75: ='4. Parametre dimenzovania siete'!C78 -> 
B76: Počet samostatných pylónov | C76: % | D76: ='4. Parametre dimenzovania siete'!C79 -> 
B79: Štatistiky zdrojov energie lokácií
B80: ='4. Parametre dimenzovania siete'!B154 -> Lokácie základňových staníc napojené na elektrickú sieť | C80: % | D80: ='4. Parametre dimenzovania siete'!C154 -> 
B83: TRX štatistiky | D83: GSM 900 | E83: GSM 1800
B84: Max TRX na BSC | C84: # TRX | D84: ='4. Parametre dimenzovania siete'!$C$121 -> 
B85: Max TRX na BTS | C85: # TRX | D85: ='4. Parametre dimenzovania siete'!$C$97 -> 0 | E85: ='4. Parametre dimenzovania siete'!D97 -> 0
B87: BSC štatistiky | D87: Regionálna prepojenosť BSC k jednotlivým Core Nodes
B88: Región | C88: Jednotka | D88: Bratislava 1 | E88: Bratislava 2 | F88: Košice 1 | G88: Košice 2 | H88: Trnava | I88: Nitra | J88: Trenčín | K88: Žilina | L88: Banská Bystrica | M88: Prešov
B89: Aglomerácie | C89: --->>> | D89: ='4. Parametre dimenzovania siete'!C68 -> 0 | E89: ='4. Parametre dimenzovania siete'!D68 -> 0 | F89: ='4. Parametre dimenzovania siete'!E68 -> 0 | G89: ='4. Parametre dimenzovania siete'!F68 -> 0 | H89: ='4. Parametre dimenzovania siete'!G68 -> 0 | I89: ='4. Parametre dimenzovania siete'!H68 -> 0 | J89: ='4. Parametre dimenzovania siete'!I68 -> 0 | K89: ='4. Parametre dimenzovania siete'!J68 -> 0 | L89: ='4. Parametre dimenzovania siete'!K68 -> 0 | M89: ='4. Parametre dimenzovania siete'!L68 -> 0
B90: Mestá | C90: --->>> | D90: ='4. Parametre dimenzovania siete'!C69 -> 0 | E90: ='4. Parametre dimenzovania siete'!D69 -> 0 | F90: ='4. Parametre dimenzovania siete'!E69 -> 0 | G90: ='4. Parametre dimenzovania siete'!F69 -> 0 | H90: ='4. Parametre dimenzovania siete'!G69 -> 0 | I90: ='4. Parametre dimenzovania siete'!H69 -> 0 | J90: ='4. Parametre dimenzovania siete'!I69 -> 0 | K90: ='4. Parametre dimenzovania siete'!J69 -> 0 | L90: ='4. Parametre dimenzovania siete'!K69 -> 0 | M90: ='4. Parametre dimenzovania siete'!L69 -> 0
B91: Vidiek | C91: --->>> | D91: ='4. Parametre dimenzovania siete'!C70 -> 0 | E91: ='4. Parametre dimenzovania siete'!D70 -> 0 | F91: ='4. Parametre dimenzovania siete'!E70 -> 0 | G91: ='4. Parametre dimenzovania siete'!F70 -> 0 | H91: ='4. Parametre dimenzovania siete'!G70 -> 0 | I91: ='4. Parametre dimenzovania siete'!H70 -> 0 | J91: ='4. Parametre dimenzovania siete'!I70 -> 0 | K91: ='4. Parametre dimenzovania siete'!J70 -> 0 | L91: ='4. Parametre dimenzovania siete'!K70 -> 0 | M91: ='4. Parametre dimenzovania siete'!L70 -> 0
A94: Výpočet
A96: 7.3 BTS dimenzovanie pokrytia
B98: Koeficient pokrytia (výpočet územia tvaru hexagón) | C98: Hodnota
B99: 1 sektor | C99: 2.6
B100: 2 sektory | C100: 2.6
B101: 3+ sektory | C101: 2.6
B103: Pokrytie BTS GSM900 | C103: Jednotka | D103: Aglomerácie | E103: Mestá | F103: Vidiek
B104: 1 sektor | C104: Km2 | D104: =$C99*D$45^2 ->  | F104: =$C99*F$45^2 -> 
B105: 2 sektory | C105: Km2
B106: 3+ sektory | C106: Km2
B108: Počet BTS900 potrebných na základné pokrytie | C108: Jednotka | D108: Aglomerácie | E108: Mestá | F108: Vidiek | G108: Celkom územie
B109: 1 sektor | C109: # BTS | D109: =IF(D$40=0,0,ROUNDUP(D$40/D104,0)) ->  | E109: =IF(E$40=0,0,ROUNDUP(E$40/E104,0)) ->  | G109: =SUM(D109:F109) -> 
B110: 2 sektory | C110: # BTS | G110: =SUM(D110:F110) -> 0
B111: 3+ sektory | C111: # BTS | G111: =SUM(D111:F111) -> 0
B112: Celkom BTS na základné pokrytie | C112: # BTS | D112: =SUM(D109:D111) ->  | E112: =SUM(E109:E111) ->  | G112: =SUM(D112:F112) -> 
A114: 7.4 Kapacita z pokrytia
D115: GSM 900 | E115: GSM 900 | F115: GSM 900
B116: Kapacita z pokrytia 900 TRX | C116: Jednotka | D116: Aglomerácie | E116: Mestá | F116: Vidiek | G116: Celkom územie
B117: Počet pokrytých sektorov | C117: # sektorov | D117: =D109*D$29+D110*D$30+D111*D$31 ->  | E117: =E109*E$29+E110*E$30+E111*E$31 ->  | F117: =F109*F$29+F110*F$30+F111*F$31 ->  | G117: =SUM(D117:F117) -> 
B118: TRX 900 kapacita na sektor | C118: # TRX | D118: 1 | E118: 1 | F118: 1
B119: Maximálna Erlang kapacita sektoru | C119: # Erlang | D119: =INDEX('4. Parametre dimenzovania siete'!$B$293:$G$743,MATCH(D$118,'4. Parametre dimenzovania siete'!$C$293:$C$743,0),MATCH($D$11,'4. Parametre dimenzovania siete'!$B$291:$G$291,0)) -> 2.5009 | E119: =INDEX('4. Parametre dimenzovania siete'!$B$293:$G$743,MATCH(E$118,'4. Parametre dimenzovania siete'!$C$293:$C$743,0),MATCH($D$11,'4. Parametre dimenzovania siete'!$B$291:$G$291,0)) -> 2.5009 | F119: =INDEX('4. Parametre dimenzovania siete'!$B$293:$G$743,MATCH(F$118,'4. Parametre dimenzovania siete'!$C$293:$C$743,0),MATCH($D$11,'4. Parametre dimenzovania siete'!$B$291:$G$291,0)) -> 2.5009
B120: Max kapacita z pokrytia GSM 900 | C120: # Erlang | D120: =D119*D117 ->  | G120: =SUM(D120:F120) -> 
B121: TRX faktor využitia | C121: % | D121: =D$26 -> 0 | E121: =E$26 -> 0 | F121: 0
B122: Efektívna kapacita z pokrytia GSM 900 | C122: # Erlang | D122: =D120*D121 ->  | E122: =E120*E121 ->  | G122: =SUM(D122:F122) -> 
A124: 7.5 Dodatočné BTS GSM1800 dimenzovanie kapacity
B126: Kapacitné požiadavky | C126: Jednotka | D126: Aglomerácie | E126: Mestá | F126: Vidiek | G126: Celkom územie
B127: Prevádzka v regióne | C127: # Erlang | D127: =$D$18*D47 ->  | E127: =$D$18*E47 ->  | G127: =SUM(D127:F127) -> 
B128: Dodatočná požadovaná kapacita | C128: # Erlang | D128: =D127-D122 ->  | E128: =E127-E122 ->  | G128: =SUM(D128:F128) -> 
B129: Dodatočná požadovaná kapacita na základe dopytu | C129: # Erlang | D129: =MAX(0,D128) ->  | E129: =MAX(0,E128) ->  | G129: =SUM(D129:F129) -> 
B130: TRX 1800 kapacita na sektor | C130: # TRX | D130: =MIN($E$22,$E$23) ->  | E130: =MIN($E$22,$E$23) ->  | F130: =MIN($E$22,$E$23) -> 
B131: Max Erlang kapacita sektoru | C131: # Erlang | D131: =INDEX('4. Parametre dimenzovania siete'!$C$293:$G$743,MATCH(D$130,'4. Parametre dimenzovania siete'!$C$293:$C$743,0),MATCH($D$11,'4. Parametre dimenzovania siete'!$C$291:$G$291,0)) ->  | E131: =INDEX('4. Parametre dimenzovania siete'!$C$293:$G$743,MATCH(E$130,'4. Parametre dimenzovania siete'!$C$293:$C$743,0),MATCH($D$11,'4. Parametre dimenzovania siete'!$C$291:$G$291,0)) ->  | F131: =INDEX('4. Parametre dimenzovania siete'!$C$293:$G$743,MATCH(F$130,'4. Parametre dimenzovania siete'!$C$293:$C$743,0),MATCH($D$11,'4. Parametre dimenzovania siete'!$C$291:$G$291,0)) -> 
B132: Počet požadovaných BTS 1800 sektorov na kapacitu | C132: # sectors | D132: =ROUNDUP(D129/D131,0) ->  | G132: =SUM(D132:F132) -> 
B134: Počet požadovaných BTS1800 skríň na kapacitu | C134: Jednotka | D134: Aglomerácie | E134: Mestá | F134: Vidiek | G134: Celkom územie
B135: 1 sektor | C135: # BTS | D135: =IF(D132-D136*3<0,0,D132-D136*3) ->  | G135: =SUM(D135:F135) -> 
B136: 3 sektory | C136: # BTS | D136: =ROUNDUP(IF(D56=1,D132/3,D132/(3+(1-D56)/D56)),0) ->  | E136: =ROUNDUP(IF(E56=1,E132/3,E132/(3+(1-E56)/E56)),0) ->  | F136: =ROUNDUP(IF(F56=1,F132/3,F132/(3+(1-F56)/F56)),0) ->  | G136: =SUM(D136:F136) -> 
B137: Počet požadovaných BTS 1800 na kapacitu | C137: # BTS | D137: =SUM(D135:D136) ->  | G137: =SUM(D137:F137) -> 
B139: Počet Base station celkom | C139: # BTS | D139: =D137+D112 ->  | E139: =E137+E112 ->  | G139: =SUM(D139:F139) -> 
A141: 7.6 TRX dimenzovanie
B143: Celkový počet sektorov | C143: Jednotka | D143: Aglomerácie | E143: Mestá | F143: Vidiek | G143: Celkom územie
B144: BTS GSM 900 | C144: # sektorov | D144: =D117 ->  | E144: =E117 ->  | F144: =F117 ->  | G144: =SUM(D144:F144) -> 
B145: BTS GSM 1800 | C145: # sektorov | D145: =D132 ->  | E145: =E132 ->  | F145: =F132 ->  | G145: =SUM(D145:F145) -> 
B146: Sektorov Celkom | C146: # sektorov | D146: =SUM(D144:D145) ->  | E146: =SUM(E144:E145) ->  | G146: =SUM(D146:F146) -> 
B148: Priemerná prevádzka sektoru GSM900 | C148: # Erlang | D148: =IF(D144=0,0,D122/D144) ->  | E148: =IF(E144=0,0,E122/E144) ->  | F148: =IF(F144=0,0,F122/F144) ->  | G148: =IF(G144=0,0,G122/G144) -> 
B149: Priemerná prevádzka sektoru GSM1800 | C149: # Erlang | D149: =IF(D145=0,0,D129/D145) ->  | E149: =IF(E145=0,0,E129/E145) ->  | F149: =IF(F145=0,0,F129/F145) ->  | G149: =IF(G145=0,0,G129/G145) -> 
B151: TRX 900 na sektor pre naplnenie prevádzkových požiadaviek | C151: # TRX | D151: =IF(D148=0,0,INDEX('4. Parametre dimenzovania siete'!$C$293:$C$743,MATCH(D$148,'4. Parametre dimenzovania siete'!$F$293:$F$743,1)+1)) ->  | E151: =IF(E148=0,0,INDEX('4. Parametre dimenzovania siete'!$C$293:$C$743,MATCH(E$148,'4. Parametre dimenzovania siete'!$F$293:$F$743,1)+1)) ->  | F151: =IF(F148=0,0,INDEX('4. Parametre dimenzovania siete'!$C$293:$C$743,MATCH(F$148,'4. Parametre dimenzovania siete'!$F$293:$F$743,1)+1)) ->  | G151: =IF(G148=0,0,INDEX('4. Parametre dimenzovania siete'!$C$293:$C$743,MATCH(G$148,'4. Parametre dimenzovania siete'!$F$293:$F$743,1)+1)) -> 
B152: TRX 1800 na sektor pre naplnenie prevádzkových požiadaviek | C152: # TRX | D152: =IF(D149=0,0,INDEX('4. Parametre dimenzovania siete'!$C$293:$C$743,MATCH(D$149,'4. Parametre dimenzovania siete'!$F$293:$F$743,1)+1)) ->  | E152: =IF(E149=0,0,INDEX('4. Parametre dimenzovania siete'!$C$293:$C$743,MATCH(E$149,'4. Parametre dimenzovania siete'!$F$293:$F$743,1)+1)) ->  | F152: =IF(F149=0,0,INDEX('4. Parametre dimenzovania siete'!$C$293:$C$743,MATCH(F$149,'4. Parametre dimenzovania siete'!$F$293:$F$743,1)+1)) ->  | G152: =IF(G149=0,0,INDEX('4. Parametre dimenzovania siete'!$C$293:$C$743,MATCH(G$149,'4. Parametre dimenzovania siete'!$F$293:$F$743,1)+1)) -> 
B154: Celkový požadovaný počet TRX 900 | C154: # TRX | D154: =CEILING(D144*D151,1) ->  | E154: =CEILING(E146*E151,1) ->  | G154: =SUM(D154:F154) -> 
B155: Celkový požadovaný počet TRX 1800 | C155: # TRX | D155: =CEILING(D145*D152,1) ->  | E155: =CEILING(E145*E152,1) ->  | G155: =SUM(D155:F155) -> 
B156: Celkový požadovaný počet TRX | C156: # TRX | D156: =SUM(D154:D155) ->  | G156: =SUM(D156:F156) -> 
A158: 7.7 Recalibrácia pre duálny GSM 900/1800
B160: Priemerný počet TRX v skrini | C160: Jednotka | D160: Aglomerácie | E160: Mestá | F160: Vidiek | G160: Celkom územie
B161: BTS GSM 900 | C161: # TRX 900 | D161: =IF(D154=0,0,D154/D112) ->  | E161: =IF(E154=0,0,E154/E112) -> 
B162: BTS GSM 1800 | C162: # TRX 1800 | D162: =IF(D137=0,0,D155/D137) ->  | E162: =IF(E137=0,0,E155/E137) -> 
B163: BTS GSM Dual 900/1800 | C163: # TRX 900 | D163: =D151 ->  | E163: =E151 -> 
B164: BTS GSM Dual 900/1800 | C164: # TRX 1800 | D164: =D152 ->  | E164: =E152 -> 
B166: Pomer Single / Dual skríň | C166: Jednotka | D166: Aglomerácie | E166: Mestá | F166: Vidiek | G166: Celkom územie
B167: GSM 900: Single / Dual pomer | C167: % | D167: =IF(D67=0,1,D65/D67) ->  | E167: =IF(E67=0,1,E65/E67) ->  | G167: =IF(G67=0,1,G65/G67) -> 
B168: GSM 1800: Single / Dual pomer | C168: % | D168: =IF(D67=0,1,D66/D67) ->  | E168: =IF(E67=0,1,E66/E67) ->  | G168: =IF(G67=0,1,G66/G67) -> 
B170: Počet požadovaných base stations skríň | C170: Jednotka | D170: Aglomerácie | E170: Mestá | F170: Vidiek | G170: Celkom územie
B171: BTS GSM 1800 - Dual | C171: # BTS | D171: =IF(D155=0,0,ROUNDUP(D155/(D162*D168+D164),0)) ->  | E171: =IF(E155=0,0,ROUNDUP(E155/(E162*E168+E164),0)) ->  | G171: =SUM(D171:F171) -> 
B172: BTS GSM 1800 - Single | C172: # BTS | D172: =ROUNDUP(D171*D168,0) ->  | E172: =ROUNDUP(E171*E168,0) ->  | G172: =SUM(D172:F172) -> 
B173: BTS GSM 900 - Dual | C173: # BTS | D173: =D171 ->  | G173: =SUM(D173:F173) -> 
B174: BTS GSM 900 - Single | C174: # BTS | D174: =MAX(0,(D154-D173*D163)/D161) ->  | E174: =MAX(0,(E154-E173*E163)/E161) ->  | G174: =SUM(D174:F174) -> 
B176: Počet dimenzovaných base stations skríň | C176: Jednotka | D176: Aglomerácie | E176: Mestá | F176: Vidiek | G176: Celkom územie
B177: GSM 900 | C177: # BTS | D177: =ROUNDUP(D174,0) ->  | G177: =SUM(D177:F177) ->  | H177: =G177/$G$180 -> 
B178: GSM 1800 | C178: # BTS | D178: =ROUNDUP(D172,0) ->  | E178: =ROUNDUP(E172,0) ->  | G178: =SUM(D178:F178) ->  | H178: =G178/$G$180 -> 
B179: GSM Dual 900/1800 | C179: # BTS | D179: =ROUNDUP(D173,0) ->  | E179: =ROUNDUP(E173,0) ->  | G179: =SUM(D179:F179) ->  | H179: =G179/$G$180 -> 
B180: Celkový počet base stations skríň | C180: # BTS | D180: =SUM(D177:D179) ->  | E180: =SUM(E177:E179) ->  | G180: =SUM(D180:F180) -> 
A182: 7.8 Dimenzovanie lokácií
B184: Výber calibrácie pre Dual | C184: ='A. Výber'!$D$24 -> Y
B186: Počet lokácií | C186: Počet BTS/lokácia | D186: Aglomerácie | E186: Mestá | F186: Vidiek | G186: Celkom územie
B187: BTS GSM 900 | C187: 1 | D187: =D177 ->  | E187: =E177 ->  | G187: =SUM(D187:F187) -> 
B188: BTS GSM 1800 | C188: 2 | D188: =D178 ->  | G188: =SUM(D188:F188) -> 
B189: BTS GSM Dual 900/1800 | C189: 1 | G189: =SUM(D189:F189) -> 
B190: BTS GSM Dual 900/1800 | C190: 2 | G190: =SUM(D190:F190) -> 0
B191: BTS GSM Dual 900/1800 | C191: 3 | G191: =SUM(D191:F191) -> 0
G192: =SUM(G187:G191) -> 
B194: Celkový požadovaný počet lokácií | C194: Jednotka | D194: Aglomerácie | E194: Mestá | F194: Vidiek | G194: Celkom územie
B195: Celkový počet požadovaných lokácií | C195: # lokácií | D195: =SUM(D187:D191) ->  | E195: =SUM(E187:E191) ->  | G195: =SUM(D195:F195) -> 
B196: Počet striech | C196: # lokácií | D196: =D195-D197 ->  | E196: =E195-E197 ->  | G196: =SUM(D196:F196) -> 
B197: Počet samostatných pylónov | C197: # lokácií | D197: =ROUND(D195*$D$76,0) ->  | E197: =ROUND(E195*$D$76,0) ->  | F197: =ROUND(F195*$D$76,0) ->  | G197: =SUM(D197:F197) -> 
B200: Celkový počet lokací s pronajmutými pozemky | C200: # lokací | D200: =D196*$D$77 ->  | G200: =SUM(D200:F200) -> 
A202: 7.9 Dimenzovanie zdrojov energie BTS lokácií
B204: Celkový počet požadovaných lokácií | C204: Jednotka | D204: Aglomerácie | E204: Mestá | F204: Vidiek | G204: Celkom územie
B205: =B80 -> Lokácie základňových staníc napojené na elektrickú sieť | C205: # lokácií | D205: =D$195*$D80 ->  | E205: =E$195*$D80 ->  | G205: =SUM(D205:F205) -> 
A207: 7.10 Dimenzovanie BSC
B209: BSC dimenzačné ukazovatele | C209: Jednotka | D209: Bratislava 1 | E209: Bratislava 2 | F209: Košice 1 | G209: Košice 2 | H209: Trnava | I209: Nitra | J209: Trenčín | K209: Žilina | L209: Banská Bystrica | M209: Prešov | O209: Celkom územie
B210: Počet TRX na Core Node | C210: # | D210: =SUMPRODUCT(TRANSPOSE($D$156:$F$156),D$89:D$91) ->  | E210: =SUMPRODUCT(TRANSPOSE($D$156:$F$156),E$89:E$91) ->  | F210: =SUMPRODUCT(TRANSPOSE($D$156:$F$156),F$89:F$91) ->  | G210: =SUMPRODUCT(TRANSPOSE($D$156:$F$156),G$89:G$91) ->  | H210: =SUMPRODUCT(TRANSPOSE($D$156:$F$156),H$89:H$91) ->  | I210: =SUMPRODUCT(TRANSPOSE($D$156:$F$156),I$89:I$91) ->  | J210: =SUMPRODUCT(TRANSPOSE($D$156:$F$156),J$89:J$91) ->  | K210: =SUMPRODUCT(TRANSPOSE($D$156:$F$156),K$89:K$91) ->  | L210: =SUMPRODUCT(TRANSPOSE($D$156:$F$156),L$89:L$91) ->  | M210: =SUMPRODUCT(TRANSPOSE($D$156:$F$156),M$89:M$91) ->  | O210: =SUM(D210:M210) -> 
B212: Celkový požadovaný počet BSC | C212: Jednotka | D212: Bratislava 1 | E212: Bratislava 2 | F212: Košice 1 | G212: Košice 2 | H212: Trnava | I212: Nitra | J212: Trenčín | K212: Žilina | L212: Banská Bystrica | M212: Prešov | O212: Celkom územie
B213: Počet BSC na základe kapacity | C213: # BSC | D213: =ROUNDUP(D210/$D$84,0) ->  | O213: =SUM(D213:M213) -> 

Sheet 6. NE Dopyt
A1: 6. Dopyt po sieťových prvkoch
A3: Popis
A4: Kalkulácia sieťového dopytu
A6: 6.1 Sieťový dopyt po hlasových službách
J7: Obsadenosť minúty | M7: Obsadenosť
C8: Úspešné hovory | D8: Prevádzka | E8: % Drop rate | F8: Priemerná čakacia doba do naviazania hovoru | G8: Neúspešné hovory | H8: Prevádzka mimo konverzácie | I8: Minúty obsadenosti | J8: Prevádzka GSM | K8: Prevádzka UMTS | L8: Prevádzka LTE (not applicable) | M8: Prevádzka GSM | N8: Prevádzka UMTS | O8: Prevádzka LTE (not applicable)
B9: Služba | C9: # hovorov | D9: Hlasové minúty | E9: % | F9: Minút / hovor | G9: Hlasové minúty | H9: Hlasové minúty | I9: Hlasové minúty | J9: Hlasové minúty | K9: Hlasové minúty | L9: Hlasové minúty | M9: # hovorov | N9: # hovorov | O9: # hovorov
B10: ='2. Dopyt'!B29 -> Odchádzajúce - hovory v sieti (on-net) | C10: ='2. Dopyt'!D90 -> 0 | D10: ='2. Dopyt'!E29 -> 0 | E10: ='2. Dopyt'!F90 ->  | F10: ='2. Dopyt'!E90 ->  | G10: =C10/((1-E10)*100)*100*F10 ->  | H10: =C10*F10 ->  | I10: =H10+D10+G10 ->  | J10: =I10*'2. Dopyt'!$E$46 ->  | K10: =I10*'2. Dopyt'!$E$47 ->  | L10: =I10*'2. Dopyt'!$E$48 ->  | M10: =(C10+(G10/F10))*'2. Dopyt'!$E$46 ->  | N10: =(C10+(G10/F10))*'2. Dopyt'!$E$47 ->  | O10: =(C10+(G10/F10))*'2. Dopyt'!$E$48 -> 
B11: ='2. Dopyt'!B30 -> Odchádzajúce - hovory do sietí iných mobilných operátorov | C11: ='2. Dopyt'!D91 -> 0 | D11: ='2. Dopyt'!E30 -> 0 | E11: ='2. Dopyt'!F91 ->  | F11: ='2. Dopyt'!E91 ->  | G11: =C11/((1-E11)*100)*100*F11 ->  | H11: =C11*F11 ->  | I11: =H11+D11+G11 ->  | J11: =I11*'2. Dopyt'!$E$46 ->  | K11: =I11*'2. Dopyt'!$E$47 ->  | L11: =I11*'2. Dopyt'!$E$48 ->  | M11: =(C11+(G11/F11))*'2. Dopyt'!$E$46 ->  | N11: =(C11+(G11/F11))*'2. Dopyt'!$E$47 ->  | O11: =(C11+(G11/F11))*'2. Dopyt'!$E$48 -> 
B12: ='2. Dopyt'!B31 -> Odchádzajúce - hovory do pevnej siete | C12: ='2. Dopyt'!D92 -> 0 | D12: ='2. Dopyt'!E31 -> 0 | E12: ='2. Dopyt'!F92 ->  | F12: ='2. Dopyt'!E92 ->  | G12: =C12/((1-E12)*100)*100*F12 ->  | J12: =I12*'2. Dopyt'!$E$46 ->  | K12: =I12*'2. Dopyt'!$E$47 ->  | L12: =I12*'2. Dopyt'!$E$48 ->  | M12: =(C12+(G12/F12))*'2. Dopyt'!$E$46 ->  | N12: =(C12+(G12/F12))*'2. Dopyt'!$E$47 ->  | O12: =(C12+(G12/F12))*'2. Dopyt'!$E$48 -> 
B13: ='2. Dopyt'!B32 -> Odchádzajúce - hovory do zahraničia | C13: ='2. Dopyt'!D93 -> 0 | D13: ='2. Dopyt'!E32 -> 0 | E13: ='2. Dopyt'!F93 ->  | F13: ='2. Dopyt'!E93 ->  | J13: =I13*'2. Dopyt'!$E$46 ->  | K13: =I13*'2. Dopyt'!$E$47 ->  | L13: =I13*'2. Dopyt'!$E$48 ->  | M13: =(C13+(G13/F13))*'2. Dopyt'!$E$46 ->  | N13: =(C13+(G13/F13))*'2. Dopyt'!$E$47 ->  | O13: =(C13+(G13/F13))*'2. Dopyt'!$E$48 -> 
B14: ='2. Dopyt'!B33 -> Odchádzajúce - hovory na tiesňové čísla | C14: ='2. Dopyt'!D94 -> 0 | D14: ='2. Dopyt'!E33 -> 0 | E14: ='2. Dopyt'!F94 ->  | F14: ='2. Dopyt'!E94 ->  | I14: =H14+D14+G14 ->  | J14: =I14*'2. Dopyt'!$E$46 ->  | K14: =I14*'2. Dopyt'!$E$47 ->  | L14: =I14*'2. Dopyt'!$E$48 ->  | M14: =(C14+(G14/F14))*'2. Dopyt'!$E$46 ->  | N14: =(C14+(G14/F14))*'2. Dopyt'!$E$47 ->  | O14: =(C14+(G14/F14))*'2. Dopyt'!$E$48 -> 
B15: ='2. Dopyt'!B34 -> Odchádzajúce - hovory do hlasovej schránky | C15: ='2. Dopyt'!D95 -> 0 | D15: ='2. Dopyt'!E34 -> 0 | E15: ='2. Dopyt'!F95 ->  | F15: ='2. Dopyt'!E95 ->  | J15: =I15*'2. Dopyt'!$E$46 ->  | K15: =I15*'2. Dopyt'!$E$47 ->  | L15: =I15*'2. Dopyt'!$E$48 ->  | M15: =(C15+(G15/F15))*'2. Dopyt'!$E$46 ->  | N15: =(C15+(G15/F15))*'2. Dopyt'!$E$47 ->  | O15: =(C15+(G15/F15))*'2. Dopyt'!$E$48 -> 
B16: ='2. Dopyt'!B35 -> Odchádzajúce - hovory na bezplatné čísla | C16: ='2. Dopyt'!D96 -> 0 | D16: ='2. Dopyt'!E35 -> 0 | E16: ='2. Dopyt'!F96 ->  | F16: ='2. Dopyt'!E96 ->  | J16: =I16*'2. Dopyt'!$E$46 ->  | K16: =I16*'2. Dopyt'!$E$47 ->  | L16: =I16*'2. Dopyt'!$E$48 ->  | M16: =(C16+(G16/F16))*'2. Dopyt'!$E$46 ->  | N16: =(C16+(G16/F16))*'2. Dopyt'!$E$47 ->  | O16: =(C16+(G16/F16))*'2. Dopyt'!$E$48 -> 
B17: ='2. Dopyt'!B36 -> Odchádzajúce - hovory na čísla Premium | C17: ='2. Dopyt'!D97 -> 0 | D17: ='2. Dopyt'!E36 -> 0 | E17: ='2. Dopyt'!F97 ->  | F17: ='2. Dopyt'!E97 ->  | I17: =H17+D17+G17 ->  | J17: =I17*'2. Dopyt'!$E$46 ->  | K17: =I17*'2. Dopyt'!$E$47 ->  | L17: =I17*'2. Dopyt'!$E$48 ->  | M17: =(C17+(G17/F17))*'2. Dopyt'!$E$46 ->  | N17: =(C17+(G17/F17))*'2. Dopyt'!$E$47 ->  | O17: =(C17+(G17/F17))*'2. Dopyt'!$E$48 -> 
B18: ='2. Dopyt'!B37 -> Odchádzajúce - prichádzajúci roaming | C18: ='2. Dopyt'!D98 -> 0 | D18: ='2. Dopyt'!E37 -> 0 | E18: ='2. Dopyt'!F98 ->  | F18: ='2. Dopyt'!E98 ->  | J18: =I18*'2. Dopyt'!$E$46 ->  | K18: =I18*'2. Dopyt'!$E$47 ->  | L18: =I18*'2. Dopyt'!$E$48 ->  | M18: =(C18+(G18/F18))*'2. Dopyt'!$E$46 ->  | N18: =(C18+(G18/F18))*'2. Dopyt'!$E$47 ->  | O18: =(C18+(G18/F18))*'2. Dopyt'!$E$48 -> 
B19: ='2. Dopyt'!B38 -> Prichádzajúce - hovory od iných mobilných operátorov | C19: ='2. Dopyt'!D99 -> 0 | D19: ='2. Dopyt'!E38 -> 0 | E19: ='2. Dopyt'!F99 ->  | F19: ='2. Dopyt'!E99 ->  | J19: =I19*'2. Dopyt'!$E$46 ->  | K19: =I19*'2. Dopyt'!$E$47 ->  | L19: =I19*'2. Dopyt'!$E$48 ->  | M19: =(C19+(G19/F19))*'2. Dopyt'!$E$46 ->  | N19: =(C19+(G19/F19))*'2. Dopyt'!$E$47 ->  | O19: =(C19+(G19/F19))*'2. Dopyt'!$E$48 -> 
B20: ='2. Dopyt'!B39 -> Prichádzajúce - hovory z pevnej siete | C20: ='2. Dopyt'!D100 -> 0 | D20: ='2. Dopyt'!E39 -> 0 | E20: ='2. Dopyt'!F100 ->  | F20: ='2. Dopyt'!E100 ->  | J20: =I20*'2. Dopyt'!$E$46 ->  | K20: =I20*'2. Dopyt'!$E$47 ->  | L20: =I20*'2. Dopyt'!$E$48 ->  | M20: =(C20+(G20/F20))*'2. Dopyt'!$E$46 ->  | N20: =(C20+(G20/F20))*'2. Dopyt'!$E$47 ->  | O20: =(C20+(G20/F20))*'2. Dopyt'!$E$48 -> 
B21: ='2. Dopyt'!B40 -> Prichádzajúce - hovory zo zahraničia | C21: ='2. Dopyt'!D101 -> 0 | D21: ='2. Dopyt'!E40 -> 0 | E21: ='2. Dopyt'!F101 ->  | F21: ='2. Dopyt'!E101 ->  | I21: =H21+D21+G21 ->  | J21: =I21*'2. Dopyt'!$E$46 ->  | K21: =I21*'2. Dopyt'!$E$47 ->  | L21: =I21*'2. Dopyt'!$E$48 ->  | M21: =(C21+(G21/F21))*'2. Dopyt'!$E$46 ->  | N21: =(C21+(G21/F21))*'2. Dopyt'!$E$47 ->  | O21: =(C21+(G21/F21))*'2. Dopyt'!$E$48 -> 
B22: ='2. Dopyt'!B41 -> Prichádzajúce - prichádzajúci roaming | C22: ='2. Dopyt'!D102 -> 0 | D22: ='2. Dopyt'!E41 -> 0 | E22: ='2. Dopyt'!F102 ->  | F22: ='2. Dopyt'!E102 ->  | J22: =I22*'2. Dopyt'!$E$46 ->  | K22: =I22*'2. Dopyt'!$E$47 ->  | L22: =I22*'2. Dopyt'!$E$48 ->  | M22: =(C22+(G22/F22))*'2. Dopyt'!$E$46 ->  | N22: =(C22+(G22/F22))*'2. Dopyt'!$E$47 ->  | O22: =(C22+(G22/F22))*'2. Dopyt'!$E$48 -> 
B23: Celkom | C23: =SUM(C10:C22) -> 0 | D23: =SUM(D10:D22) -> 0 | G23: =SUM(G10:G22) ->  | H23: =SUM(H10:H22) ->  | I23: =SUM(I10:I22) ->  | J23: =SUM(J10:J22) ->  | K23: =SUM(K10:K22) ->  | L23: =I23*'2. Dopyt'!$E$48 ->  | M23: =SUM(M10:M22) ->  | N23: =SUM(N10:N22) ->  | O23: =SUM(O10:O22) -> 
A26: 6.2 Sieťový dopyt po SMS, MMS a mobilných dátach
I27: Obsadenosť minúty
C28: SMS úspešne odoslané & prijaté | D28: Úspešné SMS ako % z celkového počtu | E28: Neúspešné SMS | F28: SMS celkom | G28: Konverzný faktor | H28: Minúty obsadenosti | I28: Prevádzka GSM | J28: Prevádzka 3G | K28: Prevádzka LTE (not applicable)
B29: Služba | C29: # správ | D29: % | E29: # správ | F29: # správ | H29: Ekvivalent hlasových minút | I29: Ekvivalent hlasových minút | J29: Ekvivalent hlasových minút | K29: Ekvivalent hlasových minút
B30: ='2. Dopyt'!B53 -> Odchádzajúce - SMS v rámci siete | C30: ='2. Dopyt'!E53 -> 0 | D30: ='2. Dopyt'!C106 -> 0 | E30: =(1/D30-1)*C30 ->  | F30: =E30+C30 ->  | G30: =I_SMS_Conversion -> 0.0260756193 | H30: =F30*G30 ->  | I30: =H30*'2. Dopyt'!$E$70 ->  | J30: =H30*'2. Dopyt'!$E$71 ->  | K30: =H30*'2. Dopyt'!$E$72 -> 
B31: ='2. Dopyt'!B54 -> Odchádzajúce - SMS do sietí iných mobilných operátorov | C31: ='2. Dopyt'!E54 -> 0 | D31: ='2. Dopyt'!C107 -> 0 | E31: =(1/D31-1)*C31 ->  | F31: =E31+C31 ->  | G31: =I_SMS_Conversion -> 0.0260756193 | H31: =F31*G31 ->  | I31: =H31*'2. Dopyt'!$E$70 ->  | J31: =H31*'2. Dopyt'!$E$71 ->  | K31: =H31*'2. Dopyt'!$E$72 -> 
B32: ='2. Dopyt'!B55 -> Odchádzajúce - SMS do zahraničia | C32: ='2. Dopyt'!E55 -> 0 | D32: ='2. Dopyt'!C108 -> 0 | E32: =(1/D32-1)*C32 ->  | F32: =E32+C32 ->  | G32: =I_SMS_Conversion -> 0.0260756193 | H32: =F32*G32 ->  | I32: =H32*'2. Dopyt'!$E$70 ->  | J32: =H32*'2. Dopyt'!$E$71 ->  | K32: =H32*'2. Dopyt'!$E$72 -> 
B33: ='2. Dopyt'!B56 -> Prichádzajúce - SMS z iných sietí mobilných operátorov | C33: ='2. Dopyt'!E56 -> 0 | D33: ='2. Dopyt'!C109 -> 0 | E33: =(1/D33-1)*C33 ->  | F33: =E33+C33 ->  | G33: =I_SMS_Conversion -> 0.0260756193 | H33: =F33*G33 ->  | I33: =H33*'2. Dopyt'!$E$70 ->  | J33: =H33*'2. Dopyt'!$E$71 ->  | K33: =H33*'2. Dopyt'!$E$72 -> 
B34: ='2. Dopyt'!B57 -> Prichádzajúce - SMS zo zahraničia | C34: ='2. Dopyt'!E57 -> 0 | D34: ='2. Dopyt'!C110 -> 0 | E34: =(1/D34-1)*C34 ->  | F34: =E34+C34 ->  | G34: =I_SMS_Conversion -> 0.0260756193 | H34: =F34*G34 ->  | I34: =H34*'2. Dopyt'!$E$70 ->  | J34: =H34*'2. Dopyt'!$E$71 ->  | K34: =H34*'2. Dopyt'!$E$72 -> 
B35: Celkom | C35: =SUM(C30:C34) -> 0 | E35: =SUM(E30:E34) ->  | F35: =SUM(F30:F34) ->  | H35: =SUM(H30:H34) ->  | I35: =SUM(I30:I34) ->  | J35: =SUM(J30:J34) ->  | K35: =SUM(K30:K34) -> 
I38: Obsadenosť minúty
C39: MMS úspešne odoslané & prijaté | D39: Úspešné MMS ako % z celkového počtu | E39: Neúspešné MMS | F39: MMS celkom | G39: Konverzný faktor | I39: Prevádzka GSM | J39: Prevádzka 3G | K39: Prevádzka LTE (not applicable)
B40: Služba | C40: # správ | D40: % | E40: # správ | F40: # správ | G40: GSM | H40: UMTS (LTE) | I40: Ekvivalent hlasových minút | J40: Ekvivalent hlasových minút | K40: Ekvivalent hlasových minút
B41: Odchádzajúce - MMS v rámci siete | C41: ='2. Dopyt'!E61 -> 0 | D41: ='2. Dopyt'!C111 -> 0 | E41: =(1/D41-1)*C41 ->  | F41: =E41+C41 ->  | G41: =I_Data_Conversion -> 6.827 | H41: ='2. Dopyt'!$E$142 -> 2.26 | I41: =F41*'2. Dopyt'!$E$70*G41 ->  | J41: =F41*'2. Dopyt'!$E$71*H41 ->  | K41: =F41*'2. Dopyt'!$E$72*H41 -> 
B42: Odchádzajúce - MMS do sietí iných mobilných operátorov | C42: ='2. Dopyt'!E62 -> 0 | D42: ='2. Dopyt'!C112 -> 0 | E42: =(1/D42-1)*C42 ->  | F42: =E42+C42 ->  | G42: =I_Data_Conversion -> 6.827 | H42: ='2. Dopyt'!$E$142 -> 2.26 | I42: =F42*'2. Dopyt'!$E$70*G42 ->  | J42: =F42*'2. Dopyt'!$E$71*H42 ->  | K42: =F42*'2. Dopyt'!$E$72*H42 -> 
B43: Odchádzajúce - MMS do zahraničia | C43: ='2. Dopyt'!E63 -> 0 | D43: ='2. Dopyt'!C113 -> 0 | E43: =(1/D43-1)*C43 ->  | F43: =E43+C43 ->  | G43: =I_Data_Conversion -> 6.827 | H43: ='2. Dopyt'!$E$142 -> 2.26 | I43: =F43*'2. Dopyt'!$E$70*G43 ->  | J43: =F43*'2. Dopyt'!$E$71*H43 ->  | K43: =F43*'2. Dopyt'!$E$72*H43 -> 
B44: Prichádzajúce - MMS z iných sietí mobilných operátorov | C44: ='2. Dopyt'!E64 -> 0 | D44: ='2. Dopyt'!C114 -> 0 | E44: =(1/D44-1)*C44 ->  | F44: =E44+C44 ->  | G44: =I_Data_Conversion -> 6.827 | H44: ='2. Dopyt'!$E$142 -> 2.26 | I44: =F44*'2. Dopyt'!$E$70*G44 ->  | J44: =F44*'2. Dopyt'!$E$71*H44 ->  | K44: =F44*'2. Dopyt'!$E$72*H44 -> 
B45: Prichádzajúce - MMS zo zahraničia | C45: ='2. Dopyt'!E65 -> 0 | D45: ='2. Dopyt'!C115 -> 0 | E45: =(1/D45-1)*C45 ->  | F45: =E45+C45 ->  | G45: =I_Data_Conversion -> 6.827 | H45: ='2. Dopyt'!$E$142 -> 2.26 | I45: =F45*'2. Dopyt'!$E$70*G45 ->  | J45: =F45*'2. Dopyt'!$E$71*H45 ->  | K45: =F45*'2. Dopyt'!$E$72*H45 -> 
B46: Celkom | C46: =SUM(C41:C45) -> 0 | E46: =SUM(E41:E45) ->  | F46: =SUM(F41:F45) ->  | I46: =SUM(I41:I45) ->  | J46: =SUM(J41:J45) ->  | K46: =SUM(K41:K45) -> 
F49: Obsadenosť minúty
C50: Dátový objem | D50: Konverzný faktor | F50: Prevádzka GSM | G50: Prevádzka UMTS | H50: Prevádzka LTE (not applicable)
B51: Služba | C51: Mb | D51: GSM | E51: UMTS (LTE) | F51: Ekvivalent hlasových minút | G51: Ekvivalent hlasových minút | H51: Ekvivalent hlasových minút
B52: ='2. Dopyt'!B77 -> Mobilné dáta | C52: ='2. Dopyt'!E77 -> 0 | D52: =I_Data_Conversion -> 6.827 | E52: ='2. Dopyt'!$E$142 -> 2.26 | F52: =C52*'2. Dopyt'!$E$81*D52 -> 0 | G52: =C52*'2. Dopyt'!$E$82*E52 -> 0 | H52: =C52*'2. Dopyt'!$E$83*E52 -> 0
D53: I_data _conversion
A55: 6.3 Sumarizácia sieťového dopytu
B57: Služba | C57: Ekvivalent hlasových minút
C58: GSM | D58: UMTS | E58: LTE (not applicable) | F58: Celkom
B59: =B10 -> Odchádzajúce - hovory v sieti (on-net) | C59: =J10 ->  | D59: =K10 ->  | E59: =L10 ->  | F59: =C59+D59+E59 -> 
B60: =B11 -> Odchádzajúce - hovory do sietí iných mobilných operátorov | C60: =J11 ->  | F60: =C60+D60+E60 -> 
B61: Odchádzajúce - hovory do pevnej siete
B62: Odchádzajúce - hovory do zahraničia
B63: Odchádzajúce - hovory na tiesňové čísla
B64: Odchádzajúce - hovory do hlasovej schránky
B65: Odchádzajúce - hovory na bezplatné čísla
B66: Odchádzajúce - hovory na čísla Premium
B67: Odchádzajúce - prichádzajúci roaming
B68: Prichádzajúce - hovory od iných mobilných operátorov
B69: Prichádzajúce - hovory z pevnej siete
B70: Prichádzajúce - hovory zo zahraničia
B71: Prichádzajúce - prichádzajúci roaming
B72: =B30 -> Odchádzajúce - SMS v rámci siete | C72: =I30 ->  | D72: =J30 ->  | E72: =K30 -> 
B73: =B31 -> Odchádzajúce - SMS do sietí iných mobilných operátorov | C73: =I31 -> 
B74: =B32 -> Odchádzajúce - SMS do zahraničia
B75: =B33 -> Prichádzajúce - SMS z iných sietí mobilných operátorov
B76: =B34 -> Prichádzajúce - SMS zo zahraničia
B77: =B41 -> Odchádzajúce - MMS v rámci siete | C77: =I41 ->  | D77: =J41 -> 
B78: =B42 -> Odchádzajúce - MMS do sietí iných mobilných operátorov
B79: Odchádzajúce - MMS do zahraničia | C79: =I43 ->  | D79: =J43 -> 
B80: Prichádzajúce - MMS z iných sietí mobilných operátorov | C80: =I44 -> 
B81: Prichádzajúce - MMS zo zahraničia | C81: =I45 -> 
B82: =B52 -> Mobilné dáta | C82: =F52 -> 0 | D82: =G52 -> 0 | E82: =H52 -> 0 | F82: 0
B83: Celkom | C83: =SUM(C59:C82) ->  | D83: =SUM(D59:D82) ->  | E83: =SUM(E59:E82) ->  | F83: =SUM(F59:F82) -> 
A86: 6.4 Sumarizované smerovacie faktory
B88: Typ siete | C88: Rádiový prístup | H88: Chrbticová sieť | K88: Prenosová sieť | Q88: Platformy
B89: Technológia | C89: 2G | E89: 3G | G89: LTE | K89: Transmission Access GSM | L89: Transmission Access UMTS | M89: Transmission Core NGN
B90: NE / Služba | C90: ='3. Smerovacie faktory'!D8 -> BTS | D90: ='3. Smerovacie faktory'!E8 -> BSC | E90: ='3. Smerovacie faktory'!F8 -> Node B | F90: ='3. Smerovacie faktory'!G8 -> RNC | G90: ='3. Smerovacie faktory'!H8 -> eNode B | H90: ='3. Smerovacie faktory'!I8 -> HLR | I90: ='3. Smerovacie faktory'!J8 -> MSS | J90: ='3. Smerovacie faktory'!K8 -> MGW | K90: ='3. Smerovacie faktory'!L8 -> BTS - BSC | L90: ='3. Smerovacie faktory'!M8 -> Node B - RNC | M90: ='3. Smerovacie faktory'!N8 -> eNode B - GGSN-MGW | N90: ='3. Smerovacie faktory'!O8 -> BSC - MGW | O90: ='3. Smerovacie faktory'!P8 -> RNC - MGW | P90: ='3. Smerovacie faktory'!Q8 -> MGW - MGW | Q90: Mobile voicemail platform | R90: SMSC Platform | S90: MMSC Platform | T90: Intelligent Network | U90: SGSN Platform | V90: GGSN Platform | W90: Interconnection
B91: ='3. Smerovacie faktory'!B9 -> Odchádzajúce - hovory v sieti (on-net) | C91: ='3. Smerovacie faktory'!D9 -> 2 | D91: ='3. Smerovacie faktory'!E9 -> 2 | E91: ='3. Smerovacie faktory'!F9 -> 2 | F91: ='3. Smerovacie faktory'!G9 -> 2 | G91: ='3. Smerovacie faktory'!H9 -> 2 | H91: ='3. Smerovacie faktory'!I9 -> 1 | I91: ='3. Smerovacie faktory'!J9 -> 1.5 | J91: ='3. Smerovacie faktory'!K9 -> 2 | K91: ='3. Smerovacie faktory'!L9 -> 2 | L91: ='3. Smerovacie faktory'!M9 -> 2 | M91: ='3. Smerovacie faktory'!N9 -> x | N91: ='3. Smerovacie faktory'!O9 -> 2 | O91: ='3. Smerovacie faktory'!P9 -> 2 | P91: ='3. Smerovacie faktory'!Q9 -> 1 | Q91: ='3. Smerovacie faktory'!R9 -> 0 | R91: ='3. Smerovacie faktory'!S9 -> 0 | S91: ='3. Smerovacie faktory'!T9 -> 0 | T91: ='3. Smerovacie faktory'!U9 -> 1 | U91: ='3. Smerovacie faktory'!V9 -> 0 | V91: ='3. Smerovacie faktory'!W9 -> 0 | W91: ='3. Smerovacie faktory'!X9 -> 0
B92: ='3. Smerovacie faktory'!B10 -> Odchádzajúce - hovory do sietí iných mobilných operátorov | C92: ='3. Smerovacie faktory'!D10 -> 1 | D92: ='3. Smerovacie faktory'!E10 -> 1 | E92: ='3. Smerovacie faktory'!F10 -> 1 | F92: ='3. Smerovacie faktory'!G10 -> 1 | G92: ='3. Smerovacie faktory'!H10 -> 1 | H92: ='3. Smerovacie faktory'!I10 -> 1 | I92: ='3. Smerovacie faktory'!J10 -> 1 | J92: ='3. Smerovacie faktory'!K10 -> 1.5 | K92: ='3. Smerovacie faktory'!L10 -> 1 | L92: ='3. Smerovacie faktory'!M10 -> 1 | M92: ='3. Smerovacie faktory'!N10 -> x | N92: ='3. Smerovacie faktory'!O10 -> 1 | O92: ='3. Smerovacie faktory'!P10 -> 1 | P92: ='3. Smerovacie faktory'!Q10 -> 1 | Q92: ='3. Smerovacie faktory'!R10 -> 0 | R92: ='3. Smerovacie faktory'!S10 -> 0 | S92: ='3. Smerovacie faktory'!T10 -> 0 | T92: ='3. Smerovacie faktory'!U10 -> 1 | U92: ='3. Smerovacie faktory'!V10 -> 0 | V92: ='3. Smerovacie faktory'!W10 -> 0 | W92: ='3. Smerovacie faktory'!X10 -> 1
B93: ='3. Smerovacie faktory'!B11 -> Odchádzajúce - hovory do pevnej siete | C93: ='3. Smerovacie faktory'!D11 -> 1 | D93: ='3. Smerovacie faktory'!E11 -> 1 | E93: ='3. Smerovacie faktory'!F11 -> 1 | F93: ='3. Smerovacie faktory'!G11 -> 1 | G93: ='3. Smerovacie faktory'!H11 -> 1 | H93: ='3. Smerovacie faktory'!I11 -> 1 | I93: ='3. Smerovacie faktory'!J11 -> 1 | J93: ='3. Smerovacie faktory'!K11 -> 1.5 | K93: ='3. Smerovacie faktory'!L11 -> 1 | L93: ='3. Smerovacie faktory'!M11 -> 1 | M93: ='3. Smerovacie faktory'!N11 -> x | N93: ='3. Smerovacie faktory'!O11 -> 1 | O93: ='3. Smerovacie faktory'!P11 -> 1 | P93: ='3. Smerovacie faktory'!Q11 -> 1 | Q93: ='3. Smerovacie faktory'!R11 -> 0 | R93: ='3. Smerovacie faktory'!S11 -> 0 | S93: ='3. Smerovacie faktory'!T11 -> 0 | T93: ='3. Smerovacie faktory'!U11 -> 1 | U93: ='3. Smerovacie faktory'!V11 -> 0 | V93: ='3. Smerovacie faktory'!W11 -> 0 | W93: ='3. Smerovacie faktory'!X11 -> 1
B94: ='3. Smerovacie faktory'!B12 -> Odchádzajúce - hovory do zahraničia | C94: ='3. Smerovacie faktory'!D12 -> 1 | D94: ='3. Smerovacie faktory'!E12 -> 1 | E94: ='3. Smerovacie faktory'!F12 -> 1 | F94: ='3. Smerovacie faktory'!G12 -> 1 | G94: ='3. Smerovacie faktory'!H12 -> 1 | H94: ='3. Smerovacie faktory'!I12 -> 1 | I94: ='3. Smerovacie faktory'!J12 -> 1 | J94: ='3. Smerovacie faktory'!K12 -> 1.5 | K94: ='3. Smerovacie faktory'!L12 -> 1 | L94: ='3. Smerovacie faktory'!M12 -> 1 | M94: ='3. Smerovacie faktory'!N12 -> x | N94: ='3. Smerovacie faktory'!O12 -> 1 | O94: ='3. Smerovacie faktory'!P12 -> 1 | P94: ='3. Smerovacie faktory'!Q12 -> 1 | Q94: ='3. Smerovacie faktory'!R12 -> 0 | R94: ='3. Smerovacie faktory'!S12 -> 0 | S94: ='3. Smerovacie faktory'!T12 -> 0 | T94: ='3. Smerovacie faktory'!U12 -> 1 | U94: ='3. Smerovacie faktory'!V12 -> 0 | V94: ='3. Smerovacie faktory'!W12 -> 0 | W94: ='3. Smerovacie faktory'!X12 -> 1
B95: ='3. Smerovacie faktory'!B13 -> Odchádzajúce - hovory na tiesňové čísla | C95: ='3. Smerovacie faktory'!D13 -> 1 | D95: ='3. Smerovacie faktory'!E13 -> 1 | E95: ='3. Smerovacie faktory'!F13 -> 1 | F95: ='3. Smerovacie faktory'!G13 -> 1 | G95: ='3. Smerovacie faktory'!H13 -> 1 | H95: ='3. Smerovacie faktory'!I13 -> 1 | I95: ='3. Smerovacie faktory'!J13 -> 1 | J95: ='3. Smerovacie faktory'!K13 -> 1.5 | K95: ='3. Smerovacie faktory'!L13 -> 1 | L95: ='3. Smerovacie faktory'!M13 -> 1 | M95: ='3. Smerovacie faktory'!N13 -> x | N95: ='3. Smerovacie faktory'!O13 -> 1 | O95: ='3. Smerovacie faktory'!P13 -> 1 | P95: ='3. Smerovacie faktory'!Q13 -> 1 | Q95: ='3. Smerovacie faktory'!R13 -> 0 | R95: ='3. Smerovacie faktory'!S13 -> 0 | S95: ='3. Smerovacie faktory'!T13 -> 0 | T95: ='3. Smerovacie faktory'!U13 -> 1 | U95: ='3. Smerovacie faktory'!V13 -> 0 | V95: ='3. Smerovacie faktory'!W13 -> 0 | W95: ='3. Smerovacie faktory'!X13 -> 1
B96: ='3. Smerovacie faktory'!B14 -> Odchádzajúce - hovory do hlasovej schránky | C96: ='3. Smerovacie faktory'!D14 -> 1 | D96: ='3. Smerovacie faktory'!E14 -> 1 | E96: ='3. Smerovacie faktory'!F14 -> 1 | F96: ='3. Smerovacie faktory'!G14 -> 1 | G96: ='3. Smerovacie faktory'!H14 -> 1 | H96: ='3. Smerovacie faktory'!I14 -> 1 | I96: ='3. Smerovacie faktory'!J14 -> 1 | J96: ='3. Smerovacie faktory'!K14 -> 1.5 | K96: ='3. Smerovacie faktory'!L14 -> 1 | L96: ='3. Smerovacie faktory'!M14 -> 1 | M96: ='3. Smerovacie faktory'!N14 -> x | N96: ='3. Smerovacie faktory'!O14 -> 1 | O96: ='3. Smerovacie faktory'!P14 -> 1 | P96: ='3. Smerovacie faktory'!Q14 -> 1 | Q96: ='3. Smerovacie faktory'!R14 -> 1 | R96: ='3. Smerovacie faktory'!S14 -> 0 | S96: ='3. Smerovacie faktory'!T14 -> 0 | T96: ='3. Smerovacie faktory'!U14 -> 1 | U96: ='3. Smerovacie faktory'!V14 -> 0 | V96: ='3. Smerovacie faktory'!W14 -> 0 | W96: ='3. Smerovacie faktory'!X14 -> 0
B97: ='3. Smerovacie faktory'!B15 -> Odchádzajúce - hovory na bezplatné čísla | C97: ='3. Smerovacie faktory'!D15 -> 1 | D97: ='3. Smerovacie faktory'!E15 -> 1 | E97: ='3. Smerovacie faktory'!F15 -> 1 | F97: ='3. Smerovacie faktory'!G15 -> 1 | G97: ='3. Smerovacie faktory'!H15 -> 1 | H97: ='3. Smerovacie faktory'!I15 -> 1 | I97: ='3. Smerovacie faktory'!J15 -> 1.25 | J97: ='3. Smerovacie faktory'!K15 -> 1.5 | K97: ='3. Smerovacie faktory'!L15 -> 1 | L97: ='3. Smerovacie faktory'!M15 -> 1 | M97: ='3. Smerovacie faktory'!N15 -> x | N97: ='3. Smerovacie faktory'!O15 -> 1 | O97: ='3. Smerovacie faktory'!P15 -> 1 | P97: ='3. Smerovacie faktory'!Q15 -> 1 | Q97: ='3. Smerovacie faktory'!R15 -> 0 | R97: ='3. Smerovacie faktory'!S15 -> 0 | S97: ='3. Smerovacie faktory'!T15 -> 0 | T97: ='3. Smerovacie faktory'!U15 -> 1 | U97: ='3. Smerovacie faktory'!V15 -> 0 | V97: ='3. Smerovacie faktory'!W15 -> 0 | W97: ='3. Smerovacie faktory'!X15 -> 1
B98: ='3. Smerovacie faktory'!B16 -> Odchádzajúce - hovory na čísla Premium | C98: ='3. Smerovacie faktory'!D16 -> 1 | D98: ='3. Smerovacie faktory'!E16 -> 1 | E98: ='3. Smerovacie faktory'!F16 -> 1 | F98: ='3. Smerovacie faktory'!G16 -> 1 | G98: ='3. Smerovacie faktory'!H16 -> 1 | H98: ='3. Smerovacie faktory'!I16 -> 1 | I98: ='3. Smerovacie faktory'!J16 -> 1.25 | J98: ='3. Smerovacie faktory'!K16 -> 1.5 | K98: ='3. Smerovacie faktory'!L16 -> 1 | L98: ='3. Smerovacie faktory'!M16 -> 1 | M98: ='3. Smerovacie faktory'!N16 -> x | N98: ='3. Smerovacie faktory'!O16 -> 1 | O98: ='3. Smerovacie faktory'!P16 -> 1 | P98: ='3. Smerovacie faktory'!Q16 -> 1 | Q98: ='3. Smerovacie faktory'!R16 -> 0 | R98: ='3. Smerovacie faktory'!S16 -> 0 | S98: ='3. Smerovacie faktory'!T16 -> 0 | T98: ='3. Smerovacie faktory'!U16 -> 1 | U98: ='3. Smerovacie faktory'!V16 -> 0 | V98: ='3. Smerovacie faktory'!W16 -> 0 | W98: ='3. Smerovacie faktory'!X16 -> 1
B99: ='3. Smerovacie faktory'!B17 -> Odchádzajúce - prichádzajúci roaming | C99: ='3. Smerovacie faktory'!D17 -> 1 | D99: ='3. Smerovacie faktory'!E17 -> 1 | E99: ='3. Smerovacie faktory'!F17 -> 1 | F99: ='3. Smerovacie faktory'!G17 -> 1 | G99: ='3. Smerovacie faktory'!H17 -> 1 | H99: ='3. Smerovacie faktory'!I17 -> 1 | I99: ='3. Smerovacie faktory'!J17 -> 1 | J99: ='3. Smerovacie faktory'!K17 -> 1.5 | K99: ='3. Smerovacie faktory'!L17 -> 1 | L99: ='3. Smerovacie faktory'!M17 -> 1 | M99: ='3. Smerovacie faktory'!N17 -> x | N99: ='3. Smerovacie faktory'!O17 -> 1 | O99: ='3. Smerovacie faktory'!P17 -> 1 | P99: ='3. Smerovacie faktory'!Q17 -> 1 | Q99: ='3. Smerovacie faktory'!R17 -> 0 | R99: ='3. Smerovacie faktory'!S17 -> 0 | S99: ='3. Smerovacie faktory'!T17 -> 0 | T99: ='3. Smerovacie faktory'!U17 -> 1 | U99: ='3. Smerovacie faktory'!V17 -> 0 | V99: ='3. Smerovacie faktory'!W17 -> 0 | W99: ='3. Smerovacie faktory'!X17 -> 1
B100: ='3. Smerovacie faktory'!B18 -> Prichádzajúce - hovory od iných mobilných operátorov | C100: ='3. Smerovacie faktory'!D18 -> 1 | D100: ='3. Smerovacie faktory'!E18 -> 1 | E100: ='3. Smerovacie faktory'!F18 -> 1 | F100: ='3. Smerovacie faktory'!G18 -> 1 | G100: ='3. Smerovacie faktory'!H18 -> 1 | H100: ='3. Smerovacie faktory'!I18 -> 1 | I100: ='3. Smerovacie faktory'!J18 -> 1.5 | J100: ='3. Smerovacie faktory'!K18 -> 1.5 | K100: ='3. Smerovacie faktory'!L18 -> 1 | L100: ='3. Smerovacie faktory'!M18 -> 1 | M100: ='3. Smerovacie faktory'!N18 -> x | N100: ='3. Smerovacie faktory'!O18 -> 1 | O100: ='3. Smerovacie faktory'!P18 -> 1 | P100: ='3. Smerovacie faktory'!Q18 -> 1 | Q100: ='3. Smerovacie faktory'!R18 -> 0 | R100: ='3. Smerovacie faktory'!S18 -> 0 | S100: ='3. Smerovacie faktory'!T18 -> 0 | T100: ='3. Smerovacie faktory'!U18 -> 1 | U100: ='3. Smerovacie faktory'!V18 -> 0 | V100: ='3. Smerovacie faktory'!W18 -> 0 | W100: ='3. Smerovacie faktory'!X18 -> 1
B101: ='3. Smerovacie faktory'!B19 -> Prichádzajúce - hovory z pevnej siete | C101: ='3. Smerovacie faktory'!D19 -> 1 | D101: ='3. Smerovacie faktory'!E19 -> 1 | E101: ='3. Smerovacie faktory'!F19 -> 1 | F101: ='3. Smerovacie faktory'!G19 -> 1 | G101: ='3. Smerovacie faktory'!H19 -> 1 | H101: ='3. Smerovacie faktory'!I19 -> 1 | I101: ='3. Smerovacie faktory'!J19 -> 1.5 | J101: ='3. Smerovacie faktory'!K19 -> 1.5 | K101: ='3. Smerovacie faktory'!L19 -> 1 | L101: ='3. Smerovacie faktory'!M19 -> 1 | M101: ='3. Smerovacie faktory'!N19 -> x | N101: ='3. Smerovacie faktory'!O19 -> 1 | O101: ='3. Smerovacie faktory'!P19 -> 1 | P101: ='3. Smerovacie faktory'!Q19 -> 1 | Q101: ='3. Smerovacie faktory'!R19 -> 0 | R101: ='3. Smerovacie faktory'!S19 -> 0 | S101: ='3. Smerovacie faktory'!T19 -> 0 | T101: ='3. Smerovacie faktory'!U19 -> 1 | U101: ='3. Smerovacie faktory'!V19 -> 0 | V101: ='3. Smerovacie faktory'!W19 -> 0 | W101: ='3. Smerovacie faktory'!X19 -> 1
B102: ='3. Smerovacie faktory'!B20 -> Prichádzajúce - hovory zo zahraničia | C102: ='3. Smerovacie faktory'!D20 -> 1 | D102: ='3. Smerovacie faktory'!E20 -> 1 | E102: ='3. Smerovacie faktory'!F20 -> 1 | F102: ='3. Smerovacie faktory'!G20 -> 1 | G102: ='3. Smerovacie faktory'!H20 -> 1 | H102: ='3. Smerovacie faktory'!I20 -> 1 | I102: ='3. Smerovacie faktory'!J20 -> 1.5 | J102: ='3. Smerovacie faktory'!K20 -> 1.5 | K102: ='3. Smerovacie faktory'!L20 -> 1 | L102: ='3. Smerovacie faktory'!M20 -> 1 | M102: ='3. Smerovacie faktory'!N20 -> x | N102: ='3. Smerovacie faktory'!O20 -> 1 | O102: ='3. Smerovacie faktory'!P20 -> 1 | P102: ='3. Smerovacie faktory'!Q20 -> 1 | Q102: ='3. Smerovacie faktory'!R20 -> 0 | R102: ='3. Smerovacie faktory'!S20 -> 0 | S102: ='3. Smerovacie faktory'!T20 -> 0 | T102: ='3. Smerovacie faktory'!U20 -> 1 | U102: ='3. Smerovacie faktory'!V20 -> 0 | V102: ='3. Smerovacie faktory'!W20 -> 0 | W102: ='3. Smerovacie faktory'!X20 -> 1
B103: ='3. Smerovacie faktory'!B21 -> Prichádzajúce - prichádzajúci roaming | C103: ='3. Smerovacie faktory'!D21 -> 1 | D103: ='3. Smerovacie faktory'!E21 -> 1 | E103: ='3. Smerovacie faktory'!F21 -> 1 | F103: ='3. Smerovacie faktory'!G21 -> 1 | G103: ='3. Smerovacie faktory'!H21 -> 1 | H103: ='3. Smerovacie faktory'!I21 -> 1 | I103: ='3. Smerovacie faktory'!J21 -> 1.5 | J103: ='3. Smerovacie faktory'!K21 -> 1.5 | K103: ='3. Smerovacie faktory'!L21 -> 1 | L103: ='3. Smerovacie faktory'!M21 -> 1 | M103: ='3. Smerovacie faktory'!N21 -> x | N103: ='3. Smerovacie faktory'!O21 -> 1 | O103: ='3. Smerovacie faktory'!P21 -> 1 | P103: ='3. Smerovacie faktory'!Q21 -> 1 | Q103: ='3. Smerovacie faktory'!R21 -> 0 | R103: ='3. Smerovacie faktory'!S21 -> 0 | S103: ='3. Smerovacie faktory'!T21 -> 0 | T103: ='3. Smerovacie faktory'!U21 -> 1 | U103: ='3. Smerovacie faktory'!V21 -> 0 | V103: ='3. Smerovacie faktory'!W21 -> 0 | W103: ='3. Smerovacie faktory'!X21 -> 1
B104: ='3. Smerovacie faktory'!B22 -> Odchádzajúce - SMS v rámci siete | C104: ='3. Smerovacie faktory'!D22 -> 2 | D104: ='3. Smerovacie faktory'!E22 -> 2 | E104: ='3. Smerovacie faktory'!F22 -> 2 | F104: ='3. Smerovacie faktory'!G22 -> 2 | G104: ='3. Smerovacie faktory'!H22 -> 2 | H104: ='3. Smerovacie faktory'!I22 -> 1 | I104: ='3. Smerovacie faktory'!J22 -> 0 | J104: ='3. Smerovacie faktory'!K22 -> 2 | K104: ='3. Smerovacie faktory'!L22 -> 2 | L104: ='3. Smerovacie faktory'!M22 -> 2 | M104: ='3. Smerovacie faktory'!N22 -> x | N104: ='3. Smerovacie faktory'!O22 -> 2 | O104: ='3. Smerovacie faktory'!P22 -> 2 | P104: ='3. Smerovacie faktory'!Q22 -> 2 | Q104: ='3. Smerovacie faktory'!R22 -> 0 | R104: ='3. Smerovacie faktory'!S22 -> 1 | S104: ='3. Smerovacie faktory'!T22 -> 0 | T104: ='3. Smerovacie faktory'!U22 -> 1 | U104: ='3. Smerovacie faktory'!V22 -> 0 | V104: ='3. Smerovacie faktory'!W22 -> 0 | W104: ='3. Smerovacie faktory'!X22 -> 0
B105: ='3. Smerovacie faktory'!B23 -> Odchádzajúce - SMS do sietí iných mobilných operátorov | C105: ='3. Smerovacie faktory'!D23 -> 1 | D105: ='3. Smerovacie faktory'!E23 -> 1 | E105: ='3. Smerovacie faktory'!F23 -> 1 | F105: ='3. Smerovacie faktory'!G23 -> 1 | G105: ='3. Smerovacie faktory'!H23 -> 1 | H105: ='3. Smerovacie faktory'!I23 -> 1 | I105: ='3. Smerovacie faktory'!J23 -> 0 | J105: ='3. Smerovacie faktory'!K23 -> 1 | K105: ='3. Smerovacie faktory'!L23 -> 1 | L105: ='3. Smerovacie faktory'!M23 -> 1 | M105: ='3. Smerovacie faktory'!N23 -> x | N105: ='3. Smerovacie faktory'!O23 -> 1 | O105: ='3. Smerovacie faktory'!P23 -> 1 | P105: ='3. Smerovacie faktory'!Q23 -> 1 | Q105: ='3. Smerovacie faktory'!R23 -> 0 | R105: ='3. Smerovacie faktory'!S23 -> 1 | S105: ='3. Smerovacie faktory'!T23 -> 0 | T105: ='3. Smerovacie faktory'!U23 -> 1 | U105: ='3. Smerovacie faktory'!V23 -> 0 | V105: ='3. Smerovacie faktory'!W23 -> 0 | W105: ='3. Smerovacie faktory'!X23 -> 1
B106: ='3. Smerovacie faktory'!B24 -> Odchádzajúce - SMS do zahraničia | C106: ='3. Smerovacie faktory'!D24 -> 1 | D106: ='3. Smerovacie faktory'!E24 -> 1 | E106: ='3. Smerovacie faktory'!F24 -> 1 | F106: ='3. Smerovacie faktory'!G24 -> 1 | G106: ='3. Smerovacie faktory'!H24 -> 1 | H106: ='3. Smerovacie faktory'!I24 -> 1 | I106: ='3. Smerovacie faktory'!J24 -> 0 | J106: ='3. Smerovacie faktory'!K24 -> 1 | K106: ='3. Smerovacie faktory'!L24 -> 1 | L106: ='3. Smerovacie faktory'!M24 -> 1 | M106: ='3. Smerovacie faktory'!N24 -> x | N106: ='3. Smerovacie faktory'!O24 -> 1 | O106: ='3. Smerovacie faktory'!P24 -> 1 | P106: ='3. Smerovacie faktory'!Q24 -> 1 | Q106: ='3. Smerovacie faktory'!R24 -> 0 | R106: ='3. Smerovacie faktory'!S24 -> 1 | S106: ='3. Smerovacie faktory'!T24 -> 0 | T106: ='3. Smerovacie faktory'!U24 -> 1 | U106: ='3. Smerovacie faktory'!V24 -> 0 | V106: ='3. Smerovacie faktory'!W24 -> 0 | W106: ='3. Smerovacie faktory'!X24 -> 1
B107: ='3. Smerovacie faktory'!B25 -> Prichádzajúce - SMS z iných sietí mobilných operátorov | C107: ='3. Smerovacie faktory'!D25 -> 1 | D107: ='3. Smerovacie faktory'!E25 -> 1 | E107: ='3. Smerovacie faktory'!F25 -> 1 | F107: ='3. Smerovacie faktory'!G25 -> 1 | G107: ='3. Smerovacie faktory'!H25 -> 1 | H107: ='3. Smerovacie faktory'!I25 -> 1 | I107: ='3. Smerovacie faktory'!J25 -> 0 | J107: ='3. Smerovacie faktory'!K25 -> 1 | K107: ='3. Smerovacie faktory'!L25 -> 1 | L107: ='3. Smerovacie faktory'!M25 -> 1 | M107: ='3. Smerovacie faktory'!N25 -> x | N107: ='3. Smerovacie faktory'!O25 -> 1 | O107: ='3. Smerovacie faktory'!P25 -> 1 | P107: ='3. Smerovacie faktory'!Q25 -> 1 | Q107: ='3. Smerovacie faktory'!R25 -> 0 | R107: ='3. Smerovacie faktory'!S25 -> 1 | S107: ='3. Smerovacie faktory'!T25 -> 0 | T107: ='3. Smerovacie faktory'!U25 -> 0 | U107: ='3. Smerovacie faktory'!V25 -> 0 | V107: ='3. Smerovacie faktory'!W25 -> 0 | W107: ='3. Smerovacie faktory'!X25 -> 1
B108: ='3. Smerovacie faktory'!B26 -> Prichádzajúce - SMS zo zahraničia | C108: ='3. Smerovacie faktory'!D26 -> 1 | D108: ='3. Smerovacie faktory'!E26 -> 1 | E108: ='3. Smerovacie faktory'!F26 -> 1 | F108: ='3. Smerovacie faktory'!G26 -> 1 | G108: ='3. Smerovacie faktory'!H26 -> 1 | H108: ='3. Smerovacie faktory'!I26 -> 1 | I108: ='3. Smerovacie faktory'!J26 -> 0 | J108: ='3. Smerovacie faktory'!K26 -> 1 | K108: ='3. Smerovacie faktory'!L26 -> 1 | L108: ='3. Smerovacie faktory'!M26 -> 1 | M108: ='3. Smerovacie faktory'!N26 -> x | N108: ='3. Smerovacie faktory'!O26 -> 1 | O108: ='3. Smerovacie faktory'!P26 -> 1 | P108: ='3. Smerovacie faktory'!Q26 -> 1 | Q108: ='3. Smerovacie faktory'!R26 -> 0 | R108: ='3. Smerovacie faktory'!S26 -> 1 | S108: ='3. Smerovacie faktory'!T26 -> 0 | T108: ='3. Smerovacie faktory'!U26 -> 0 | U108: ='3. Smerovacie faktory'!V26 -> 0 | V108: ='3. Smerovacie faktory'!W26 -> 0 | W108: ='3. Smerovacie faktory'!X26 -> 1
B109: Odchádzajúce - MMS v rámci siete | C109: ='3. Smerovacie faktory'!D27 -> 2 | D109: ='3. Smerovacie faktory'!E27 -> 2 | E109: ='3. Smerovacie faktory'!F27 -> 2 | F109: ='3. Smerovacie faktory'!G27 -> 2 | G109: ='3. Smerovacie faktory'!H27 -> 2 | H109: ='3. Smerovacie faktory'!I27 -> 1 | I109: ='3. Smerovacie faktory'!J27 -> 1 | J109: ='3. Smerovacie faktory'!K27 -> 2 | K109: ='3. Smerovacie faktory'!L27 -> 2 | L109: ='3. Smerovacie faktory'!M27 -> 2 | M109: ='3. Smerovacie faktory'!N27 -> x | N109: ='3. Smerovacie faktory'!O27 -> 2 | O109: ='3. Smerovacie faktory'!P27 -> 2 | P109: ='3. Smerovacie faktory'!Q27 -> 0 | Q109: ='3. Smerovacie faktory'!R27 -> 0 | R109: ='3. Smerovacie faktory'!S27 -> 0 | S109: ='3. Smerovacie faktory'!T27 -> 1 | T109: ='3. Smerovacie faktory'!U27 -> 1 | U109: ='3. Smerovacie faktory'!V27 -> 0 | V109: ='3. Smerovacie faktory'!W27 -> 0 | W109: ='3. Smerovacie faktory'!X27 -> 0
B110: Odchádzajúce - MMS do sietí iných mobilných operátorov | C110: ='3. Smerovacie faktory'!D28 -> 1 | D110: ='3. Smerovacie faktory'!E28 -> 1 | E110: ='3. Smerovacie faktory'!F28 -> 1 | F110: ='3. Smerovacie faktory'!G28 -> 1 | G110: ='3. Smerovacie faktory'!H28 -> 1 | H110: ='3. Smerovacie faktory'!I28 -> 1 | I110: ='3. Smerovacie faktory'!J28 -> 0 | J110: ='3. Smerovacie faktory'!K28 -> 0 | K110: ='3. Smerovacie faktory'!L28 -> 1 | L110: ='3. Smerovacie faktory'!M28 -> 1 | M110: ='3. Smerovacie faktory'!N28 -> x | N110: ='3. Smerovacie faktory'!O28 -> 1 | O110: ='3. Smerovacie faktory'!P28 -> 1 | P110: ='3. Smerovacie faktory'!Q28 -> 0 | Q110: ='3. Smerovacie faktory'!R28 -> 0 | R110: ='3. Smerovacie faktory'!S28 -> 0 | S110: ='3. Smerovacie faktory'!T28 -> 1 | T110: ='3. Smerovacie faktory'!U28 -> 1 | U110: ='3. Smerovacie faktory'!V28 -> 0 | V110: ='3. Smerovacie faktory'!W28 -> 0 | W110: ='3. Smerovacie faktory'!X28 -> 1
B111: Odchádzajúce - MMS do zahraničia | C111: ='3. Smerovacie faktory'!D29 -> 1 | D111: ='3. Smerovacie faktory'!E29 -> 1 | E111: ='3. Smerovacie faktory'!F29 -> 1 | F111: ='3. Smerovacie faktory'!G29 -> 1 | G111: ='3. Smerovacie faktory'!H29 -> 1 | H111: ='3. Smerovacie faktory'!I29 -> 1 | I111: ='3. Smerovacie faktory'!J29 -> 0 | J111: ='3. Smerovacie faktory'!K29 -> 0 | K111: ='3. Smerovacie faktory'!L29 -> 1 | L111: ='3. Smerovacie faktory'!M29 -> 1 | M111: ='3. Smerovacie faktory'!N29 -> x | N111: ='3. Smerovacie faktory'!O29 -> 1 | O111: ='3. Smerovacie faktory'!P29 -> 1 | P111: ='3. Smerovacie faktory'!Q29 -> 0 | Q111: ='3. Smerovacie faktory'!R29 -> 0 | R111: ='3. Smerovacie faktory'!S29 -> 0 | S111: ='3. Smerovacie faktory'!T29 -> 1 | T111: ='3. Smerovacie faktory'!U29 -> 1 | U111: ='3. Smerovacie faktory'!V29 -> 0 | V111: ='3. Smerovacie faktory'!W29 -> 0 | W111: ='3. Smerovacie faktory'!X29 -> 1
B112: Prichádzajúce - MMS z iných sietí mobilných operátorov | C112: ='3. Smerovacie faktory'!D30 -> 1 | D112: ='3. Smerovacie faktory'!E30 -> 1 | E112: ='3. Smerovacie faktory'!F30 -> 1 | F112: ='3. Smerovacie faktory'!G30 -> 1 | G112: ='3. Smerovacie faktory'!H30 -> 1 | H112: ='3. Smerovacie faktory'!I30 -> 1 | I112: ='3. Smerovacie faktory'!J30 -> 1 | J112: ='3. Smerovacie faktory'!K30 -> 1 | K112: ='3. Smerovacie faktory'!L30 -> 1 | L112: ='3. Smerovacie faktory'!M30 -> 1 | M112: ='3. Smerovacie faktory'!N30 -> x | N112: ='3. Smerovacie faktory'!O30 -> 1 | O112: ='3. Smerovacie faktory'!P30 -> 1 | P112: ='3. Smerovacie faktory'!Q30 -> 0 | Q112: ='3. Smerovacie faktory'!R30 -> 0 | R112: ='3. Smerovacie faktory'!S30 -> 0 | S112: ='3. Smerovacie faktory'!T30 -> 1 | T112: ='3. Smerovacie faktory'!U30 -> 0 | U112: ='3. Smerovacie faktory'!V30 -> 0 | V112: ='3. Smerovacie faktory'!W30 -> 0 | W112: ='3. Smerovacie faktory'!X30 -> 1
B113: Prichádzajúce - MMS zo zahraničia | C113: ='3. Smerovacie faktory'!D31 -> 1 | D113: ='3. Smerovacie faktory'!E31 -> 1 | E113: ='3. Smerovacie faktory'!F31 -> 1 | F113: ='3. Smerovacie faktory'!G31 -> 1 | G113: ='3. Smerovacie faktory'!H31 -> 1 | H113: ='3. Smerovacie faktory'!I31 -> 1 | I113: ='3. Smerovacie faktory'!J31 -> 1 | J113: ='3. Smerovacie faktory'!K31 -> 1 | K113: ='3. Smerovacie faktory'!L31 -> 1 | L113: ='3. Smerovacie faktory'!M31 -> 1 | M113: ='3. Smerovacie faktory'!N31 -> x | N113: ='3. Smerovacie faktory'!O31 -> 1 | O113: ='3. Smerovacie faktory'!P31 -> 1 | P113: ='3. Smerovacie faktory'!Q31 -> 0 | Q113: ='3. Smerovacie faktory'!R31 -> 0 | R113: ='3. Smerovacie faktory'!S31 -> 0 | S113: ='3. Smerovacie faktory'!T31 -> 1 | T113: ='3. Smerovacie faktory'!U31 -> 0 | U113: ='3. Smerovacie faktory'!V31 -> 0 | V113: ='3. Smerovacie faktory'!W31 -> 0 | W113: ='3. Smerovacie faktory'!X31 -> 1
B114: Mobilné dáta | C114: ='3. Smerovacie faktory'!D32 -> 1 | D114: ='3. Smerovacie faktory'!E32 -> 1 | E114: ='3. Smerovacie faktory'!F32 -> 1 | F114: ='3. Smerovacie faktory'!G32 -> 1 | G114: ='3. Smerovacie faktory'!H32 -> 1 | H114: ='3. Smerovacie faktory'!I32 -> 1 | I114: ='3. Smerovacie faktory'!J32 -> 0 | J114: ='3. Smerovacie faktory'!K32 -> 0 | K114: ='3. Smerovacie faktory'!L32 -> 1 | L114: ='3. Smerovacie faktory'!M32 -> 1 | M114: ='3. Smerovacie faktory'!N32 -> x | N114: ='3. Smerovacie faktory'!O32 -> 1 | O114: ='3. Smerovacie faktory'!P32 -> 1 | P114: ='3. Smerovacie faktory'!Q32 -> 0 | Q114: ='3. Smerovacie faktory'!R32 -> 0 | R114: ='3. Smerovacie faktory'!S32 -> 0 | S114: ='3. Smerovacie faktory'!T32 -> 0 | T114: ='3. Smerovacie faktory'!U32 -> 1 | U114: ='3. Smerovacie faktory'!V32 -> 1 | V114: ='3. Smerovacie faktory'!W32 -> 1 | W114: ='3. Smerovacie faktory'!X32 -> 0
A117: 6.5 Štatistika Hlavné prevádzkové hodiny
B119: Popis | C119: Jednotka | D119: Hodnota
B120: % ročnej prevádzky v BH | C120: % | D120: ='0. Hlavné vstupy'!AG68 -> 
A123: 6.6 Hlavná prevádzková hodina Erlang
C124: GSM | D124: GSM | E124: UMTS | F124: UMTS | G124: LTE | H124: všetky | I124: všetky | J124: všetky | K124: GSM | L124: UMTS | M124: LTE | N124: GSM | O124: UMTS | P124: všetky | Q124: všetky | R124: všetky | S124: všetky | T124: všetky | U124: všetky | V124: všetky | W124: všetky
C125: =C$90 -> BTS | D125: =D$90 -> BSC | E125: Node B | F125: RNC | G125: eNode B | H125: HLR | I125: MSS | J125: MGW | K125: BTS - BSC | L125: Node B - RNC | M125: eNode B - GGSN-MGW | N125: BSC - MGW | O125: RNC - MGW | P125: MGW - MGW | Q125: Mobile voicemail platform | R125: SMSC Platform | S125: MMSC Platform | T125: Intelligent Network | U125: SGSN Platform | V125: GGSN Platform | W125: Interconnection
B126: Celková obsadenosť (smerované minúty) | C126: =SUMPRODUCT(C91:C114,$C$59:$C$82) ->  | D126: =SUMPRODUCT(D91:D114,$C$59:$C$82) ->  | E126: =SUMPRODUCT(E91:E114,$D$59:$D$82) ->  | F126: =SUMPRODUCT(F91:F114,$D$59:$D$82) ->  | G126: =SUMPRODUCT(G91:G114,$E$59:$E$82) ->  | H126: =SUMPRODUCT(H91:H114,$F$59:$F$82) ->  | I126: =SUMPRODUCT(I91:I114,$F$59:$F$82) ->  | J126: =SUMPRODUCT(J91:J114,$F$59:$F$82) ->  | K126: =SUMPRODUCT(K91:K114,$C$59:$C$82) ->  | L126: =SUMPRODUCT(L91:L114,$D$59:$D$82) ->  | M126: =SUMPRODUCT(M91:M114,$E$59:$E$82) ->  | N126: =SUMPRODUCT(N91:N114,$C$59:$C$82) ->  | O126: =SUMPRODUCT(O91:O114,$D$59:$D$82) ->  | P126: =SUMPRODUCT(P91:P114,$F$59:$F$82) -> 
B127: Busy Hour obsadenosť (smerované minúty) | C127: =C126*$D$120 ->  | D127: =D126*$D$120 ->  | E127: =E126*$D$120 ->  | F127: =F126*$D$120 ->  | G127: =SUMPRODUCT(G91:G114,$E$59:$E$82) ->  | H127: =H126*$D$120 ->  | U127: =U126*$D$120 ->  | V127: =V126*$D$120 ->  | W127: =W126*$D$120 -> 
B128: Busy Hour obsadenosť (Erlang) / BHE | C128: =C127/I_VoiceMinToErlang -> 
A132: 6.7 Hlavná prevádzková hodina - pokusy o nadviazanie hovoru
C133: GSM | D133: GSM | E133: UMTS | F133: UMTS | G133: LTE | H133: všetky | I133: všetky | J133: všetky | K133: GSM | L133: UMTS | M133: LTE | N133: GSM | O133: UMTS | P133: všetky | Q133: všetky | R133: všetky | S133: všetky | T133: všetky | U133: všetky | V133: všetky | W133: všetky
C134: =C$90 -> BTS | D134: =D$90 -> BSC | E134: Node B | F134: RNC | G134: eNode B | H134: HLR | I134: MSS | J134: MGW | K134: BTS - BSC | L134: Node B - RNC | M134: eNode B - GGSN-MGW | N134: BSC - MGW | O134: RNC - MGW | P134: MGW - MGW | Q134: Mobile voicemail platform | R134: SMSC Platform | S134: MMSC Platform | T134: Intelligent Network | U134: SGSN Platform | V134: GGSN Platform | W134: Interconnection
B135: Obsadenosť - počet hovorov celkom | C135: =SUMPRODUCT(C91:C103,$M$10:$M$22) ->  | D135: =SUMPRODUCT(D91:D103,$M$10:$M$22) ->  | E135: =SUMPRODUCT(E91:E103,$N$10:$N$22) ->  | F135: =SUMPRODUCT(F91:F103,$N$10:$N$22) ->  | G135: =SUMPRODUCT(G91:G103,$O$10:$O$22) ->  | H135: =SUMPRODUCT(H91:H103,$M$10:$M$22)+SUMPRODUCT(H91:H103,$N$10:$N$22) ->  | I135: =SUMPRODUCT(I91:I103,$M$10:$M$22)+SUMPRODUCT(I91:I103,$N$10:$N$22) ->  | J135: =SUMPRODUCT(J91:J103,$M$10:$M$22) ->  | K135: =SUMPRODUCT(K91:K103,$N$10:$N$22) ->  | L135: =SUMPRODUCT(L91:L103,$M$10:$M$22)+SUMPRODUCT(L91:L103,$N$10:$N$22) ->  | M135: =SUMPRODUCT(M91:M103,$C$10:$C$22) -> 0 | N135: =SUMPRODUCT(N91:N103,$M$10:$M$22)+SUMPRODUCT(N91:N103,$N$10:$N$22) -> 
B136: Počet hovorov v BH | C136: =C135*$D$120 ->  | D136: =D135*$D$120 -> 
A140: 6.8 Hlavná prevádzková hodina - správy za sekundu
C142: SMS | D142: MMS
B143: Správy celkom | C143: =F35 ->  | D143: =F46 -> 
B144: Busy Hour správy obsadenosti | C144: =C143*$D$120 ->  | D144: =D143*$D$120 -> 
B145: Busy Hour obsadenost SMS / sekunda | C145: =C144/3600 ->  | D145: =D144/3600 -> 

Sheet 5. Jednotkové investície & Opex
A1: 5. Investície a Opex
A3: Popis
A4: Poskytuje cenové informácie pre všetky sieťové komponenty a príslušné prevádzkové náklady
A7: 5.1 Jednotkové aktuálne ceny pre prístupové (RAN) a prepojovacie sieťové prvky
B9: Switching & Access | C9: Základná jednotková cena | D9: Iné investičné výdavky | E9: Obstarávacia cena | F9: Životnosť aktíva | G9: Cenový trend | H9: Doba obstarania (priemerná doba od obstarania do zaradenia do užívania)
B10: Jednotka | C10: EUR | D10: % | E10: EUR | F10: # rokov | G10: % | H10: # mesiacov
B11: Radio Access Sites - strecha | C11: =IF('A. Výber'!$J$10=1,'0. Hlavné vstupy'!AG161,IF('A. Výber'!$J$10=2,'0. Hlavné vstupy'!AI161,IF('A. Výber'!$J$10=3,'0. Hlavné vstupy'!AK161,'0. Hlavné vstupy'!AL161))) ->  | E11: =C11*(1+D11) ->  | F11: ='0. Hlavné vstupy'!AM161 ->  | G11: ='0. Hlavné vstupy'!AH161 ->  | H11: ='0. Hlavné vstupy'!AN161 -> 
B12: Radio Access Sites - samostatný pylón | C12: =IF('A. Výber'!$J$10=1,'0. Hlavné vstupy'!AG162,IF('A. Výber'!$J$10=2,'0. Hlavné vstupy'!AI162,IF('A. Výber'!$J$10=3,'0. Hlavné vstupy'!AK162,'0. Hlavné vstupy'!AL162))) ->  | E12: =C12*(1+D12) ->  | F12: ='0. Hlavné vstupy'!AM162 ->  | G12: ='0. Hlavné vstupy'!AH162 ->  | H12: ='0. Hlavné vstupy'!AN162 -> 
B13: BTS Cabinet | C13: =IF('A. Výber'!$J$10=1,'0. Hlavné vstupy'!AG163,IF('A. Výber'!$J$10=2,'0. Hlavné vstupy'!AI163,IF('A. Výber'!$J$10=3,'0. Hlavné vstupy'!AK163,'0. Hlavné vstupy'!AL163))) ->  | F13: ='0. Hlavné vstupy'!AM163 ->  | G13: ='0. Hlavné vstupy'!AH163 ->  | H13: ='0. Hlavné vstupy'!AN163 -> 
B14: TRX 2G | C14: =IF('A. Výber'!$J$10=1,'0. Hlavné vstupy'!AG164,IF('A. Výber'!$J$10=2,'0. Hlavné vstupy'!AI164,IF('A. Výber'!$J$10=3,'0. Hlavné vstupy'!AK164,'0. Hlavné vstupy'!AL164))) ->  | F14: ='0. Hlavné vstupy'!AM164 ->  | G14: ='0. Hlavné vstupy'!AH164 ->  | H14: ='0. Hlavné vstupy'!AN164 -> 
B15: BSC | C15: =IF('A. Výber'!$J$10=1,'0. Hlavné vstupy'!AG165,IF('A. Výber'!$J$10=2,'0. Hlavné vstupy'!AI165,IF('A. Výber'!$J$10=3,'0. Hlavné vstupy'!AK165,'0. Hlavné vstupy'!AL165))) ->  | F15: ='0. Hlavné vstupy'!AM165 ->  | G15: ='0. Hlavné vstupy'!AH165 ->  | H15: ='0. Hlavné vstupy'!AN165 -> 
B16: NodeB Cabinet | C16: =IF('A. Výber'!$J$10=1,'0. Hlavné vstupy'!AG166,IF('A. Výber'!$J$10=2,'0. Hlavné vstupy'!AI166,IF('A. Výber'!$J$10=3,'0. Hlavné vstupy'!AK166,'0. Hlavné vstupy'!AL166))) ->  | F16: ='0. Hlavné vstupy'!AM166 ->  | G16: ='0. Hlavné vstupy'!AH166 ->  | H16: ='0. Hlavné vstupy'!AN166 -> 
B17: NodeB Carrier | C17: =IF('A. Výber'!$J$10=1,'0. Hlavné vstupy'!AG167,IF('A. Výber'!$J$10=2,'0. Hlavné vstupy'!AI167,IF('A. Výber'!$J$10=3,'0. Hlavné vstupy'!AK167,'0. Hlavné vstupy'!AL167))) ->  | F17: ='0. Hlavné vstupy'!AM167 ->  | G17: ='0. Hlavné vstupy'!AH167 ->  | H17: ='0. Hlavné vstupy'!AN167 -> 
B18: NodeB Channel Kit | C18: =IF('A. Výber'!$J$10=1,'0. Hlavné vstupy'!AG168,IF('A. Výber'!$J$10=2,'0. Hlavné vstupy'!AI168,IF('A. Výber'!$J$10=3,'0. Hlavné vstupy'!AK168,'0. Hlavné vstupy'!AL168))) ->  | F18: ='0. Hlavné vstupy'!AM168 ->  | G18: ='0. Hlavné vstupy'!AH168 ->  | H18: ='0. Hlavné vstupy'!AN168 -> 
B19: NodeB HSPA Upgrade | C19: =IF('A. Výber'!$J$10=1,'0. Hlavné vstupy'!AG169,IF('A. Výber'!$J$10=2,'0. Hlavné vstupy'!AI169,IF('A. Výber'!$J$10=3,'0. Hlavné vstupy'!AK169,'0. Hlavné vstupy'!AL169))) ->  | F19: ='0. Hlavné vstupy'!AM169 ->  | G19: ='0. Hlavné vstupy'!AH169 ->  | H19: ='0. Hlavné vstupy'!AN169 -> 
B20: eNode B | C20: =IF('A. Výber'!$J$10=1,'0. Hlavné vstupy'!AG170,IF('A. Výber'!$J$10=2,'0. Hlavné vstupy'!AI170,IF('A. Výber'!$J$10=3,'0. Hlavné vstupy'!AK170,'0. Hlavné vstupy'!AL170))) ->  | F20: ='0. Hlavné vstupy'!AM170 ->  | G20: ='0. Hlavné vstupy'!AH170 ->  | H20: ='0. Hlavné vstupy'!AN170 -> 
B21: RNC | C21: =IF('A. Výber'!$J$10=1,'0. Hlavné vstupy'!AG171,IF('A. Výber'!$J$10=2,'0. Hlavné vstupy'!AI171,IF('A. Výber'!$J$10=3,'0. Hlavné vstupy'!AK171,'0. Hlavné vstupy'!AL171))) ->  | F21: ='0. Hlavné vstupy'!AM171 ->  | G21: ='0. Hlavné vstupy'!AH171 ->  | H21: ='0. Hlavné vstupy'!AN171 -> 
B22: HLR | C22: =IF('A. Výber'!$J$10=1,'0. Hlavné vstupy'!AG172,IF('A. Výber'!$J$10=2,'0. Hlavné vstupy'!AI172,IF('A. Výber'!$J$10=3,'0. Hlavné vstupy'!AK172,'0. Hlavné vstupy'!AL172))) ->  | F22: ='0. Hlavné vstupy'!AM172 ->  | G22: ='0. Hlavné vstupy'!AH172 ->  | H22: ='0. Hlavné vstupy'!AN172 -> 
B23: MSS | C23: =IF('A. Výber'!$J$10=1,'0. Hlavné vstupy'!AG173,IF('A. Výber'!$J$10=2,'0. Hlavné vstupy'!AI173,IF('A. Výber'!$J$10=3,'0. Hlavné vstupy'!AK173,'0. Hlavné vstupy'!AL173))) ->  | F23: ='0. Hlavné vstupy'!AM173 ->  | G23: ='0. Hlavné vstupy'!AH173 ->  | H23: ='0. Hlavné vstupy'!AN173 -> 
B24: MGW | C24: =IF('A. Výber'!$J$10=1,'0. Hlavné vstupy'!AG174,IF('A. Výber'!$J$10=2,'0. Hlavné vstupy'!AI174,IF('A. Výber'!$J$10=3,'0. Hlavné vstupy'!AK174,'0. Hlavné vstupy'!AL174))) ->  | F24: ='0. Hlavné vstupy'!AM174 ->  | G24: ='0. Hlavné vstupy'!AH174 ->  | H24: ='0. Hlavné vstupy'!AN174 -> 
B25: Mobile voicemail platform | C25: =IF('A. Výber'!$J$10=1,'0. Hlavné vstupy'!AG175,IF('A. Výber'!$J$10=2,'0. Hlavné vstupy'!AI175,IF('A. Výber'!$J$10=3,'0. Hlavné vstupy'!AK175,'0. Hlavné vstupy'!AL175))) ->  | F25: ='0. Hlavné vstupy'!AM175 ->  | G25: ='0. Hlavné vstupy'!AH175 ->  | H25: ='0. Hlavné vstupy'!AN175 -> 
B26: SMS Centrum | C26: =IF('A. Výber'!$J$10=1,'0. Hlavné vstupy'!AG176,IF('A. Výber'!$J$10=2,'0. Hlavné vstupy'!AI176,IF('A. Výber'!$J$10=3,'0. Hlavné vstupy'!AK176,'0. Hlavné vstupy'!AL176))) ->  | F26: ='0. Hlavné vstupy'!AM176 ->  | G26: ='0. Hlavné vstupy'!AH176 ->  | H26: ='0. Hlavné vstupy'!AN176 -> 
B27: MMS Centrum | C27: =IF('A. Výber'!$J$10=1,'0. Hlavné vstupy'!AG177,IF('A. Výber'!$J$10=2,'0. Hlavné vstupy'!AI177,IF('A. Výber'!$J$10=3,'0. Hlavné vstupy'!AK177,'0. Hlavné vstupy'!AL177))) ->  | F27: ='0. Hlavné vstupy'!AM177 ->  | G27: ='0. Hlavné vstupy'!AH177 ->  | H27: ='0. Hlavné vstupy'!AN177 -> 
B28: Intelligent Network | C28: =IF('A. Výber'!$J$10=1,'0. Hlavné vstupy'!AG178,IF('A. Výber'!$J$10=2,'0. Hlavné vstupy'!AI178,IF('A. Výber'!$J$10=3,'0. Hlavné vstupy'!AK178,'0. Hlavné vstupy'!AL178))) ->  | F28: ='0. Hlavné vstupy'!AM178 ->  | G28: ='0. Hlavné vstupy'!AH178 ->  | H28: ='0. Hlavné vstupy'!AN178 -> 
B29: SGSN Platform | C29: =IF('A. Výber'!$J$10=1,'0. Hlavné vstupy'!AG179,IF('A. Výber'!$J$10=2,'0. Hlavné vstupy'!AI179,IF('A. Výber'!$J$10=3,'0. Hlavné vstupy'!AK179,'0. Hlavné vstupy'!AL179))) ->  | F29: ='0. Hlavné vstupy'!AM179 ->  | G29: ='0. Hlavné vstupy'!AH179 ->  | H29: ='0. Hlavné vstupy'!AN179 -> 
B30: GGSN Platform | C30: =IF('A. Výber'!$J$10=1,'0. Hlavné vstupy'!AG180,IF('A. Výber'!$J$10=2,'0. Hlavné vstupy'!AI180,IF('A. Výber'!$J$10=3,'0. Hlavné vstupy'!AK180,'0. Hlavné vstupy'!AL180))) ->  | E30: =C30*(1+D30) ->  | F30: ='0. Hlavné vstupy'!AM180 ->  | G30: ='0. Hlavné vstupy'!AH180 ->  | H30: ='0. Hlavné vstupy'!AN180 -> 
B31: BTS - BSC | C31: =IF('A. Výber'!$J$10=1,'0. Hlavné vstupy'!AG181,IF('A. Výber'!$J$10=2,'0. Hlavné vstupy'!AI181,IF('A. Výber'!$J$10=3,'0. Hlavné vstupy'!AK181,'0. Hlavné vstupy'!AL181))) ->  | E31: =C31*(1+D37) ->  | F31: ='0. Hlavné vstupy'!AM181 ->  | G31: ='0. Hlavné vstupy'!AH181 ->  | H31: ='0. Hlavné vstupy'!AN181 -> 
B32: Node B - RNC | C32: =IF('A. Výber'!$J$10=1,'0. Hlavné vstupy'!AG182,IF('A. Výber'!$J$10=2,'0. Hlavné vstupy'!AI182,IF('A. Výber'!$J$10=3,'0. Hlavné vstupy'!AK182,'0. Hlavné vstupy'!AL182))) ->  | F32: ='0. Hlavné vstupy'!AM182 ->  | G32: ='0. Hlavné vstupy'!AH182 ->  | H32: ='0. Hlavné vstupy'!AN182 -> 
B33: eNode B - MGW | C33: =IF('A. Výber'!$J$10=1,'0. Hlavné vstupy'!AG183,IF('A. Výber'!$J$10=2,'0. Hlavné vstupy'!AI183,IF('A. Výber'!$J$10=3,'0. Hlavné vstupy'!AK183,'0. Hlavné vstupy'!AL183))) ->  | F33: ='0. Hlavné vstupy'!AM183 ->  | G33: ='0. Hlavné vstupy'!AH183 ->  | H33: ='0. Hlavné vstupy'!AN183 -> 
B34: BSC - MGW | C34: =IF('A. Výber'!$J$10=1,'0. Hlavné vstupy'!AG184,IF('A. Výber'!$J$10=2,'0. Hlavné vstupy'!AI184,IF('A. Výber'!$J$10=3,'0. Hlavné vstupy'!AK184,'0. Hlavné vstupy'!AL184))) ->  | F34: ='0. Hlavné vstupy'!AM184 ->  | G34: ='0. Hlavné vstupy'!AH184 ->  | H34: ='0. Hlavné vstupy'!AN184 -> 
B35: RNC - MGW | C35: =IF('A. Výber'!$J$10=1,'0. Hlavné vstupy'!AG185,IF('A. Výber'!$J$10=2,'0. Hlavné vstupy'!AI185,IF('A. Výber'!$J$10=3,'0. Hlavné vstupy'!AK185,'0. Hlavné vstupy'!AL185))) ->  | F35: ='0. Hlavné vstupy'!AM185 ->  | G35: ='0. Hlavné vstupy'!AH185 ->  | H35: ='0. Hlavné vstupy'!AN185 -> 
B36: MGW - MGW | C36: =IF('A. Výber'!$J$10=1,'0. Hlavné vstupy'!AG186,IF('A. Výber'!$J$10=2,'0. Hlavné vstupy'!AI186,IF('A. Výber'!$J$10=3,'0. Hlavné vstupy'!AK186,'0. Hlavné vstupy'!AL186))) ->  | F36: ='0. Hlavné vstupy'!AM186 ->  | G36: ='0. Hlavné vstupy'!AH186 ->  | H36: ='0. Hlavné vstupy'!AN186 -> 
B37: Interconnection | C37: =IF('A. Výber'!$J$10=1,'0. Hlavné vstupy'!AG187,IF('A. Výber'!$J$10=2,'0. Hlavné vstupy'!AI187,IF('A. Výber'!$J$10=3,'0. Hlavné vstupy'!AK187,'0. Hlavné vstupy'!AL187))) ->  | F37: ='0. Hlavné vstupy'!AM187 ->  | G37: ='0. Hlavné vstupy'!AH187 ->  | H37: ='0. Hlavné vstupy'!AN187 -> 
A39: 5.2 Jednotkové aktuálne ceny pre vlastnené prenosové sieťové prvky
B41: Prenos | C41: Základná jednotková cena | D41: Iné investičné výdavky | E41: Obstarávacia cena | F41: Životnosť aktíva | G41: Cenový trend | H41: Doba obstarania (priemerná doba od obstarania do zaradenia do užívania)
B42: Jednotka | C42: EUR | D42: % | E42: EUR | F42: # rokov | G42: % | H42: # mesiacov
B43: Optické vlákno
B44: Vlákno vrátane káblovodov a zemných prác - Mesto & Aglomerácia | C44: =IF('A. Výber'!$J$10=1,'0. Hlavné vstupy'!AG192,IF('A. Výber'!$J$10=2,'0. Hlavné vstupy'!AI192,IF('A. Výber'!$J$10=3,'0. Hlavné vstupy'!AK192,'0. Hlavné vstupy'!AL192))) ->  | E44: =C44*(1+D44) ->  | F44: ='0. Hlavné vstupy'!AM192 ->  | G44: ='0. Hlavné vstupy'!AH192 ->  | H44: ='0. Hlavné vstupy'!AN192 -> 
B45: Vlákno vrátane káblovodov a zemných prác - Vidiek | C45: =IF('A. Výber'!$J$10=1,'0. Hlavné vstupy'!AG193,IF('A. Výber'!$J$10=2,'0. Hlavné vstupy'!AI193,IF('A. Výber'!$J$10=3,'0. Hlavné vstupy'!AK193,'0. Hlavné vstupy'!AL193))) ->  | E45: =C45*(1+D45) ->  | F45: ='0. Hlavné vstupy'!AM193 ->  | G45: ='0. Hlavné vstupy'!AH193 ->  | H45: ='0. Hlavné vstupy'!AN193 -> 
B46: NGN prenosové zariadenie
B47: ='1. Prevodník'!B81 -> IP Switch | C47: =IF('A. Výber'!$J$10=1,'0. Hlavné vstupy'!AG195,IF('A. Výber'!$J$10=2,'0. Hlavné vstupy'!AI195,IF('A. Výber'!$J$10=3,'0. Hlavné vstupy'!AK195,'0. Hlavné vstupy'!AL195))) ->  | F47: ='0. Hlavné vstupy'!AM195 ->  | G47: ='0. Hlavné vstupy'!AH195 ->  | H47: ='0. Hlavné vstupy'!AN195 -> 
B48: ='1. Prevodník'!B82 -> IP Router | C48: =IF('A. Výber'!$J$10=1,'0. Hlavné vstupy'!AG196,IF('A. Výber'!$J$10=2,'0. Hlavné vstupy'!AI196,IF('A. Výber'!$J$10=3,'0. Hlavné vstupy'!AK196,'0. Hlavné vstupy'!AL196))) ->  | F48: ='0. Hlavné vstupy'!AM196 ->  | G48: ='0. Hlavné vstupy'!AH196 ->  | H48: ='0. Hlavné vstupy'!AN196 -> 
B49: SDH zariadenie
B50: ='1. Prevodník'!B84 -> Digital Cross Connect (DXC) | C50: =IF('A. Výber'!$J$10=1,'0. Hlavné vstupy'!AG198,IF('A. Výber'!$J$10=2,'0. Hlavné vstupy'!AI198,IF('A. Výber'!$J$10=3,'0. Hlavné vstupy'!AK198,'0. Hlavné vstupy'!AL198))) -> 0 | E50: =C50*(1+D51) -> 0 | F50: ='0. Hlavné vstupy'!AM198 -> 0 | G50: ='0. Hlavné vstupy'!AH198 -> 0 | H50: ='0. Hlavné vstupy'!AN198 -> 0
B51: ='1. Prevodník'!B85 -> Add Drop Multiplexer - STM1 | C51: =IF('A. Výber'!$J$10=1,'0. Hlavné vstupy'!AG199,IF('A. Výber'!$J$10=2,'0. Hlavné vstupy'!AI199,IF('A. Výber'!$J$10=3,'0. Hlavné vstupy'!AK199,'0. Hlavné vstupy'!AL199))) ->  | F51: ='0. Hlavné vstupy'!AM199 ->  | G51: ='0. Hlavné vstupy'!AH199 ->  | H51: ='0. Hlavné vstupy'!AN199 -> 
B52: ='1. Prevodník'!B86 -> Add Drop Multiplexer - STM4 | C52: =IF('A. Výber'!$J$10=1,'0. Hlavné vstupy'!AG200,IF('A. Výber'!$J$10=2,'0. Hlavné vstupy'!AI200,IF('A. Výber'!$J$10=3,'0. Hlavné vstupy'!AK200,'0. Hlavné vstupy'!AL200))) ->  | F52: ='0. Hlavné vstupy'!AM200 ->  | G52: ='0. Hlavné vstupy'!AH200 ->  | H52: ='0. Hlavné vstupy'!AN200 -> 
B53: ='1. Prevodník'!B87 -> Add Drop Multiplexer - STM16 | C53: =IF('A. Výber'!$J$10=1,'0. Hlavné vstupy'!AG201,IF('A. Výber'!$J$10=2,'0. Hlavné vstupy'!AI201,IF('A. Výber'!$J$10=3,'0. Hlavné vstupy'!AK201,'0. Hlavné vstupy'!AL201))) ->  | F53: ='0. Hlavné vstupy'!AM201 ->  | G53: ='0. Hlavné vstupy'!AH201 ->  | H53: ='0. Hlavné vstupy'!AN201 -> 
B54: ='1. Prevodník'!B88 -> Add Drop Multiplexer - STM64 | C54: =IF('A. Výber'!$J$10=1,'0. Hlavné vstupy'!AG202,IF('A. Výber'!$J$10=2,'0. Hlavné vstupy'!AI202,IF('A. Výber'!$J$10=3,'0. Hlavné vstupy'!AK202,'0. Hlavné vstupy'!AL202))) ->  | F54: ='0. Hlavné vstupy'!AM202 ->  | G54: ='0. Hlavné vstupy'!AH202 ->  | H54: ='0. Hlavné vstupy'!AN202 -> 
B55: ='1. Prevodník'!B89 -> … | C55: =IF('A. Výber'!$J$10=1,'0. Hlavné vstupy'!AG203,IF('A. Výber'!$J$10=2,'0. Hlavné vstupy'!AI203,IF('A. Výber'!$J$10=3,'0. Hlavné vstupy'!AK203,'0. Hlavné vstupy'!AL203))) -> 0 | E55: 0 | F55: ='0. Hlavné vstupy'!AM203 -> 0 | G55: ='0. Hlavné vstupy'!AH203 -> 0 | H55: ='0. Hlavné vstupy'!AN203 -> 0
B56: Mikrovlnné zariadenie
B57: ='1. Prevodník'!B91 -> Link 2 Mbit/s | C57: =IF('A. Výber'!$J$10=1,'0. Hlavné vstupy'!AG205,IF('A. Výber'!$J$10=2,'0. Hlavné vstupy'!AI205,IF('A. Výber'!$J$10=3,'0. Hlavné vstupy'!AK205,'0. Hlavné vstupy'!AL205))) ->  | E57: =C57*(1+D58) ->  | F57: ='0. Hlavné vstupy'!AM205 ->  | G57: ='0. Hlavné vstupy'!AH205 ->  | H57: ='0. Hlavné vstupy'!AN205 -> 
B58: ='1. Prevodník'!B92 -> Link 8 Mbit/s | C58: =IF('A. Výber'!$J$10=1,'0. Hlavné vstupy'!AG206,IF('A. Výber'!$J$10=2,'0. Hlavné vstupy'!AI206,IF('A. Výber'!$J$10=3,'0. Hlavné vstupy'!AK206,'0. Hlavné vstupy'!AL206))) ->  | E58: =C58*(1+D59) ->  | F58: ='0. Hlavné vstupy'!AM206 ->  | G58: ='0. Hlavné vstupy'!AH206 ->  | H58: ='0. Hlavné vstupy'!AN206 -> 
B59: ='1. Prevodník'!B93 -> Link 32 Mbit/s | C59: =IF('A. Výber'!$J$10=1,'0. Hlavné vstupy'!AG207,IF('A. Výber'!$J$10=2,'0. Hlavné vstupy'!AI207,IF('A. Výber'!$J$10=3,'0. Hlavné vstupy'!AK207,'0. Hlavné vstupy'!AL207))) ->  | E59: =C59*(1+D60) ->  | F59: ='0. Hlavné vstupy'!AM207 ->  | G59: ='0. Hlavné vstupy'!AH207 ->  | H59: ='0. Hlavné vstupy'!AN207 -> 
B60: ='1. Prevodník'!B94 -> Link 128 Mbit/s | C60: =IF('A. Výber'!$J$10=1,'0. Hlavné vstupy'!AG208,IF('A. Výber'!$J$10=2,'0. Hlavné vstupy'!AI208,IF('A. Výber'!$J$10=3,'0. Hlavné vstupy'!AK208,'0. Hlavné vstupy'!AL208))) ->  | E60: =C60*(1+D61) ->  | F60: ='0. Hlavné vstupy'!AM208 ->  | G60: ='0. Hlavné vstupy'!AH208 ->  | H60: ='0. Hlavné vstupy'!AN208 -> 
B61: ='1. Prevodník'!B95 -> Link STM-1 | C61: =IF('A. Výber'!$J$10=1,'0. Hlavné vstupy'!AG209,IF('A. Výber'!$J$10=2,'0. Hlavné vstupy'!AI209,IF('A. Výber'!$J$10=3,'0. Hlavné vstupy'!AK209,'0. Hlavné vstupy'!AL209))) ->  | E61: =C61*(1+D62) ->  | F61: ='0. Hlavné vstupy'!AM209 ->  | G61: ='0. Hlavné vstupy'!AH209 ->  | H61: ='0. Hlavné vstupy'!AN209 -> 
B62: Satelitné zariadenie
B63: ='1. Prevodník'!B98 -> Link 2 Mbit/s | C63: =IF('A. Výber'!$J$10=1,'0. Hlavné vstupy'!AG211,IF('A. Výber'!$J$10=2,'0. Hlavné vstupy'!AI211,IF('A. Výber'!$J$10=3,'0. Hlavné vstupy'!AK211,'0. Hlavné vstupy'!AL211))) ->  | D63: 0 | E63: =C63*(1+D64) ->  | F63: ='0. Hlavné vstupy'!AM211 ->  | G63: ='0. Hlavné vstupy'!AH211 ->  | H63: ='0. Hlavné vstupy'!AN211 -> 
B64: ='1. Prevodník'!B99 -> Link 8 Mbit/s | C64: =IF('A. Výber'!$J$10=1,'0. Hlavné vstupy'!AG212,IF('A. Výber'!$J$10=2,'0. Hlavné vstupy'!AI212,IF('A. Výber'!$J$10=3,'0. Hlavné vstupy'!AK212,'0. Hlavné vstupy'!AL212))) ->  | D64: 0 | E64: =C64*(1+D65) ->  | F64: ='0. Hlavné vstupy'!AM212 ->  | G64: ='0. Hlavné vstupy'!AH212 ->  | H64: ='0. Hlavné vstupy'!AN212 -> 
B65: ='1. Prevodník'!B100 -> Link 32 Mbit/s | C65: =IF('A. Výber'!$J$10=1,'0. Hlavné vstupy'!AG213,IF('A. Výber'!$J$10=2,'0. Hlavné vstupy'!AI213,IF('A. Výber'!$J$10=3,'0. Hlavné vstupy'!AK213,'0. Hlavné vstupy'!AL213))) ->  | D65: 0 | E65: =C65*(1+D66) ->  | F65: ='0. Hlavné vstupy'!AM213 ->  | G65: ='0. Hlavné vstupy'!AH213 ->  | H65: ='0. Hlavné vstupy'!AN213 -> 
B66: ='1. Prevodník'!B101 -> Link 128 Mbit/s | C66: =IF('A. Výber'!$J$10=1,'0. Hlavné vstupy'!AG214,IF('A. Výber'!$J$10=2,'0. Hlavné vstupy'!AI214,IF('A. Výber'!$J$10=3,'0. Hlavné vstupy'!AK214,'0. Hlavné vstupy'!AL214))) ->  | D66: 0 | E66: =C66*(1+D67) ->  | F66: ='0. Hlavné vstupy'!AM214 ->  | G66: ='0. Hlavné vstupy'!AH214 ->  | H66: ='0. Hlavné vstupy'!AN214 -> 
B67: ='1. Prevodník'!B102 -> …
A70: 5.3 Jednotkové aktuálne ceny za prenajatú infraštruktúru
B72: Prenajaté lokácie a pozemky | C72: EUR/mesiac | D72: UM | E72: Množstvo | F72: EUR / rok
B73: Prenajaté stožiare | D73: Lokácia / mesiac | F73: =C73*12 -> 0
B74: Prenajaté strechy | D74: Lokácia / mesiac | F74: =C74*12 -> 0
B75: Priemerná cena prenájmu lokácie | F75: =SUMPRODUCT(F73:F74,E73:E74)/SUM(E73:E74) -> 
B77: Prenajaté prenosové spoje | C77: Kapacita spoja | D77: Vzdialenosť (km) | E77: UM | F77: EUR / mesiac / UM | G77: EUR / Rok / UM
C78: Kábel | E78: Km | G78: =F78*12 -> 0
C79: STM1 | E79: Link STM-1 | G79: =F79*12 -> 0
C80: 4 x E1 | E80: Link STM-4 | G80: =F80*12 -> 0
C81: 2 x E1 | E81: Link 4 Mbit/s | G81: =F81*12 -> 0
C82: 1 x E1 | E82: Link 2 Mbit/s | G82: =F82*12 -> 0

Sheet 4. Parametre dimenzovania siete
A1: 4. Parametre dimenzovania siete
A3: Popis
A4: Poskytuje základné technické plánovacie parametre a súčasnú kapacitu siete
A5: V prípade, že nie je uvedené inak, informácie nižšie vychádzajú zo stavu v roku 0
A7: 4.1 Hlavné kritériá
B9: Variabilná zložka | C9: Jednotka | D9: 2G | E9: 3G
B10: Radio path Grade of Service (GoS): Blocking Probability | C10: % | D10: ='0. Hlavné vstupy'!AG73 ->  | E10: ='0. Hlavné vstupy'!AH73 -> 
B11: Network blocking probability | C11: % | D11: ='0. Hlavné vstupy'!AG74 -> 0 | E11: ='0. Hlavné vstupy'!AH74 -> 0
B12: Capacity planning max load factor - radio network | C12: % | D12: ='0. Hlavné vstupy'!AG75 ->  | E12: ='0. Hlavné vstupy'!AH75 -> 
B13: Capacity planning max load factor - switching | C13: % | D13: ='0. Hlavné vstupy'!AG76 ->  | E13: ='0. Hlavné vstupy'!AH76 -> 
B14: Capacity planning max load factor - transmission access | C14: % | D14: ='0. Hlavné vstupy'!AG77 ->  | E14: ='0. Hlavné vstupy'!AH77 -> 
B15: Capacity planning max load factor - transmission core | C15: % | D15: ='0. Hlavné vstupy'!AG78 ->  | E15: ='0. Hlavné vstupy'!AH78 -> 
B16: Conversion of voice minutes to Erlang traffic | C16: # | D16: ='0. Hlavné vstupy'!AG80 ->  | E16: ='0. Hlavné vstupy'!AH80 -> 
B18: Proportion of Node B HSPA enabled | C18: %
B19: UMTS Radio Channel voice rate | C19: mbps
B20: Max number of channels per carrier | C20: # Channels
B21: Capacity allowance for soft handover | C21: %
B22: Max number of channels per carrier adjusted for soft handover | C22: # Channels | E22: =E20/(1+E21) -> 0
B23: Min number of channels per Node-B | C23: # Channels
B25: Channel Element Utilisation factor
A27: 4.2 Spektrum
B29: Variabilná zložka | C29: Jednotka | D29: GSM 900 | E29: GSM 1800 | F29: UMTS | G29: LTE
B30: Spektrum | C30: Khz | D30: ='0. Hlavné vstupy'!AG85 ->  | E30: ='0. Hlavné vstupy'!AH85 ->  | F30: ='0. Hlavné vstupy'!AI85 ->  | G30: ='0. Hlavné vstupy'!AJ85 -> 0
B31: Opakovací faktor - Re-use factor per cell (frequency cannot be used in adjacent cells) | C31: # | D31: ='0. Hlavné vstupy'!AG86 ->  | E31: ='0. Hlavné vstupy'!AH86 ->  | F31: ='0. Hlavné vstupy'!AI86 ->  | G31: ='0. Hlavné vstupy'!AJ86 -> 0
B32: TRX / Carrier bandwidth | C32: Khz | D32: ='0. Hlavné vstupy'!AG87 -> 200 | E32: ='0. Hlavné vstupy'!AH87 -> 200 | F32: ='0. Hlavné vstupy'!AI87 -> 5000 | G32: ='0. Hlavné vstupy'!AJ87 -> 0
B33: Spektrální kapacita - Spectral capacity of a sector (N. of TRX per sector) | C33: TRX/sektor | D33: ='0. Hlavné vstupy'!AG88 ->  | E33: ='0. Hlavné vstupy'!AH88 ->  | F33: ='0. Hlavné vstupy'!AI88 ->  | G33: ='0. Hlavné vstupy'!AJ88 -> 0
B34: Fyzická kapacita - Physical capacity of a sector (N. of TRX per sector) | C34: TRX/sektor | D34: ='0. Hlavné vstupy'!AG89 ->  | E34: ='0. Hlavné vstupy'!AH89 ->  | F34: ='0. Hlavné vstupy'!AI89 -> n/A | G34: ='0. Hlavné vstupy'!AJ89 -> 0
A37: 4.3 Pokrytie
E38: Rok 0 Skutočnosť
B39: Región | C39: Populácia rok X | D39: Celková plocha územia (km2) | E39: Celkové pokrytie - GSM 900 (% celkovej rozlohy) | F39: Celkové pokrytie - GSM 1800 (% celkovej rozlohy) | G39: Celkové pokrytie - UMTS (% celkovej rozlohy) | H39: Celkové pokrytie - LTE (% celkovej rozlohy) | L39: 1187353 | M39: 1180
B40: Aglomerácie | E40: ='0. Hlavné vstupy'!AG94 ->  | F40: ='0. Hlavné vstupy'!AH94 ->  | G40: ='0. Hlavné vstupy'!AI94 ->  | H40: ='0. Hlavné vstupy'!AJ94 -> 0 | L40: 1950938 | M40: 7209
B41: Mestá | E41: ='0. Hlavné vstupy'!AG95 ->  | F41: ='0. Hlavné vstupy'!AH95 ->  | G41: ='0. Hlavné vstupy'!AI95 ->  | H41: ='0. Hlavné vstupy'!AJ95 -> 0 | L41: 2286634 | M41: 40646
B42: Vidiek | E42: ='0. Hlavné vstupy'!AG96 ->  | F42: ='0. Hlavné vstupy'!AH96 ->  | G42: ='0. Hlavné vstupy'!AI96 ->  | H42: ='0. Hlavné vstupy'!AJ96 -> 0
B43: Územie celkom | C43: 5292154.431 | D43: 40511.33506 | E43: ='0. Hlavné vstupy'!AG97 ->  | F43: ='0. Hlavné vstupy'!AH97 ->  | G43: ='0. Hlavné vstupy'!AI97 ->  | H43: ='0. Hlavné vstupy'!AJ97 -> 0
A46: 4.4 Polomer bunky (km)
C47: 2G | G47: 3G | I47: 3G
B48: Región | C48: GSM 900 maximálny polomer bunky | D48: GSM 900 priemerný polomer bunky | E48: GSM 1800 maximálny polomer bunky | F48: GSM 1800 priemerný polomer bunky | G48: Node B maximálny polomer bunky | H48: Node B priemerný polomer bunky | I48: Node B maximálny polomer bunky | J48: Node B priemerný polomer bunky
B49: Aglomerácie | C49: 35 | D49: ='0. Hlavné vstupy'!AL94 ->  | E49: 35 | F49: ='0. Hlavné vstupy'!AM94 ->  | G49: =E49 -> 35 | H49: ='0. Hlavné vstupy'!AN94 ->  | I49: =G49 -> 35
B50: Mestá | C50: 35 | D50: ='0. Hlavné vstupy'!AL95 ->  | E50: 35 | F50: ='0. Hlavné vstupy'!AM95 ->  | G50: =E50 -> 35 | H50: ='0. Hlavné vstupy'!AN95 ->  | I50: 35
B51: Vidiek | C51: 35 | D51: ='0. Hlavné vstupy'!AL96 ->  | E51: 35 | F51: ='0. Hlavné vstupy'!AM96 ->  | G51: 35 | H51: ='0. Hlavné vstupy'!AN96 ->  | I51: 35
J52: ='0. Hlavné vstupy'!AO97 -> 0
A54: 4.5 Distribúcia prevádzky
B56: Región | C56: Populácia rok 0 | D56: % populácia | E56: % regionálnej prevádzky na celkovej prevádzke 2G | F56: % regionálnej prevádzky na celkovej prevádzke 3G
B57: Aglomerácie | C57: 1187353 | D57: =C57/$C$60 -> 0.2188699383 | E57: ='0. Hlavné vstupy'!AG102 ->  | F57: ='0. Hlavné vstupy'!AH102 ->  | G57: =E57+F57 ->  | H57: =G57/200% -> 
B58: Mestá | C58: 1950938 | D58: =C58/$C$60 -> 0.3596248796 | E58: ='0. Hlavné vstupy'!AG103 ->  | F58: ='0. Hlavné vstupy'!AH103 ->  | G58: =E58+F58 ->  | H58: =G58/200% -> 
B59: Vidiek | C59: 2286634 | D59: =C59/$C$60 -> 0.4215051821 | E59: ='0. Hlavné vstupy'!AG104 ->  | F59: ='0. Hlavné vstupy'!AH104 ->  | G59: =E59+F59 ->  | H59: =G59/200% -> 
B60: Celkom územie | C60: =SUM(C57:C59) -> 5424925 | D60: =C60/$C$60 -> 1 | E60: =SUM(E57:E59) ->  | F60: =SUM(F57:F59) -> 
A63: 4.6 Mapovanie prevádzky na Core Nodes
B64: Definícia Core Node: lokácia MGW alebo MSS
C66: Core Node Uzol (1 ak je geotyp obsluhovaný len jedným CN uzlom ; 0.5 ak je geotyp obsluhovaný 2 uzlami v rovnakom pomere atd.)
B67: Región | C67: Bratislava 1 | D67: Bratislava 2 | E67: Košice 1 | F67: Košice 2 | G67: Trnava | H67: Nitra | I67: Trenčín | J67: Žilina | K67: Banská Bystrica | L67: Prešov | N67: Kontrola (vždy 1)
B68: Geotyp Aglomerácie | N68: =SUM(C68:L68) -> 0
B69: Geotyp Mestá | N69: 0
B70: Geotyp Vidiek | N70: 0
B72: Distribúcia prevádzky na Core Node Uzol | C72: =SUMPRODUCT($H$57:$H$59,C$68:C$70) ->  | N72: =SUM(C72:L72) -> 
A75: 4.7 Počet BTS/NodeB sitov
B77: Premenná | C77: % lokácií celkom
B78: Počet striech | C78: ='0. Hlavné vstupy'!AG111 -> 
B79: Počet samostatných pylónov | C79: ='0. Hlavné vstupy'!AG112 -> 
B81: Región | C81: Lokácie s 1 kabinetom | D81: Lokácie s 2 kabinetmi | E81: Lokácie s >=3 kabinetmi | F81: Celkom
B82: Aglomerácie | C82: ='0. Hlavné vstupy'!AG117 -> 0 | D82: ='0. Hlavné vstupy'!AH117 -> 0 | E82: ='0. Hlavné vstupy'!AI117 -> 0 | F82: =SUM(C82:E82) -> 0
B83: Mestá | C83: ='0. Hlavné vstupy'!AG118 -> 0 | D83: ='0. Hlavné vstupy'!AH118 -> 0 | E83: ='0. Hlavné vstupy'!AI118 -> 0 | F83: 0
B84: Vidiek | C84: ='0. Hlavné vstupy'!AG119 -> 0 | D84: ='0. Hlavné vstupy'!AH119 -> 0 | E84: ='0. Hlavné vstupy'!AI119 -> 0 | F84: 0
B85: Celkom územie | C85: ='0. Hlavné vstupy'!AG120 -> 0 | D85: ='0. Hlavné vstupy'!AH120 -> 0 | E85: ='0. Hlavné vstupy'!AI120 -> 0 | F85: 0
A88: 4.8 BTS / NodeB zariadenie
C90: Počet BTS kabinetov | G90: Počet TRX | K90: NodeB | P90: Kabinety
B91: Zariadenie rádiového prístupu | C91: GSM 900 | D91: GSM 1800 | E91: GSM Dual | F91: Total | G91: GSM 900 | H91: GSM 1800 | I91: GSM Dual | J91: Total | K91: NodeB | L91: NodeB components | P91: GSM 900 | Q91: GSM 1800 | R91: GSM Dual | S91: Celkom
C92: # | D92: # | E92: # | F92: # | G92: # TRX | H92: # TRX | I92: # TRX | J92: # TRX | K92: # | L92: # Carrier | M92: # Channel Kit | N92: # HSDPA Upgrade | P92: # | Q92: # | R92: # | S92: #
B93: Aglomerácie | C93: n/A | D93: n/A | E93: n/A | F93: =SUM(C93:E93) -> 0 | G93: n/A | H93: n/A | I93: n/A | J93: =SUM(G93:I93) -> 0 | K93: n/A | L93: n/A | M93: n/A | N93: n/A | P93: ='0. Hlavné vstupy'!AG123 ->  | Q93: ='0. Hlavné vstupy'!AH123 ->  | R93: ='0. Hlavné vstupy'!AI123 ->  | S93: =SUM(P93:R93) -> 
B94: Mestá | C94: n/A | D94: n/A | E94: n/A | F94: =SUM(C94:E94) -> 0 | G94: n/A | H94: n/A | I94: n/A | J94: =SUM(G94:I94) -> 0 | K94: n/A | L94: n/A | M94: n/A | N94: n/A | P94: ='0. Hlavné vstupy'!AG124 ->  | Q94: ='0. Hlavné vstupy'!AH124 ->  | R94: ='0. Hlavné vstupy'!AI124 -> 
B95: Vidiek | C95: n/A | D95: n/A | E95: n/A | F95: =SUM(C95:E95) -> 0 | G95: n/A | H95: n/A | I95: n/A | J95: =SUM(G95:I95) -> 0 | K95: n/A | L95: n/A | M95: n/A | N95: n/A | P95: ='0. Hlavné vstupy'!AG125 ->  | Q95: ='0. Hlavné vstupy'!AH125 ->  | R95: ='0. Hlavné vstupy'!AI125 -> 
B96: Celkom územie | C96: =SUM(C93:C95) -> 0 | D96: 0 | E96: 0 | F96: 0 | G96: 0 | H96: 0 | I96: 0 | J96: 0 | K96: 0 | L96: 0 | P96: ='0. Hlavné vstupy'!AG126 ->  | Q96: ='0. Hlavné vstupy'!AH126 ->  | R96: ='0. Hlavné vstupy'!AI126 -> 
B97: Kapacita: Maximálny počet TRX/Carrier na BTS/NodeB
B98: Plánovacie obdobie (# mesiacov)
B101: Využitie TRX v HPH (%) | C101: GSM 900 | D101: GSM 1800 | E101: GSM Dual | F101: Celkom
B102: Aglomerácie
B103: Mestá
B104: Vidiek
A107: 4.9 BTS / NodeB sektorizácia
B109: Sektorizácia | C109: GSM 900 | F109: GSM 1800 | I109: GSM Dual | L109: NodeB | O109: eNode B
C110: 1 sektor (%) | D110: 2 sektory (%) | E110: 3+ sektory (%) | F110: 1 sektor (%) | G110: 2 sektory (%) | H110: 3+ sektory (%) | I110: 1 sektor (%) | J110: 2 sektory (%) | K110: 3+ sektory (%) | L110: 1 sektor (%) | M110: 2 sektory (%) | N110: 3+ sektory (%) | O110: 1 sektor (%) | P110: 2 sektory (%) | Q110: 3+ sektory (%)
B111: Aglomerácie
B112: Mestá
B113: Vidiek
B114: Celkom územie | C114: =SUM(C111:C113) -> 0 | D114: 0 | E114: 0 | F114: 0 | G114: 0 | H114: 0 | I114: 0 | J114: 0 | K114: 0 | L114: 0 | M114: 0 | N114: 0 | O114: 0 | P114: 0 | Q114: 0
A117: 4.10 BSC / RNC zariadenie
B119: BSC | C119: Maximálna kapacita | E119: Skutočná kapacita | G119: Plánovacie obdobie
C120: Max # TRXs (citlivosť prrvádzky) | D120: Max # BTS na BSC (citlivosť pokrytia) | E120: Skutočný # TRXs (citlivosť prevádzky) | F120: Skutočný # of BTS na BSC (citlivosť pokrytia) | G120: #mesiacov
B121: Maximálna efektívna kapacita | C121: ='0. Hlavné vstupy'!AG131 -> 
B123: RNC | C123: Max dátová prevádzka na RNC (Mbps) | D123: Plánovacie obdobie
B124: Maximálna efektívna kapacita | C124: ='0. Hlavné vstupy'!AG133 -> 
A126: 4.11 MSS zariadenia
B128: MSS | C128: Maximálna kapacita | G128: Skutočná kapacita | I128: Plánovacie obdobie
C129: Max # of užívateľov | D129: Max # of SCC | E129: Max. # BHE | F129: Max. # of BH call attempts | G129: Actual # SCC | H129: Actual # BHE | I129: #mesiacov
B130: Max / Skutočnosť | C130: ='0. Hlavné vstupy'!AG135 ->  | D130: ='0. Hlavné vstupy'!AG136 ->  | E130: ='0. Hlavné vstupy'!AG137 ->  | F130: ='0. Hlavné vstupy'!AG138 -> 
A133: 4.12 MGW zariadenia
B135: Media gateways | C135: Maximálna kapacita | E135: Skutočná kapacita | G135: Plánovacie obdobie
C136: Maximálny # SCC | D136: Maximálny # BHE | E136: Aktuálny počet # SCC | F136: Act # of BHE | G136: #mesiacov
B137: Max / Skutočnosť | C137: ='0. Hlavné vstupy'!AG140 ->  | D137: ='0. Hlavné vstupy'!AG142 -> 
A140: 4.13 Ostatné zariadenia core platforms
B142: Ostatné Switching & Access zariadenia | C142: Skutočné množstvo(#) (bez zálohování a nevyužitých) | D142: Minimálny počet platforiem (#) | E142: Kapacitné jednotky | F142: Celková kapacita (v kap. jednotkách) | G142: Plánovacie obdobie (mesiace)
B143: Home Location Register (HLR) | E143: Max # zákazníkov
E144: Max # kapacita serveru
B145: Voicemail platform | E145: Max # zákazníkov voicemail
B146: SMSC platform | E146: Max # SMS v BH
B147: MMSC platform | E147: Max # správ za sekundu
B148: Mobile IN | E148: Max # užívateľov
B149: SGSN Platform | E149: Max # zákazníkov s dátovými službami
B150: GGSN Platform | E150: Max # zákazníkov s dátovými službami
B153: BTS lokácie - alternatívy zdrojov energie | C153: BTS lokácií (#)
B154: Lokácie základňových staníc napojené na elektrickú sieť | C154: ='0. Hlavné vstupy'!AG114 -> 
A157: 4.14 Mapovanie Core platforiem na Core Node uzly
B159: Mapovanie Core platforms na Core Nodes | C159: Bratislava 1 | D159: Bratislava 2 | E159: Košice 1 | F159: Košice 2 | G159: Trnava | H159: Nitra | I159: Trenčín | J159: Žilina | K159: Banská Bystrica | L159: Prešov | M159: Celkom
B160: Network Center | M160: =SUM(C160:L160) -> 0
B161: Switch locations | M161: =SUM(C161:L161) -> 0
B162: Home Location Register (HLR) | M162: 0
B163: Voicemail platform | M163: 0
B164: SMSC platform | M164: 0
B165: MMSC platform | M165: 0
B166: Mobile IN | M166: 0
B167: SGSN Platform | M167: 0
B168: GGSN Platform | M168: 0
B169: Point Of Interconnect | M169: 0
B170: Maintenance / monitoring ports | M170: 0
A173: Zariadenia chrbticovej siete
A177: 4.15 Prenos
A179: 4.16.1 IP (NGN) zariadenie
C181: Maximálna kapacita | E181: Skutočná kapacita
B182: IP switche (access) | C182: Kapacita (Gbps) | D182: Počet kariet | E182: Použitá kapacita (Gbps) | F182: Karty | G182: Inštalované porty
B183: Maximálna kapacita
B185: IP routery | C185: Kapacita (Gbps) | D185: Počet kariet | E185: Kapacita (Gbps) | F185: Počet kariet | G185: Počet portov
B186: Maximálna kapacita
B188: IP Switch typ karty | C188: Kapacita (mbps) | D188: Porty na kartu ( per line card) | E188: Hraničná kapacita (mbps)
B189: 1 Gbps card | C189: 1000 | D189: 2 | E189: 10000
B190: 100 Mbps card | C190: 100 | D190: 12 | E190: 400
B191: 100 Mbps card | C191: 100 | D191: 4 | E191: 400
B193: IP Router typ karty | C193: Kapacita (mbps) | D193: Ports per line card | E193: Hraničná kapacita (mbps)
B194: 1 Gbps card | C194: 1000 | D194: 2 | E194: 10000
B195: 100 Mbps card | C195: 100 | D195: 4 | E195: 400
B197: IP minimálne zariadenie pre resilience a / alebo iné funkcie | C197: Kapacita (mbps)
B198: IP switch - minimum na core node | C198: 2
B199: IP router - minimum na core node | C199: 4
B200: IP prenos - minimálny počet spojov medzi lokáciami | C200: 2
A203: 4.16.2 Prenosové zariadenie
B206: Kábel | C206: Km | D206: BTS/NodeB - BSC/RNC | E206: BSC/RNC - MGW | F206: Chrbticové spoje
B207: Prenajaté spoje % ako percento káblových spojov
A210: 4.16.3 Priemerné mikrovlnné skoky a káblová vzdialenosť
B212: BTS/NodeB Sites - BSC/RNC priemerné skoky | C212: Aglomerácie | D212: Mestá | E212: Vidiek
B213: Zdieľané BSC/RNC - MGW % | C213: ='0. Hlavné vstupy'!AG147 ->  | D213: =VLOOKUP(D$212,'0. Hlavné vstupy'!$B$146:$AH$150,32) ->  | E213: =VLOOKUP(E$212,'0. Hlavné vstupy'!$B$146:$AH$150,32) -> 
B214: Priemerný počet mikrovlnných skokov pre prístup | C214: ='0. Hlavné vstupy'!AH147 ->  | D214: =VLOOKUP(D$212,'0. Hlavné vstupy'!$B$146:$AH$150,33) ->  | E214: =VLOOKUP(E$212,'0. Hlavné vstupy'!$B$146:$AH$150,33) -> 
B218: BTS/NodeB Sites - BSC/RNC priemerná káblová vzdialenosť | C218: Aglomerácie | D218: Mestá | E218: Vidiek
B219: Zdieľané s BSC/RNC - MGW iba | C219: 0 | D219: 0 | E219: 0
B220: Priemerná vzdialenosť pre káblové spojenie použité pre RAN | C220: ='0. Hlavné vstupy'!AI147 ->  | D220: =VLOOKUP(D$212,'0. Hlavné vstupy'!$B$146:$AI$150,34) ->  | E220: =VLOOKUP(E$212,'0. Hlavné vstupy'!$B$146:$AI$150,34) -> 
B223: BSC/RNC - MGW priemerný skok / káblová vzdialenosť | C223: Core Node | D223: Priemerné mikro skoky na BSC/RNC - MGW spoj | E223: Priemerná vzdialenosť BSC/RNC - MGW spoje
B224: BSC/RNC - MGW priemerný skok / káblová vzdialenosť do Core Node
C225: =TRANSPOSE(C159:L159) -> Bratislava 1 | F225: =IF(D225=0,0,E225/D225) -> 0 | I225: =IF(G225=0,0,H225/G225) -> 0
C226: Bratislava 2 | F226: 0 | I226: =IF(G226=0,0,H226/G226) -> 0
C227: Košice 1 | F227: 0 | I227: =IF(G227=0,0,H227/G227) -> 0
C228: Košice 2 | F228: 0 | I228: =IF(G228=0,0,H228/G228) -> 0
C229: Trnava | F229: 0
C230: Nitra | F230: 0
C231: Trenčín
C232: Žilina
C233: Banská Bystrica
C234: Prešov | F234: 0 | I234: =IF(G234=0,0,H234/G234) -> 0
B238: Káblová vzdialenosť mezi Core Nodes a Network Centre (km) | C238: Bratislava 1 | D238: Bratislava 2 | E238: Košice 1 | F238: Košice 2 | G238: Trnava | H238: Nitra | I238: Trenčín | J238: Žilina | K238: Banská Bystrica | L238: Prešov
B239: Bratislava 1
B240: Bratislava 2
B241: Košice 1
B242: Košice 2
B243: Trnava
B244: Nitra
B245: Trenčín
B246: Žilina
B247: Banská Bystrica
B248: Prešov
B249: Celkom | C249: =SUM(C239:C248) -> 0 | D249: =SUM(D239:D248) -> 0 | E249: 0 | F249: 0 | G249: 0 | H249: 0 | I249: 0 | J249: 0 | K249: 0 | L249: 0
A251: 4.16.4 Prenos podľa média
B253: BTS/NodeB lokácie - BSC/RNC | C253: % BTS/NodeB spojov do BSC/RNC
B254: BTS/NodeB spoje do BSC/RNC | C254: Aglomerácie | D254: Mestá | E254: Vidiek
B255: Mikrovlnné
B256: Káblové
B257: Prenajatá kapacita
B258: Kolokácia s BSC/RNC
B260: BSC/RNC - MGW | C260: % BSC/RNS spojov do MGW Core Node uzla:
B261: BSC/RNC spoje do Core Node | C261: Bratislava 1 | D261: Bratislava 2 | E261: Košice 1 | F261: Košice 2 | G261: Trnava | H261: Nitra | I261: Trenčín | J261: Žilina | K261: Banská Bystrica | L261: Prešov
B262: Mikrovlnné
B263: Káblové
B264: Prenajatá kapacita
B265: Kolokácia s MGW
B267: Chrbticové spoje | C267: % chrbticové spoje medzi Core Node a Network Centre:
B268: Z Core Node | C268: Bratislava 1 | D268: Bratislava 2 | E268: Košice 1 | F268: Košice 2 | G268: Trnava | H268: Nitra | I268: Trenčín | J268: Žilina | K268: Banská Bystrica | L268: Prešov
B269: Do Network Centre
B270: Kábel
B271: Prenajatá kapacita
B272: Kolokácie s inými MGW
A275: 4.17 Kapacita spojov (prevodník)
B277: Dáta pre kapacitu spoja | C277: Meno | D277: Dátová rýchlosť (Mbit/s) | E277: Počet E1s | F277: Okruhy celkom | G277: Hlasové okruhy | H277: Signalizácia | I277: Erlang
B278: Link 2 Mbit/s | C278: E1 | D278: 2.048 | E278: 1 | F278: =2048/64 -> 32 | G278: 30 | H278: 2 | I278: 21.932
B279: Link 8 Mbit/s | C279: E2 | D279: 8.448 | E279: 4 | F279: =4*2048/64 -> 128 | G279: =4*G278 -> 120 | H279: =4*H278 -> 8 | I279: 107.4
... 461 more rows

Sheet 3. Smerovacie faktory
A1: 3. Smerovacie faktory služieb
A3: Popis
A4: Poskytuje štatistiky smerovania služieb po jednotlivých sieťových prvkoch
C6: Rádiový prístup | I6: Chrbticová sieť | L6: Prenos | R6: Platforma
B7: Technológie | D7: 2G | F7: 3G | H7: LTE
B8: NE / Služba | C8: Access Sites | D8: BTS | E8: BSC | F8: Node B | G8: RNC | H8: eNode B | I8: HLR | J8: MSS | K8: MGW | L8: BTS - BSC | M8: Node B - RNC | N8: eNode B - GGSN-MGW | O8: BSC - MGW | P8: RNC - MGW | Q8: MGW - MGW | R8: Mobile voicemail platform | S8: SMSC Platform | T8: MMSC Platform | U8: Intelligent Network | V8: SGSN Platform | W8: GGSN Platform | X8: Interconnection
B9: Odchádzajúce - hovory v sieti (on-net) | C9: 2 | D9: 2 | E9: 2 | F9: 2 | G9: 2 | H9: 2 | I9: 1 | J9: 1.5 | K9: 2 | L9: 2 | M9: 2 | N9: x | O9: 2 | P9: 2 | Q9: 1 | R9: 0 | S9: 0 | T9: 0 | U9: 1 | V9: 0 | W9: 0 | X9: 0
B10: Odchádzajúce - hovory do sietí iných mobilných operátorov | C10: 1 | D10: 1 | E10: 1 | F10: 1 | G10: 1 | H10: 1 | I10: 1 | J10: 1 | K10: 1.5 | L10: 1 | M10: 1 | N10: x | O10: 1 | P10: 1 | Q10: 1 | R10: 0 | S10: 0 | T10: 0 | U10: 1 | V10: 0 | W10: 0 | X10: 1
B11: Odchádzajúce - hovory do pevnej siete | C11: 1 | D11: 1 | E11: 1 | F11: 1 | G11: 1 | H11: 1 | I11: 1 | J11: 1 | K11: 1.5 | L11: 1 | M11: 1 | N11: x | O11: 1 | P11: 1 | Q11: 1 | R11: 0 | S11: 0 | T11: 0 | U11: 1 | V11: 0 | W11: 0 | X11: 1
B12: Odchádzajúce - hovory do zahraničia | C12: 1 | D12: 1 | E12: 1 | F12: 1 | G12: 1 | H12: 1 | I12: 1 | J12: 1 | K12: 1.5 | L12: 1 | M12: 1 | N12: x | O12: 1 | P12: 1 | Q12: 1 | R12: 0 | S12: 0 | T12: 0 | U12: 1 | V12: 0 | W12: 0 | X12: 1
B13: Odchádzajúce - hovory na tiesňové čísla | C13: 1 | D13: 1 | E13: 1 | F13: 1 | G13: 1 | H13: 1 | I13: 1 | J13: 1 | K13: 1.5 | L13: 1 | M13: 1 | N13: x | O13: 1 | P13: 1 | Q13: 1 | R13: 0 | S13: 0 | T13: 0 | U13: 1 | V13: 0 | W13: 0 | X13: 1
B14: Odchádzajúce - hovory do hlasovej schránky | C14: 1 | D14: 1 | E14: 1 | F14: 1 | G14: 1 | H14: 1 | I14: 1 | J14: 1 | K14: 1.5 | L14: 1 | M14: 1 | N14: x | O14: 1 | P14: 1 | Q14: 1 | R14: 1 | S14: 0 | T14: 0 | U14: 1 | V14: 0 | W14: 0 | X14: 0
B15: Odchádzajúce - hovory na bezplatné čísla | C15: 1 | D15: 1 | E15: 1 | F15: 1 | G15: 1 | H15: 1 | I15: 1 | J15: 1.25 | K15: 1.5 | L15: 1 | M15: 1 | N15: x | O15: 1 | P15: 1 | Q15: 1 | R15: 0 | S15: 0 | T15: 0 | U15: 1 | V15: 0 | W15: 0 | X15: 1
B16: Odchádzajúce - hovory na čísla Premium | C16: 1 | D16: 1 | E16: 1 | F16: 1 | G16: 1 | H16: 1 | I16: 1 | J16: 1.25 | K16: 1.5 | L16: 1 | M16: 1 | N16: x | O16: 1 | P16: 1 | Q16: 1 | R16: 0 | S16: 0 | T16: 0 | U16: 1 | V16: 0 | W16: 0 | X16: 1
